Workbook

Sheet Title
A1: The column titles for this worksheet are in row 2. They span cells C2. The data spans cells A3 through C29. There is information in every cell for column A through C inclusive. If you are not using a screen reader, you can press Alt + R, T for the Review Ribbon, Edit Comment to move to and open a Comment once you are on a cell with a Comment. When you are finished reading the Comment, press Escape to close the comment and return to the worksheet. If you are using the JAWS screen reader, press Ctrl + Shift + Apostrophe to get a list of Comments and their cell coordinates in the worksheet. Press Enter on the Comment you want to go to or Escape once you’ve read the Comment for a cell. You are returned to the workbook. Note that there is no keyboard command with JAWS to reread Comments or read Comments once you are on them in a cell. You must use the ability to list Comments in order to read them if you are using the JAWS screen reader.
C2: California Active Transportation Benefit/Cost Analysis Model (Cal-B/C AT) Version 8.1
B22: Office of Transportation Economics
B23: Division of Transportation Planning
B24: March 2022
B27: For questions and comments, please contact:
B29: Transportation Economics Branch | C29: eab@dot.ca.gov

Sheet Instructions

Sheet Definitions
B2: Definitions
B3: Several definitions require clarification in evaluating facility use, either improved existing or new facilities. This section provides definitions for terms that are used in this tool with respect to “trip types” and “user types). In addition, not all users benefit from projects in the same way. Definitions about benefit categories are elaborated upon below. Relevance of benefit categories depends on trip purpose and type of project (i.e., existing facility upgrade and new construction).
B5: Trip Types | C5: Definitions
B6: Trips | C6: One-way travel to a destination for commuting, or other purposes and is assumed to counted for both directions of travel (and subsequently modeled) for a specific location.
B7: Roundtrips | C7: Most trips have a return journey using the same mode and some can include other unlinked side trips. This "roundtrip" measure divides Trips by the average number of unlinked trips to determine the is used to identify the number of users that take trips.
B8: Existing Trips | C8: Baseline trips, either on an existing facility or unmarked street, where the project will create a new facility with specific improvements
B9: Induced Trips | C9: Additional trips above the baseline that arise because of the improvements to existing or new facilities
B10: Trip Forecasts | C10: Forecasts are developed for existing facilities and new locations (if applicable), model users determine numbers of current and induced trips, and other characteristics (e.g., roundtrip probability, purpose, distance, etc.)
B12: Trip Purposes | C12: Definitions
B13: Commute to Work | C13: Users who are taking the facility to or from work. These users are primarily adult or young-adult aged. Use by college students would be classified under "other destinations"
B14: Safe Route to School | C14: Users who are school-aged, i.e. 18 or under years old, and taking the facility to or from school.
B15: Other Destinations | C15: Users who are taking the facility to reach a variety of other destinations besides work, such as shopping, meeting friends, college classes, etc. These are trips that would be otherwise taken by some type of motor vehicle
B16: Recreational | C16: Users who are taking the facility purely as a loop-trip for exercise purposes. These trips would not be otherwise taken by motor vehicle since the purpose is for fitness and recreation.
B18: Benefit Categories | C18: Definitions
B19: Journey Quality | C19: Improvements in the quality of the trip for pedestrians and cyclists that arise from a greater feeling of safety, comfort, aesthetics, and other types of improvements. Improvements to existing and new facilities can generate benefits for current trips and induced trips. Benefits to induced users are estimated using "rule of half" approximation. Journey quality is assumed to have a zero value for existing users along routes where there is no existing facility. The value of journey quality includes the perception of safety improvement and thus, to avoid double counting, additional accident reduction value along the routes is excluded. However, safety improvements at intersections along existing facilities generate additional benefits that are discussed below.
B20: Intersection Delay (Time Savings from Improved Intersections on Existing Facilities) | C20: Improvements to existing intersections (e.g. lights, bridges, etc.) can lead to time savings for trips by reducing waiting time at intersections, for say a break in vehicular traffic. Time savings benefits can arise for existing and induced pedestrians and cyclists at each intersection that they cross. The number of intersections crossed by users of a facility on each trip is determined by the total length of the existing facility the average distance traveled per user type, and the number of intersections with improvements. Benefits to induced users are estimated using "rule of half" approximation.
B21: Intersection Safety (Accident Reduction at Improved Intersections of Existing Facilities) | C21: Improvements to existing intersections (e.g. lights, bridges, etc.) can lead to reduced accidents at intersections. Benefits can arise for existing and induced pedestrians and cyclists at each intersection crossed. The number of intersections crossed per trip is determined by the total length of the existing facility, the average distance traveled per user type, and the number of intersections with improvements. The magnitude of impacts is determined by the percent reduction in existing accidents due to specific safety measures. Induced trips benefits apply "rule of half" approximation.
B22: Auto Accident Costs and Auto Emissions | C22: Some of the induced pedestrian and cycling trips entail diversions from auto use. Benefits from reduced auto use include reduced frequency of accidents and level of auto emissions. Benefits are estimated for each diverted auto trip by using standard methods and data for estimating the value of auto use externalities.
B23: Health Benefits - Reduced Absenteeism of Commuters | C23: Health benefits related to reduced absenteeism are generated by induced walking and cycling commuters. The benefits are monetized by higher productivity due to fewer sick days. Benefits to these induced users are not estimated using "rule of half" approximation since the value is observed by the employer.
B24: Health Benefits - Reduced Mortality Risk | C24: Health benefits related to improved long-term health and reduced risk of disease and early death. These benefits are derived from parameters established by the World Health Organization (WHO) and formalized in their online HEAT tool and documentation. Benefits are derived from reduced mortality risk in populations that range from 20-64 for cyclists and 20-74 for pedestrians. Reduced mortality risk depends on the amount of cycling (average distance) undertaken over a one year period.
B26: Benefit Categories by Facility Type
B27: The matrix below indicates the applicability of benefits by to different types of trips and projects. Projects include existing facility improvements and new construction. Trips differ between current trips already being taken and new, induced trips that arise because of improvements.
C28: Existing Facility Improvement | E28: New Construction
B29: Benefit Categories by Facility Type | C29: Existing Trips | D29: Induced Trips | E29: Existing Trips | F29: Induced Trips
B30: Journey Quality | C30: Yes | D30: Yes | E30: Yes | F30: Yes
B31: Intersection Delay (Time Savings from Improved Intersections on Existing Facilities) | C31: Yes | D31: Yes
B32: Intersection Safety (Accident Reduction at Improved Intersections of Existing Facilities) | C32: Yes | D32: Yes
B33: Auto Accident Costs and Auto Emissions | D33: Yes | F33: Yes
B34: Health Benefits - Reduced Absenteeism of Commuters | D34: Yes (Commuters, only) | F34: Yes (Commuters, only)
B35: Health Benefits - Reduced Mortality Risk | D35: Yes (Age dependent) | F35: Yes (Age dependent)

Sheet 1a) Project Info
C2: District: | E2: District 4 | V2: Enter all project and program costs (in today's dollars) in the two tables shown below . Costs during construction should be entered in the first row.
H3: EA: | V3: Project costs (including maintenance and operating costs) should be net of costs without project.
C4: PROJECT: | E4: EBGWMM - North Segment | H4: PPNO:
C7: 1A | D7: PROJECT AND SITE CHARACTERISTICS | M7: 1D | N7: GENERAL USER CHARACTERISTICS (BASED ON PROJECT LOCATION) | W7: 1F | X7: PROJECT COSTS AND REQUESTED FUNDS (enter in thousands of dollars) | AK7: 1H | AL7: DATA CHECKS - PROJECT LENGTH, DAILY TRIPS
C9: Type of Project | M9: Cycling | W9: Col. no.
E10: Existing facility upgrade only = 1 New facility only, no existing facility work = 2 Existing facility upgrade and new facility extension = 3 | H10: 3 | N10: Trip Purpose | Q10: No Build | R10: Build | Y10: DIRECT PROJECT COSTS | AF10: TOTAL COSTS (in dollars) | AO10: No Build Project Length | AP10: Build Project Length
O11: Commuting Trip Purpose (%) | Q11: =INDEX(CycTripPurpose,1,IF(ISBLANK(ProjLoc),1,ProjLoc)) -> 0.186 | R11: =Q11 -> 0.186 | Y11: INITIAL COSTS | AB11: SUBSEQUENT COSTS | AN11: Existing Facility Length Check | AO11: =IF(G39=ProjLenEX,"OK","Not OK") -> OK | AP11: =IF(H39=G39,"OK","Not OK") -> OK
D12: Total Project Length | I12: Project Type Data Check | O12: Recreational Trip Purpose (%) | Q12: =INDEX(CycTripPurpose,2,IF(ISBLANK(ProjLoc),1,ProjLoc)) -> 0.461 | R12: =Q12 -> 0.461 | W12: Year | X12: Construction | Y12: Project Support | Z12: R / W | AA12: Construction | AB12: Maint./ Op. | AC12: Rehab. | AF12: Constant | AG12: Present | AN12: New Facility Length Check | AO12: =IF(Q34=H14,"OK","Not OK") -> OK | AP12: =IF(R39=Q34,"OK","Not OK") -> OK
E13: Total Existing Facility Length (miles) | H13: 4.97 | I13: =IF(AND(OR(ProjType=1,ProjType=3),ProjLenEX=0),"Not OK",IF(AND(ProjType=2,ProjLenEX>0),"Not OK","OK")) -> OK | O13: Other Destinations Trip Purpose (%) | Q13: =INDEX(CycTripPurpose,3,IF(ISBLANK(ProjLoc),1,ProjLoc)) -> 0.353 | R13: =Q13 -> 0.353 | X13: Years | AF13: Dollars | AG13: Value
E14: Total New Facility Length (miles) | H14: 4.13 | I14: =IF(AND(OR(ProjType=2,ProjType=3),ProjLenNEW=0),"Not OK",IF(AND(ProjType=1,ProjLenNEW>0),"Not OK","OK")) -> OK | N14: General Trip Characteristics | W14: Infrastructure Program Costs | AO14: Cycling Daily Trips per Mile | AP14: Pedestrian Daily Trips per Mile
O15: Overall Average Distance Traveled / Trip (mi) | Q15: =INDEX(CycDistPerTrip,1,IF(ISBLANK(ProjLoc),1,ProjLoc)) -> 2.29 | R15: =TAvMiCycNB -> 2.29 | W15: 1 | X15: =IF(AA15>0,1,0) -> 0 | Y15: =844+(7750/2) -> 4719 | Z15: 403 | AB15: <-- Must enter a cost | AF15: =SUM(Y15:AA15)*1000 -> 5122000 | AG15: =AF15/(1+DiscRate)^($W15-1) -> 5122000 | AN15: Existing Facility Users | AO15: =IFERROR(ADT0CycEX/G39,"NA") -> 99.29153924 | AP15: =IFERROR(ADT0PedEX/G39,"NA") -> 225.940768
C16: Characteristics | O16: Children - SRTS - Distance Traveled / Trip (mi) | Q16: =INDEX(CycDistPerTrip,2,IF(ISBLANK(ProjLoc),1,ProjLoc)) -> 0.99 | R16: =TAvMiCycNBSRTS -> 0.99 | W16: 2 | X16: =IF(AA16>0,1,0) -> 0 | Y16: =(7750/2) -> 3875 | AF16: =SUM(Y16:AA16)*1000 -> 3875000 | AG16: 3621495.327 | AN16: New Facility Users | AO16: =IFERROR(ADT0CycNew/Q39,"NA") -> 119.4864286 | AP16: =IFERROR(ADT0PedNew/Q39,"NA") -> 271.8948225
D17: Project Location (enter 1 for So. Cal., 2 for No. Cal., or 3 for rural) | H17: 2 | W17: 3 | X17: 1 | AA17: 55975 | AF17: 55975000 | AG17: 48890732.82
M18: Pedestrian | W18: 4 | X18: 1 | AA18: 55975 | AF18: 55975000 | AG18: 45692273.66 | AO18: Safety Measures - Existing only
D19: Safe Route to School? (enter 1 for Yes, 0 for No) | H19: 0 | N19: Trip Purpose | W19: 5 | X19: 0 | AF19: 0 | AG19: 0 | AN19: Existing Facility Characteristics | AO19: =IF(AND(ProjLenEX=0,SUM(H116:H129)>0),"Not OK", "OK") -> OK
O20: Commuting Trip Purpose (%) | Q20: =INDEX(PedTripPurpose,1,IF(ISBLANK(ProjLoc),1,ProjLoc)) -> 0.052 | R20: =Q20 -> 0.052 | W20: 6 | X20: 0 | AF20: 0 | AG20: 0
D21: Programmatic Initiatives? (enter 1 for Yes, 0 for No) | H21: 0 | O21: Recreational Trip Purpose (%) | Q21: =INDEX(PedTripPurpose,2,IF(ISBLANK(ProjLoc),1,ProjLoc)) -> 0.55 | R21: =PerRecPedNB -> 0.55 | W21: 7 | X21: 0 | AF21: 0 | AG21: 0
O22: Other Destination Trip Purpose (%) | Q22: =INDEX(PedTripPurpose,3,IF(ISBLANK(ProjLoc),1,ProjLoc)) -> 0.398 | R22: =PerODPedNB -> 0.398 | W22: 8 | X22: 0 | AF22: 0 | AG22: 0
D23: Construction | I23: Constr. Years Data Check | N23: General Trip Characteristics | W23: Annual Infrastructure O&M Costs
E24: Length of Construction Period (years) | H24: 2 | I24: =IF(SUM(X15:X22)=Construct, "OK","Not OK") -> OK | O24: Overall Average Distance Traveled / Trip (mi) | Q24: =INDEX(PedDistPerTrip,1,IF(ISBLANK(ProjLoc),1,ProjLoc)) -> 0.68 | R24: =TAvMiPedNB -> 0.68 | W24: 1 | AF24: =SUM(AB24:AC24)*1000 -> 0 | AG24: =$AF24/(1+DiscRate)^($W24+Construct-1) -> 0
O25: Children - SRTS - Distance Traveled / Trip (mi) | Q25: =INDEX(PedDistPerTrip,2,IF(ISBLANK(ProjLoc),1,ProjLoc)) -> 0.63 | R25: =TAvMiPedNBSRTS -> 0.63 | W25: 2 | AF25: =SUM(AB25:AC25)*1000 -> 0 | AG25: 0
W26: 3 | AF26: =SUM(AB26:AC26)*1000 -> 0 | AG26: 0
W27: 4 | AB27: =(1.58*8.5)+(0.24*0)+(6.48*4) -> 39.35 | AF27: =SUM(AB27:AC27)*1000 -> 39350 | AG27: =$AF27/(1+DiscRate)^($W27+Construct-1) -> 28056.00616
W28: 5 | AB28: =(1.58*8.5)+(0.24*3.5)+(6.48*4) -> 40.19 | AF28: 40190 | AG28: 26780.29398
W29: 6 | AB29: =(1.58*8.5)+(0.24*0)+(6.48*4) -> 39.35 | AF29: 39350 | AG29: 24505.20234
C30: 1B | D30: EXISTING SEGMENT IMPROVEMENTS AND TRIP VOLUME | M30: 1E | N30: NEW FACILITY IMPROVEMENTS AND TRIP VOLUME | W30: 7 | AB30: =(1.58*8.5)+(0.24*3.5)+(6.48*4) -> 40.19 | AF30: 40190 | AG30: 23390.94591
W31: 8 | AB31: 39.35 | AF31: 39350 | AG31: 21403.79277
C32: Improvement Characteristics | M32: Improvement Characteristics | W32: 9 | AB32: =(1.58*8.5)+(0.24*3.5)+(6.48*4) -> 40.19 | AF32: 40190 | AG32: 20430.55805
D33: Existing Facility Length, if Applicable | F33: Class | G33: No Build | H33: Build | I33: Project Length Data Check | N33: New Facility Length | P33: Class | Q33: No Build | R33: Build | S33: Project Length Data Check | W33: 10 | AB33: 39.35 | AF33: 39350 | AG33: 18694.90154
O34: No Facility | P34: 0 | Q34: =ProjLenNEW -> 4.13 | S34: =IF(OR(AO12="Not OK",AP12="Not OK"),"Not OK","OK") -> OK | W34: 11 | AB34: =(1.58*8.5)+(0.24*3.5)+(6.48*4) -> 40.19 | AF34: 40190 | AG34: 17844.84064
E35: Bike Paths (miles) | F35: I | G35: 0.5 | H35: 0.92 | I35: =IF(OR(AO11="Not OK",AP11="Not OK"),"Not OK","OK") -> OK | O35: Bike Paths (miles) | P35: I | R35: 1.16 | W35: 12 | AB35: 39.35 | AF35: 39350 | AG35: 16328.85102
E36: Bike Lanes (miles) | F36: II | G36: 4.27 | H36: 0 | O36: Bike Lanes (miles) | P36: II | R36: 0 | W36: 13 | AB36: =(1.58*8.5)+(0.24*3.5)+(6.48*4) -> 40.19 | AF36: 40190 | AG36: 15586.37492
E37: Bike Route (miles) | F37: III | G37: 0.2 | H37: 0.12 | O37: Bike Route (miles) | P37: III | R37: 0.13 | W37: 14 | AB37: 39.35 | AF37: 39350 | AG37: 14262.25087
E38: Separated Bikeways, Cycle Tracks (miles) | F38: IV | G38: 0 | H38: 3.93 | O38: Separated Bikeways, Cycle Tracks (miles) | P38: IV | R38: 2.84 | W38: 15 | AB38: =(1.58*8.5)+(0.24*3.5)+(6.48*4) -> 40.19 | AF38: 40190 | AG38: 13613.74349
E39: Total | G39: =SUM(G35:G38) -> 4.97 | H39: =SUM(H35:H38) -> 4.97 | O39: Total | Q39: =SUM(Q34:Q38) -> 4.13 | R39: =SUM(R34:R38) -> 4.13 | W39: 16 | AB39: 39.35 | AF39: 39350 | AG39: 12457.20226
W40: 17 | AB40: =(1.58*8.5)+(0.24*3.5)+(6.48*4) -> 40.19 | AF40: 40190 | AG40: 11890.7708
D41: Pedestrian Improvements | G41: Yes =1 or No=0 | H41: Yes =1 or No=0 | N41: Pedestrian Improvements | R41: Yes =1 | W41: 18 | AB41: 39.35 | AF41: 39350 | AG41: 10880.6029
E42: Street Lighting | G42: 1 | H42: 1 | O42: Street Lighting | R42: 1 | W42: 19 | AB42: =(1.58*8.5)+(0.24*3.5)+(6.48*4) -> 40.19 | AF42: 40190 | AG42: 10385.85972
E43: Curb Level | G43: 0 | H43: 1 | O43: Curb Level | R43: 1 | W43: 20 | AB43: 39.35 | AF43: 39350 | AG43: 9503.539963
E44: Crowding | G44: 0 | H44: 1 | O44: Crowding | R44: 1 | W44: Total | Y44: =SUM(Y15:Y22) -> 8594 | Z44: =SUM(Z15:Z22) -> 403 | AA44: =SUM(AA15:AA22) -> 111950 | AB44: =SUM(AB24:AB43) -> 675.67 | AC44: =SUM(AC24:AC43) -> 0 | AF44: =SUM(AF15:AF43) -> 121622670 | AG44: =SUM(AG15:AG43) -> 103622517.5
E45: Pavement Evenness | G45: 0 | H45: 1 | O45: Pavement Evenness | R45: 1
E46: Information Panels | G46: 0 | H46: 0 | O46: Information Panels | R46: 0 | W46: ATP REQUESTED FUNDS
E47: Benches | G47: 0 | H47: 1 | O47: Benches | R47: 1 | W47: Total
E48: Directional Signage | G48: 0 | H48: 1 | O48: Directional Signage | R48: 1
C50: Trip Data - Adults | M50: Trip Data - Adults
D51: Cycling | G51: No Build | H51: Build | N51: Cycling | Q51: No Build | R51: Build | W51: 1G | X51: PROGRAM COSTS AND REQUESTED FUNDS (enter in thousands of dollars)
E52: Daily Trips - Current | G52: =472*(1+G53)^2 -> 493.47895 | O52: Daily Trips - Current | Q52: =ADT0CycEX -> 493.47895
E53: Projected Annual Growth Rates from Year 1 (%) | G53: 0.0225 | H53: 0.1106 | O53: Projected Annual Growth Rates from Year 1 (%) | Q53: =G53 -> 0.0225 | R53: =H53 -> 0.1106
Y54: DIRECT PROJECT COSTS
E55: Daily Trips - Year 1 (post-construction) | G55: =ADT0CycEX*(1+$G$53)^Construct -> 515.9353265 | H55: =ADT0CycEX*(1+$H$53)^Construct -> 608.6729059 | O55: Daily Trips - Year 1 (post-construction) | Q55: =ADT0CycNew*(1+$Q$53)^Construct -> 515.9353265 | R55: =ADT0CycNew*(1+$R$53)^Construct -> 608.6729059 | Y55: INITIAL COSTS | AB55: SUBSEQUENT COSTS | AF55: TOTAL COSTS (in dollars)
E56: Daily Trips - Year 20 (post-construction) | G56: =ADT1CycNBEX*(1+$G$53)^20 -> 805.1218239 | H56: =ADT1CycBEX*(1+$H$53)^20 -> 4960.635912 | O56: Daily Trips - Year 20 (post-construction) | Q56: =ADT1CycNBNew*(1+$Q$53)^20 -> 805.1218239 | R56: =ADT1CycBNew*(1+$R$53)^20 -> 4960.635912 | W56: Year | X56: Construction | Y56: Project | AB56: Maint./ | AF56: Constant | AG56: Present
X57: Years | Y57: Support | Z57: R / W | AA57: Construction | AB57: Op. | AC57: Rehab. | AF57: Dollars | AG57: Value
D58: Pedestrian | N58: Pedestrian | W58: Non-Infrastructure Program Costs
E59: Daily Trips - Current | G59: =1073*(1+0.023)^2 -> 1122.925617 | O59: Daily Trips - Current | Q59: =ADT0PedEX -> 1122.925617 | W59: 1 | AB59: <-- Must enter a cost | AF59: =SUM(Y59:AA59)*1000 -> 0 | AG59: =AF59/(1+DiscRate)^($W59-1) -> 0
E60: Projected Annual Growth Rates from Year 1 (%) | G60: 0.0225 | H60: 0.0225 | O60: Projected Annual Growth Rates from Year 1 (%) | Q60: =G60 -> 0.0225 | R60: =H60 -> 0.0225 | W60: 2 | AF60: =SUM(Y60:AA60)*1000 -> 0 | AG60: 0
W61: 3 | AF61: 0 | AG61: 0
E62: Daily Trips - Year 1 (post-construction) | G62: =ADT0PedEX*(1+$G$60)^Construct -> 1174.025751 | H62: =ADT0PedEX*(1+$H$60)^Construct -> 1174.025751 | O62: Daily Trips - Year 1 (post-construction) | Q62: =ADT0PedNew*(1+$Q$60)^Construct -> 1174.025751 | R62: =ADT0PedNew*(1+$R$60)^Construct -> 1174.025751 | W62: 4 | AF62: 0 | AG62: 0
E63: Daily Trips - Year 20 (post-construction) | G63: =ADT1PedNBEX*(1+$G$60)^20 -> 1832.077986 | H63: =ADT1PedBEX*(1+$H$60)^20 -> 1832.077986 | O63: Daily Trips - Year 20 (post-construction) | Q63: =ADT1PedNBNew*(1+$Q$60)^20 -> 1832.077986 | R63: =ADT1PedBNew*(1+$R$60)^20 -> 1832.077986 | W63: 5 | AF63: 0 | AG63: 0
W64: 6 | AF64: 0 | AG64: 0
C65: Trip Data - Children - SRTS | M65: Trip Data - Children - SRTS | W65: 7 | AF65: 0 | AG65: 0
D66: Cycling | G66: No Build | H66: Build | N66: Cycling | Q66: No Build | R66: Build | W66: 8 | AF66: 0 | AG66: 0
E67: Daily Trips - Current | O67: Daily Trips - Current | W67: Annual Non-Infrastructure O&M Costs
E68: Projected Annual Growth Rates from Year 1 (%) | O68: Projected Annual Growth Rates from Year 1 (%) | W68: 1 | AF68: =SUM(AB68:AC68)*1000 -> 0 | AG68: =$AF68/(1+DiscRate)^($W68-1) -> 0
W69: 2 | AF69: =SUM(AB69:AC69)*1000 -> 0 | AG69: 0
E70: Daily Trips - Year 1 (post-construction) | G70: =ADT0CycEX_SRTS*(1+$G$68)^Construct -> 0 | H70: =ADT0CycEX_SRTS*(1+$H$68)^Construct -> 0 | O70: Daily Trips - Year 1 (post-construction) | Q70: =ADT0CycNew_SRTS*(1+$Q$68)^Construct -> 0 | R70: =ADT0CycNew_SRTS*(1+$R$68)^Construct -> 0 | W70: 3 | AF70: =SUM(AB70:AC70)*1000 -> 0 | AG70: 0
E71: Daily Trips - Year 20 (post-construction) | G71: =ADT1CycNBEX_SRTS*(1+$G$68)^20 -> 0 | H71: =ADT1CycBEX_SRTS*(1+$H$68)^20 -> 0 | O71: Daily Trips - Year 20 (post-construction) | Q71: =ADT1CycNBNew_SRTS*(1+$Q$68)^20 -> 0 | R71: =ADT1CycBNew_SRTS*(1+$R$68)^20 -> 0 | W71: 4 | AF71: 0 | AG71: 0
W72: 5 | AF72: 0 | AG72: 0
D73: Pedestrian | N73: Pedestrian | W73: 6 | AF73: 0 | AG73: 0
E74: Daily Trips - Current | O74: Daily Trips - Current | W74: 7 | AF74: 0 | AG74: 0
E75: Projected Annual Growth Rates from Year 1 (%) | O75: Projected Annual Growth Rates from Year 1 (%) | W75: 8 | AF75: 0 | AG75: 0
W76: 9 | AF76: 0 | AG76: 0
E77: Daily Trips - Year 1 (post-construction) | G77: =ADT0PedEX_SRTS*(1+$G$75)^Construct -> 0 | H77: =ADT0PedEX_SRTS*(1+$H$75)^Construct -> 0 | O77: Daily Trips - Year 1 (post-construction) | Q77: =ADT0PedNew_SRTS*(1+$Q$75)^Construct -> 0 | R77: =ADT0PedNew_SRTS*(1+$R$75)^Construct -> 0 | W77: 10 | AF77: 0 | AG77: 0
E78: Daily Trips - Year 20 (post-construction) | G78: =ADT1PedNBEX_SRTS*(1+$G$75)^20 -> 0 | H78: =ADT1PedBEX_SRTS*(1+$H$75)^20 -> 0 | O78: Daily Trips - Year 20 (post-construction) | Q78: =ADT1PedNBNew_SRTS*(1+$Q$75)^20 -> 0 | R78: =ADT1PedBNew_SRTS*(1+$R$75)^20 -> 0 | W78: 11 | AF78: 0 | AG78: 0
W79: 12 | AF79: 0 | AG79: 0
W80: 13 | AF80: 0 | AG80: 0
W81: 14 | AF81: 0 | AG81: 0
W82: 15 | AF82: 0 | AG82: 0
C83: 1C | D83: INTERSECTION IMPROVEMENTS - TIME SAVINGS AND ACCIDENT REDUCTION DATA | W83: 16 | AF83: 0 | AG83: 0
W84: 17 | AF84: 0 | AG84: 0
C85: Reduced Delay Due to Intersection Improvements | W85: 18 | AF85: 0 | AG85: 0
D86: Time Savings Parameters | W86: 19 | AF86: 0 | AG86: 0
E87: Number of Improved Intersections | H87: 13 | W87: 20 | AF87: 0 | AG87: 0
E88: Time Savings per Improved Intersection (min.) | W88: Total | Y88: =SUM(Y59:Y66) -> 0 | Z88: =SUM(Z59:Z66) -> 0 | AA88: =SUM(AA59:AA66) -> 0 | AB88: =SUM(AB68:AB87) -> 0 | AC88: =SUM(AC68:AC87) -> 0 | AF88: =SUM(AF59:AF87) -> 0 | AG88: =SUM(AG59:AG87) -> 0
E89: Intersection improvements on SRTS? (enter 1 for Yes, 0 for No)
W90: ATP REQUESTED FUNDS
C91: Accident Rate - Current Conditions | W91: Total
D93: Cyclists | G93: Count (No.) | H93: Rate per Year
E94: Number of Years of Data | G94: 5
E96: Existing Conditions
E97: Total Number of Accidents (Tot) | G97: =SUM(G98:G100) -> 200 | H97: =IFERROR(G97/$G$94,0) -> 40
E98: Number of Fatal Accidents (Fat) | G98: 1 | H98: =IFERROR(G98/$G$94,0) -> 0.2
E99: Number of Injury Accidents (Inj) | G99: 99 | H99: =IFERROR(G99/$G$94,0) -> 19.8
E100: Number of \Property Damage Only (PDO) Accidents | G100: 100 | H100: =IFERROR(G100/$G$94,0) -> 20
E101: Annual Growth Rate in Accidents (%/year) | G101: -0.015 | H101: =IFERROR(G101/$G$94,0) -> -0.003
D103: Pedestrians | G103: Count (No.) | H103: Rate per Year
E104: Number of Years of Data | G104: 5
E106: Existing Conditions
E107: Total Number of Accidents (Tot) | G107: =SUM(G108:G110) -> 312 | H107: =IFERROR(G107/$G$104,0) -> 62.4
E108: Number of Fatal Accidents (Fat) | G108: 5 | H108: =IFERROR(G108/$G$104,0) -> 1
E109: Number of Injury Accidents (Inj) | G109: 157 | H109: =IFERROR(G109/$G$104,0) -> 31.4
E110: Number of \Property Damage Only (PDO) Accidents | G110: 150 | H110: =IFERROR(G110/$G$104,0) -> 30
E111: Annual Growth Rate in Accidents (%/year) | G111: 0.027 | H111: =IFERROR(G111/$G$104,0) -> 0.0054
C113: Safety Countermeasures (improvements to existing facilities only)
D115: Signalized Intersection | H115: Yes =1
E116: Pedestrian Countdown Signal Heads
E117: Pedestrian Crossing
E118: Advance Stop Bar before Crosswalk
E119: Install Overpass/Underpass
D120: Unsignalized Intersection
E121: Raised Medians/Refuge Islands
E122: Pedestrian Crossing (new signs and markings only) | H122: 1
E123: Pedestrian Crossing (safety features/curb extensions) | H123: 1
E124: Pedestrian Signals | H124: 1
D125: Roadways - relevant for pedestrian improvements, such as sidewalks
E126: Sidewalk/Pathway (to avoid walking along roadway) | H126: 1
E127: Pedestrian Crossing (with enhanced safety features) | H127: 1
E128: Pedestrian Crossing | H128: 1
D129: Other Reduction Factor Countermeasures

Sheet 1b) Non-Inf Program Info
C2: District: | E2: ='1a) Project Info'!E2 -> District 4
H3: EA: | I3: ='1a) Project Info'!I3 -> 0
C4: PROJECT: | E4: ='1a) Project Info'!E4 -> EBGWMM - North Segment | H4: PPNO: | I4: ='1a) Project Info'!I4 -> 0
C7: 1I | D7: NON-INFRASTRUCTURE PROGRAM CHARACTERISTICS
C10: Programmatic Initiatives? | H10: =IF('1a) Project Info'!H21=1,"Yes","No") -> No
C12: Scale of Initiative
D13: Participants / Beneficiaries | I13: Data Check on Initiative
E14: Numbers of People Reached per Year | I14: =IF(AND(H10="No",H14>0),"Not Ok","OK") -> OK
E15: Average Percentage of Current Active Bicyclists Reached per Year
E16: Average Percentage of Current Active Pedestrians Reached per Year
C18: Scoring Criteria
D19: Total Number of Criteria | I19: 4
D20: Total Criteria Weight Sum | I20: =IF(SUM(I23,I34,I45,I56)<>1,"Not Correct",SUM(I23,I34,I45,I56)) -> 1
I22: Criteria Weight
D23: 1) Target Audience | I23: 0.25
E25: Indicators | H25: (mark as %; sum must equal 100%) | I25: Indicator Weight
E26: Younger than 10 | F26: ` | I26: 0.1
E27: 10-12 | I27: 0.2
E28: 13-24 | I28: 0.25
E29: 25-55 | I29: 0.15
E30: 55+ | I30: 0.05
E31: Indicator-Weighted Score | H31: =IF(SUM($H$26:$H$30)<>100%,"Sum must equal 100%",SUMPRODUCT(I26:I30,H26:H30)) -> Sum must equal 100%
I33: Criteria Weight
D34: 2) Characteristics Promotional Effort | I34: 0.25
E36: Indicators | H36: (enter 1 for Yes on all that apply) | I36: Indicator Weight
E37: Effort Targets 5 E's or 5 P's | I37: 0.05
E38: Knowledgeable Staff/Educator | I38: 0.05
E39: Partnership/Volunteers | I39: 0.05
E40: Creates Community Ownership/Relationship | I40: 0.05
E41: Part of Bigger Effort (e.g., political support) | I41: 0.05
E42: Indicator-Weighted Score | H42: =SUMPRODUCT(I37:I41,H37:H41) -> 0
I44: Criteria Weight
D45: 3) Type of Impact and Messaging | I45: 0.25
E47: Indicators | H47: (enter 1 for Yes on all that apply) | I47: Indicator Weight
E48: Outreach is Hands-on (self-efficacy) | I48: 0.05
E49: Overcome Barriers (e.g., dist., time, etc.) | I49: 0.05
E50: Eliminates Hazards/Threats (speed, crime, etc.) | I50: 0.05
E51: Connected or Addresses Connectivity Challenges | I51: 0.05
E52: Creating Value in Using Active Transportation | I52: 0.05
E53: Indicator-Weighted Score | H53: =SUMPRODUCT(I48:I52,H48:H52) -> 0
I55: Criteria Weight
D56: 4) Frequency of Outreach Effort | I56: 0.25
E58: Indicators | H58: (enter 1 for Yes for only one option) | I58: Indicator Weight
E59: One Day | I59: 0.05
E60: One Month | I60: 0.1
E61: One Year | I61: 0.15
E62: Multiple Years | I62: 0.2
E63: Continuous Effort | I63: 0.25
E64: Indicator-Weighted Score | H64: =IF(SUM(H59:H63)>1,"Choose Only 1 Option",SUMPRODUCT(I59:I63,H59:H63)) -> 0
D66: Projected New Active Transportation Cyclists
E67: Number of Potential New Facility Users | H67: =$H$14*(1-$H$15) -> 0
E68: Weighted Impact Score of Outreach | H68: =IFERROR(($H$42*$I$34+$H$53*$I$45+$H$64*$I$56+$H$31*$I$23)*$I$19,"") -> 
E69: Program Impact Score | H69: =IFERROR(H67*H68,"") -> 
E70: Years of Outreach | H70: =20-COUNTBLANK('1a) Project Info'!$AB$68:$AB$87) -> 0
E71: Multi-year Program Impact Score | H71: =IFERROR(H70*H69,"") -> 
D73: Cost Effectiveness
E74: Total Discounted Cost | H74: ='1a) Project Info'!$AG$88 -> 0
E75: Cost per Program Impact Score | H75: =IFERROR(H74/H71,"") -> 
D77: Projected New Active Transportation Pedestrians
E78: Number of Potential New Facility Users | H78: =$H$14*(1-$H$16) -> 0
E79: Weighted Impact Score of Outreach | H79: =IFERROR(($H$42*$I$34+$H$53*$I$45+$H$64*$I$56+$H$31*$I$23)*$I$19,"") -> 
E80: Program Impact Score | H80: =IFERROR(H78*H79,"") -> 
E81: Years of Outreach | H81: =20-COUNTBLANK('1a) Project Info'!$AB$68:$AB$87) -> 0
E82: Multi-year Program Impact Score | H82: =IFERROR(H81*H80,"") -> 
D84: Cost Effectiveness
E85: Total Discounted Cost | H85: ='1a) Project Info'!$AG$88 -> 0
E86: Cost per Program Impact Score | H86: =IFERROR(H85/H82,"") -> 

Sheet 3) Results
B2: District: | E2: ='1a) Project Info'!E2 -> District 4
Q3: EA: | R3: ='1a) Project Info'!I3 -> 0
B4: PROJECT: | E4: =ProjName -> EBGWMM - North Segment | Q4: PPNO: | R4: ='1a) Project Info'!I4 -> 0
D8: 3 | E8: INVESTMENT ANALYSIS
E9: SUMMARY RESULTS
Q11: Total Over | R11: Average
E12: Life-Cycle Costs (mil. $) | H12: =lifecyclecost/1000000 -> 103.6225175 | L12: ITEMIZED BENEFITS (mil. $) | Q12: 20 Years | R12: Annual
E13: Life-Cycle Benefits (mil. $) | H13: =lifecyclebenefits/1000000 -> 295.2896958 | L13: Journey Quality | Q13: =('Final Calculations'!C56)/1000000 -> 12.37759101 | R13: =Q13/20 -> 0.6188795503
E14: Net Present Value (mil. $) | H14: =NetPresentValue/1000000 -> 191.6671783 | L14: Additional Delay Savings | Q14: =('Final Calculations'!D56)/1000000 -> 0 | R14: 0
L15: Additional Safety Benefits | Q15: =('Final Calculations'!E56)/1000000 -> 221.8990974 | R15: 11.09495487
E16: Benefit / Cost Ratio: | H16: =IF(lifecyclecost=0,"N/A",lifecyclebenefits/lifecyclecost) -> 2.849667262 | L16: Health Benefits | Q16: =('Final Calculations'!F56)/1000000 -> 60.91787623 | R16: 3.045893811
L17: Emission Cost Savings | Q17: =('Final Calculations'!G56)/1000000 -> 0.09513115597 | R17: 0.004756557798
E18: Rate of Return on Investment: | H18: =IFERROR(ReturnOnInvest,0) -> 1.342852268 | L18: TOTAL BENEFITS | Q18: =SUM(Q13:Q17) -> 295.2896958 | R18: 14.76448479
E20: Payback Period: | H20: =payback -> 6 years | L20: SRTS-SPECIFIC BENEFITS (mil. $)
L21: Journey Quality | Q21: =IF($H$31="Yes",'Final Calculations'!N56/1000000,"N/A") -> N/A | R21: =IF($H$31="Yes",Q21/20,"N/A") -> N/A
E22: NON-INFRASTRUCTURE IMPLEMENTATION COST | L22: Additional Delay Savings | Q22: =IF($H$31="Yes",'Final Calculations'!O56/1000000,"N/A") -> N/A | R22: =IF($H$31="Yes",Q22/20,"N/A") -> N/A
E23: Per Bike Program Impact Score | H23: =IF($H$33="Yes",'1b) Non-Inf Program Info'!$H$75,"N/A") -> N/A | L23: Additional Safety Benefits | Q23: =IF($H$31="Yes",'Final Calculations'!P56/1000000,"N/A") -> N/A | R23: =IF($H$31="Yes",Q23/20,"N/A") -> N/A
E24: Per Ped Program Impact Score | H24: =IF($H$33="Yes",'1b) Non-Inf Program Info'!$H$86,"N/A") -> N/A | L24: TOTAL SRTS BENEFITS | Q24: =IF($H$31="Yes",SUM(Q21:Q23),"N/A") -> N/A | R24: =IF($H$31="Yes",Q24/20,"N/A") -> N/A
O27: Tons | Q27: Value (mil. $)
E28: Factors that Differentiate Benefits | O28: Total Over | P28: Average | Q28: Total Over | R28: Average
E29: and Performance Measures | L29: EMISSIONS REDUCTION | O29: 20 Years | P29: Annual | Q29: 20 Years | R29: Annual
L30: CO Emissions Saved | O30: ='Final Calculations'!C60 -> 9.45357329 | P30: =O30/20 -> 0.4726786645 | Q30: =('Final Calculations'!D60)/1000000 -> 0.0003508541666 | R30: =Q30/20 -> 1.754270833e-05
E31: Safe Route to School | H31: =IF('1a) Project Info'!H19=1,"Yes","No") -> No | L31: CO2 Emissions Saved | O31: ='Final Calculations'!C61 -> 3613.268073 | P31: =O31/20 -> 180.6634036 | Q31: =('Final Calculations'!D61)/1000000 -> 0.08913257446 | R31: =Q31/20 -> 0.004456628723
E32: Intersection Improvements on SRTS | H32: =IF('1a) Project Info'!H89=1,"Yes","No") -> No | L32: NOX Emissions Saved | O32: ='Final Calculations'!C62 -> 0.389103798 | P32: =O32/20 -> 0.0194551899 | Q32: =('Final Calculations'!D62)/1000000 -> 0.00352562377 | R32: =Q32/20 -> 0.0001762811885
E33: Programmatic Initiatives | H33: =IF('1a) Project Info'!H21=1,"Yes","No") -> No | L33: PM10 Emissions Saved | O33: ='Final Calculations'!C63 -> 0.01197775238 | P33: 0.0005988876191 | Q33: =('Final Calculations'!D63)/1000000 -> 0.0008568644698 | R33: 4.284322349e-05
E34: Recreational Benefits | H34: 1 | L34: PM2.5 Emissions Saved | O34: ='Final Calculations'!C64 -> 0.01041153108 | P34: 0.0005205765542
E35: (enter 1 for Yes, 0 for No) | L35: SOX Emissions Saved | O35: ='Final Calculations'!C65 -> 0.03628195641 | P35: 0.00181409782 | Q35: =('Final Calculations'!D65)/1000000 -> 0.001175437537 | R35: =Q35/20 -> 5.877187685e-05
L36: VOC Emissions Saved | O36: ='Final Calculations'!C66 -> 0.1452992499 | P36: 0.007264962494 | Q36: =('Final Calculations'!D66)/1000000 -> 8.980156234e-05 | R36: =Q36/20 -> 4.490078117e-06

Sheet 2) Model Inputs
C3: 2A | E3: ACTIVE TRANSPORTATION DAILY VOLUME INPUTS - CYCLING - Existing Facility Segment | N3: 2E | P3: ACTIVE TRANSPORTATION DAILY VOLUME INPUTS - PEDESTRIAN - Existing Facility Segment
F5: Calculated by Model | G5: Changed by User | H5: Used for Proj. Eval. | I5: Reason for Change | Q5: Calculated by Model | R5: Changed by User | S5: Used for Proj. Eval. | T5: Reason for Change
C6: No Build - Cycling | N6: No Build - Pedestrian
D7: Year 1 | O7: Year 1
E8: Annual Trips - Commuting | F8: =ADT1CycNBEX*PerCommCycNB*CycleDays -> 35026.84931 | H8: =IF(ISNUMBER(G8),G8,F8) -> 35026.84931 | P8: Annual Trips - Commuting | Q8: =ADT1PedNBEX*PerCommPedNB*CycleDays -> 22283.00875 | S8: =IF(ISNUMBER(R8),R8,Q8) -> 22283.00875
E9: Annual Trips - Other Destinations | F9: =ADT1CycNBEX*PerODCycNB*CycleDays -> 66475.68714 | H9: 66475.68714 | P9: Annual Trips - Other Destinations | Q9: =ADT1PedNBEX*PerODPedNB*WalkDays -> 170550.7208 | S9: 170550.7208
E10: Annual Trips - Recreational | F10: =ADT1CycNBEX*PerRecCycNB*CycleDays -> 86813.85771 | H10: =IF(ISNUMBER(G10),G10,F10)*RecBen -> 86813.85771 | I10: =IF(RecBen=0,"Recreational Users not Included in Benefits","") ->  | P10: Annual Trips - Recreational | Q10: =ADT1PedNBEX*PerRecPedNB*WalkDays -> 235685.6695 | S10: =IF(ISNUMBER(R10),R10,Q10)*RecBen -> 235685.6695 | T10: =IF(RecBen=0,"Recreational Users not Included in Benefits","") -> 
E11: Users - Commuting | F11: =H8/RTCycNB/CycleDays -> 43.03317073 | H11: 43.03317073 | P11: Users - Commuting | Q11: =S8/RTPedNB/WalkDays -> 29.07111383 | S11: 29.07111383
E12: Users - Other Destinations | F12: =H9/RTCycNB/CycleDays -> 81.67047993 | H12: 81.67047993 | P12: Users - Other Destinations | Q12: =S9/RTPedNB/WalkDays -> 222.5058328 | S12: 222.5058328
E13: Users - Recreational | F13: =H10/RTCycNB/CycleDays -> 106.6574823 | H13: =IF(ISNUMBER(G13),G13,F13)*RecBen -> 106.6574823 | I13: =IF(RecBen=0,"Recreational Users not Included in Benefits","") ->  | P13: Users - Recreational | Q13: =S10/2/WalkDays -> 322.8570815 | S13: =IF(ISNUMBER(R13),R13,Q13)*RecBen -> 322.8570815 | T13: =IF(RecBen=0,"Recreational Users not Included in Benefits","") -> 
E14: Total Miles - Commuting | F14: =H8*MIN(ProjLenEX,TAvMiCycNB)*RTCycNB -> 178871.6114 | H14: 178871.6114 | P14: Total Miles - Commuting | Q14: =S8*MIN(ProjLenEX,TAvMiPedNB)*RTPedNB -> 31820.1365 | S14: 31820.1365
E15: Total Miles - Other Destinations | F15: =H9*MIN(ProjLenEX,TAvMiCycNB)*RTCycNB -> 339471.3915 | H15: 339471.3915 | P15: Total Miles - Other Destinations | Q15: =S9*MIN(ProjLenEX,TAvMiPedNB)*RTPedNB -> 243546.4293 | S15: 243546.4293
E16: Total Miles - Recreational | F16: =H10*MIN(ProjLenEX,TAvMiCycNB)*RTCycNB -> 443332.3272 | H16: =IF(ISNUMBER(G16),G16,F16)*RecBen -> 443332.3272 | I16: =IF(RecBen=0,"Recreational Users not Included in Benefits","") ->  | P16: Total Miles - Recreational | Q16: =S10*MIN(ProjLenEX,TAvMiPedNB)*RTPedNB -> 336559.136 | S16: =IF(ISNUMBER(R16),R16,Q16)*RecBen -> 336559.136 | T16: =IF(RecBen=0,"Recreational Users not Included in Benefits","") -> 
D18: Year 20 | O18: Year 20
E19: Trips - Commuting | F19: =ADT20CycNBEX*PerCommCycNB*CycleDays -> 54659.72063 | H19: =IF(ISNUMBER(G19),G19,F19) -> 54659.72063 | P19: Annual Trips - Commuting | Q19: =ADT20PedNBEX*PerCommPedNB*CycleDays -> 34772.84018 | S19: =IF(ISNUMBER(R19),R19,Q19) -> 34772.84018
E20: Trips - Other Destinations | F20: =ADT20CycNBEX*PerODCycNB*CycleDays -> 103735.9214 | H20: 103735.9214 | P20: Annual Trips - Other Destinations | Q20: =ADT20PedNBEX*PerODPedNB*WalkDays -> 266145.969 | S20: 266145.969
E21: Trips - Recreational | F21: =ADT20CycNBEX*PerRecCycNB*CycleDays -> 135473.8237 | H21: =IF(ISNUMBER(G21),G21,F21)*RecBen -> 135473.8237 | I21: =IF(RecBen=0,"Recreational Users not Included in Benefits","") ->  | P21: Annual Trips - Recreational | Q21: =ADT20PedNBEX*PerRecPedNB*WalkDays -> 367789.6557 | S21: =IF(ISNUMBER(R21),R21,Q21)*RecBen -> 367789.6557 | T21: =IF(RecBen=0,"Recreational Users not Included in Benefits","") -> 
E22: Users - Commuting | F22: =H19/RTCycNB/CycleDays -> 67.15365886 | H22: 67.15365886 | P22: Users - Commuting | Q22: =S19/RTPedNB/WalkDays -> 45.36574061 | S22: 45.36574061
E23: Users - Other Destinations | F23: =H20/RTCycNB/CycleDays -> 127.4475354 | H23: 127.4475354 | P23: Users - Other Destinations | Q23: =S20/RTPedNB/WalkDays -> 347.2223993 | S23: 347.2223993
E24: Users - Recreational | F24: =H21/RTCycNB/CycleDays -> 166.4399824 | H24: =IF(ISNUMBER(G24),G24,F24)*RecBen -> 166.4399824 | I24: =IF(RecBen=0,"Recreational Users not Included in Benefits","") ->  | P24: Users - Recreational | Q24: =S21/2/WalkDays -> 503.8214462 | S24: =IF(ISNUMBER(R24),R24,Q24)*RecBen -> 503.8214462 | T24: =IF(RecBen=0,"Recreational Users not Included in Benefits","") -> 
E25: Total Miles - Commuting | F25: =H19*MIN(ProjLenEX,TAvMiCycNB)*RTCycNB -> 279130.7953 | H25: 279130.7953 | P25: Total Miles - Commuting | Q25: =S19*MIN(ProjLenEX,TAvMiPedNB)*RTPedNB -> 49655.61577 | S25: 49655.61577
E26: Total Miles - Other Destinations | F26: =H20*MIN(ProjLenEX,TAvMiCycNB)*RTCycNB -> 529748.2298 | H26: 529748.2298 | P26: Total Miles - Other Destinations | Q26: =S20*MIN(ProjLenEX,TAvMiPedNB)*RTPedNB -> 380056.4438 | S26: 380056.4438
E27: Total Miles - Recreational | F27: =H21*MIN(ProjLenEX,TAvMiCycNB)*RTCycNB -> 691824.1755 | H27: =IF(ISNUMBER(G27),G27,F27)*RecBen -> 691824.1755 | I27: =IF(RecBen=0,"Recreational Users not Included in Benefits","") ->  | P27: Total Miles - Recreational | Q27: =S21*MIN(ProjLenEX,TAvMiPedNB)*RTPedNB -> 525203.6283 | S27: =IF(ISNUMBER(R27),R27,Q27)*RecBen -> 525203.6283 | T27: =IF(RecBen=0,"Recreational Users not Included in Benefits","") -> 
C30: Build - Cycling | N30: Build - Pedestrian
D31: Year 1 | O31: Year 1
E33: Annual Trips - Commuting | F33: =ADT1CycBEX*PerCommCycB*CycleDays -> 41322.80358 | H33: =IF(ISNUMBER(G33),G33,F33) -> 41322.80358 | P33: Annual Trips - Commuting | Q33: =ADT1PedBEX*PerCommPedB*CycleDays -> 22283.00875 | S33: =IF(ISNUMBER(R33),R33,Q33) -> 22283.00875
E34: Annual Trips - Other Destinations | F34: =ADT1CycBEX*PerODCycB*CycleDays -> 78424.46056 | H34: 78424.46056 | P34: Annual Trips - Other Destinations | Q34: =ADT1PedBEX*PerODPedB*WalkDays -> 170550.7208 | S34: 170550.7208
E35: Annual Trips - Recreational | F35: =ADT1CycBEX*PerRecCycB*CycleDays -> 102418.3465 | H35: =IF(ISNUMBER(G35),G35,F35)*RecBen -> 102418.3465 | I35: =IF(RecBen=0,"Recreational Users not Included in Benefits","") ->  | P35: Annual Trips - Recreational | Q35: =ADT1PedBEX*PerRecPedB*WalkDays -> 235685.6695 | S35: =IF(ISNUMBER(R35),R35,Q35)*RecBen -> 235685.6695 | T35: =IF(RecBen=0,"Recreational Users not Included in Benefits","") -> 
E36: Users - Commuting | F36: =H33/RTCycNB/CycleDays -> 50.76823341 | H36: 50.76823341 | P36: Users - Commuting | Q36: =S33/RTPedNB/WalkDays -> 29.07111383 | S36: 29.07111383
E37: Users - Other Destinations | F37: =H34/RTCycNB/CycleDays -> 96.35046448 | H37: 96.35046448 | P37: Users - Other Destinations | Q37: =S34/RTPedNB/WalkDays -> 222.5058328 | S37: 222.5058328
E38: Users - Recreational | F38: =H35/RTCycNB/CycleDays -> 125.8287936 | H38: =IF(ISNUMBER(G38),G38,F38)*RecBen -> 125.8287936 | I38: =IF(RecBen=0,"Recreational Users not Included in Benefits","") ->  | P38: Users - Recreational | Q38: =S35/2/WalkDays -> 322.8570815 | S38: =IF(ISNUMBER(R38),R38,Q38)*RecBen -> 322.8570815 | T38: =IF(RecBen=0,"Recreational Users not Included in Benefits","") -> 
E39: Total Miles - Commuting | F39: =H33*MIN(ProjLenEX,TAvMiCycNB)*RTCycNB -> 211023.1611 | H39: 211023.1611 | P39: Total Miles - Commuting | Q39: =S33*MIN(ProjLenEX,TAvMiPedNB)*RTPedNB -> 31820.1365 | S39: 31820.1365
E40: Total Miles - Other Destinations | F40: =H34*MIN(ProjLenEX,TAvMiCycNB)*RTCycNB -> 400490.1928 | H40: 400490.1928 | P40: Total Miles - Other Destinations | Q40: =S34*MIN(ProjLenEX,TAvMiPedNB)*RTPedNB -> 243546.4293 | S40: 243546.4293
E41: Total Miles - Recreational | F41: =H35*MIN(ProjLenEX,TAvMiCycNB)*RTCycNB -> 523019.7701 | H41: =IF(ISNUMBER(G41),G41,F41)*RecBen -> 523019.7701 | I41: =IF(RecBen=0,"Recreational Users not Included in Benefits","") ->  | P41: Total Miles - Recreational | Q41: =S35*MIN(ProjLenEX,TAvMiPedNB)*RTPedNB -> 336559.136 | S41: =IF(ISNUMBER(R41),R41,Q41)*RecBen -> 336559.136 | T41: =IF(RecBen=0,"Recreational Users not Included in Benefits","") -> 
D43: Year 20 | O43: Year 20
E44: Annual Trips - Commuting | F44: =ADT20CycBEX*PerCommCycB*CycleDays -> 336777.5721 | H44: =IF(ISNUMBER(G44),G44,F44) -> 336777.5721 | P44: Annual Trips - Commuting | Q44: =ADT20PedBEX*PerCommPedB*CycleDays -> 34772.84018 | S44: =IF(ISNUMBER(R44),R44,Q44) -> 34772.84018
E45: Annual Trips - Other Destinations | F45: =ADT20CycBEX*PerODCycB*CycleDays -> 639153.1341 | H45: 639153.1341 | P45: Annual Trips - Other Destinations | Q45: =ADT20PedBEX*PerODPedB*WalkDays -> 266145.969 | S45: 266145.969
E46: Annual Trips - Recreational | F46: =ADT20CycBEX*PerRecCycB*CycleDays -> 834701.4018 | H46: =IF(ISNUMBER(G46),G46,F46)*RecBen -> 834701.4018 | I46: =IF(RecBen=0,"Recreational Users not Included in Benefits","") ->  | P46: Annual Trips - Recreational | Q46: =ADT20PedBEX*PerRecPedB*WalkDays -> 367789.6557 | S46: =IF(ISNUMBER(R46),R46,Q46)*RecBen -> 367789.6557 | T46: =IF(RecBen=0,"Recreational Users not Included in Benefits","") -> 
E47: Users - Commuting | F47: =H44/RTCycNB/CycleDays -> 413.7570761 | H47: 413.7570761 | P47: Users - Commuting | Q47: =S44/RTPedNB/WalkDays -> 45.36574061 | S47: 45.36574061
E48: Users - Other Destinations | F48: =H45/RTCycNB/CycleDays -> 785.2486444 | H48: 785.2486444 | P48: Users - Other Destinations | Q48: =S45/RTPedNB/WalkDays -> 347.2223993 | S48: 347.2223993
E49: Users - Recreational | F49: =H46/RTCycNB/CycleDays -> 1025.494689 | H49: =IF(ISNUMBER(G49),G49,F49)*RecBen -> 1025.494689 | I49: =IF(RecBen=0,"Recreational Users not Included in Benefits","") ->  | P49: Users - Recreational | Q49: =S46/2/WalkDays -> 503.8214462 | S49: =IF(ISNUMBER(R49),R49,Q49)*RecBen -> 503.8214462 | T49: =IF(RecBen=0,"Recreational Users not Included in Benefits","") -> 
E50: Total Miles - Commuting | F50: =H44*MIN(ProjLenEX,TAvMiCycNB)*RTCycNB -> 1719822.027 | H50: 1719822.027 | P50: Total Miles - Commuting | Q50: =S44*MIN(ProjLenEX,TAvMiPedNB)*RTPedNB -> 49655.61577 | S50: 49655.61577
E51: Total Miles - Other Destinations | F51: =H45*MIN(ProjLenEX,TAvMiCycNB)*RTCycNB -> 3263963.31 | H51: 3263963.31 | P51: Total Miles - Other Destinations | Q51: =S45*MIN(ProjLenEX,TAvMiPedNB)*RTPedNB -> 380056.4438 | S51: 380056.4438
E52: Total Miles - Recreational | F52: =H46*MIN(ProjLenEX,TAvMiCycNB)*RTCycNB -> 4262569.648 | H52: =IF(ISNUMBER(G52),G52,F52)*RecBen -> 4262569.648 | I52: =IF(RecBen=0,"Recreational Users not Included in Benefits","") ->  | P52: Total Miles - Recreational | Q52: =S46*MIN(ProjLenEX,TAvMiPedNB)*RTPedNB -> 525203.6283 | S52: =IF(ISNUMBER(R52),R52,Q52)*RecBen -> 525203.6283 | T52: =IF(RecBen=0,"Recreational Users not Included in Benefits","") -> 
C58: 2B | E58: ACTIVE TRANSPORTATION DAILY VOLUME INPUTS - CYCLING - New Facility Segment | N58: 2F | P58: ACTIVE TRANSPORTATION DAILY VOLUME INPUTS - PEDESTRIAN - New Facility Segment
F60: Calculated by Model | H60: Used for Proj. Eval. | I60: Reason for Change | Q60: Calculated by Model | S60: Used for Proj. Eval. | T60: Reason for Change
C61: No Build - Cycling | N61: No Build - Pedestrian
D62: Year 1 | O62: Year 1
E63: Annual Trips - Commuting | F63: =ADT1CycNBNew*PerCommCycNB*CycleDays -> 35026.84931 | H63: =IF(ISNUMBER(G63),G63,F63) -> 35026.84931 | P63: Annual Trips - Commuting | Q63: =ADT1PedNBNew*PerCommPedNB*CycleDays -> 22283.00875 | S63: =IF(ISNUMBER(R63),R63,Q63) -> 22283.00875
E64: Annual Trips - Other Destinations | F64: =ADT1CycNBNew*PerODCycNB*CycleDays -> 66475.68714 | H64: 66475.68714 | P64: Annual Trips - Other Destinations | Q64: =ADT1PedNBNew*PerODPedNB*WalkDays -> 170550.7208 | S64: 170550.7208
E65: Annual Trips - Recreational | F65: =ADT1CycNBNew*PerRecCycNB*CycleDays -> 86813.85771 | H65: =IF(ISNUMBER(G65),G65,F65)*RecBen -> 86813.85771 | I65: =IF(RecBen=0,"Recreational Users not Included in Benefits","") ->  | P65: Annual Trips - Recreational | Q65: =ADT1PedNBNew*PerRecPedNB*WalkDays -> 235685.6695 | S65: =IF(ISNUMBER(R65),R65,Q65)*RecBen -> 235685.6695 | T65: =IF(RecBen=0,"Recreational Users not Included in Benefits","") -> 
E66: Users - Commuting | F66: =H63/RTCycNB/CycleDays -> 43.03317073 | H66: 43.03317073 | P66: Users - Commuting | Q66: =S63/RTPedNB/WalkDays -> 29.07111383 | S66: 29.07111383
E67: Users - Other Destinations | F67: =H64/RTCycNB/CycleDays -> 81.67047993 | H67: 81.67047993 | P67: Users - Other Destinations | Q67: =S64/RTPedNB/WalkDays -> 222.5058328 | S67: 222.5058328
E68: Users - Recreational | F68: =H65/RTCycNB/CycleDays -> 106.6574823 | H68: =IF(ISNUMBER(G68),G68,F68)*RecBen -> 106.6574823 | I68: =IF(RecBen=0,"Recreational Users not Included in Benefits","") ->  | P68: Users - Recreational | Q68: =S65/2/WalkDays -> 322.8570815 | S68: =IF(ISNUMBER(R68),R68,Q68)*RecBen -> 322.8570815 | T68: =IF(RecBen=0,"Recreational Users not Included in Benefits","") -> 
E69: Total Miles - Commuting | F69: =H63*MIN(ProjLenNEW,TAvMiCycNB)*RTCycNB -> 178871.6114 | H69: 178871.6114 | P69: Total Miles - Commuting | Q69: =S63*MIN(ProjLenNEW,TAvMiPedNB)*RTPedNB -> 31820.1365 | S69: 31820.1365
E70: Total Miles - Other Destinations | F70: =H64*MIN(ProjLenNEW,TAvMiCycNB)*RTCycNB -> 339471.3915 | H70: 339471.3915 | P70: Total Miles - Other Destinations | Q70: =S64*MIN(ProjLenNEW,TAvMiPedNB)*RTPedNB -> 243546.4293 | S70: 243546.4293
E71: Total Miles - Recreational | F71: =H65*MIN(ProjLenNEW,TAvMiCycNB)*RTCycNB -> 443332.3272 | H71: =IF(ISNUMBER(G71),G71,F71)*RecBen -> 443332.3272 | I71: =IF(RecBen=0,"Recreational Users not Included in Benefits","") ->  | P71: Total Miles - Recreational | Q71: =S65*MIN(ProjLenNEW,TAvMiPedNB)*RTPedNB -> 336559.136 | S71: =IF(ISNUMBER(R71),R71,Q71)*RecBen -> 336559.136 | T71: =IF(RecBen=0,"Recreational Users not Included in Benefits","") -> 
D73: Year 20 | O73: Year 20
E74: Trips - Commuting | F74: =ADT20CycNBNew*PerCommCycNB*CycleDays -> 54659.72063 | H74: =IF(ISNUMBER(G74),G74,F74) -> 54659.72063 | P74: Annual Trips - Commuting | Q74: =ADT20PedNBNew*PerCommPedNB*CycleDays -> 34772.84018 | S74: =IF(ISNUMBER(R74),R74,Q74) -> 34772.84018
E75: Trips - Other Destinations | F75: =ADT20CycNBNew*PerODCycNB*CycleDays -> 103735.9214 | H75: 103735.9214 | P75: Annual Trips - Other Destinations | Q75: =ADT20PedNBNew*PerODPedNB*WalkDays -> 266145.969 | S75: 266145.969
E76: Trips - Recreational | F76: =ADT20CycNBNew*PerRecCycNB*CycleDays -> 135473.8237 | H76: =IF(ISNUMBER(G76),G76,F76)*RecBen -> 135473.8237 | I76: =IF(RecBen=0,"Recreational Users not Included in Benefits","") ->  | P76: Annual Trips - Recreational | Q76: =ADT20PedNBNew*PerRecPedNB*WalkDays -> 367789.6557 | S76: =IF(ISNUMBER(R76),R76,Q76)*RecBen -> 367789.6557 | T76: =IF(RecBen=0,"Recreational Users not Included in Benefits","") -> 
E77: Users - Commuting | F77: =H74/RTCycNB/CycleDays -> 67.15365886 | H77: 67.15365886 | P77: Users - Commuting | Q77: =S74/RTPedNB/WalkDays -> 45.36574061 | S77: 45.36574061
E78: Users - Other Destinations | F78: =H75/RTCycNB/CycleDays -> 127.4475354 | H78: 127.4475354 | P78: Users - Other Destinations | Q78: =S75/RTPedNB/WalkDays -> 347.2223993 | S78: 347.2223993
E79: Users - Recreational | F79: =H76/RTCycNB/CycleDays -> 166.4399824 | H79: =IF(ISNUMBER(G79),G79,F79)*RecBen -> 166.4399824 | I79: =IF(RecBen=0,"Recreational Users not Included in Benefits","") ->  | P79: Users - Recreational | Q79: =S76/2/WalkDays -> 503.8214462 | S79: =IF(ISNUMBER(R79),R79,Q79)*RecBen -> 503.8214462 | T79: =IF(RecBen=0,"Recreational Users not Included in Benefits","") -> 
E80: Total Miles - Commuting | F80: =H74*MIN(ProjLenNEW,TAvMiCycNB)*RTCycNB -> 279130.7953 | H80: 279130.7953 | P80: Total Miles - Commuting | Q80: =S74*MIN(ProjLenNEW,TAvMiPedNB)*RTPedNB -> 49655.61577 | S80: 49655.61577
E81: Total Miles - Other Destinations | F81: =H75*MIN(ProjLenNEW,TAvMiCycNB)*RTCycNB -> 529748.2298 | H81: 529748.2298 | P81: Total Miles - Other Destinations | Q81: =S75*MIN(ProjLenNEW,TAvMiPedNB)*RTPedNB -> 380056.4438 | S81: 380056.4438
E82: Total Miles - Recreational | F82: =H76*MIN(ProjLenNEW,TAvMiCycNB)*RTCycNB -> 691824.1755 | H82: =IF(ISNUMBER(G82),G82,F82)*RecBen -> 691824.1755 | I82: =IF(RecBen=0,"Recreational Users not Included in Benefits","") ->  | P82: Total Miles - Recreational | Q82: =S76*MIN(ProjLenNEW,TAvMiPedNB)*RTPedNB -> 525203.6283 | S82: =IF(ISNUMBER(R82),R82,Q82)*RecBen -> 525203.6283 | T82: =IF(RecBen=0,"Recreational Users not Included in Benefits","") -> 
C85: Build - Cycling | N85: Build - Pedestrian
D86: Year 1 | O86: Year 1
E88: Annual Trips - Commuting | F88: =ADT1CycBNew*PerCommCycB*CycleDays -> 41322.80358 | H88: =IF(ISNUMBER(G88),G88,F88) -> 41322.80358 | P88: Annual Trips - Commuting | Q88: =ADT1PedBNew*PerCommPedB*CycleDays -> 22283.00875 | S88: =IF(ISNUMBER(R88),R88,Q88) -> 22283.00875
E89: Annual Trips - Other Destinations | F89: =ADT1CycBNew*PerODCycB*CycleDays -> 78424.46056 | H89: 78424.46056 | P89: Annual Trips - Other Destinations | Q89: =ADT1PedBNew*PerODPedB*WalkDays -> 170550.7208 | S89: 170550.7208
E90: Annual Trips - Recreational | F90: =ADT1CycBNew*PerRecCycB*CycleDays -> 102418.3465 | H90: =IF(ISNUMBER(G90),G90,F90)*RecBen -> 102418.3465 | I90: =IF(RecBen=0,"Recreational Users not Included in Benefits","") ->  | P90: Annual Trips - Recreational | Q90: =ADT1PedBNew*PerRecPedB*WalkDays -> 235685.6695 | S90: =IF(ISNUMBER(R90),R90,Q90)*RecBen -> 235685.6695 | T90: =IF(RecBen=0,"Recreational Users not Included in Benefits","") -> 
E91: Users - Commuting | F91: =H88/RTCycNB/CycleDays -> 50.76823341 | H91: 50.76823341 | P91: Users - Commuting | Q91: =S88/RTPedNB/WalkDays -> 29.07111383 | S91: 29.07111383
E92: Users - Other Destinations | F92: =H89/RTCycNB/CycleDays -> 96.35046448 | H92: 96.35046448 | P92: Users - Other Destinations | Q92: =S89/RTPedNB/WalkDays -> 222.5058328 | S92: 222.5058328
E93: Users - Recreational | F93: =H90/RTCycNB/CycleDays -> 125.8287936 | H93: =IF(ISNUMBER(G93),G93,F93)*RecBen -> 125.8287936 | I93: =IF(RecBen=0,"Recreational Users not Included in Benefits","") ->  | P93: Users - Recreational | Q93: =S90/2/WalkDays -> 322.8570815 | S93: =IF(ISNUMBER(R93),R93,Q93)*RecBen -> 322.8570815 | T93: =IF(RecBen=0,"Recreational Users not Included in Benefits","") -> 
E94: Total Miles - Commuting | F94: =H88*MIN(ProjLenNEW,TAvMiCycNB)*RTCycNB -> 211023.1611 | H94: 211023.1611 | P94: Total Miles - Commuting | Q94: =S88*MIN(ProjLenNEW,TAvMiPedNB)*RTPedNB -> 31820.1365 | S94: 31820.1365
E95: Total Miles - Other Destinations | F95: =H89*MIN(ProjLenNEW,TAvMiCycNB)*RTCycNB -> 400490.1928 | H95: 400490.1928 | P95: Total Miles - Other Destinations | Q95: =S89*MIN(ProjLenNEW,TAvMiPedNB)*RTPedNB -> 243546.4293 | S95: 243546.4293
E96: Total Miles - Recreational | F96: =H90*MIN(ProjLenNEW,TAvMiCycNB)*RTCycNB -> 523019.7701 | H96: =IF(ISNUMBER(G96),G96,F96)*RecBen -> 523019.7701 | I96: =IF(RecBen=0,"Recreational Users not Included in Benefits","") ->  | P96: Total Miles - Recreational | Q96: =S90*MIN(ProjLenNEW,TAvMiPedNB)*RTPedNB -> 336559.136 | S96: =IF(ISNUMBER(R96),R96,Q96)*RecBen -> 336559.136 | T96: =IF(RecBen=0,"Recreational Users not Included in Benefits","") -> 
D98: Year 20 | O98: Year 20
E99: Annual Trips - Commuting | F99: =ADT20CycBNew*PerCommCycB*CycleDays -> 336777.5721 | H99: =IF(ISNUMBER(G99),G99,F99) -> 336777.5721 | P99: Annual Trips - Commuting | Q99: =ADT20PedBNew*PerCommPedB*CycleDays -> 34772.84018 | S99: =IF(ISNUMBER(R99),R99,Q99) -> 34772.84018
E100: Annual Trips - Other Destinations | F100: =ADT20CycBNew*PerODCycB*CycleDays -> 639153.1341 | H100: 639153.1341 | P100: Annual Trips - Other Destinations | Q100: =ADT20PedBNew*PerODPedB*WalkDays -> 266145.969 | S100: 266145.969
E101: Annual Trips - Recreational | F101: =ADT20CycBNew*PerRecCycB*CycleDays -> 834701.4018 | H101: =IF(ISNUMBER(G101),G101,F101)*RecBen -> 834701.4018 | I101: =IF(RecBen=0,"Recreational Users not Included in Benefits","") ->  | P101: Annual Trips - Recreational | Q101: =ADT20PedBNew*PerRecPedB*WalkDays -> 367789.6557 | S101: =IF(ISNUMBER(R101),R101,Q101)*RecBen -> 367789.6557 | T101: =IF(RecBen=0,"Recreational Users not Included in Benefits","") -> 
E102: Users - Commuting | F102: =H99/RTCycNB/CycleDays -> 413.7570761 | H102: 413.7570761 | P102: Users - Commuting | Q102: =S99/RTPedNB/WalkDays -> 45.36574061 | S102: 45.36574061
E103: Users - Other Destinations | F103: =H100/RTCycNB/CycleDays -> 785.2486444 | H103: 785.2486444 | P103: Users - Other Destinations | Q103: =S100/RTPedNB/WalkDays -> 347.2223993 | S103: 347.2223993
E104: Users - Recreational | F104: =H101/RTCycNB/CycleDays -> 1025.494689 | H104: =IF(ISNUMBER(G104),G104,F104)*RecBen -> 1025.494689 | I104: =IF(RecBen=0,"Recreational Users not Included in Benefits","") ->  | P104: Users - Recreational | Q104: =S101/2/WalkDays -> 503.8214462 | S104: =IF(ISNUMBER(R104),R104,Q104)*RecBen -> 503.8214462 | T104: =IF(RecBen=0,"Recreational Users not Included in Benefits","") -> 
E105: Total Miles - Commuting | F105: =H99*MIN(ProjLenNEW,TAvMiCycNB)*RTCycNB -> 1719822.027 | H105: 1719822.027 | P105: Total Miles - Commuting | Q105: =S99*MIN(ProjLenNEW,TAvMiPedNB)*RTPedNB -> 49655.61577 | S105: 49655.61577
E106: Total Miles - Other Destinations | F106: =H100*MIN(ProjLenNEW,TAvMiCycNB)*RTCycNB -> 3263963.31 | H106: 3263963.31 | P106: Total Miles - Other Destinations | Q106: =S100*MIN(ProjLenNEW,TAvMiPedNB)*RTPedNB -> 380056.4438 | S106: 380056.4438
E107: Total Miles - Recreational | F107: =H101*MIN(ProjLenNEW,TAvMiCycNB)*RTCycNB -> 4262569.648 | H107: =IF(ISNUMBER(G107),G107,F107)*RecBen -> 4262569.648 | I107: =IF(RecBen=0,"Recreational Users not Included in Benefits","") ->  | P107: Total Miles - Recreational | Q107: =S101*MIN(ProjLenNEW,TAvMiPedNB)*RTPedNB -> 525203.6283 | S107: =IF(ISNUMBER(R107),R107,Q107)*RecBen -> 525203.6283 | T107: =IF(RecBen=0,"Recreational Users not Included in Benefits","") -> 
C112: 2C | E112: ACTIVE TRANSPORTATION DAILY VOLUME INPUTS - CYCLING - New Safe Routes To School | N112: 2G | P112: ACTIVE TRANSPORTATION DAILY VOLUME INPUTS - PEDESTRIAN - New Safe Routes To School
F114: Calculated by Model | G114: Changed by User | H114: Used for Proj. Eval. | I114: Reason for Change | Q114: Calculated by Model | R114: Changed by User | S114: Used for Proj. Eval. | T114: Reason for Change
C115: No Build - Cycling | N115: No Build - Pedestrian
D116: Year 1 | O116: Year 1
E117: Annual Trips - SRTS | F117: =ADT1CycNBNew_SRTS*SchDays -> 0 | H117: =IF(ISNUMBER(G117),G117,F117) -> 0 | P117: Annual Trips - SRTS | Q117: =ADT1PedNBNew_SRTS*SchDays -> 0 | S117: =IF(ISNUMBER(R117),R117,Q117) -> 0
E118: SRTS Users | F118: =ADT1CycNBNew_SRTS*SchDays/RTCycNB/SchDays -> 0 | H118: =IF(ISNUMBER(G118),G118,F118) -> 0 | P118: SRTS Users | Q118: =ADT1PedNBNew_SRTS*SchDays/RTPedNB/SchDays -> 0 | S118: =IF(ISNUMBER(R118),R118,Q118) -> 0
E119: Total Miles - SRTS | F119: =H118*MIN(ProjLenNEW,TAvMiCycNBSRTS)*RTCycNB -> 0 | H119: =IF(ISNUMBER(G119),G119,F119) -> 0 | P119: Total Miles - SRTS | Q119: =S118*MIN(ProjLenNEW,TAvMiPedNBSRTS)*RTPedNB -> 0 | S119: =IF(ISNUMBER(R119),R119,Q119) -> 0
D121: Year 20 | O121: Year 20
E122: Annual Trips - SRTS | F122: =ADT20CycNBNew_SRTS*SchDays -> 0 | H122: =IF(ISNUMBER(G122),G122,F122) -> 0 | P122: Annual Trips - SRTS | Q122: =ADT20PedNBNew_SRTS*SchDays -> 0 | S122: =IF(ISNUMBER(R122),R122,Q122) -> 0
E123: SRTS Users | F123: =ADT20CycNBNew_SRTS*SchDays/RTCycNB/SchDays -> 0 | H123: =IF(ISNUMBER(G123),G123,F123) -> 0 | P123: SRTS Users | Q123: =ADT20PedNBNew_SRTS*SchDays/RTPedNB/SchDays -> 0 | S123: =IF(ISNUMBER(R123),R123,Q123) -> 0
E124: Total Miles - SRTS | F124: =H123*MIN(ProjLenNEW,TAvMiCycNBSRTS)*RTCycNB -> 0 | H124: =IF(ISNUMBER(G124),G124,F124) -> 0 | P124: Total Miles - SRTS | Q124: =S123*MIN(ProjLenNEW,TAvMiPedNBSRTS)*RTPedNB -> 0 | S124: =IF(ISNUMBER(R124),R124,Q124) -> 0
C126: Build - Cycling | N126: Build - Pedestrian
D127: Year 1 | O127: Year 1
E128: Annual Trips - SRTS | F128: =ADT1CycBNew_SRTS*SchDays -> 0 | H128: =IF(ISNUMBER(G128),G128,F128) -> 0 | P128: Annual Trips - SRTS | Q128: =ADT1PedBNew_SRTS*SchDays -> 0 | S128: =IF(ISNUMBER(R128),R128,Q128) -> 0
E129: SRTS Users | F129: =ADT1CycBNew_SRTS*SchDays/RTCycNB/SchDays -> 0 | H129: =IF(ISNUMBER(G129),G129,F129) -> 0 | P129: SRTS Users | Q129: =ADT1PedBNew_SRTS*SchDays/RTPedNB/SchDays -> 0 | S129: =IF(ISNUMBER(R129),R129,Q129) -> 0
E130: Total Miles - SRTS | F130: =H129*MIN(ProjLenNEW,TAvMiCycNBSRTS)*RTCycNB -> 0 | H130: =IF(ISNUMBER(G130),G130,F130) -> 0 | P130: Total Miles - SRTS | Q130: =S129*MIN(ProjLenNEW,TAvMiPedNBSRTS)*RTPedNB -> 0 | S130: =IF(ISNUMBER(R130),R130,Q130) -> 0
D132: Year 20 | O132: Year 20
E133: Annual Trips - SRTS | F133: =ADT20CycBNew_SRTS*SchDays -> 0 | H133: =IF(ISNUMBER(G133),G133,F133) -> 0 | P133: Annual Trips - SRTS | Q133: =ADT20PedBNew_SRTS*SchDays -> 0 | S133: =IF(ISNUMBER(R133),R133,Q133) -> 0
E134: SRTS Users | F134: =ADT20CycBNew_SRTS*SchDays/RTCycNB/SchDays -> 0 | H134: =IF(ISNUMBER(G134),G134,F134) -> 0 | P134: SRTS Users | Q134: =ADT20PedBNew_SRTS*SchDays/RTPedNB/SchDays -> 0 | S134: =IF(ISNUMBER(R134),R134,Q134) -> 0
E135: Total Miles - SRTS | F135: =H134*MIN(ProjLenNEW,TAvMiCycNBSRTS)*RTCycNB -> 0 | H135: =IF(ISNUMBER(G135),G135,F135) -> 0 | P135: Total Miles - SRTS | Q135: =S134*MIN(ProjLenNEW,TAvMiPedNBSRTS)*RTPedNB -> 0 | S135: =IF(ISNUMBER(R135),R135,Q135) -> 0
C140: 2D | E140: ACTIVE TRANSPORTATION DAILY VOLUME INPUTS - CYCLING - Existing Safe Routes To School | N140: 2H | P140: ACTIVE TRANSPORTATION DAILY VOLUME INPUTS - PEDESTRIAN - Existing Safe Routes To School
F142: Calculated by Model | G142: Changed by User | H142: Used for Proj. Eval. | I142: Reason for Change | Q142: Calculated by Model | R142: Changed by User | S142: Used for Proj. Eval. | T142: Reason for Change
C143: No Build - Cycling | N143: No Build - Pedestrian
D144: Year 1 | O144: Year 1
E145: Annual Trips - SRTS | F145: =ADT1CycNBEX_SRTS*SchDays -> 0 | H145: =IF(ISNUMBER(G145),G145,F145) -> 0 | P145: Annual Trips - SRTS | Q145: =ADT1PedNBEX_SRTS*SchDays -> 0 | S145: =IF(ISNUMBER(R145),R145,Q145) -> 0
E146: SRTS Users | F146: =ADT1CycNBEX_SRTS*SchDays/RTCycNB/SchDays -> 0 | H146: =IF(ISNUMBER(G146),G146,F146) -> 0 | P146: SRTS Users | Q146: =ADT1PedNBEX_SRTS*SchDays/RTPedNB/SchDays -> 0 | S146: =IF(ISNUMBER(R146),R146,Q146) -> 0
E147: Total Miles - SRTS | F147: =H146*MIN(ProjLenEX,TAvMiCycNBSRTS)*RTCycNB -> 0 | H147: =IF(ISNUMBER(G147),G147,F147) -> 0 | P147: Total Miles - SRTS | Q147: =S146*MIN(ProjLenEX,TAvMiPedNBSRTS)*RTPedNB -> 0 | S147: =IF(ISNUMBER(R147),R147,Q147) -> 0
D149: Year 20 | O149: Year 20
E150: Annual Trips - SRTS | F150: =ADT20CycNBEX_SRTS*SchDays -> 0 | H150: =IF(ISNUMBER(G150),G150,F150) -> 0 | P150: Annual Trips - SRTS | Q150: =ADT20PedNBEX_SRTS*SchDays -> 0 | S150: =IF(ISNUMBER(R150),R150,Q150) -> 0
E151: SRTS Users | F151: =ADT20CycNBEX_SRTS*SchDays/RTCycNB/SchDays -> 0 | H151: =IF(ISNUMBER(G151),G151,F151) -> 0 | P151: SRTS Users | Q151: =ADT20PedNBEX_SRTS*SchDays/RTPedNB/SchDays -> 0 | S151: =IF(ISNUMBER(R151),R151,Q151) -> 0
E152: Total Miles - SRTS | F152: =H151*MIN(ProjLenEX,TAvMiCycNBSRTS)*RTCycNB -> 0 | H152: =IF(ISNUMBER(G152),G152,F152) -> 0 | P152: Total Miles - SRTS | Q152: =S151*MIN(ProjLenEX,TAvMiPedNBSRTS)*RTPedNB -> 0 | S152: =IF(ISNUMBER(R152),R152,Q152) -> 0
C154: Build - Cycling | N154: Build - Pedestrian
D155: Year 1 | O155: Year 1
E156: Annual Trips - SRTS | F156: =ADT1CycBEX_SRTS*SchDays -> 0 | H156: =IF(ISNUMBER(G156),G156,F156) -> 0 | P156: Annual Trips - SRTS | Q156: =ADT1PedBEX_SRTS*SchDays -> 0 | S156: =IF(ISNUMBER(R156),R156,Q156) -> 0
E157: SRTS Users | F157: =ADT1CycBEX_SRTS*SchDays/RTCycNB/SchDays -> 0 | H157: =IF(ISNUMBER(G157),G157,F157) -> 0 | P157: SRTS Users | Q157: =ADT1PedBEX_SRTS*SchDays/RTPedNB/SchDays -> 0 | S157: =IF(ISNUMBER(R157),R157,Q157) -> 0
E158: Total Miles - SRTS | F158: =H157*MIN(ProjLenEX,TAvMiCycNBSRTS)*RTCycNB -> 0 | H158: =IF(ISNUMBER(G158),G158,F158) -> 0 | P158: Total Miles - SRTS | Q158: =S157*MIN(ProjLenEX,TAvMiPedNBSRTS)*RTPedNB -> 0 | S158: =IF(ISNUMBER(R158),R158,Q158) -> 0
D160: Year 20 | O160: Year 20
E161: Annual Trips - SRTS | F161: =ADT20CycBEX_SRTS*SchDays -> 0 | H161: =IF(ISNUMBER(G161),G161,F161) -> 0 | P161: Annual Trips - SRTS | Q161: =ADT20PedBEX_SRTS*SchDays -> 0 | S161: =IF(ISNUMBER(R161),R161,Q161) -> 0
E162: SRTS Users | F162: =ADT20CycBEX_SRTS*SchDays/RTCycNB/SchDays -> 0 | H162: =IF(ISNUMBER(G162),G162,F162) -> 0 | P162: SRTS Users | Q162: =ADT20PedBEX_SRTS*SchDays/RTPedNB/SchDays -> 0 | S162: =IF(ISNUMBER(R162),R162,Q162) -> 0
E163: Total Miles - SRTS | F163: =H162*MIN(ProjLenEX,TAvMiCycNBSRTS)*RTCycNB -> 0 | H163: =IF(ISNUMBER(G163),G163,F163) -> 0 | P163: Total Miles - SRTS | Q163: =S162*MIN(ProjLenEX,TAvMiPedNBSRTS)*RTPedNB -> 0 | S163: =IF(ISNUMBER(R163),R163,Q163) -> 0
C165: PROPORTIONS OF SRTS IN TOTAL BENEFITS | N165: PROPORTIONS OF SRTS IN TOTAL BENEFITS
E166: SRTS Trip-Mile / Total Trip-Mile | F166: =IFERROR(IF(ProjType=2,$H$119/(SUM($H$14:$H$16,$H$119)),IF(OR(ProjType=1,ProjType=3),$H$147/(SUM($H$14:$H$16,$H$147)))),0) -> 0 | H166: =IF(ISNUMBER(G166),G166,F166) -> 0 | P166: SRTS Trip-Mile / Total Trip-Mile | Q166: =IFERROR(IF(ProjType=2,$S$119/(SUM($S$14:$S$16,$S$119)),IF(OR(ProjType=1,ProjType=3),$S$147/(SUM($S$14:$S$16,$S$147)))),0) -> 0 | S166: =IF(ISNUMBER(R166),R166,Q166) -> 0

Sheet Journey Quality
B1: Journey Quality Benefits
B3: This sheet calculates journey quality benefits for cyclists and pedestrians who travel to a destination. Recreational users are not included.
B5: Formulas:
B7: Avg. Annual Trips = Avg. Daily Trips x Annual Days in Year, by purpose | H7: Value of Journey Quality = Time-Value of Improvement x Avg. Value of Time
B8: trips / yr. | H8: $ / year | J8: $/hour
B10: Time-Value of Imp. = (1 - Facility Preference Factor) x Distance per Trip (Mi.) / Travel Speed (MPH) | H10: Value of Journey Quality for Induced trips applies rule of half
B11: trip - hrs / yr. | D11: trips / yr. x miles | F11: miles/hour
B15: A | C15: CYCLING BENEFITS | M15: B | N15: PEDESTRIAN BENEFITS | X15: C | Y15: TOTAL
B18: Existing Facility | M18: Existing Facility | X18: Existing Facility
C20: AVERAGE ANNUAL VOLUME | G20: JOURNEY QUALITY VALUE | N20: ANNUAL PERSON-MILES | R20: JOURNEY QUALITY VALUE
C21: (trips/yr.) | G21: ($) | N21: (trip-miles/yr.) | R21: ($)
B22: Year | C22: Total Trips, Existing Facility (Baseline) | D22: Total Trips, Improved Facility | E22: Existing Trips, Improved Facility | F22: Induced Trips, Improved Facility | G22: Existing Trip-Miles, Existing Facility | H22: Existing Trip-Miles, Improved Facility | I22: Induced Trip-Miles, Improved Facility | J22: Constant Dollars | K22: Present Value | M22: Year | N22: Total Trips, Existing Facility (Baseline) | O22: Total Trips, Improved Facility | P22: Existing Trips, Improved Facility | Q22: Induced Trips, Improved Facility | R22: Existing Trip-Miles, Existing Facility | S22: Existing Trip-Miles, Improved Facility | T22: Induced Trip-Miles, Improved Facility | U22: Constant Dollars | V22: Present Value | X22: Year | Y22: Constant Dollars | Z22: Present Value
B23: 1 | C23: =IF(OR(ProjType=1,ProjType=3),TrComCyc1NBEX+TrODCyc1NBEX+TrRecCyc1NBEX*RecBen,0) -> 188316.3942 | D23: =IF(OR(ProjType=1,ProjType=3),TrComCyc1BEX+TrODCyc1BEX+TrRecCyc1BEX*RecBen,0) -> 222165.6107 | E23: =C23 -> 188316.3942 | F23: =D23-C23 -> 33849.2165 | G23: =E23*JQValperMiCycNBEx*ValTimeAT*MIN(TAvMiCycNB,ProjLenEX) -> 389175.6845 | H23: =E23*JQValperMiCycBEx*ValTimeAT*MIN(TAvMiCycB,ProjLenEX) -> 389304.9412 | I23: =F23*(JQValperMiCycBEx-JQValperMiCycNBEx)*ValTimeAT*MIN(TAvMiCycB,ProjLenEX)*1/2 -> 11.61671855 | J23: =((H23-G23)+(I23))*(1+TTUprater)^($B23+Construct-1) -> 140.8733913 | K23: =$J23/(1+DiscRate)^($B23+Construct-1) -> 123.0442757 | M23: 1 | N23: =IF(OR(ProjType=1,ProjType=3),TrComPed1NBEX+TrODPed1NBEX+TrRecPed1NBEX*RecBen,0) -> 428519.3991 | O23: =IF(OR(ProjType=1,ProjType=3),TrComPed1BEX+TrODPed1BEX+TrRecPed1BEX*RecBen,0) -> 428519.3991 | P23: =N23 -> 428519.3991 | Q23: =O23-N23 -> 0 | R23: =P23*JQValperMiPedNBEx*MIN(TAvMiPedNB,ProjLenEX) -> 32053.25105 | S23: =P23*JQValperMiPedBEx*MIN(TAvMiPedB,ProjLenEX) -> 88292.13698 | T23: =Q23*(JQValperMiPedBEx-JQValperMiPedNBEx)*MIN(TAvMiPedB,ProjLenEX)*1/2 -> 0 | U23: =(S23-R23+T23)*(1+TTUprater)^($B23+Construct-1) -> 56238.88593 | V23: =$U23/(1+DiscRate)^($B23+Construct-1) -> 49121.22101 | X23: 1 | Y23: =U23+J23 -> 56379.75932 | Z23: =V23+K23 -> 49244.26528
B24: 20 | C24: =IF(OR(ProjType=1,ProjType=3),TrComCyc20NBEX+TrODCyc20NBEX+TrRecCyc20NBEX*RecBen,0) -> 293869.4657 | D24: =IF(OR(ProjType=1,ProjType=3),TrComCyc20BEX+TrODCyc20BEX+TrRecCyc20BEX*RecBen,0) -> 1810632.108 | E24: =C24 -> 293869.4657 | F24: =D24-C24 -> 1516762.642 | G24: =E24*JQValperMiCycNBEx*ValTimeAT*MIN(TAvMiCycNB,ProjLenEX) -> 607312.2364 | H24: =E24*JQValperMiCycBEx*ValTimeAT*MIN(TAvMiCycB,ProjLenEX) -> 607513.9426 | I24: =F24*(JQValperMiCycBEx-JQValperMiCycNBEx)*ValTimeAT*MIN(TAvMiCycB,ProjLenEX)*1/2 -> 520.5380374 | J24: =((H24-G24)+(I24))*(1+TTUprater)^($B24+Construct-1) -> 722.2442645 | K24: =$J24/(1+DiscRate)^($B24+Construct-1) -> 174.4314417 | M24: 20 | N24: =IF(OR(ProjType=1,ProjType=3),TrComPed20NBEX+TrODPed20NBEX+TrRecPed20NBEX*RecBen,0) -> 668708.4649 | O24: =IF(OR(ProjType=1,ProjType=3),TrComPed20BEX+TrODPed20BEX+TrRecPed20BEX*RecBen,0) -> 668708.4649 | P24: =N24 -> 668708.4649 | Q24: =O24-N24 -> 0 | R24: =P24*JQValperMiPedNBEx*MIN(TAvMiPedNB,ProjLenEX) -> 50019.39318 | S24: =P24*JQValperMiPedBEx*MIN(TAvMiPedB,ProjLenEX) -> 137780.6921 | T24: =Q24*(JQValperMiPedBEx-JQValperMiPedNBEx)*MIN(TAvMiPedB,ProjLenEX)*1/2 -> 0 | U24: =(S24-R24+T24)*(1+TTUprater)^($B24+Construct-1) -> 87761.29893 | V24: =$U24/(1+DiscRate)^($B24+Construct-1) -> 21195.5022 | X24: 20 | Y24: =U24+J24 -> 88483.5432 | Z24: =V24+K24 -> 21369.93364
A26: =F26/965 -> 35.07690829 | B26: 1 | C26: =TREND(C$23:C$24,$B$23:$B$24,$B26) -> 188316.3942 | D26: =TREND(D$23:D$24,$B$23:$B$24,$B26) -> 222165.6107 | E26: =TREND(E$23:E$24,$B$23:$B$24,$B26) -> 188316.3942 | F26: =TREND(F$23:F$24,$B$23:$B$24,$B26) -> 33849.2165 | G26: =E26*JQValperMiCycNBEx*ValTimeAT*MIN(TAvMiCycNB,ProjLenEX) -> 389175.6845 | H26: =E26*JQValperMiCycBEx*ValTimeAT*MIN(TAvMiCycB,ProjLenEX) -> 389304.9412 | I26: =F26*(JQValperMiCycBEx-JQValperMiCycNBEx)*ValTimeAT*MIN(TAvMiCycB,ProjLenEX)*1/2 -> 11.61671855 | J26: =((H26-G26)+(I26))*(1+TTUprater)^($B26+Construct-1) -> 140.8733913 | K26: =$J26/(1+DiscRate)^($B26+Construct-1) -> 123.0442757 | M26: 1 | N26: =TREND(N$23:N$24,$M$23:$M$24,$M26) -> 428519.3991 | O26: =TREND(O$23:O$24,$M$23:$M$24,$M26) -> 428519.3991 | P26: =TREND(P$23:P$24,$M$23:$M$24,$M26) -> 428519.3991 | Q26: =TREND(Q$23:Q$24,$M$23:$M$24,$M26) -> 0 | R26: =P26*JQValperMiPedNBEx*MIN(TAvMiPedNB,ProjLenEX) -> 32053.25105 | S26: =P26*JQValperMiPedBEx*MIN(TAvMiPedB,ProjLenEX) -> 88292.13698 | T26: =Q26*(JQValperMiPedBEx-JQValperMiPedNBEx)*MIN(TAvMiPedB,ProjLenEX)*1/2 -> 0 | U26: =(S26-R26+T26)*(1+TTUprater)^($B26+Construct-1) -> 56238.88593 | V26: =$U26/(1+DiscRate)^($B26+Construct-1) -> 49121.22101 | X26: 1 | Y26: =U26+J26 -> 56379.75932 | Z26: 49244.26528
A27: =F27/965 -> 115.9557425 | B27: 2 | C27: =TREND(C$23:C$24,$B$23:$B$24,$B27) -> 193871.819 | D27: 305769.1105 | E27: 193871.819 | F27: =TREND(F$23:F$24,$B$23:$B$24,$B27) -> 111897.2915 | G27: 400656.5557 | H27: 400789.6255 | I27: 38.40205112 | J27: 171.4718583 | K27: 139.9721139 | M27: 2 | N27: =TREND(N$23:N$24,$M$23:$M$24,$M27) -> 441160.9288 | O27: 441160.9288 | P27: 441160.9288 | Q27: 0 | R27: 32998.83748 | S27: 90896.79778 | T27: 0 | U27: 57897.9603 | V27: 47261.98207 | X27: 2 | Y27: 58069.43216 | Z27: 47401.95418
A28: 196.8345768 | B28: 3 | C28: 199427.2438 | D28: 389372.6104 | E28: 199427.2438 | F28: =TREND(F$23:F$24,$B$23:$B$24,$B28) -> 189945.3666 | G28: 412137.4268 | H28: 412274.3098 | I28: 65.1873837 | J28: 202.0703253 | K28: 154.1584837 | M28: 3 | N28: 453802.4586 | O28: 453802.4586 | P28: 453802.4586 | Q28: 0 | R28: 33944.42391 | S28: 93501.45858 | T28: 0 | U28: 59557.03467 | V28: 45435.77659 | X28: 3 | Y28: 59759.105 | Z28: 45589.93508
A29: 277.713411 | B29: 4 | C29: 204982.6686 | D29: 472976.1102 | E29: 204982.6686 | F29: =TREND(F$23:F$24,$B$23:$B$24,$B29) -> 267993.4416 | G29: 423618.298 | H29: 423758.9941 | I29: 91.97271627 | J29: 232.6687923 | K29: 165.8896333 | M29: 4 | N29: 466443.9884 | O29: 466443.9884 | P29: 466443.9884 | Q29: 0 | R29: 34890.01033 | S29: 96106.11937 | T29: 0 | U29: 61216.10904 | V29: 43646.23971 | X29: 4 | Y29: 61448.77783 | Z29: 43812.12934
A30: 358.5922452 | B30: 5 | C30: 210538.0934 | D30: 556579.6101 | E30: 210538.0934 | F30: 346041.5167 | G30: 435099.1691 | H30: 435243.6783 | I30: 118.7580488 | J30: 263.2672593 | K30: 175.426091 | M30: 5 | N30: 479085.5182 | O30: 479085.5182 | P30: 479085.5182 | Q30: 0 | R30: 35835.59676 | S30: 98710.78017 | T30: 0 | U30: 62875.18341 | V30: 41896.38953 | X30: 5 | Y30: 63138.45067 | Z30: 42071.81563
A31: 439.4710795 | B31: 6 | C31: 216093.5183 | D31: 640183.1099 | E31: 216093.5183 | F31: 424089.5917 | G31: 446580.0403 | H31: 446728.3626 | I31: 145.5433814 | J31: 293.8657263 | K31: 183.0048052 | M31: 6 | N31: 491727.048 | O31: 491727.048 | P31: 491727.048 | Q31: 0 | R31: 36781.18319 | S31: 101315.441 | T31: 0 | U31: 64534.25778 | V31: 40188.69237 | X31: 6 | Y31: 64828.1235 | Z31: 40371.69718
A32: 520.3499137 | B32: 7 | C32: 221648.9431 | D32: 723786.6098 | E32: 221648.9431 | F32: 502137.6667 | G32: 458060.9114 | H32: 458213.0469 | I32: 172.328714 | J32: 324.4641934 | K32: 188.8411146 | M32: 7 | N32: 504368.5778 | O32: 504368.5778 | P32: 504368.5778 | Q32: 0 | R32: 37726.76962 | S32: 103920.1018 | T32: 0 | U32: 66193.33214 | V32: 38525.12197 | X32: 7 | Y32: 66517.79634 | Z32: 38713.96308
A33: 601.2287479 | B33: 8 | C33: 227204.3679 | D33: 807390.1097 | E33: 227204.3679 | F33: 580185.7418 | G33: 469541.7826 | H33: 469697.7312 | I33: 199.1140466 | J33: 355.0626604 | K33: 193.1305617 | M33: 8 | N33: 517010.1075 | O33: 517010.1075 | P33: 517010.1075 | Q33: 0 | R33: 38672.35604 | S33: 106524.7626 | T33: 0 | U33: 67852.40651 | V33: 36907.21342 | X33: 8 | Y33: 68207.46917 | Z33: 37100.34398
A34: 682.1075822 | B34: 9 | C34: 232759.7927 | D34: 890993.6095 | E34: 232759.7927 | F34: 658233.8168 | G34: 481022.6537 | H34: 481182.4155 | I34: 225.8993791 | J34: 385.6611274 | K34: 196.0505611 | M34: 9 | N34: 529651.6373 | O34: 529651.6373 | P34: 529651.6373 | Q34: 0 | R34: 39617.94247 | S34: 109129.4234 | T34: 0 | U34: 69511.48088 | V34: 35336.1121 | X34: 9 | Y34: 69897.14201 | Z34: 35532.16266
A35: 762.9864164 | B35: 10 | C35: 238315.2175 | D35: 974597.1094 | E35: 238315.2175 | F35: 736281.8918 | G35: 492503.5249 | H35: 492667.0998 | I35: 252.6847117 | J35: 416.2595944 | K35: 197.7619347 | M35: 10 | N35: 542293.1671 | O35: 542293.1671 | P35: 542293.1671 | Q35: 0 | R35: 40563.5289 | S35: 111734.0841 | T35: 0 | U35: 71170.55525 | V35: 33812.61811 | X35: 10 | Y35: 71586.81484 | Z35: 34010.38005
A36: 843.8652507 | B36: 11 | C36: 243870.6424 | D36: 1058200.609 | E36: 243870.6424 | F36: 814329.9669 | G36: 503984.396 | H36: 504151.784 | I36: 279.4700443 | J36: 446.8580614 | K36: 198.4103233 | M36: 11 | N36: 554934.6969 | O36: 554934.6969 | P36: 554934.6969 | Q36: 0 | R36: 41509.11533 | S36: 114338.7449 | T36: 0 | U36: 72829.62962 | V36: 32337.22654 | X36: 11 | Y36: 73276.48768 | Z36: 32535.63686
A37: 924.7440849 | B37: 12 | C37: 249426.0672 | D37: 1141804.109 | E37: 249426.0672 | F37: 892378.0419 | G37: 515465.2672 | H37: 515636.4683 | I37: 306.2553769 | J37: 477.4565284 | K37: 198.1274847 | M37: 12 | N37: 567576.2267 | O37: 567576.2267 | P37: 567576.2267 | Q37: 0 | R37: 42454.70175 | S37: 116943.4057 | T37: 0 | U37: 74488.70399 | V37: 30910.16392 | X37: 12 | Y37: 74966.16052 | Z37: 31108.29141
A38: 1005.622919 | B38: 13 | C38: 254981.492 | D38: 1225407.609 | E38: 254981.492 | F38: 970426.117 | G38: 526946.1383 | H38: 527121.1526 | I38: 333.0407094 | J38: 508.0549954 | K38: 197.0324866 | M38: 13 | N38: 580217.7564 | O38: 580217.7564 | P38: 580217.7564 | Q38: 0 | R38: 43400.28818 | S38: 119548.0665 | T38: 0 | U38: 76147.77836 | V38: 29531.42131 | X38: 13 | Y38: 76655.83335 | Z38: 29728.4538
A39: 1086.501753 | B39: 14 | C39: 260536.9168 | D39: 1309011.109 | E39: 260536.9168 | F39: 1048474.192 | G39: 538427.0095 | H39: 538605.8369 | I39: 359.826042 | J39: 538.6534624 | K39: 195.2328034 | M39: 14 | N39: 592859.2862 | O39: 592859.2862 | P39: 592859.2862 | Q39: 0 | R39: 44345.87461 | S39: 122152.7273 | T39: 0 | U39: 77806.85272 | V39: 28200.78407 | X39: 14 | Y39: 78345.50619 | Z39: 28396.01687
A40: 1167.380588 | B40: 15 | C40: 266092.3416 | D40: 1392614.609 | E40: 266092.3416 | F40: 1126522.267 | G40: 549907.8806 | H40: 550090.5212 | I40: 386.6113746 | J40: 569.2519294 | K40: 192.8253234 | M40: 15 | N40: 605500.816 | O40: 605500.816 | P40: 605500.816 | Q40: 0 | R40: 45291.46104 | S40: 124757.3881 | T40: 0 | U40: 79465.92709 | V40: 26917.85885 | X40: 15 | Y40: 80035.17902 | Z40: 27110.68418
A41: 1248.259422 | B41: 16 | C41: 271647.7665 | D41: 1476218.109 | E41: 271647.7665 | F41: 1204570.342 | G41: 561388.7518 | H41: 561575.2055 | I41: 413.3967071 | J41: 599.8503964 | K41: 189.8972736 | M41: 16 | N41: 618142.3458 | O41: 618142.3458 | P41: 618142.3458 | Q41: 0 | R41: 46237.04746 | S41: 127362.0489 | T41: 0 | U41: 81125.00146 | V41: 25682.09789 | X41: 16 | Y41: 81724.85186 | Z41: 25871.99516
A42: 1329.138256 | B42: 17 | C42: 277203.1913 | D42: 1559821.608 | E42: 277203.1913 | F42: 1282618.417 | G42: 572869.6229 | H42: 573059.8898 | I42: 440.1820397 | J42: 630.4488635 | K42: 186.5270698 | M42: 17 | N42: 630783.8756 | O42: 630783.8756 | P42: 630783.8756 | Q42: 0 | R42: 47182.63389 | S42: 129966.7097 | T42: 0 | U42: 82784.07583 | V42: 24492.82088 | X42: 17 | Y42: 83414.52469 | Z42: 24679.34795
A43: 1410.01709 | B43: 18 | C43: 282758.6161 | D43: 1643425.108 | E43: 282758.6161 | F43: 1360666.492 | G43: 584350.4941 | H43: 584544.574 | I43: 466.9673723 | J43: 661.0473305 | K43: 182.7850954 | M43: 18 | N43: 643425.4053 | O43: 643425.4053 | P43: 643425.4053 | Q43: 0 | R43: 48128.22032 | S43: 132571.3705 | T43: 0 | U43: 84443.1502 | V43: 23349.2347 | X43: 18 | Y43: 85104.19753 | Z43: 23532.01979
A44: 1490.895925 | B44: 19 | C44: 288314.0409 | D44: 1727028.608 | E44: 288314.0409 | F44: 1438714.567 | G44: 595831.3652 | H44: 596029.2583 | I44: 493.7527049 | J44: 691.6457975 | K44: 178.7344173 | M44: 19 | N44: 656066.9351 | O44: 656066.9351 | P44: 656066.9351 | Q44: 0 | R44: 49073.80675 | S44: 135176.0313 | T44: 0 | U44: 86102.22457 | V44: 22250.45101 | X44: 19 | Y44: 86793.87036 | Z44: 22429.18543
A45: 1571.774759 | B45: 20 | C45: 293869.4657 | D45: 1810632.108 | E45: 293869.4657 | F45: 1516762.642 | G45: 607312.2364 | H45: 607513.9426 | I45: 520.5380374 | J45: 722.2442645 | K45: 174.4314417 | M45: 20 | N45: 668708.4649 | O45: 668708.4649 | P45: 668708.4649 | Q45: 0 | R45: 50019.39318 | S45: 137780.6921 | T45: 0 | U45: 87761.29893 | V45: 21195.5022 | X45: 20 | Y45: 88483.5432 | Z45: 21369.93364
B47: Total | K47: =SUM(K26:K45) -> 3611.283294 | M47: Total | V47: =SUM(V26:V45) -> 676998.9283 | X47: Total | Z47: =SUM(Z26:Z45) -> 680610.2116
B50: New Facility | M50: New Facility | X50: New Facility
C52: AVERAGE ANNUAL VOLUME | G52: JOURNEY QUALITY VALUE | N52: ANNUAL PERSON-TRIPS | R52: JOURNEY QUALITY VALUE
C53: (trips/yr.) | G53: ($) | N53: (trips/yr.) | R53: ($)
B54: Year | C54: Total Trips, No Facility (Baseline) | D54: Total Trips, New Facility | E54: Existing Trips, New Facility | F54: Induced Trips, New Facility | H54: Existing Trips, New Facility | I54: Induced Trips, New Facility | J54: Constant Dollars | K54: Present Value | M54: Year | N54: Total Trips, No Facility (Baseline) | O54: Total Trips, New Facility | P54: Existing Trips, New Facility | Q54: Induced Trips, New Facility | S54: Existing Trips, New Facility | T54: Induced Trips, New Facility | U54: Constant Dollars | V54: Present Value | X54: Year | Y54: Constant Dollars | Z54: Present Value
B55: 1 | C55: =IF(ProjType>1,TrComCyc1NBNew+TrODCyc1NBNew+TrRecCyc1NBNew,0) -> 188316.3942 | D55: =IF(ProjType>1,TrComCyc1BNew+TrODCyc1BNew+TrRecCyc1BNew,0) -> 222165.6107 | E55: =C55 -> 188316.3942 | F55: =D55-C55 -> 33849.2165 | H55: =E55*JQValperMiCycBNew*ValTimeAT*MIN(TAvMiCycB,ProjLenNEW) -> 380621.467 | I55: =F55*JQValperMiCycBNew*ValTimeAT*MIN(TAvMiCycB,ProjLenNEW)*1/2 -> 34207.69205 | J55: =(I55+H55)*(1+TTUprater)^($B23+Construct-1) -> 414829.159 | K55: =$J55/(1+DiscRate)^($B55+Construct-1) -> 362327.8531 | M55: 1 | N55: =IF(ProjType>1,TrComPed1NBNew+TrODPed1NBNew+TrRecPed1NBNew*RecBen,0) -> 428519.3991 | O55: =IF(ProjType>1,TrComPed1BNew+TrODPed1BNew+TrRecPed1BNew*RecBen,0) -> 428519.3991 | P55: =N55 -> 428519.3991 | Q55: =O55-N55 -> 0 | S55: =P55*JQValperMiPedBNew*MIN(TAvMiPedB,ProjLenNEW) -> 88292.13698 | T55: =Q55*JQValperMiPedBNew*MIN(TAvMiPedB,ProjLenNEW)*1/2 -> 0 | U55: =(S55+T55)*(1+TTUprater)^($B55+Construct-1) -> 88292.13698 | V55: =$U55/(1+DiscRate)^($B55+Construct-1) -> 77117.77184 | X55: 1 | Y55: =U55+J55 -> 503121.296 | Z55: =V55+K55 -> 439445.6249
B56: 20 | C56: =IF(ProjType>1,TrComCyc20NBNew+TrODCyc20NBNew+TrRecCyc20NBNew,0) -> 293869.4657 | D56: =IF(ProjType>1,TrComCyc20BNew+TrODCyc20BNew+TrRecCyc20BNew,0) -> 1810632.108 | E56: =C56 -> 293869.4657 | F56: =D56-C56 -> 1516762.642 | H56: =E56*JQValperMiCycBNew*ValTimeAT*MIN(TAvMiCycB,ProjLenNEW) -> 593963.3012 | I56: =F56*JQValperMiCycBNew*ValTimeAT*MIN(TAvMiCycB,ProjLenNEW)*1/2 -> 1532825.712 | J56: =(I56+H56)*(1+TTUprater)^($B24+Construct-1) -> 2126789.013 | K56: =$J56/(1+DiscRate)^($B56+Construct-1) -> 513647.3794 | M56: 20 | N56: =IF(ProjType>1,TrComPed20NBNew+TrODPed20NBNew+TrRecPed20NBNew*RecBen,0) -> 668708.4649 | O56: =IF(ProjType>1,TrComPed20BNew+TrODPed20BNew+TrRecPed20BNew*RecBen,0) -> 668708.4649 | P56: =N56 -> 668708.4649 | Q56: =O56-N56 -> 0 | S56: =P56*JQValperMiPedBNew*MIN(TAvMiPedB,ProjLenNEW) -> 137780.6921 | T56: =Q56*JQValperMiPedBNew*MIN(TAvMiPedB,ProjLenNEW)*1/2 -> 0 | U56: =(S56+T56)*(1+TTUprater)^($B56+Construct-1) -> 137780.6921 | V56: =$U56/(1+DiscRate)^($B56+Construct-1) -> 33275.84024 | X56: 20 | Y56: =U56+J56 -> 2264569.705 | Z56: =V56+K56 -> 546923.2197
B58: 1 | C58: =TREND(C$55:C$56,$B$55:$B$56,$B58) -> 188316.3942 | D58: =TREND(D$55:D$56,$B$55:$B$56,$B58) -> 222165.6107 | E58: =TREND(E$55:E$56,$B$55:$B$56,$B58) -> 188316.3942 | F58: =TREND(F$55:F$56,$B$55:$B$56,$B58) -> 33849.2165 | H58: =E58*JQValperMiCycBNew*ValTimeAT*MIN(TAvMiCycB,ProjLenNEW) -> 380621.467 | I58: =F58*JQValperMiCycBNew*ValTimeAT*MIN(TAvMiCycB,ProjLenNEW)*1/2 -> 34207.69205 | J58: =(I58+H58)*(1+TTUprater)^($B26+Construct-1) -> 414829.159 | K58: =$J58/(1+DiscRate)^($B58+Construct-1) -> 362327.8531 | M58: 1 | N58: =TREND(N$55:N$56,$M$55:$M$56,$M58) -> 428519.3991 | O58: =TREND(O$55:O$56,$M$55:$M$56,$M58) -> 428519.3991 | P58: =TREND(P$55:P$56,$M$55:$M$56,$M58) -> 428519.3991 | Q58: =TREND(Q$55:Q$56,$M$55:$M$56,$M58) -> 0 | S58: =P58*JQValperMiPedBNew*MIN(TAvMiPedB,ProjLenNEW) -> 88292.13698 | T58: =Q58*JQValperMiPedBNew*MIN(TAvMiPedB,ProjLenNEW)*1/2 -> 0 | U58: =(S58+T58)*(1+TTUprater)^($B58+Construct-1) -> 88292.13698 | V58: =$U58/(1+DiscRate)^($B58+Construct-1) -> 77117.77184 | X58: 1 | Y58: =U58+J58 -> 503121.296 | Z58: 439445.6249
B59: 2 | C59: =TREND(C$55:C$56,$B$55:$B$56,$B59) -> 193871.819 | D59: 305769.1105 | E59: 193871.819 | F59: 111897.2915 | H59: 391849.9846 | I59: 113082.3247 | J59: 504932.3092 | K59: 412175.172 | M59: 2 | N59: =TREND(N$55:N$56,$M$55:$M$56,$M59) -> 441160.9288 | O59: 441160.9288 | P59: 441160.9288 | Q59: 0 | S59: 90896.79778 | T59: 0 | U59: 90896.79778 | V59: 74198.86304 | X59: 2 | Y59: 595829.107 | Z59: 486374.0351
B60: 3 | C60: 199427.2438 | D60: 389372.6104 | E60: 199427.2438 | F60: 189945.3666 | H60: 403078.5022 | I60: 191956.9573 | J60: 595035.4595 | K60: 453949.703 | M60: 3 | N60: 453802.4586 | O60: 453802.4586 | P60: 453802.4586 | Q60: 0 | S60: 93501.45858 | T60: 0 | U60: 93501.45858 | V60: 71331.81507 | X60: 3 | Y60: 688536.918 | Z60: 525281.5181
B61: 4 | C61: 204982.6686 | D61: 472976.1102 | E61: 204982.6686 | F61: 267993.4416 | H61: 414307.0197 | I61: 270831.5899 | J61: 685138.6097 | K61: 488494.3597 | M61: 4 | N61: 466443.9884 | O61: 466443.9884 | P61: 466443.9884 | Q61: 0 | S61: 96106.11937 | T61: 0 | U61: 96106.11937 | V61: 68522.33488 | X61: 4 | Y61: 781244.7291 | Z61: 557016.6946
B62: 5 | C62: 210538.0934 | D62: 556579.6101 | E62: 210538.0934 | F62: 346041.5167 | H62: 425535.5373 | I62: 349706.2226 | J62: 775241.7599 | K62: 516576.3183 | M62: 5 | N62: 479085.5182 | O62: 479085.5182 | P62: 479085.5182 | Q62: 0 | S62: 98710.78017 | T62: 0 | U62: 98710.78017 | V62: 65775.16077 | X62: 5 | Y62: 873952.5401 | Z62: 582351.4791
B63: 6 | C63: 216093.5183 | D63: 640183.1099 | E63: 216093.5183 | F63: 424089.5917 | H63: 436764.0549 | I63: 428580.8552 | J63: 865344.9101 | K63: 538893.3194 | M63: 6 | N63: 491727.048 | O63: 491727.048 | P63: 491727.048 | Q63: 0 | S63: 101315.441 | T63: 0 | U63: 101315.441 | V63: 63094.16471 | X63: 6 | Y63: 966660.3511 | Z63: 601987.4841
B64: 7 | C64: 221648.9431 | D64: 723786.6098 | E64: 221648.9431 | F64: 502137.6667 | H64: 447992.5725 | I64: 507455.4878 | J64: 955448.0603 | K64: 556079.4701 | M64: 7 | N64: 504368.5778 | O64: 504368.5778 | P64: 504368.5778 | Q64: 0 | S64: 103920.1018 | T64: 0 | U64: 103920.1018 | V64: 60482.44537 | X64: 7 | Y64: 1059368.162 | Z64: 616561.9154
B65: 8 | C65: 227204.3679 | D65: 807390.1097 | E65: 227204.3679 | F65: 580185.7418 | H65: 459221.0901 | I65: 586330.1205 | J65: 1045551.211 | K65: 568710.583 | M65: 8 | N65: 517010.1075 | O65: 517010.1075 | P65: 517010.1075 | Q65: 0 | S65: 106524.7626 | T65: 0 | U65: 106524.7626 | V65: 57942.41278 | X65: 8 | Y65: 1152075.973 | Z65: 626652.9958
B66: 9 | C66: 232759.7927 | D66: 890993.6095 | E66: 232759.7927 | F66: 658233.8168 | H66: 470449.6077 | I66: 665204.7531 | J66: 1135654.361 | K66: 577309.0904 | M66: 9 | N66: 529651.6373 | O66: 529651.6373 | P66: 529651.6373 | Q66: 0 | S66: 109129.4234 | T66: 0 | U66: 109129.4234 | V66: 55475.86511 | X66: 9 | Y66: 1244783.784 | Z66: 632784.9555
B67: 10 | C67: 238315.2175 | D67: 974597.1094 | E67: 238315.2175 | F67: 736281.8918 | H67: 481678.1253 | I67: 744079.3857 | J67: 1225757.511 | K67: 582348.5636 | M67: 10 | N67: 542293.1671 | O67: 542293.1671 | P67: 542293.1671 | Q67: 0 | S67: 111734.0841 | T67: 0 | U67: 111734.0841 | V67: 53084.05849 | X67: 10 | Y67: 1337491.595 | Z67: 635432.6221
B68: 11 | C68: 243870.6424 | D68: 1058200.609 | E68: 243870.6424 | F68: 814329.9669 | H68: 492906.6429 | I68: 822954.0184 | J68: 1315860.661 | K68: 584257.8703 | M68: 11 | N68: 554934.6969 | O68: 554934.6969 | P68: 554934.6969 | Q68: 0 | S68: 114338.7449 | T68: 0 | U68: 114338.7449 | V68: 50767.77016 | X68: 11 | Y68: 1430199.406 | Z68: 635025.6404
B69: 12 | C69: 249426.0672 | D69: 1141804.109 | E69: 249426.0672 | F69: 892378.0419 | H69: 504135.1605 | I69: 901828.651 | J69: 1405963.811 | K69: 583424.9968 | M69: 12 | N69: 567576.2267 | O69: 567576.2267 | P69: 567576.2267 | Q69: 0 | S69: 116943.4057 | T69: 0 | U69: 116943.4057 | V69: 48527.3558 | X69: 12 | Y69: 1522907.217 | Z69: 631952.3526
B70: 13 | C70: 254981.492 | D70: 1225407.609 | E70: 254981.492 | F70: 970426.117 | H70: 515363.6781 | I70: 980703.2836 | J70: 1496066.962 | K70: 580200.5615 | M70: 13 | N70: 580217.7564 | O70: 580217.7564 | P70: 580217.7564 | Q70: 0 | S70: 119548.0665 | T70: 0 | U70: 119548.0665 | V70: 46362.80133 | X70: 13 | Y70: 1615615.028 | Z70: 626563.3628
B71: 14 | C71: 260536.9168 | D71: 1309011.109 | E71: 260536.9168 | F71: 1048474.192 | H71: 526592.1956 | I71: 1059577.916 | J71: 1586170.112 | K71: 574901.0435 | M71: 14 | N71: 592859.2862 | O71: 592859.2862 | P71: 592859.2862 | Q71: 0 | S71: 122152.7273 | T71: 0 | U71: 122152.7273 | V71: 44273.76981 | X71: 14 | Y71: 1708322.839 | Z71: 619174.8133
B72: 15 | C72: 266092.3416 | D72: 1392614.609 | E72: 266092.3416 | F72: 1126522.267 | H72: 537820.7132 | I72: 1138452.549 | J72: 1676273.262 | K72: 567811.7492 | M72: 15 | N72: 605500.816 | O72: 605500.816 | P72: 605500.816 | Q72: 0 | S72: 124757.3881 | T72: 0 | U72: 124757.3881 | V72: 42259.64369 | X72: 15 | Y72: 1801030.65 | Z72: 610071.3929
B73: 16 | C73: 271647.7665 | D73: 1476218.109 | E73: 271647.7665 | F73: 1204570.342 | H73: 549049.2308 | I73: 1217327.182 | J73: 1766376.412 | K73: 559189.5361 | M73: 16 | N73: 618142.3458 | O73: 618142.3458 | P73: 618142.3458 | Q73: 0 | S73: 127362.0489 | T73: 0 | U73: 127362.0489 | V73: 40319.56301 | X73: 16 | Y73: 1893738.461 | Z73: 599509.0991
B74: 17 | C74: 277203.1913 | D74: 1559821.608 | E74: 277203.1913 | F74: 1282618.417 | H74: 560277.7484 | I74: 1296201.814 | J74: 1856479.563 | K74: 549265.3139 | M74: 17 | N74: 630783.8756 | O74: 630783.8756 | P74: 630783.8756 | Q74: 0 | S74: 129966.7097 | T74: 0 | U74: 129966.7097 | V74: 38452.45973 | X74: 17 | Y74: 1986446.272 | Z74: 587717.7737
B75: 18 | C75: 282758.6161 | D75: 1643425.108 | E75: 282758.6161 | F75: 1360666.492 | H75: 571506.266 | I75: 1375076.447 | J75: 1946582.713 | K75: 538246.341 | M75: 18 | N75: 643425.4053 | O75: 643425.4053 | P75: 643425.4053 | Q75: 0 | S75: 132571.3705 | T75: 0 | U75: 132571.3705 | V75: 36657.08867 | X75: 18 | Y75: 2079154.083 | Z75: 574903.4296
B76: 19 | C76: 288314.0409 | D76: 1727028.608 | E76: 288314.0409 | F76: 1438714.567 | H76: 582734.7836 | I76: 1453951.079 | J76: 2036685.863 | K76: 526318.3298 | M76: 19 | N76: 656066.9351 | O76: 656066.9351 | P76: 656066.9351 | Q76: 0 | S76: 135176.0313 | T76: 0 | U76: 135176.0313 | V76: 34932.05522 | X76: 19 | Y76: 2171861.894 | Z76: 561250.385
B77: 20 | C77: 293869.4657 | D77: 1810632.108 | E77: 293869.4657 | F77: 1516762.642 | H77: 593963.3012 | I77: 1532825.712 | J77: 2126789.013 | K77: 513647.3794 | M77: 20 | N77: 668708.4649 | O77: 668708.4649 | P77: 668708.4649 | Q77: 0 | S77: 137780.6921 | T77: 0 | U77: 137780.6921 | V77: 33275.84024 | X77: 20 | Y77: 2264569.705 | Z77: 546923.2197
B79: Total | K79: =SUM(K58:K77) -> 10634127.55 | M79: Total | V79: =SUM(V58:V77) -> 1062853.24 | X79: Total | Z79: =SUM(Z58:Z77) -> 11696980.79
B81: D | C81: CYCLING BENEFITS - SRTS | M81: E | N81: PEDESTRIAN BENEFITS - SRTS | X81: F | Y81: TOTAL
B84: Existing SRTS Facility | M84: Existing SRTS Facility | X84: Existing SRTS Facility
C86: AVERAGE ANNUAL VOLUME | G86: JOURNEY QUALITY VALUE | N86: ANNUAL PERSON-MILES | R86: JOURNEY QUALITY VALUE
C87: (trips/yr.) | G87: ($) | N87: (trip-miles/yr.) | R87: ($)
B88: Year | C88: Total Trips, Existing Facility (Baseline) | D88: Total Trips, Improved Facility | E88: Existing Trips, Improved Facility | F88: Induced Trips, Improved Facility | G88: Existing Trips, Existing Facility | H88: Existing Trips, Improved Facility | I88: Induced Trips, Improved Facility | J88: Constant Dollars | K88: Present Value | M88: Year | N88: Total Trips, Existing Facility (Baseline) | O88: Total Trips, Improved Facility | P88: Existing Trips, Improved Facility | Q88: Induced Trips, Improved Facility | R88: Existing Trips, Existing Facility | S88: Existing Trips, Improved Facility | T88: Induced Trips, Improved Facility | U88: Constant Dollars | V88: Present Value | X88: Year | Y88: Constant Dollars | Z88: Present Value
B89: 1 | C89: =IF(AND(OR(ProjType=1,ProjType=3),SRTSProj=1),TrSRTSCyc1NBEx,0) -> 0 | D89: =IF(AND(OR(ProjType=1,ProjType=3),SRTSProj=1),TrSRTSCyc1BEx,0) -> 0 | E89: =C89 -> 0 | F89: =D89-C89 -> 0 | G89: =E89*JQValperMiCycNBEx*ValTimeChild*MIN(TAvMiCycNBSRTS,ProjLenEX) -> 0 | H89: =E89*JQValperMiCycBEx*ValTimeChild*MIN(TAvMiCycBSRTS,ProjLenEX) -> 0 | I89: =F89*(JQValperMiCycBEx-JQValperMiCycNBEx)*ValTimeChild*MIN(TAvMiCycBSRTS,ProjLenEX)*1/2 -> 0 | J89: =((H89-G89)+(I89))*(1+TTUprater)^($B89+Construct-1) -> 0 | K89: =$J89/(1+DiscRate)^($B89+Construct-1) -> 0 | M89: 1 | N89: =IF(AND(OR(ProjType=1,ProjType=3),SRTSProj=1),TrSRTSPed1NBEx,0) -> 0 | O89: =IF(AND(OR(ProjType=1,ProjType=3),SRTSProj=1),TrSRTSPed1BEx,0) -> 0 | P89: =N89 -> 0 | Q89: =O89-N89 -> 0 | R89: =P89*JQValperMiPedNBEx*MIN(TAvMiPedNBSRTS,ProjLenEX) -> 0 | S89: =P89*JQValperMiPedBEx*MIN(TAvMiPedBSRTS,ProjLenEX) -> 0 | T89: =Q89*(JQValperMiPedBEx-JQValperMiPedNBEx)*MIN(TAvMiPedBSRTS,ProjLenEX)*1/2 -> 0 | U89: =(S89-R89+T89)*(1+TTUprater)^($B89+Construct-1) -> 0 | V89: =$U89/(1+DiscRate)^($B89+Construct-1) -> 0 | X89: 1 | Y89: =U89+J89 -> 0 | Z89: =V89+K89 -> 0
B90: 20 | C90: =IF(AND(OR(ProjType=1,ProjType=3),SRTSProj=1),TrSRTSCyc20NBEx,0) -> 0 | D90: =IF(AND(OR(ProjType=1,ProjType=3),SRTSProj=1),TrSRTSCyc20BEx,0) -> 0 | E90: =C90 -> 0 | F90: =D90-C90 -> 0 | G90: =E90*JQValperMiCycNBEx*ValTimeChild*MIN(TAvMiCycNBSRTS,ProjLenEX) -> 0 | H90: =E90*JQValperMiCycBEx*ValTimeChild*MIN(TAvMiCycBSRTS,ProjLenEX) -> 0 | I90: =F90*(JQValperMiCycBEx-JQValperMiCycNBEx)*ValTimeChild*MIN(TAvMiCycBSRTS,ProjLenEX)*1/2 -> 0 | J90: =((H90-G90)+(I90))*(1+TTUprater)^($B90+Construct-1) -> 0 | K90: =$J90/(1+DiscRate)^($B90+Construct-1) -> 0 | M90: 20 | N90: =IF(AND(OR(ProjType=1,ProjType=3),SRTSProj=1),TrSRTSPed20NBEx,0) -> 0 | O90: =IF(AND(OR(ProjType=1,ProjType=3),SRTSProj=1),TrSRTSPed20BEx,0) -> 0 | P90: =N90 -> 0 | Q90: =O90-N90 -> 0 | R90: =P90*JQValperMiPedNBEx*MIN(TAvMiPedNBSRTS,ProjLenEX) -> 0 | S90: =P90*JQValperMiPedBEx*MIN(TAvMiPedBSRTS,ProjLenEX) -> 0 | T90: =Q90*(JQValperMiPedBEx-JQValperMiPedNBEx)*MIN(TAvMiPedBSRTS,ProjLenEX)*1/2 -> 0 | U90: =(S90-R90+T90)*(1+TTUprater)^($B90+Construct-1) -> 0 | V90: =$U90/(1+DiscRate)^($B90+Construct-1) -> 0 | X90: 20 | Y90: =U90+J90 -> 0 | Z90: =V90+K90 -> 0
B92: 1 | C92: =TREND(C$89:C$90,$B$89:$B$90,$B92) -> 0 | D92: =TREND(D$89:D$90,$B$89:$B$90,$B92) -> 0 | E92: =TREND(E$89:E$90,$B$89:$B$90,$B92) -> 0 | F92: =TREND(F$89:F$90,$B$89:$B$90,$B92) -> 0 | G92: =E92*JQValperMiCycNBEx*ValTimeChild*MIN(TAvMiCycNBSRTS,ProjLenEX) -> 0 | H92: =E92*JQValperMiCycBEx*ValTimeChild*MIN(TAvMiCycBSRTS,ProjLenEX) -> 0 | I92: =F92*(JQValperMiCycBEx-JQValperMiCycNBEx)*ValTimeChild*MIN(TAvMiCycBSRTS,ProjLenEX)*1/2 -> 0 | J92: =((H92-G92)+(I92))*(1+TTUprater)^($B92+Construct-1) -> 0 | K92: =$J92/(1+DiscRate)^($B92+Construct-1) -> 0 | M92: 1 | N92: =TREND(N$89:N$90,$M$89:$M$90,$M92) -> 0 | O92: =TREND(O$89:O$90,$M$89:$M$90,$M92) -> 0 | P92: =TREND(P$89:P$90,$M$89:$M$90,$M92) -> 0 | Q92: =TREND(Q$89:Q$90,$M$89:$M$90,$M92) -> 0 | R92: =P92*JQValperMiPedNBEx*MIN(TAvMiPedNBSRTS,ProjLenEX) -> 0 | S92: =P92*JQValperMiPedBEx*MIN(TAvMiPedBSRTS,ProjLenEX) -> 0 | T92: =Q92*(JQValperMiPedBEx-JQValperMiPedNBEx)*MIN(TAvMiPedBSRTS,ProjLenEX)*1/2 -> 0 | U92: =(S92-R92+T92)*(1+TTUprater)^($B92+Construct-1) -> 0 | V92: =$U92/(1+DiscRate)^($B92+Construct-1) -> 0 | X92: 1 | Y92: =U92+J92 -> 0 | Z92: 0
B93: 2 | C93: =TREND(C$89:C$90,$B$89:$B$90,$B93) -> 0 | D93: 0 | E93: 0 | F93: 0 | G93: 0 | H93: 0 | I93: 0 | J93: 0 | K93: 0 | M93: 2 | N93: =TREND(N$89:N$90,$M$89:$M$90,$M93) -> 0 | O93: 0 | P93: 0 | Q93: 0 | R93: 0 | S93: 0 | T93: 0 | U93: 0 | V93: 0 | X93: 2 | Y93: 0 | Z93: 0
B94: 3 | C94: 0 | D94: 0 | E94: 0 | F94: 0 | G94: 0 | H94: 0 | I94: 0 | J94: 0 | K94: 0 | M94: 3 | N94: 0 | O94: 0 | P94: 0 | Q94: 0 | R94: 0 | S94: 0 | T94: 0 | U94: 0 | V94: 0 | X94: 3 | Y94: 0 | Z94: 0
B95: 4 | C95: 0 | D95: 0 | E95: 0 | F95: 0 | G95: 0 | H95: 0 | I95: 0 | J95: 0 | K95: 0 | M95: 4 | N95: 0 | O95: 0 | P95: 0 | Q95: 0 | R95: 0 | S95: 0 | T95: 0 | U95: 0 | V95: 0 | X95: 4 | Y95: 0 | Z95: 0
B96: 5 | C96: 0 | D96: 0 | E96: 0 | F96: 0 | G96: 0 | H96: 0 | I96: 0 | J96: 0 | K96: 0 | M96: 5 | N96: 0 | O96: 0 | P96: 0 | Q96: 0 | R96: 0 | S96: 0 | T96: 0 | U96: 0 | V96: 0 | X96: 5 | Y96: 0 | Z96: 0
B97: 6 | C97: 0 | D97: 0 | E97: 0 | F97: 0 | G97: 0 | H97: 0 | I97: 0 | J97: 0 | K97: 0 | M97: 6 | N97: 0 | O97: 0 | P97: 0 | Q97: 0 | R97: 0 | S97: 0 | T97: 0 | U97: 0 | V97: 0 | X97: 6 | Y97: 0 | Z97: 0
B98: 7 | C98: 0 | D98: 0 | E98: 0 | F98: 0 | G98: 0 | H98: 0 | I98: 0 | J98: 0 | K98: 0 | M98: 7 | N98: 0 | O98: 0 | P98: 0 | Q98: 0 | R98: 0 | S98: 0 | T98: 0 | U98: 0 | V98: 0 | X98: 7 | Y98: 0 | Z98: 0
B99: 8 | C99: 0 | D99: 0 | E99: 0 | F99: 0 | G99: 0 | H99: 0 | I99: 0 | J99: 0 | K99: 0 | M99: 8 | N99: 0 | O99: 0 | P99: 0 | Q99: 0 | R99: 0 | S99: 0 | T99: 0 | U99: 0 | V99: 0 | X99: 8 | Y99: 0 | Z99: 0
B100: 9 | C100: 0 | D100: 0 | E100: 0 | F100: 0 | G100: 0 | H100: 0 | I100: 0 | J100: 0 | K100: 0 | M100: 9 | N100: 0 | O100: 0 | P100: 0 | Q100: 0 | R100: 0 | S100: 0 | T100: 0 | U100: 0 | V100: 0 | X100: 9 | Y100: 0 | Z100: 0
B101: 10 | C101: 0 | D101: 0 | E101: 0 | F101: 0 | G101: 0 | H101: 0 | I101: 0 | J101: 0 | K101: 0 | M101: 10 | N101: 0 | O101: 0 | P101: 0 | Q101: 0 | R101: 0 | S101: 0 | T101: 0 | U101: 0 | V101: 0 | X101: 10 | Y101: 0 | Z101: 0
B102: 11 | C102: 0 | D102: 0 | E102: 0 | F102: 0 | G102: 0 | H102: 0 | I102: 0 | J102: 0 | K102: 0 | M102: 11 | N102: 0 | O102: 0 | P102: 0 | Q102: 0 | R102: 0 | S102: 0 | T102: 0 | U102: 0 | V102: 0 | X102: 11 | Y102: 0 | Z102: 0
B103: 12 | C103: 0 | D103: 0 | E103: 0 | F103: 0 | G103: 0 | H103: 0 | I103: 0 | J103: 0 | K103: 0 | M103: 12 | N103: 0 | O103: 0 | P103: 0 | Q103: 0 | R103: 0 | S103: 0 | T103: 0 | U103: 0 | V103: 0 | X103: 12 | Y103: 0 | Z103: 0
B104: 13 | C104: 0 | D104: 0 | E104: 0 | F104: 0 | G104: 0 | H104: 0 | I104: 0 | J104: 0 | K104: 0 | M104: 13 | N104: 0 | O104: 0 | P104: 0 | Q104: 0 | R104: 0 | S104: 0 | T104: 0 | U104: 0 | V104: 0 | X104: 13 | Y104: 0 | Z104: 0
B105: 14 | C105: 0 | D105: 0 | E105: 0 | F105: 0 | G105: 0 | H105: 0 | I105: 0 | J105: 0 | K105: 0 | M105: 14 | N105: 0 | O105: 0 | P105: 0 | Q105: 0 | R105: 0 | S105: 0 | T105: 0 | U105: 0 | V105: 0 | X105: 14 | Y105: 0 | Z105: 0
B106: 15 | C106: 0 | D106: 0 | E106: 0 | F106: 0 | G106: 0 | H106: 0 | I106: 0 | J106: 0 | K106: 0 | M106: 15 | N106: 0 | O106: 0 | P106: 0 | Q106: 0 | R106: 0 | S106: 0 | T106: 0 | U106: 0 | V106: 0 | X106: 15 | Y106: 0 | Z106: 0
B107: 16 | C107: 0 | D107: 0 | E107: 0 | F107: 0 | G107: 0 | H107: 0 | I107: 0 | J107: 0 | K107: 0 | M107: 16 | N107: 0 | O107: 0 | P107: 0 | Q107: 0 | R107: 0 | S107: 0 | T107: 0 | U107: 0 | V107: 0 | X107: 16 | Y107: 0 | Z107: 0
B108: 17 | C108: 0 | D108: 0 | E108: 0 | F108: 0 | G108: 0 | H108: 0 | I108: 0 | J108: 0 | K108: 0 | M108: 17 | N108: 0 | O108: 0 | P108: 0 | Q108: 0 | R108: 0 | S108: 0 | T108: 0 | U108: 0 | V108: 0 | X108: 17 | Y108: 0 | Z108: 0
B109: 18 | C109: 0 | D109: 0 | E109: 0 | F109: 0 | G109: 0 | H109: 0 | I109: 0 | J109: 0 | K109: 0 | M109: 18 | N109: 0 | O109: 0 | P109: 0 | Q109: 0 | R109: 0 | S109: 0 | T109: 0 | U109: 0 | V109: 0 | X109: 18 | Y109: 0 | Z109: 0
B110: 19 | C110: 0 | D110: 0 | E110: 0 | F110: 0 | G110: 0 | H110: 0 | I110: 0 | J110: 0 | K110: 0 | M110: 19 | N110: 0 | O110: 0 | P110: 0 | Q110: 0 | R110: 0 | S110: 0 | T110: 0 | U110: 0 | V110: 0 | X110: 19 | Y110: 0 | Z110: 0
B111: 20 | C111: 0 | D111: 0 | E111: 0 | F111: 0 | G111: 0 | H111: 0 | I111: 0 | J111: 0 | K111: 0 | M111: 20 | N111: 0 | O111: 0 | P111: 0 | Q111: 0 | R111: 0 | S111: 0 | T111: 0 | U111: 0 | V111: 0 | X111: 20 | Y111: 0 | Z111: 0
B113: Total | K113: =SUM(K92:K111) -> 0 | M113: Total | V113: =SUM(V92:V111) -> 0 | X113: Total | Z113: =SUM(Z92:Z111) -> 0
B117: CYCLING BENEFITS - SRTS | M117: PEDESTRIAN BENEFITS - SRTS | X117: C | Y117: TOTAL
B120: New SRTS Facility | M120: New SRTS Facility | X120: New SRTS Facility
C122: AVERAGE ANNUAL VOLUME | G122: JOURNEY QUALITY VALUE | N122: ANNUAL PERSON-MILES | R122: JOURNEY QUALITY VALUE
C123: (trips/yr.) | G123: ($) | N123: (trip-miles/yr.) | R123: ($)
B124: Year | C124: Total Trips, No Facility (Baseline) | D124: Total Trips, New Facility | E124: Existing Trips, New Facility | F124: Induced Trips, New Facility | H124: Existing Trips, New Facility | I124: Induced Trips, New Facility | J124: Constant Dollars | K124: Present Value | M124: Year | N124: Total Trips, No Facility (Baseline) | O124: Total Trips, New Facility | P124: Existing Trips, New Facility | Q124: Induced Trips, New Facility | S124: Existing Trips, New Facility | T124: Induced Trips, New Facility | U124: Constant Dollars | V124: Present Value | X124: Year | Y124: Constant Dollars | Z124: Present Value
B125: 1 | C125: =IF(AND(ProjType>1,SRTSProj=1),TrSRTSCyc1NBNew,0) -> 0 | D125: =IF(AND(ProjType>1,SRTSProj=1),TrSRTSCyc1BNew,0) -> 0 | E125: =C125 -> 0 | F125: =D125-C125 -> 0 | H125: =E125*JQValperMiCycBNew*ValTimeChild*MIN(TAvMiCycBSRTS,ProjLenNEW) -> 0 | I125: =F125*JQValperMiCycBNew*ValTimeChild*MIN(TAvMiCycBSRTS,ProjLenNEW)*1/2 -> 0 | J125: =((H125-G125)+(I125))*(1+TTUprater)^($B125+Construct-1) -> 0 | K125: =$J125/(1+DiscRate)^($B125+Construct-1) -> 0 | M125: 1 | N125: =IF(AND(ProjType>1,SRTSProj=1),TrSRTSPed1NBNew,0) -> 0 | O125: =IF(AND(ProjType>1,SRTSProj=1),TrSRTSPed1BNew,0) -> 0 | P125: =N125 -> 0 | Q125: =O125-N125 -> 0 | S125: =P125*JQValperMiPedBNew*MIN(TAvMiPedBSRTS,ProjLenNEW) -> 0 | T125: =Q125*JQValperMiPedBNew*MIN(TAvMiPedBSRTS,ProjLenNEW)*1/2 -> 0 | U125: =(S125-R125+T125)*(1+TTUprater)^($B125+Construct-1) -> 0 | V125: =$U125/(1+DiscRate)^($B125+Construct-1) -> 0 | X125: 1 | Y125: =U125+J125 -> 0 | Z125: =V125+K125 -> 0
B126: 20 | C126: =IF(AND(ProjType>1,SRTSProj=1),TrSRTSCyc20NBNew,0) -> 0 | D126: =IF(AND(ProjType>1,SRTSProj=1),TrSRTSCyc20BNew,0) -> 0 | E126: =C126 -> 0 | F126: =D126-C126 -> 0 | H126: =E126*JQValperMiCycBNew*ValTimeChild*MIN(TAvMiCycBSRTS,ProjLenNEW) -> 0 | I126: =F126*JQValperMiCycBNew*ValTimeChild*MIN(TAvMiCycBSRTS,ProjLenNEW)*1/2 -> 0 | J126: =((H126-G126)+(I126))*(1+TTUprater)^($B126+Construct-1) -> 0 | K126: =$J126/(1+DiscRate)^($B126+Construct-1) -> 0 | M126: 20 | N126: =IF(AND(ProjType>1,SRTSProj=1),TrSRTSPed20NBNew,0) -> 0 | O126: =IF(AND(ProjType>1,SRTSProj=1),TrSRTSPed20BNew,0) -> 0 | P126: =N126 -> 0 | Q126: =O126-N126 -> 0 | S126: =P126*JQValperMiPedBNew*MIN(TAvMiPedBSRTS,ProjLenNEW) -> 0 | T126: =Q126*JQValperMiPedBNew*MIN(TAvMiPedBSRTS,ProjLenNEW)*1/2 -> 0 | U126: =(S126-R126+T126)*(1+TTUprater)^($B126+Construct-1) -> 0 | V126: =$U126/(1+DiscRate)^($B126+Construct-1) -> 0 | X126: 20 | Y126: =U126+J126 -> 0 | Z126: =V126+K126 -> 0
B128: 1 | C128: =TREND(C$125:C$126,$B$125:$B$126,$B128) -> 0 | D128: =TREND(D$125:D$126,$B$125:$B$126,$B128) -> 0 | E128: =TREND(E$125:E$126,$B$125:$B$126,$B128) -> 0 | F128: =TREND(F$125:F$126,$B$125:$B$126,$B128) -> 0 | H128: =E128*JQValperMiCycBNew*ValTimeChild*MIN(TAvMiCycBSRTS,ProjLenNEW) -> 0 | I128: =F128*JQValperMiCycBNew*ValTimeChild*MIN(TAvMiCycBSRTS,ProjLenNEW)*1/2 -> 0 | J128: =((H128-G128)+(I128))*(1+TTUprater)^($B128+Construct-1) -> 0 | K128: =$J128/(1+DiscRate)^($B128+Construct-1) -> 0 | M128: 1 | N128: =TREND(N$125:N$126,$M$125:$M$126,$M128) -> 0 | O128: =TREND(O$125:O$126,$M$125:$M$126,$M128) -> 0 | P128: =TREND(P$125:P$126,$M$125:$M$126,$M128) -> 0 | Q128: =TREND(Q$125:Q$126,$M$125:$M$126,$M128) -> 0 | S128: =P128*JQValperMiPedBNew*MIN(TAvMiPedBSRTS,ProjLenNEW) -> 0 | T128: =Q128*JQValperMiPedBNew*MIN(TAvMiPedBSRTS,ProjLenNEW)*1/2 -> 0 | U128: =(S128-R128+T128)*(1+TTUprater)^($B128+Construct-1) -> 0 | V128: =$U128/(1+DiscRate)^($B128+Construct-1) -> 0 | X128: 1 | Y128: =U128+J128 -> 0 | Z128: 0
B129: 2 | C129: =TREND(C$125:C$126,$B$125:$B$126,$B129) -> 0 | D129: 0 | E129: 0 | F129: 0 | H129: 0 | I129: 0 | J129: 0 | K129: 0 | M129: 2 | N129: =TREND(N$125:N$126,$M$125:$M$126,$M129) -> 0 | O129: =TREND(O$125:O$126,$M$125:$M$126,$M129) -> 0 | P129: 0 | Q129: 0 | S129: 0 | T129: 0 | U129: 0 | V129: 0 | X129: 2 | Y129: 0 | Z129: 0
B130: 3 | C130: 0 | D130: 0 | E130: 0 | F130: 0 | H130: 0 | I130: 0 | J130: 0 | K130: 0 | M130: 3 | N130: =TREND(N$125:N$126,$M$125:$M$126,$M130) -> 0 | O130: 0 | P130: 0 | Q130: 0 | S130: 0 | T130: 0 | U130: 0 | V130: 0 | X130: 3 | Y130: 0 | Z130: 0
B131: 4 | C131: 0 | D131: 0 | E131: 0 | F131: 0 | H131: 0 | I131: 0 | J131: 0 | K131: 0 | M131: 4 | N131: =TREND(N$125:N$126,$M$125:$M$126,$M131) -> 0 | O131: 0 | P131: 0 | Q131: 0 | S131: 0 | T131: 0 | U131: 0 | V131: 0 | X131: 4 | Y131: 0 | Z131: 0
B132: 5 | C132: 0 | D132: 0 | E132: 0 | F132: 0 | H132: 0 | I132: 0 | J132: 0 | K132: 0 | M132: 5 | N132: 0 | O132: 0 | P132: 0 | Q132: 0 | S132: 0 | T132: 0 | U132: 0 | V132: 0 | X132: 5 | Y132: 0 | Z132: 0
B133: 6 | C133: 0 | D133: 0 | E133: 0 | F133: 0 | H133: 0 | I133: 0 | J133: 0 | K133: 0 | M133: 6 | N133: 0 | O133: 0 | P133: 0 | Q133: 0 | S133: 0 | T133: 0 | U133: 0 | V133: 0 | X133: 6 | Y133: 0 | Z133: 0
B134: 7 | C134: 0 | D134: 0 | E134: 0 | F134: 0 | H134: 0 | I134: 0 | J134: 0 | K134: 0 | M134: 7 | N134: 0 | O134: 0 | P134: 0 | Q134: 0 | S134: 0 | T134: 0 | U134: 0 | V134: 0 | X134: 7 | Y134: 0 | Z134: 0
B135: 8 | C135: 0 | D135: 0 | E135: 0 | F135: 0 | H135: 0 | I135: 0 | J135: 0 | K135: 0 | M135: 8 | N135: 0 | O135: 0 | P135: 0 | Q135: 0 | S135: 0 | T135: 0 | U135: 0 | V135: 0 | X135: 8 | Y135: 0 | Z135: 0
B136: 9 | C136: 0 | D136: 0 | E136: 0 | F136: 0 | H136: 0 | I136: 0 | J136: 0 | K136: 0 | M136: 9 | N136: 0 | O136: 0 | P136: 0 | Q136: 0 | S136: 0 | T136: 0 | U136: 0 | V136: 0 | X136: 9 | Y136: 0 | Z136: 0
B137: 10 | C137: 0 | D137: 0 | E137: 0 | F137: 0 | H137: 0 | I137: 0 | J137: 0 | K137: 0 | M137: 10 | N137: 0 | O137: 0 | P137: 0 | Q137: 0 | S137: 0 | T137: 0 | U137: 0 | V137: 0 | X137: 10 | Y137: 0 | Z137: 0
B138: 11 | C138: 0 | D138: 0 | E138: 0 | F138: 0 | H138: 0 | I138: 0 | J138: 0 | K138: 0 | M138: 11 | N138: 0 | O138: 0 | P138: 0 | Q138: 0 | S138: 0 | T138: 0 | U138: 0 | V138: 0 | X138: 11 | Y138: 0 | Z138: 0
B139: 12 | C139: 0 | D139: 0 | E139: 0 | F139: 0 | H139: 0 | I139: 0 | J139: 0 | K139: 0 | M139: 12 | N139: 0 | O139: 0 | P139: 0 | Q139: 0 | S139: 0 | T139: 0 | U139: 0 | V139: 0 | X139: 12 | Y139: 0 | Z139: 0
B140: 13 | C140: 0 | D140: 0 | E140: 0 | F140: 0 | H140: 0 | I140: 0 | J140: 0 | K140: 0 | M140: 13 | N140: 0 | O140: 0 | P140: 0 | Q140: 0 | S140: 0 | T140: 0 | U140: 0 | V140: 0 | X140: 13 | Y140: 0 | Z140: 0
B141: 14 | C141: 0 | D141: 0 | E141: 0 | F141: 0 | H141: 0 | I141: 0 | J141: 0 | K141: 0 | M141: 14 | N141: 0 | O141: 0 | P141: 0 | Q141: 0 | S141: 0 | T141: 0 | U141: 0 | V141: 0 | X141: 14 | Y141: 0 | Z141: 0
B142: 15 | C142: 0 | D142: 0 | E142: 0 | F142: 0 | H142: 0 | I142: 0 | J142: 0 | K142: 0 | M142: 15 | N142: 0 | O142: 0 | P142: 0 | Q142: 0 | S142: 0 | T142: 0 | U142: 0 | V142: 0 | X142: 15 | Y142: 0 | Z142: 0
B143: 16 | C143: 0 | D143: 0 | E143: 0 | F143: 0 | H143: 0 | I143: 0 | J143: 0 | K143: 0 | M143: 16 | N143: 0 | O143: 0 | P143: 0 | Q143: 0 | S143: 0 | T143: 0 | U143: 0 | V143: 0 | X143: 16 | Y143: 0 | Z143: 0
B144: 17 | C144: 0 | D144: 0 | E144: 0 | F144: 0 | H144: 0 | I144: 0 | J144: 0 | K144: 0 | M144: 17 | N144: 0 | O144: 0 | P144: 0 | Q144: 0 | S144: 0 | T144: 0 | U144: 0 | V144: 0 | X144: 17 | Y144: 0 | Z144: 0
B145: 18 | C145: 0 | D145: 0 | E145: 0 | F145: 0 | H145: 0 | I145: 0 | J145: 0 | K145: 0 | M145: 18 | N145: 0 | O145: 0 | P145: 0 | Q145: 0 | S145: 0 | T145: 0 | U145: 0 | V145: 0 | X145: 18 | Y145: 0 | Z145: 0
B146: 19 | C146: 0 | D146: 0 | E146: 0 | F146: 0 | H146: 0 | I146: 0 | J146: 0 | K146: 0 | M146: 19 | N146: 0 | O146: 0 | P146: 0 | Q146: 0 | S146: 0 | T146: 0 | U146: 0 | V146: 0 | X146: 19 | Y146: 0 | Z146: 0
B147: 20 | C147: 0 | D147: 0 | E147: 0 | F147: 0 | H147: 0 | I147: 0 | J147: 0 | K147: 0 | M147: 20 | N147: 0 | O147: 0 | P147: 0 | Q147: 0 | S147: 0 | T147: 0 | U147: 0 | V147: 0 | X147: 20 | Y147: 0 | Z147: 0
B149: Total | K149: =SUM(K128:K147) -> 0 | M149: Total | V149: =SUM(V128:V147) -> 0 | X149: Total | Z149: =SUM(Z128:Z147) -> 0
D152: Computation of Journey Quality Parameters - Cycling | P152: Computation of Journey Quality Parameters - Cycling
G154: Improved Facility | I154: New Facility | R154: Improved Facility | T154: New Facility
G155: Existing | H155: Build | I155: Build | R155: No Build | S155: Build | T155: Build
F156: Facility Type | G156: Percent of Facility | H156: Percent of Facility | I156: Percent of Facility | Q156: Amenities | R156: Presence / Absence | S156: Presence / Absence | T156: Presence / Absence
F157: Class I - Bike Paths, if any | G157: =IFERROR('1a) Project Info'!G35/'1a) Project Info'!$H$39,0) -> 0.1006036217 | H157: =IFERROR('1a) Project Info'!H35/'1a) Project Info'!$H$39,0) -> 0.185110664 | I157: =IFERROR('1a) Project Info'!R35/'1a) Project Info'!$R$39,0) -> 0.2808716707 | Q157: Street Lighting | R157: ='1a) Project Info'!G42 -> 1 | S157: ='1a) Project Info'!H42 -> 1 | T157: ='1a) Project Info'!R42 -> 1 | U157: Yes =1 or No=0
F158: Class II - Bike Lanes, if any | G158: =IFERROR('1a) Project Info'!G36/'1a) Project Info'!$H$39,0) -> 0.8591549296 | H158: =IFERROR('1a) Project Info'!H36/'1a) Project Info'!$H$39,0) -> 0 | I158: =IFERROR('1a) Project Info'!R36/'1a) Project Info'!$R$39,0) -> 0 | Q158: Curb Level | R158: ='1a) Project Info'!G43 -> 0 | S158: ='1a) Project Info'!H43 -> 1 | T158: ='1a) Project Info'!R43 -> 1 | U158: Yes =1 or No=0
F159: Class III - Bike Route, if any | G159: =IFERROR('1a) Project Info'!G37/'1a) Project Info'!$H$39,0) -> 0.04024144869 | H159: =IFERROR('1a) Project Info'!H37/'1a) Project Info'!$H$39,0) -> 0.02414486922 | I159: =IFERROR('1a) Project Info'!R37/'1a) Project Info'!$R$39,0) -> 0.03147699758 | Q159: Crowding | R159: ='1a) Project Info'!G44 -> 0 | S159: ='1a) Project Info'!H44 -> 1 | T159: ='1a) Project Info'!R44 -> 1 | U159: Yes =1 or No=0
F160: Class IV - Separated bikeways, cycle tracks, if any | G160: =IFERROR('1a) Project Info'!G38/'1a) Project Info'!$H$39,0) -> 0 | H160: =IFERROR('1a) Project Info'!H38/'1a) Project Info'!$H$39,0) -> 0.7907444668 | I160: =IFERROR('1a) Project Info'!R38/'1a) Project Info'!$R$39,0) -> 0.6876513317 | Q160: Pavement Evenness | R160: ='1a) Project Info'!G45 -> 0 | S160: ='1a) Project Info'!H45 -> 1 | T160: ='1a) Project Info'!R45 -> 1 | U160: Yes =1 or No=0
Q161: Information Panels | R161: ='1a) Project Info'!G46 -> 0 | S161: ='1a) Project Info'!H46 -> 0 | T161: ='1a) Project Info'!R46 -> 0 | U161: Yes =1 or No=0
Q162: Benches | R162: ='1a) Project Info'!G47 -> 0 | S162: ='1a) Project Info'!H47 -> 1 | T162: ='1a) Project Info'!R47 -> 1 | U162: Yes =1 or No=0
F163: Facility Preference Factor (Pro-rated) - New Segment | G163: =SUMPRODUCT('Journey Quality'!G157:G160,JQValCyc) -> 0.5153521127 | H163: =SUMPRODUCT('Journey Quality'!H157:H160,JQValCyc) -> 0.5151911469 | I163: =SUMPRODUCT('Journey Quality'!I157:I160,JQValCyc) -> 0.5260048426 | J163: miles of road / miles of facility | Q163: Directional Signage | R163: ='1a) Project Info'!G48 -> 0 | S163: ='1a) Project Info'!H48 -> 1 | T163: ='1a) Project Info'!R48 -> 1 | U163: Yes =1 or No=0
F165: Journey Quality per Avg Trip Distance | G165: =IF(OR(ProjType=1,ProjType=3),((1-'Journey Quality'!G$163)/CycSpeed),0) -> 0.05570665372 | H165: =IF(OR(ProjType=1,ProjType=3),((1-'Journey Quality'!H$163)/CycSpeed),0) -> 0.05572515553 | I165: =IF(ProjType>1,((1-'Journey Quality'!$I$163)/CycSpeed),0) -> 0.054482202 | J165: hrs / mile of avg trip distance | Q165: All measures | R165: =IF(OR(ProjType=1,ProjType=3),SUMPRODUCT(R157:R163,JQValPed),0) -> 0.11 | S165: =IF(OR(ProjType=1,ProjType=3),SUMPRODUCT(S157:S163,JQValPed),0) -> 0.303 | T165: =IF(ProjType>1,SUMPRODUCT(T157:T163,JQValPed),0) -> 0.303 | U165: Value ($/Mi)

Sheet Journey Quality Combined Ben
F2: CYCLING BENEFITS | Q2: PEDESTRIAN BENEFITS | AB2: Total Benefits
B3: Existing Facility | M3: Existing Facility | X3: Existing Facility
C5: AVERAGE ANNUAL VOLUME | G5: JOURNEY QUALITY VALUE | N5: ANNUAL PERSON-MILES | R5: JOURNEY QUALITY VALUE | Y5: AVERAGE ANNUAL VOLUME | AC5: JOURNEY QUALITY VALUE
C6: (trips/yr.) | G6: ($) | N6: (trip-miles/yr.) | R6: ($) | Y6: (trips/yr.) | AC6: ($)
B7: Year | C7: Total Trips, Existing Facility (Baseline) | D7: Total Trips, Improved Facility | E7: Existing Trips, Improved Facility | F7: Induced Trips, Improved Facility | G7: Existing Trip-Miles, Existing Facility | H7: Existing Trip-Miles, Improved Facility | I7: Induced Trip-Miles, Improved Facility | J7: Constant Dollars | K7: Present Value | M7: Year | N7: Total Trips, Existing Facility (Baseline) | O7: Total Trips, Improved Facility | P7: Existing Trips, Improved Facility | Q7: Induced Trips, Improved Facility | R7: Existing Trip-Miles, Existing Facility | S7: Existing Trip-Miles, Improved Facility | T7: Induced Trip-Miles, Improved Facility | U7: Constant Dollars | V7: Present Value | X7: Year | Y7: Total Trips, Existing Facility (Baseline) | Z7: Total Trips, Improved Facility | AA7: Existing Trips, Improved Facility | AB7: Induced Trips, Improved Facility | AC7: Existing Trip-Miles, Existing Facility | AD7: Existing Trip-Miles, Improved Facility | AE7: Induced Trip-Miles, Improved Facility | AF7: Constant Dollars | AG7: Present Value
B8: 1 | C8: ='Journey Quality'!C23 -> 188316.3942 | D8: ='Journey Quality'!D23 -> 222165.6107 | E8: ='Journey Quality'!E23 -> 188316.3942 | F8: ='Journey Quality'!F23 -> 33849.2165 | G8: ='Journey Quality'!G23 -> 389175.6845 | H8: ='Journey Quality'!H23 -> 389304.9412 | I8: ='Journey Quality'!I23 -> 11.61671855 | J8: ='Journey Quality'!J23 -> 140.8733913 | K8: ='Journey Quality'!K23 -> 123.0442757 | M8: ='Journey Quality'!M23 -> 1 | N8: ='Journey Quality'!N23 -> 428519.3991 | O8: ='Journey Quality'!O23 -> 428519.3991 | P8: ='Journey Quality'!P23 -> 428519.3991 | Q8: ='Journey Quality'!Q23 -> 0 | R8: ='Journey Quality'!R23 -> 32053.25105 | S8: ='Journey Quality'!S23 -> 88292.13698 | T8: ='Journey Quality'!T23 -> 0 | U8: ='Journey Quality'!U23 -> 56238.88593 | V8: ='Journey Quality'!V23 -> 49121.22101 | X8: 1 | Y8: =C8+N8 -> 616835.7932 | Z8: 650685.0097 | AA8: 616835.7932 | AB8: 33849.2165 | AC8: 421228.9356 | AD8: 477597.0782 | AE8: 11.61671855 | AF8: 56379.75932 | AG8: 49244.26528
B9: 20 | C9: ='Journey Quality'!C24 -> 293869.4657 | D9: ='Journey Quality'!D24 -> 1810632.108 | E9: ='Journey Quality'!E24 -> 293869.4657 | F9: ='Journey Quality'!F24 -> 1516762.642 | G9: ='Journey Quality'!G24 -> 607312.2364 | H9: ='Journey Quality'!H24 -> 607513.9426 | I9: ='Journey Quality'!I24 -> 520.5380374 | J9: ='Journey Quality'!J24 -> 722.2442645 | K9: ='Journey Quality'!K24 -> 174.4314417 | M9: ='Journey Quality'!M24 -> 20 | N9: ='Journey Quality'!N24 -> 668708.4649 | O9: ='Journey Quality'!O24 -> 668708.4649 | P9: ='Journey Quality'!P24 -> 668708.4649 | Q9: ='Journey Quality'!Q24 -> 0 | R9: ='Journey Quality'!R24 -> 50019.39318 | S9: ='Journey Quality'!S24 -> 137780.6921 | T9: ='Journey Quality'!T24 -> 0 | U9: ='Journey Quality'!U24 -> 87761.29893 | V9: ='Journey Quality'!V24 -> 21195.5022 | X9: 20 | Y9: 962577.9306 | Z9: 2479340.573 | AA9: 962577.9306 | AB9: 1516762.642 | AC9: 657331.6296 | AD9: 745294.6347 | AE9: 520.5380374 | AF9: 88483.5432 | AG9: 21369.93364
B11: 1 | C11: ='Journey Quality'!C26 -> 188316.3942 | D11: ='Journey Quality'!D26 -> 222165.6107 | E11: ='Journey Quality'!E26 -> 188316.3942 | F11: ='Journey Quality'!F26 -> 33849.2165 | G11: ='Journey Quality'!G26 -> 389175.6845 | H11: ='Journey Quality'!H26 -> 389304.9412 | I11: ='Journey Quality'!I26 -> 11.61671855 | J11: ='Journey Quality'!J26 -> 140.8733913 | K11: ='Journey Quality'!K26 -> 123.0442757 | M11: ='Journey Quality'!M26 -> 1 | N11: ='Journey Quality'!N26 -> 428519.3991 | O11: ='Journey Quality'!O26 -> 428519.3991 | P11: ='Journey Quality'!P26 -> 428519.3991 | Q11: ='Journey Quality'!Q26 -> 0 | R11: ='Journey Quality'!R26 -> 32053.25105 | S11: ='Journey Quality'!S26 -> 88292.13698 | T11: ='Journey Quality'!T26 -> 0 | U11: ='Journey Quality'!U26 -> 56238.88593 | V11: ='Journey Quality'!V26 -> 49121.22101 | X11: 1 | Y11: =C11+N11 -> 616835.7932 | Z11: =D11+O11 -> 650685.0097 | AA11: =E11+P11 -> 616835.7932 | AB11: =F11+Q11 -> 33849.2165 | AC11: =G11+R11 -> 421228.9356 | AD11: =H11+S11 -> 477597.0782 | AE11: =I11+T11 -> 11.61671855 | AF11: =J11+U11 -> 56379.75932 | AG11: =K11+V11 -> 49244.26528
B12: 2 | C12: ='Journey Quality'!C27 -> 193871.819 | D12: ='Journey Quality'!D27 -> 305769.1105 | E12: ='Journey Quality'!E27 -> 193871.819 | F12: ='Journey Quality'!F27 -> 111897.2915 | G12: ='Journey Quality'!G27 -> 400656.5557 | H12: ='Journey Quality'!H27 -> 400789.6255 | I12: ='Journey Quality'!I27 -> 38.40205112 | J12: ='Journey Quality'!J27 -> 171.4718583 | K12: ='Journey Quality'!K27 -> 139.9721139 | M12: ='Journey Quality'!M27 -> 2 | N12: ='Journey Quality'!N27 -> 441160.9288 | O12: ='Journey Quality'!O27 -> 441160.9288 | P12: ='Journey Quality'!P27 -> 441160.9288 | Q12: ='Journey Quality'!Q27 -> 0 | R12: ='Journey Quality'!R27 -> 32998.83748 | S12: ='Journey Quality'!S27 -> 90896.79778 | T12: ='Journey Quality'!T27 -> 0 | U12: ='Journey Quality'!U27 -> 57897.9603 | V12: ='Journey Quality'!V27 -> 47261.98207 | X12: 2 | Y12: 635032.7478 | Z12: 746930.0394 | AA12: 635032.7478 | AB12: 111897.2915 | AC12: 433655.3932 | AD12: 491686.4233 | AE12: 38.40205112 | AF12: 58069.43216 | AG12: 47401.95418
B13: 3 | C13: ='Journey Quality'!C28 -> 199427.2438 | D13: ='Journey Quality'!D28 -> 389372.6104 | E13: ='Journey Quality'!E28 -> 199427.2438 | F13: ='Journey Quality'!F28 -> 189945.3666 | G13: ='Journey Quality'!G28 -> 412137.4268 | H13: ='Journey Quality'!H28 -> 412274.3098 | I13: ='Journey Quality'!I28 -> 65.1873837 | J13: ='Journey Quality'!J28 -> 202.0703253 | K13: ='Journey Quality'!K28 -> 154.1584837 | M13: ='Journey Quality'!M28 -> 3 | N13: ='Journey Quality'!N28 -> 453802.4586 | O13: ='Journey Quality'!O28 -> 453802.4586 | P13: ='Journey Quality'!P28 -> 453802.4586 | Q13: ='Journey Quality'!Q28 -> 0 | R13: ='Journey Quality'!R28 -> 33944.42391 | S13: ='Journey Quality'!S28 -> 93501.45858 | T13: ='Journey Quality'!T28 -> 0 | U13: ='Journey Quality'!U28 -> 59557.03467 | V13: ='Journey Quality'!V28 -> 45435.77659 | X13: 3 | Y13: 653229.7024 | Z13: 843175.069 | AA13: 653229.7024 | AB13: 189945.3666 | AC13: 446081.8507 | AD13: 505775.7683 | AE13: 65.1873837 | AF13: 59759.105 | AG13: 45589.93508
B14: 4 | C14: ='Journey Quality'!C29 -> 204982.6686 | D14: ='Journey Quality'!D29 -> 472976.1102 | E14: ='Journey Quality'!E29 -> 204982.6686 | F14: ='Journey Quality'!F29 -> 267993.4416 | G14: ='Journey Quality'!G29 -> 423618.298 | H14: ='Journey Quality'!H29 -> 423758.9941 | I14: ='Journey Quality'!I29 -> 91.97271627 | J14: ='Journey Quality'!J29 -> 232.6687923 | K14: ='Journey Quality'!K29 -> 165.8896333 | M14: ='Journey Quality'!M29 -> 4 | N14: ='Journey Quality'!N29 -> 466443.9884 | O14: ='Journey Quality'!O29 -> 466443.9884 | P14: ='Journey Quality'!P29 -> 466443.9884 | Q14: ='Journey Quality'!Q29 -> 0 | R14: ='Journey Quality'!R29 -> 34890.01033 | S14: ='Journey Quality'!S29 -> 96106.11937 | T14: ='Journey Quality'!T29 -> 0 | U14: ='Journey Quality'!U29 -> 61216.10904 | V14: ='Journey Quality'!V29 -> 43646.23971 | X14: 4 | Y14: 671426.657 | Z14: 939420.0986 | AA14: 671426.657 | AB14: 267993.4416 | AC14: 458508.3083 | AD14: 519865.1134 | AE14: 91.97271627 | AF14: 61448.77783 | AG14: 43812.12934
B15: 5 | C15: ='Journey Quality'!C30 -> 210538.0934 | D15: ='Journey Quality'!D30 -> 556579.6101 | E15: ='Journey Quality'!E30 -> 210538.0934 | F15: ='Journey Quality'!F30 -> 346041.5167 | G15: ='Journey Quality'!G30 -> 435099.1691 | H15: ='Journey Quality'!H30 -> 435243.6783 | I15: ='Journey Quality'!I30 -> 118.7580488 | J15: ='Journey Quality'!J30 -> 263.2672593 | K15: ='Journey Quality'!K30 -> 175.426091 | M15: ='Journey Quality'!M30 -> 5 | N15: ='Journey Quality'!N30 -> 479085.5182 | O15: ='Journey Quality'!O30 -> 479085.5182 | P15: ='Journey Quality'!P30 -> 479085.5182 | Q15: ='Journey Quality'!Q30 -> 0 | R15: ='Journey Quality'!R30 -> 35835.59676 | S15: ='Journey Quality'!S30 -> 98710.78017 | T15: ='Journey Quality'!T30 -> 0 | U15: ='Journey Quality'!U30 -> 62875.18341 | V15: ='Journey Quality'!V30 -> 41896.38953 | X15: 5 | Y15: 689623.6116 | Z15: 1035665.128 | AA15: 689623.6116 | AB15: 346041.5167 | AC15: 470934.7659 | AD15: 533954.4585 | AE15: 118.7580488 | AF15: 63138.45067 | AG15: 42071.81563
B16: 6 | C16: ='Journey Quality'!C31 -> 216093.5183 | D16: ='Journey Quality'!D31 -> 640183.1099 | E16: ='Journey Quality'!E31 -> 216093.5183 | F16: ='Journey Quality'!F31 -> 424089.5917 | G16: ='Journey Quality'!G31 -> 446580.0403 | H16: ='Journey Quality'!H31 -> 446728.3626 | I16: ='Journey Quality'!I31 -> 145.5433814 | J16: ='Journey Quality'!J31 -> 293.8657263 | K16: ='Journey Quality'!K31 -> 183.0048052 | M16: ='Journey Quality'!M31 -> 6 | N16: ='Journey Quality'!N31 -> 491727.048 | O16: ='Journey Quality'!O31 -> 491727.048 | P16: ='Journey Quality'!P31 -> 491727.048 | Q16: ='Journey Quality'!Q31 -> 0 | R16: ='Journey Quality'!R31 -> 36781.18319 | S16: ='Journey Quality'!S31 -> 101315.441 | T16: ='Journey Quality'!T31 -> 0 | U16: ='Journey Quality'!U31 -> 64534.25778 | V16: ='Journey Quality'!V31 -> 40188.69237 | X16: 6 | Y16: 707820.5662 | Z16: 1131910.158 | AA16: 707820.5662 | AB16: 424089.5917 | AC16: 483361.2235 | AD16: 548043.8036 | AE16: 145.5433814 | AF16: 64828.1235 | AG16: 40371.69718
B17: 7 | C17: ='Journey Quality'!C32 -> 221648.9431 | D17: ='Journey Quality'!D32 -> 723786.6098 | E17: ='Journey Quality'!E32 -> 221648.9431 | F17: ='Journey Quality'!F32 -> 502137.6667 | G17: ='Journey Quality'!G32 -> 458060.9114 | H17: ='Journey Quality'!H32 -> 458213.0469 | I17: ='Journey Quality'!I32 -> 172.328714 | J17: ='Journey Quality'!J32 -> 324.4641934 | K17: ='Journey Quality'!K32 -> 188.8411146 | M17: ='Journey Quality'!M32 -> 7 | N17: ='Journey Quality'!N32 -> 504368.5778 | O17: ='Journey Quality'!O32 -> 504368.5778 | P17: ='Journey Quality'!P32 -> 504368.5778 | Q17: ='Journey Quality'!Q32 -> 0 | R17: ='Journey Quality'!R32 -> 37726.76962 | S17: ='Journey Quality'!S32 -> 103920.1018 | T17: ='Journey Quality'!T32 -> 0 | U17: ='Journey Quality'!U32 -> 66193.33214 | V17: ='Journey Quality'!V32 -> 38525.12197 | X17: 7 | Y17: 726017.5208 | Z17: 1228155.188 | AA17: 726017.5208 | AB17: 502137.6667 | AC17: 495787.681 | AD17: 562133.1487 | AE17: 172.328714 | AF17: 66517.79634 | AG17: 38713.96308
B18: 8 | C18: ='Journey Quality'!C33 -> 227204.3679 | D18: ='Journey Quality'!D33 -> 807390.1097 | E18: ='Journey Quality'!E33 -> 227204.3679 | F18: ='Journey Quality'!F33 -> 580185.7418 | G18: ='Journey Quality'!G33 -> 469541.7826 | H18: ='Journey Quality'!H33 -> 469697.7312 | I18: ='Journey Quality'!I33 -> 199.1140466 | J18: ='Journey Quality'!J33 -> 355.0626604 | K18: ='Journey Quality'!K33 -> 193.1305617 | M18: ='Journey Quality'!M33 -> 8 | N18: ='Journey Quality'!N33 -> 517010.1075 | O18: ='Journey Quality'!O33 -> 517010.1075 | P18: ='Journey Quality'!P33 -> 517010.1075 | Q18: ='Journey Quality'!Q33 -> 0 | R18: ='Journey Quality'!R33 -> 38672.35604 | S18: ='Journey Quality'!S33 -> 106524.7626 | T18: ='Journey Quality'!T33 -> 0 | U18: ='Journey Quality'!U33 -> 67852.40651 | V18: ='Journey Quality'!V33 -> 36907.21342 | X18: 8 | Y18: 744214.4754 | Z18: 1324400.217 | AA18: 744214.4754 | AB18: 580185.7418 | AC18: 508214.1386 | AD18: 576222.4938 | AE18: 199.1140466 | AF18: 68207.46917 | AG18: 37100.34398
B19: 9 | C19: ='Journey Quality'!C34 -> 232759.7927 | D19: ='Journey Quality'!D34 -> 890993.6095 | E19: ='Journey Quality'!E34 -> 232759.7927 | F19: ='Journey Quality'!F34 -> 658233.8168 | G19: ='Journey Quality'!G34 -> 481022.6537 | H19: ='Journey Quality'!H34 -> 481182.4155 | I19: ='Journey Quality'!I34 -> 225.8993791 | J19: ='Journey Quality'!J34 -> 385.6611274 | K19: ='Journey Quality'!K34 -> 196.0505611 | M19: ='Journey Quality'!M34 -> 9 | N19: ='Journey Quality'!N34 -> 529651.6373 | O19: ='Journey Quality'!O34 -> 529651.6373 | P19: ='Journey Quality'!P34 -> 529651.6373 | Q19: ='Journey Quality'!Q34 -> 0 | R19: ='Journey Quality'!R34 -> 39617.94247 | S19: ='Journey Quality'!S34 -> 109129.4234 | T19: ='Journey Quality'!T34 -> 0 | U19: ='Journey Quality'!U34 -> 69511.48088 | V19: ='Journey Quality'!V34 -> 35336.1121 | X19: 9 | Y19: 762411.43 | Z19: 1420645.247 | AA19: 762411.43 | AB19: 658233.8168 | AC19: 520640.5962 | AD19: 590311.8388 | AE19: 225.8993791 | AF19: 69897.14201 | AG19: 35532.16266
B20: 10 | C20: ='Journey Quality'!C35 -> 238315.2175 | D20: ='Journey Quality'!D35 -> 974597.1094 | E20: ='Journey Quality'!E35 -> 238315.2175 | F20: ='Journey Quality'!F35 -> 736281.8918 | G20: ='Journey Quality'!G35 -> 492503.5249 | H20: ='Journey Quality'!H35 -> 492667.0998 | I20: ='Journey Quality'!I35 -> 252.6847117 | J20: ='Journey Quality'!J35 -> 416.2595944 | K20: ='Journey Quality'!K35 -> 197.7619347 | M20: ='Journey Quality'!M35 -> 10 | N20: ='Journey Quality'!N35 -> 542293.1671 | O20: ='Journey Quality'!O35 -> 542293.1671 | P20: ='Journey Quality'!P35 -> 542293.1671 | Q20: ='Journey Quality'!Q35 -> 0 | R20: ='Journey Quality'!R35 -> 40563.5289 | S20: ='Journey Quality'!S35 -> 111734.0841 | T20: ='Journey Quality'!T35 -> 0 | U20: ='Journey Quality'!U35 -> 71170.55525 | V20: ='Journey Quality'!V35 -> 33812.61811 | X20: 10 | Y20: 780608.3846 | Z20: 1516890.276 | AA20: 780608.3846 | AB20: 736281.8918 | AC20: 533067.0538 | AD20: 604401.1839 | AE20: 252.6847117 | AF20: 71586.81484 | AG20: 34010.38005
B21: 11 | C21: ='Journey Quality'!C36 -> 243870.6424 | D21: ='Journey Quality'!D36 -> 1058200.609 | E21: ='Journey Quality'!E36 -> 243870.6424 | F21: ='Journey Quality'!F36 -> 814329.9669 | G21: ='Journey Quality'!G36 -> 503984.396 | H21: ='Journey Quality'!H36 -> 504151.784 | I21: ='Journey Quality'!I36 -> 279.4700443 | J21: ='Journey Quality'!J36 -> 446.8580614 | K21: ='Journey Quality'!K36 -> 198.4103233 | M21: ='Journey Quality'!M36 -> 11 | N21: ='Journey Quality'!N36 -> 554934.6969 | O21: ='Journey Quality'!O36 -> 554934.6969 | P21: ='Journey Quality'!P36 -> 554934.6969 | Q21: ='Journey Quality'!Q36 -> 0 | R21: ='Journey Quality'!R36 -> 41509.11533 | S21: ='Journey Quality'!S36 -> 114338.7449 | T21: ='Journey Quality'!T36 -> 0 | U21: ='Journey Quality'!U36 -> 72829.62962 | V21: ='Journey Quality'!V36 -> 32337.22654 | X21: 11 | Y21: 798805.3392 | Z21: 1613135.306 | AA21: 798805.3392 | AB21: 814329.9669 | AC21: 545493.5114 | AD21: 618490.529 | AE21: 279.4700443 | AF21: 73276.48768 | AG21: 32535.63686
B22: 12 | C22: ='Journey Quality'!C37 -> 249426.0672 | D22: ='Journey Quality'!D37 -> 1141804.109 | E22: ='Journey Quality'!E37 -> 249426.0672 | F22: ='Journey Quality'!F37 -> 892378.0419 | G22: ='Journey Quality'!G37 -> 515465.2672 | H22: ='Journey Quality'!H37 -> 515636.4683 | I22: ='Journey Quality'!I37 -> 306.2553769 | J22: ='Journey Quality'!J37 -> 477.4565284 | K22: ='Journey Quality'!K37 -> 198.1274847 | M22: ='Journey Quality'!M37 -> 12 | N22: ='Journey Quality'!N37 -> 567576.2267 | O22: ='Journey Quality'!O37 -> 567576.2267 | P22: ='Journey Quality'!P37 -> 567576.2267 | Q22: ='Journey Quality'!Q37 -> 0 | R22: ='Journey Quality'!R37 -> 42454.70175 | S22: ='Journey Quality'!S37 -> 116943.4057 | T22: ='Journey Quality'!T37 -> 0 | U22: ='Journey Quality'!U37 -> 74488.70399 | V22: ='Journey Quality'!V37 -> 30910.16392 | X22: 12 | Y22: 817002.2938 | Z22: 1709380.336 | AA22: 817002.2938 | AB22: 892378.0419 | AC22: 557919.9689 | AD22: 632579.8741 | AE22: 306.2553769 | AF22: 74966.16052 | AG22: 31108.29141
B23: 13 | C23: ='Journey Quality'!C38 -> 254981.492 | D23: ='Journey Quality'!D38 -> 1225407.609 | E23: ='Journey Quality'!E38 -> 254981.492 | F23: ='Journey Quality'!F38 -> 970426.117 | G23: ='Journey Quality'!G38 -> 526946.1383 | H23: ='Journey Quality'!H38 -> 527121.1526 | I23: ='Journey Quality'!I38 -> 333.0407094 | J23: ='Journey Quality'!J38 -> 508.0549954 | K23: ='Journey Quality'!K38 -> 197.0324866 | M23: ='Journey Quality'!M38 -> 13 | N23: ='Journey Quality'!N38 -> 580217.7564 | O23: ='Journey Quality'!O38 -> 580217.7564 | P23: ='Journey Quality'!P38 -> 580217.7564 | Q23: ='Journey Quality'!Q38 -> 0 | R23: ='Journey Quality'!R38 -> 43400.28818 | S23: ='Journey Quality'!S38 -> 119548.0665 | T23: ='Journey Quality'!T38 -> 0 | U23: ='Journey Quality'!U38 -> 76147.77836 | V23: ='Journey Quality'!V38 -> 29531.42131 | X23: 13 | Y23: 835199.2484 | Z23: 1805625.365 | AA23: 835199.2484 | AB23: 970426.117 | AC23: 570346.4265 | AD23: 646669.2192 | AE23: 333.0407094 | AF23: 76655.83335 | AG23: 29728.4538
B24: 14 | C24: ='Journey Quality'!C39 -> 260536.9168 | D24: ='Journey Quality'!D39 -> 1309011.109 | E24: ='Journey Quality'!E39 -> 260536.9168 | F24: ='Journey Quality'!F39 -> 1048474.192 | G24: ='Journey Quality'!G39 -> 538427.0095 | H24: ='Journey Quality'!H39 -> 538605.8369 | I24: ='Journey Quality'!I39 -> 359.826042 | J24: ='Journey Quality'!J39 -> 538.6534624 | K24: ='Journey Quality'!K39 -> 195.2328034 | M24: ='Journey Quality'!M39 -> 14 | N24: ='Journey Quality'!N39 -> 592859.2862 | O24: ='Journey Quality'!O39 -> 592859.2862 | P24: ='Journey Quality'!P39 -> 592859.2862 | Q24: ='Journey Quality'!Q39 -> 0 | R24: ='Journey Quality'!R39 -> 44345.87461 | S24: ='Journey Quality'!S39 -> 122152.7273 | T24: ='Journey Quality'!T39 -> 0 | U24: ='Journey Quality'!U39 -> 77806.85272 | V24: ='Journey Quality'!V39 -> 28200.78407 | X24: 14 | Y24: 853396.203 | Z24: 1901870.395 | AA24: 853396.203 | AB24: 1048474.192 | AC24: 582772.8841 | AD24: 660758.5642 | AE24: 359.826042 | AF24: 78345.50619 | AG24: 28396.01687
B25: 15 | C25: ='Journey Quality'!C40 -> 266092.3416 | D25: ='Journey Quality'!D40 -> 1392614.609 | E25: ='Journey Quality'!E40 -> 266092.3416 | F25: ='Journey Quality'!F40 -> 1126522.267 | G25: ='Journey Quality'!G40 -> 549907.8806 | H25: ='Journey Quality'!H40 -> 550090.5212 | I25: ='Journey Quality'!I40 -> 386.6113746 | J25: ='Journey Quality'!J40 -> 569.2519294 | K25: ='Journey Quality'!K40 -> 192.8253234 | M25: ='Journey Quality'!M40 -> 15 | N25: ='Journey Quality'!N40 -> 605500.816 | O25: ='Journey Quality'!O40 -> 605500.816 | P25: ='Journey Quality'!P40 -> 605500.816 | Q25: ='Journey Quality'!Q40 -> 0 | R25: ='Journey Quality'!R40 -> 45291.46104 | S25: ='Journey Quality'!S40 -> 124757.3881 | T25: ='Journey Quality'!T40 -> 0 | U25: ='Journey Quality'!U40 -> 79465.92709 | V25: ='Journey Quality'!V40 -> 26917.85885 | X25: 15 | Y25: 871593.1576 | Z25: 1998115.425 | AA25: 871593.1576 | AB25: 1126522.267 | AC25: 595199.3417 | AD25: 674847.9093 | AE25: 386.6113746 | AF25: 80035.17902 | AG25: 27110.68418
B26: 16 | C26: ='Journey Quality'!C41 -> 271647.7665 | D26: ='Journey Quality'!D41 -> 1476218.109 | E26: ='Journey Quality'!E41 -> 271647.7665 | F26: ='Journey Quality'!F41 -> 1204570.342 | G26: ='Journey Quality'!G41 -> 561388.7518 | H26: ='Journey Quality'!H41 -> 561575.2055 | I26: ='Journey Quality'!I41 -> 413.3967071 | J26: ='Journey Quality'!J41 -> 599.8503964 | K26: ='Journey Quality'!K41 -> 189.8972736 | M26: ='Journey Quality'!M41 -> 16 | N26: ='Journey Quality'!N41 -> 618142.3458 | O26: ='Journey Quality'!O41 -> 618142.3458 | P26: ='Journey Quality'!P41 -> 618142.3458 | Q26: ='Journey Quality'!Q41 -> 0 | R26: ='Journey Quality'!R41 -> 46237.04746 | S26: ='Journey Quality'!S41 -> 127362.0489 | T26: ='Journey Quality'!T41 -> 0 | U26: ='Journey Quality'!U41 -> 81125.00146 | V26: ='Journey Quality'!V41 -> 25682.09789 | X26: 16 | Y26: 889790.1122 | Z26: 2094360.454 | AA26: 889790.1122 | AB26: 1204570.342 | AC26: 607625.7992 | AD26: 688937.2544 | AE26: 413.3967071 | AF26: 81724.85186 | AG26: 25871.99516
B27: 17 | C27: ='Journey Quality'!C42 -> 277203.1913 | D27: ='Journey Quality'!D42 -> 1559821.608 | E27: ='Journey Quality'!E42 -> 277203.1913 | F27: ='Journey Quality'!F42 -> 1282618.417 | G27: ='Journey Quality'!G42 -> 572869.6229 | H27: ='Journey Quality'!H42 -> 573059.8898 | I27: ='Journey Quality'!I42 -> 440.1820397 | J27: ='Journey Quality'!J42 -> 630.4488635 | K27: ='Journey Quality'!K42 -> 186.5270698 | M27: ='Journey Quality'!M42 -> 17 | N27: ='Journey Quality'!N42 -> 630783.8756 | O27: ='Journey Quality'!O42 -> 630783.8756 | P27: ='Journey Quality'!P42 -> 630783.8756 | Q27: ='Journey Quality'!Q42 -> 0 | R27: ='Journey Quality'!R42 -> 47182.63389 | S27: ='Journey Quality'!S42 -> 129966.7097 | T27: ='Journey Quality'!T42 -> 0 | U27: ='Journey Quality'!U42 -> 82784.07583 | V27: ='Journey Quality'!V42 -> 24492.82088 | X27: 17 | Y27: 907987.0668 | Z27: 2190605.484 | AA27: 907987.0668 | AB27: 1282618.417 | AC27: 620052.2568 | AD27: 703026.5995 | AE27: 440.1820397 | AF27: 83414.52469 | AG27: 24679.34795
B28: 18 | C28: ='Journey Quality'!C43 -> 282758.6161 | D28: ='Journey Quality'!D43 -> 1643425.108 | E28: ='Journey Quality'!E43 -> 282758.6161 | F28: ='Journey Quality'!F43 -> 1360666.492 | G28: ='Journey Quality'!G43 -> 584350.4941 | H28: ='Journey Quality'!H43 -> 584544.574 | I28: ='Journey Quality'!I43 -> 466.9673723 | J28: ='Journey Quality'!J43 -> 661.0473305 | K28: ='Journey Quality'!K43 -> 182.7850954 | M28: ='Journey Quality'!M43 -> 18 | N28: ='Journey Quality'!N43 -> 643425.4053 | O28: ='Journey Quality'!O43 -> 643425.4053 | P28: ='Journey Quality'!P43 -> 643425.4053 | Q28: ='Journey Quality'!Q43 -> 0 | R28: ='Journey Quality'!R43 -> 48128.22032 | S28: ='Journey Quality'!S43 -> 132571.3705 | T28: ='Journey Quality'!T43 -> 0 | U28: ='Journey Quality'!U43 -> 84443.1502 | V28: ='Journey Quality'!V43 -> 23349.2347 | X28: 18 | Y28: 926184.0214 | Z28: 2286850.514 | AA28: 926184.0214 | AB28: 1360666.492 | AC28: 632478.7144 | AD28: 717115.9446 | AE28: 466.9673723 | AF28: 85104.19753 | AG28: 23532.01979
B29: 19 | C29: ='Journey Quality'!C44 -> 288314.0409 | D29: ='Journey Quality'!D44 -> 1727028.608 | E29: ='Journey Quality'!E44 -> 288314.0409 | F29: ='Journey Quality'!F44 -> 1438714.567 | G29: ='Journey Quality'!G44 -> 595831.3652 | H29: ='Journey Quality'!H44 -> 596029.2583 | I29: ='Journey Quality'!I44 -> 493.7527049 | J29: ='Journey Quality'!J44 -> 691.6457975 | K29: ='Journey Quality'!K44 -> 178.7344173 | M29: ='Journey Quality'!M44 -> 19 | N29: ='Journey Quality'!N44 -> 656066.9351 | O29: ='Journey Quality'!O44 -> 656066.9351 | P29: ='Journey Quality'!P44 -> 656066.9351 | Q29: ='Journey Quality'!Q44 -> 0 | R29: ='Journey Quality'!R44 -> 49073.80675 | S29: ='Journey Quality'!S44 -> 135176.0313 | T29: ='Journey Quality'!T44 -> 0 | U29: ='Journey Quality'!U44 -> 86102.22457 | V29: ='Journey Quality'!V44 -> 22250.45101 | X29: 19 | Y29: 944380.976 | Z29: 2383095.543 | AA29: 944380.976 | AB29: 1438714.567 | AC29: 644905.172 | AD29: 731205.2896 | AE29: 493.7527049 | AF29: 86793.87036 | AG29: 22429.18543
B30: 20 | C30: ='Journey Quality'!C45 -> 293869.4657 | D30: ='Journey Quality'!D45 -> 1810632.108 | E30: ='Journey Quality'!E45 -> 293869.4657 | F30: ='Journey Quality'!F45 -> 1516762.642 | G30: ='Journey Quality'!G45 -> 607312.2364 | H30: ='Journey Quality'!H45 -> 607513.9426 | I30: ='Journey Quality'!I45 -> 520.5380374 | J30: ='Journey Quality'!J45 -> 722.2442645 | K30: ='Journey Quality'!K45 -> 174.4314417 | M30: ='Journey Quality'!M45 -> 20 | N30: ='Journey Quality'!N45 -> 668708.4649 | O30: ='Journey Quality'!O45 -> 668708.4649 | P30: ='Journey Quality'!P45 -> 668708.4649 | Q30: ='Journey Quality'!Q45 -> 0 | R30: ='Journey Quality'!R45 -> 50019.39318 | S30: ='Journey Quality'!S45 -> 137780.6921 | T30: ='Journey Quality'!T45 -> 0 | U30: ='Journey Quality'!U45 -> 87761.29893 | V30: ='Journey Quality'!V45 -> 21195.5022 | X30: 20 | Y30: 962577.9306 | Z30: 2479340.573 | AA30: 962577.9306 | AB30: 1516762.642 | AC30: 657331.6296 | AD30: 745294.6347 | AE30: 520.5380374 | AF30: 88483.5432 | AG30: 21369.93364
B32: Total | K32: ='Journey Quality'!K47 -> 3611.283294 | M32: ='Journey Quality'!M47 -> Total | N32: ='Journey Quality'!N47 -> 0 | O32: ='Journey Quality'!O47 -> 0 | P32: ='Journey Quality'!P47 -> 0 | Q32: ='Journey Quality'!Q47 -> 0 | R32: ='Journey Quality'!R47 -> 0 | S32: ='Journey Quality'!S47 -> 0 | T32: ='Journey Quality'!T47 -> 0 | U32: ='Journey Quality'!U47 -> 0 | V32: ='Journey Quality'!V47 -> 676998.9283 | X32: Total | AG32: =SUM(AG11:AG30) -> 680610.2116
B35: New Facility | M35: New Facility | X35: New Facility
C37: AVERAGE ANNUAL VOLUME | G37: JOURNEY QUALITY VALUE | N37: ANNUAL PERSON-TRIPS | R37: JOURNEY QUALITY VALUE | Y37: ANNUAL PERSON-TRIPS | AC37: JOURNEY QUALITY VALUE
C38: (trips/yr.) | G38: ($) | N38: (trips/yr.) | R38: ($) | Y38: (trips/yr.) | AC38: ($)
B39: Year | C39: Total Trips, No Facility (Baseline) | D39: Total Trips, New Facility | E39: Existing Trips, New Facility | F39: Induced Trips, New Facility | H39: Existing Trips, New Facility | I39: Induced Trips, New Facility | J39: Constant Dollars | K39: Present Value | M39: Year | N39: Total Trips, No Facility (Baseline) | O39: Total Trips, New Facility | P39: Existing Trips, New Facility | Q39: Induced Trips, New Facility | S39: Existing Trips, New Facility | T39: Induced Trips, New Facility | U39: Constant Dollars | V39: Present Value | X39: Year | Y39: Total Trips, No Facility (Baseline) | Z39: Total Trips, New Facility | AA39: Existing Trips, New Facility | AB39: Induced Trips, New Facility | AD39: Existing Trips, New Facility | AE39: Induced Trips, New Facility | AF39: Constant Dollars | AG39: Present Value
B40: 1 | C40: ='Journey Quality'!C55 -> 188316.3942 | D40: ='Journey Quality'!D55 -> 222165.6107 | E40: ='Journey Quality'!E55 -> 188316.3942 | F40: ='Journey Quality'!F55 -> 33849.2165 | G40: ='Journey Quality'!G55 -> 0 | H40: ='Journey Quality'!H55 -> 380621.467 | I40: ='Journey Quality'!I55 -> 34207.69205 | J40: ='Journey Quality'!J55 -> 414829.159 | K40: ='Journey Quality'!K55 -> 362327.8531 | M40: ='Journey Quality'!M55 -> 1 | N40: ='Journey Quality'!N55 -> 428519.3991 | O40: ='Journey Quality'!O55 -> 428519.3991 | P40: ='Journey Quality'!P55 -> 428519.3991 | Q40: ='Journey Quality'!Q55 -> 0 | R40: ='Journey Quality'!R55 -> 0 | S40: ='Journey Quality'!S55 -> 88292.13698 | T40: ='Journey Quality'!T55 -> 0 | U40: ='Journey Quality'!U55 -> 88292.13698 | V40: ='Journey Quality'!V55 -> 77117.77184 | X40: 1 | Y40: =C40+N40 -> 616835.7932 | Z40: 650685.0097 | AA40: 616835.7932 | AB40: 33849.2165 | AC40: 0 | AD40: 468913.604 | AE40: 34207.69205 | AF40: 503121.296 | AG40: 439445.6249
B41: 20 | C41: ='Journey Quality'!C56 -> 293869.4657 | D41: ='Journey Quality'!D56 -> 1810632.108 | E41: ='Journey Quality'!E56 -> 293869.4657 | F41: ='Journey Quality'!F56 -> 1516762.642 | G41: ='Journey Quality'!G56 -> 0 | H41: ='Journey Quality'!H56 -> 593963.3012 | I41: ='Journey Quality'!I56 -> 1532825.712 | J41: ='Journey Quality'!J56 -> 2126789.013 | K41: ='Journey Quality'!K56 -> 513647.3794 | M41: ='Journey Quality'!M56 -> 20 | N41: ='Journey Quality'!N56 -> 668708.4649 | O41: ='Journey Quality'!O56 -> 668708.4649 | P41: ='Journey Quality'!P56 -> 668708.4649 | Q41: ='Journey Quality'!Q56 -> 0 | R41: ='Journey Quality'!R56 -> 0 | S41: ='Journey Quality'!S56 -> 137780.6921 | T41: ='Journey Quality'!T56 -> 0 | U41: ='Journey Quality'!U56 -> 137780.6921 | V41: ='Journey Quality'!V56 -> 33275.84024 | X41: 20 | Y41: 962577.9306 | Z41: 2479340.573 | AA41: 962577.9306 | AB41: 1516762.642 | AC41: 0 | AD41: 731743.9933 | AE41: 1532825.712 | AF41: 2264569.705 | AG41: 546923.2197
C42: ='Journey Quality'!C57 -> 0 | D42: ='Journey Quality'!D57 -> 0 | E42: ='Journey Quality'!E57 -> 0 | F42: ='Journey Quality'!F57 -> 0 | G42: ='Journey Quality'!G57 -> 0 | H42: ='Journey Quality'!H57 -> 0 | I42: ='Journey Quality'!I57 -> 0 | J42: ='Journey Quality'!J57 -> 0 | K42: ='Journey Quality'!K57 -> 0 | M42: ='Journey Quality'!M57 -> 0 | N42: ='Journey Quality'!N57 -> 0 | O42: ='Journey Quality'!O57 -> 0 | P42: ='Journey Quality'!P57 -> 0 | Q42: ='Journey Quality'!Q57 -> 0 | R42: ='Journey Quality'!R57 -> 0 | S42: ='Journey Quality'!S57 -> 0 | T42: ='Journey Quality'!T57 -> 0 | U42: ='Journey Quality'!U57 -> 0 | V42: ='Journey Quality'!V57 -> 0
B43: 1 | C43: ='Journey Quality'!C58 -> 188316.3942 | D43: ='Journey Quality'!D58 -> 222165.6107 | E43: ='Journey Quality'!E58 -> 188316.3942 | F43: ='Journey Quality'!F58 -> 33849.2165 | G43: ='Journey Quality'!G58 -> 0 | H43: ='Journey Quality'!H58 -> 380621.467 | I43: ='Journey Quality'!I58 -> 34207.69205 | J43: ='Journey Quality'!J58 -> 414829.159 | K43: ='Journey Quality'!K58 -> 362327.8531 | M43: ='Journey Quality'!M58 -> 1 | N43: ='Journey Quality'!N58 -> 428519.3991 | O43: ='Journey Quality'!O58 -> 428519.3991 | P43: ='Journey Quality'!P58 -> 428519.3991 | Q43: ='Journey Quality'!Q58 -> 0 | R43: ='Journey Quality'!R58 -> 0 | S43: ='Journey Quality'!S58 -> 88292.13698 | T43: ='Journey Quality'!T58 -> 0 | U43: ='Journey Quality'!U58 -> 88292.13698 | V43: ='Journey Quality'!V58 -> 77117.77184 | X43: 1 | Y43: =C43+N43 -> 616835.7932 | Z43: =D43+O43 -> 650685.0097 | AA43: =E43+P43 -> 616835.7932 | AB43: =F43+Q43 -> 33849.2165 | AC43: =G43+R43 -> 0 | AD43: =H43+S43 -> 468913.604 | AE43: =I43+T43 -> 34207.69205 | AF43: =J43+U43 -> 503121.296 | AG43: =K43+V43 -> 439445.6249
B44: 2 | C44: ='Journey Quality'!C59 -> 193871.819 | D44: ='Journey Quality'!D59 -> 305769.1105 | E44: ='Journey Quality'!E59 -> 193871.819 | F44: ='Journey Quality'!F59 -> 111897.2915 | G44: ='Journey Quality'!G59 -> 0 | H44: ='Journey Quality'!H59 -> 391849.9846 | I44: ='Journey Quality'!I59 -> 113082.3247 | J44: ='Journey Quality'!J59 -> 504932.3092 | K44: ='Journey Quality'!K59 -> 412175.172 | M44: ='Journey Quality'!M59 -> 2 | N44: ='Journey Quality'!N59 -> 441160.9288 | O44: ='Journey Quality'!O59 -> 441160.9288 | P44: ='Journey Quality'!P59 -> 441160.9288 | Q44: ='Journey Quality'!Q59 -> 0 | R44: ='Journey Quality'!R59 -> 0 | S44: ='Journey Quality'!S59 -> 90896.79778 | T44: ='Journey Quality'!T59 -> 0 | U44: ='Journey Quality'!U59 -> 90896.79778 | V44: ='Journey Quality'!V59 -> 74198.86304 | X44: 2 | Y44: 635032.7478 | Z44: 746930.0394 | AA44: 635032.7478 | AB44: 111897.2915 | AC44: 0 | AD44: 482746.7823 | AE44: 113082.3247 | AF44: 595829.107 | AG44: 486374.0351
B45: 3 | C45: ='Journey Quality'!C60 -> 199427.2438 | D45: ='Journey Quality'!D60 -> 389372.6104 | E45: ='Journey Quality'!E60 -> 199427.2438 | F45: ='Journey Quality'!F60 -> 189945.3666 | G45: ='Journey Quality'!G60 -> 0 | H45: ='Journey Quality'!H60 -> 403078.5022 | I45: ='Journey Quality'!I60 -> 191956.9573 | J45: ='Journey Quality'!J60 -> 595035.4595 | K45: ='Journey Quality'!K60 -> 453949.703 | M45: ='Journey Quality'!M60 -> 3 | N45: ='Journey Quality'!N60 -> 453802.4586 | O45: ='Journey Quality'!O60 -> 453802.4586 | P45: ='Journey Quality'!P60 -> 453802.4586 | Q45: ='Journey Quality'!Q60 -> 0 | R45: ='Journey Quality'!R60 -> 0 | S45: ='Journey Quality'!S60 -> 93501.45858 | T45: ='Journey Quality'!T60 -> 0 | U45: ='Journey Quality'!U60 -> 93501.45858 | V45: ='Journey Quality'!V60 -> 71331.81507 | X45: 3 | Y45: 653229.7024 | Z45: 843175.069 | AA45: 653229.7024 | AB45: 189945.3666 | AC45: 0 | AD45: 496579.9607 | AE45: 191956.9573 | AF45: 688536.918 | AG45: 525281.5181
B46: 4 | C46: ='Journey Quality'!C61 -> 204982.6686 | D46: ='Journey Quality'!D61 -> 472976.1102 | E46: ='Journey Quality'!E61 -> 204982.6686 | F46: ='Journey Quality'!F61 -> 267993.4416 | G46: ='Journey Quality'!G61 -> 0 | H46: ='Journey Quality'!H61 -> 414307.0197 | I46: ='Journey Quality'!I61 -> 270831.5899 | J46: ='Journey Quality'!J61 -> 685138.6097 | K46: ='Journey Quality'!K61 -> 488494.3597 | M46: ='Journey Quality'!M61 -> 4 | N46: ='Journey Quality'!N61 -> 466443.9884 | O46: ='Journey Quality'!O61 -> 466443.9884 | P46: ='Journey Quality'!P61 -> 466443.9884 | Q46: ='Journey Quality'!Q61 -> 0 | R46: ='Journey Quality'!R61 -> 0 | S46: ='Journey Quality'!S61 -> 96106.11937 | T46: ='Journey Quality'!T61 -> 0 | U46: ='Journey Quality'!U61 -> 96106.11937 | V46: ='Journey Quality'!V61 -> 68522.33488 | X46: 4 | Y46: 671426.657 | Z46: 939420.0986 | AA46: 671426.657 | AB46: 267993.4416 | AC46: 0 | AD46: 510413.1391 | AE46: 270831.5899 | AF46: 781244.7291 | AG46: 557016.6946
B47: 5 | C47: ='Journey Quality'!C62 -> 210538.0934 | D47: ='Journey Quality'!D62 -> 556579.6101 | E47: ='Journey Quality'!E62 -> 210538.0934 | F47: ='Journey Quality'!F62 -> 346041.5167 | G47: ='Journey Quality'!G62 -> 0 | H47: ='Journey Quality'!H62 -> 425535.5373 | I47: ='Journey Quality'!I62 -> 349706.2226 | J47: ='Journey Quality'!J62 -> 775241.7599 | K47: ='Journey Quality'!K62 -> 516576.3183 | M47: ='Journey Quality'!M62 -> 5 | N47: ='Journey Quality'!N62 -> 479085.5182 | O47: ='Journey Quality'!O62 -> 479085.5182 | P47: ='Journey Quality'!P62 -> 479085.5182 | Q47: ='Journey Quality'!Q62 -> 0 | R47: ='Journey Quality'!R62 -> 0 | S47: ='Journey Quality'!S62 -> 98710.78017 | T47: ='Journey Quality'!T62 -> 0 | U47: ='Journey Quality'!U62 -> 98710.78017 | V47: ='Journey Quality'!V62 -> 65775.16077 | X47: 5 | Y47: 689623.6116 | Z47: 1035665.128 | AA47: 689623.6116 | AB47: 346041.5167 | AC47: 0 | AD47: 524246.3175 | AE47: 349706.2226 | AF47: 873952.5401 | AG47: 582351.4791
B48: 6 | C48: ='Journey Quality'!C63 -> 216093.5183 | D48: ='Journey Quality'!D63 -> 640183.1099 | E48: ='Journey Quality'!E63 -> 216093.5183 | F48: ='Journey Quality'!F63 -> 424089.5917 | G48: ='Journey Quality'!G63 -> 0 | H48: ='Journey Quality'!H63 -> 436764.0549 | I48: ='Journey Quality'!I63 -> 428580.8552 | J48: ='Journey Quality'!J63 -> 865344.9101 | K48: ='Journey Quality'!K63 -> 538893.3194 | M48: ='Journey Quality'!M63 -> 6 | N48: ='Journey Quality'!N63 -> 491727.048 | O48: ='Journey Quality'!O63 -> 491727.048 | P48: ='Journey Quality'!P63 -> 491727.048 | Q48: ='Journey Quality'!Q63 -> 0 | R48: ='Journey Quality'!R63 -> 0 | S48: ='Journey Quality'!S63 -> 101315.441 | T48: ='Journey Quality'!T63 -> 0 | U48: ='Journey Quality'!U63 -> 101315.441 | V48: ='Journey Quality'!V63 -> 63094.16471 | X48: 6 | Y48: 707820.5662 | Z48: 1131910.158 | AA48: 707820.5662 | AB48: 424089.5917 | AC48: 0 | AD48: 538079.4959 | AE48: 428580.8552 | AF48: 966660.3511 | AG48: 601987.4841
B49: 7 | C49: ='Journey Quality'!C64 -> 221648.9431 | D49: ='Journey Quality'!D64 -> 723786.6098 | E49: ='Journey Quality'!E64 -> 221648.9431 | F49: ='Journey Quality'!F64 -> 502137.6667 | G49: ='Journey Quality'!G64 -> 0 | H49: ='Journey Quality'!H64 -> 447992.5725 | I49: ='Journey Quality'!I64 -> 507455.4878 | J49: ='Journey Quality'!J64 -> 955448.0603 | K49: ='Journey Quality'!K64 -> 556079.4701 | M49: ='Journey Quality'!M64 -> 7 | N49: ='Journey Quality'!N64 -> 504368.5778 | O49: ='Journey Quality'!O64 -> 504368.5778 | P49: ='Journey Quality'!P64 -> 504368.5778 | Q49: ='Journey Quality'!Q64 -> 0 | R49: ='Journey Quality'!R64 -> 0 | S49: ='Journey Quality'!S64 -> 103920.1018 | T49: ='Journey Quality'!T64 -> 0 | U49: ='Journey Quality'!U64 -> 103920.1018 | V49: ='Journey Quality'!V64 -> 60482.44537 | X49: 7 | Y49: 726017.5208 | Z49: 1228155.188 | AA49: 726017.5208 | AB49: 502137.6667 | AC49: 0 | AD49: 551912.6743 | AE49: 507455.4878 | AF49: 1059368.162 | AG49: 616561.9154
B50: 8 | C50: ='Journey Quality'!C65 -> 227204.3679 | D50: ='Journey Quality'!D65 -> 807390.1097 | E50: ='Journey Quality'!E65 -> 227204.3679 | F50: ='Journey Quality'!F65 -> 580185.7418 | G50: ='Journey Quality'!G65 -> 0 | H50: ='Journey Quality'!H65 -> 459221.0901 | I50: ='Journey Quality'!I65 -> 586330.1205 | J50: ='Journey Quality'!J65 -> 1045551.211 | K50: ='Journey Quality'!K65 -> 568710.583 | M50: ='Journey Quality'!M65 -> 8 | N50: ='Journey Quality'!N65 -> 517010.1075 | O50: ='Journey Quality'!O65 -> 517010.1075 | P50: ='Journey Quality'!P65 -> 517010.1075 | Q50: ='Journey Quality'!Q65 -> 0 | R50: ='Journey Quality'!R65 -> 0 | S50: ='Journey Quality'!S65 -> 106524.7626 | T50: ='Journey Quality'!T65 -> 0 | U50: ='Journey Quality'!U65 -> 106524.7626 | V50: ='Journey Quality'!V65 -> 57942.41278 | X50: 8 | Y50: 744214.4754 | Z50: 1324400.217 | AA50: 744214.4754 | AB50: 580185.7418 | AC50: 0 | AD50: 565745.8527 | AE50: 586330.1205 | AF50: 1152075.973 | AG50: 626652.9958
B51: 9 | C51: ='Journey Quality'!C66 -> 232759.7927 | D51: ='Journey Quality'!D66 -> 890993.6095 | E51: ='Journey Quality'!E66 -> 232759.7927 | F51: ='Journey Quality'!F66 -> 658233.8168 | G51: ='Journey Quality'!G66 -> 0 | H51: ='Journey Quality'!H66 -> 470449.6077 | I51: ='Journey Quality'!I66 -> 665204.7531 | J51: ='Journey Quality'!J66 -> 1135654.361 | K51: ='Journey Quality'!K66 -> 577309.0904 | M51: ='Journey Quality'!M66 -> 9 | N51: ='Journey Quality'!N66 -> 529651.6373 | O51: ='Journey Quality'!O66 -> 529651.6373 | P51: ='Journey Quality'!P66 -> 529651.6373 | Q51: ='Journey Quality'!Q66 -> 0 | R51: ='Journey Quality'!R66 -> 0 | S51: ='Journey Quality'!S66 -> 109129.4234 | T51: ='Journey Quality'!T66 -> 0 | U51: ='Journey Quality'!U66 -> 109129.4234 | V51: ='Journey Quality'!V66 -> 55475.86511 | X51: 9 | Y51: 762411.43 | Z51: 1420645.247 | AA51: 762411.43 | AB51: 658233.8168 | AC51: 0 | AD51: 579579.031 | AE51: 665204.7531 | AF51: 1244783.784 | AG51: 632784.9555
B52: 10 | C52: ='Journey Quality'!C67 -> 238315.2175 | D52: ='Journey Quality'!D67 -> 974597.1094 | E52: ='Journey Quality'!E67 -> 238315.2175 | F52: ='Journey Quality'!F67 -> 736281.8918 | G52: ='Journey Quality'!G67 -> 0 | H52: ='Journey Quality'!H67 -> 481678.1253 | I52: ='Journey Quality'!I67 -> 744079.3857 | J52: ='Journey Quality'!J67 -> 1225757.511 | K52: ='Journey Quality'!K67 -> 582348.5636 | M52: ='Journey Quality'!M67 -> 10 | N52: ='Journey Quality'!N67 -> 542293.1671 | O52: ='Journey Quality'!O67 -> 542293.1671 | P52: ='Journey Quality'!P67 -> 542293.1671 | Q52: ='Journey Quality'!Q67 -> 0 | R52: ='Journey Quality'!R67 -> 0 | S52: ='Journey Quality'!S67 -> 111734.0841 | T52: ='Journey Quality'!T67 -> 0 | U52: ='Journey Quality'!U67 -> 111734.0841 | V52: ='Journey Quality'!V67 -> 53084.05849 | X52: 10 | Y52: 780608.3846 | Z52: 1516890.276 | AA52: 780608.3846 | AB52: 736281.8918 | AC52: 0 | AD52: 593412.2094 | AE52: 744079.3857 | AF52: 1337491.595 | AG52: 635432.6221
B53: 11 | C53: ='Journey Quality'!C68 -> 243870.6424 | D53: ='Journey Quality'!D68 -> 1058200.609 | E53: ='Journey Quality'!E68 -> 243870.6424 | F53: ='Journey Quality'!F68 -> 814329.9669 | G53: ='Journey Quality'!G68 -> 0 | H53: ='Journey Quality'!H68 -> 492906.6429 | I53: ='Journey Quality'!I68 -> 822954.0184 | J53: ='Journey Quality'!J68 -> 1315860.661 | K53: ='Journey Quality'!K68 -> 584257.8703 | M53: ='Journey Quality'!M68 -> 11 | N53: ='Journey Quality'!N68 -> 554934.6969 | O53: ='Journey Quality'!O68 -> 554934.6969 | P53: ='Journey Quality'!P68 -> 554934.6969 | Q53: ='Journey Quality'!Q68 -> 0 | R53: ='Journey Quality'!R68 -> 0 | S53: ='Journey Quality'!S68 -> 114338.7449 | T53: ='Journey Quality'!T68 -> 0 | U53: ='Journey Quality'!U68 -> 114338.7449 | V53: ='Journey Quality'!V68 -> 50767.77016 | X53: 11 | Y53: 798805.3392 | Z53: 1613135.306 | AA53: 798805.3392 | AB53: 814329.9669 | AC53: 0 | AD53: 607245.3878 | AE53: 822954.0184 | AF53: 1430199.406 | AG53: 635025.6404
B54: 12 | C54: ='Journey Quality'!C69 -> 249426.0672 | D54: ='Journey Quality'!D69 -> 1141804.109 | E54: ='Journey Quality'!E69 -> 249426.0672 | F54: ='Journey Quality'!F69 -> 892378.0419 | G54: ='Journey Quality'!G69 -> 0 | H54: ='Journey Quality'!H69 -> 504135.1605 | I54: ='Journey Quality'!I69 -> 901828.651 | J54: ='Journey Quality'!J69 -> 1405963.811 | K54: ='Journey Quality'!K69 -> 583424.9968 | M54: ='Journey Quality'!M69 -> 12 | N54: ='Journey Quality'!N69 -> 567576.2267 | O54: ='Journey Quality'!O69 -> 567576.2267 | P54: ='Journey Quality'!P69 -> 567576.2267 | Q54: ='Journey Quality'!Q69 -> 0 | R54: ='Journey Quality'!R69 -> 0 | S54: ='Journey Quality'!S69 -> 116943.4057 | T54: ='Journey Quality'!T69 -> 0 | U54: ='Journey Quality'!U69 -> 116943.4057 | V54: ='Journey Quality'!V69 -> 48527.3558 | X54: 12 | Y54: 817002.2938 | Z54: 1709380.336 | AA54: 817002.2938 | AB54: 892378.0419 | AC54: 0 | AD54: 621078.5662 | AE54: 901828.651 | AF54: 1522907.217 | AG54: 631952.3526
B55: 13 | C55: ='Journey Quality'!C70 -> 254981.492 | D55: ='Journey Quality'!D70 -> 1225407.609 | E55: ='Journey Quality'!E70 -> 254981.492 | F55: ='Journey Quality'!F70 -> 970426.117 | G55: ='Journey Quality'!G70 -> 0 | H55: ='Journey Quality'!H70 -> 515363.6781 | I55: ='Journey Quality'!I70 -> 980703.2836 | J55: ='Journey Quality'!J70 -> 1496066.962 | K55: ='Journey Quality'!K70 -> 580200.5615 | M55: ='Journey Quality'!M70 -> 13 | N55: ='Journey Quality'!N70 -> 580217.7564 | O55: ='Journey Quality'!O70 -> 580217.7564 | P55: ='Journey Quality'!P70 -> 580217.7564 | Q55: ='Journey Quality'!Q70 -> 0 | R55: ='Journey Quality'!R70 -> 0 | S55: ='Journey Quality'!S70 -> 119548.0665 | T55: ='Journey Quality'!T70 -> 0 | U55: ='Journey Quality'!U70 -> 119548.0665 | V55: ='Journey Quality'!V70 -> 46362.80133 | X55: 13 | Y55: 835199.2484 | Z55: 1805625.365 | AA55: 835199.2484 | AB55: 970426.117 | AC55: 0 | AD55: 634911.7446 | AE55: 980703.2836 | AF55: 1615615.028 | AG55: 626563.3628
B56: 14 | C56: ='Journey Quality'!C71 -> 260536.9168 | D56: ='Journey Quality'!D71 -> 1309011.109 | E56: ='Journey Quality'!E71 -> 260536.9168 | F56: ='Journey Quality'!F71 -> 1048474.192 | G56: ='Journey Quality'!G71 -> 0 | H56: ='Journey Quality'!H71 -> 526592.1956 | I56: ='Journey Quality'!I71 -> 1059577.916 | J56: ='Journey Quality'!J71 -> 1586170.112 | K56: ='Journey Quality'!K71 -> 574901.0435 | M56: ='Journey Quality'!M71 -> 14 | N56: ='Journey Quality'!N71 -> 592859.2862 | O56: ='Journey Quality'!O71 -> 592859.2862 | P56: ='Journey Quality'!P71 -> 592859.2862 | Q56: ='Journey Quality'!Q71 -> 0 | R56: ='Journey Quality'!R71 -> 0 | S56: ='Journey Quality'!S71 -> 122152.7273 | T56: ='Journey Quality'!T71 -> 0 | U56: ='Journey Quality'!U71 -> 122152.7273 | V56: ='Journey Quality'!V71 -> 44273.76981 | X56: 14 | Y56: 853396.203 | Z56: 1901870.395 | AA56: 853396.203 | AB56: 1048474.192 | AC56: 0 | AD56: 648744.923 | AE56: 1059577.916 | AF56: 1708322.839 | AG56: 619174.8133
B57: 15 | C57: ='Journey Quality'!C72 -> 266092.3416 | D57: ='Journey Quality'!D72 -> 1392614.609 | E57: ='Journey Quality'!E72 -> 266092.3416 | F57: ='Journey Quality'!F72 -> 1126522.267 | G57: ='Journey Quality'!G72 -> 0 | H57: ='Journey Quality'!H72 -> 537820.7132 | I57: ='Journey Quality'!I72 -> 1138452.549 | J57: ='Journey Quality'!J72 -> 1676273.262 | K57: ='Journey Quality'!K72 -> 567811.7492 | M57: ='Journey Quality'!M72 -> 15 | N57: ='Journey Quality'!N72 -> 605500.816 | O57: ='Journey Quality'!O72 -> 605500.816 | P57: ='Journey Quality'!P72 -> 605500.816 | Q57: ='Journey Quality'!Q72 -> 0 | R57: ='Journey Quality'!R72 -> 0 | S57: ='Journey Quality'!S72 -> 124757.3881 | T57: ='Journey Quality'!T72 -> 0 | U57: ='Journey Quality'!U72 -> 124757.3881 | V57: ='Journey Quality'!V72 -> 42259.64369 | X57: 15 | Y57: 871593.1576 | Z57: 1998115.425 | AA57: 871593.1576 | AB57: 1126522.267 | AC57: 0 | AD57: 662578.1014 | AE57: 1138452.549 | AF57: 1801030.65 | AG57: 610071.3929
B58: 16 | C58: ='Journey Quality'!C73 -> 271647.7665 | D58: ='Journey Quality'!D73 -> 1476218.109 | E58: ='Journey Quality'!E73 -> 271647.7665 | F58: ='Journey Quality'!F73 -> 1204570.342 | G58: ='Journey Quality'!G73 -> 0 | H58: ='Journey Quality'!H73 -> 549049.2308 | I58: ='Journey Quality'!I73 -> 1217327.182 | J58: ='Journey Quality'!J73 -> 1766376.412 | K58: ='Journey Quality'!K73 -> 559189.5361 | M58: ='Journey Quality'!M73 -> 16 | N58: ='Journey Quality'!N73 -> 618142.3458 | O58: ='Journey Quality'!O73 -> 618142.3458 | P58: ='Journey Quality'!P73 -> 618142.3458 | Q58: ='Journey Quality'!Q73 -> 0 | R58: ='Journey Quality'!R73 -> 0 | S58: ='Journey Quality'!S73 -> 127362.0489 | T58: ='Journey Quality'!T73 -> 0 | U58: ='Journey Quality'!U73 -> 127362.0489 | V58: ='Journey Quality'!V73 -> 40319.56301 | X58: 16 | Y58: 889790.1122 | Z58: 2094360.454 | AA58: 889790.1122 | AB58: 1204570.342 | AC58: 0 | AD58: 676411.2798 | AE58: 1217327.182 | AF58: 1893738.461 | AG58: 599509.0991
B59: 17 | C59: ='Journey Quality'!C74 -> 277203.1913 | D59: ='Journey Quality'!D74 -> 1559821.608 | E59: ='Journey Quality'!E74 -> 277203.1913 | F59: ='Journey Quality'!F74 -> 1282618.417 | G59: ='Journey Quality'!G74 -> 0 | H59: ='Journey Quality'!H74 -> 560277.7484 | I59: ='Journey Quality'!I74 -> 1296201.814 | J59: ='Journey Quality'!J74 -> 1856479.563 | K59: ='Journey Quality'!K74 -> 549265.3139 | M59: ='Journey Quality'!M74 -> 17 | N59: ='Journey Quality'!N74 -> 630783.8756 | O59: ='Journey Quality'!O74 -> 630783.8756 | P59: ='Journey Quality'!P74 -> 630783.8756 | Q59: ='Journey Quality'!Q74 -> 0 | R59: ='Journey Quality'!R74 -> 0 | S59: ='Journey Quality'!S74 -> 129966.7097 | T59: ='Journey Quality'!T74 -> 0 | U59: ='Journey Quality'!U74 -> 129966.7097 | V59: ='Journey Quality'!V74 -> 38452.45973 | X59: 17 | Y59: 907987.0668 | Z59: 2190605.484 | AA59: 907987.0668 | AB59: 1282618.417 | AC59: 0 | AD59: 690244.4581 | AE59: 1296201.814 | AF59: 1986446.272 | AG59: 587717.7737
B60: 18 | C60: ='Journey Quality'!C75 -> 282758.6161 | D60: ='Journey Quality'!D75 -> 1643425.108 | E60: ='Journey Quality'!E75 -> 282758.6161 | F60: ='Journey Quality'!F75 -> 1360666.492 | G60: ='Journey Quality'!G75 -> 0 | H60: ='Journey Quality'!H75 -> 571506.266 | I60: ='Journey Quality'!I75 -> 1375076.447 | J60: ='Journey Quality'!J75 -> 1946582.713 | K60: ='Journey Quality'!K75 -> 538246.341 | M60: ='Journey Quality'!M75 -> 18 | N60: ='Journey Quality'!N75 -> 643425.4053 | O60: ='Journey Quality'!O75 -> 643425.4053 | P60: ='Journey Quality'!P75 -> 643425.4053 | Q60: ='Journey Quality'!Q75 -> 0 | R60: ='Journey Quality'!R75 -> 0 | S60: ='Journey Quality'!S75 -> 132571.3705 | T60: ='Journey Quality'!T75 -> 0 | U60: ='Journey Quality'!U75 -> 132571.3705 | V60: ='Journey Quality'!V75 -> 36657.08867 | X60: 18 | Y60: 926184.0214 | Z60: 2286850.514 | AA60: 926184.0214 | AB60: 1360666.492 | AC60: 0 | AD60: 704077.6365 | AE60: 1375076.447 | AF60: 2079154.083 | AG60: 574903.4296
B61: 19 | C61: ='Journey Quality'!C76 -> 288314.0409 | D61: ='Journey Quality'!D76 -> 1727028.608 | E61: ='Journey Quality'!E76 -> 288314.0409 | F61: ='Journey Quality'!F76 -> 1438714.567 | G61: ='Journey Quality'!G76 -> 0 | H61: ='Journey Quality'!H76 -> 582734.7836 | I61: ='Journey Quality'!I76 -> 1453951.079 | J61: ='Journey Quality'!J76 -> 2036685.863 | K61: ='Journey Quality'!K76 -> 526318.3298 | M61: ='Journey Quality'!M76 -> 19 | N61: ='Journey Quality'!N76 -> 656066.9351 | O61: ='Journey Quality'!O76 -> 656066.9351 | P61: ='Journey Quality'!P76 -> 656066.9351 | Q61: ='Journey Quality'!Q76 -> 0 | R61: ='Journey Quality'!R76 -> 0 | S61: ='Journey Quality'!S76 -> 135176.0313 | T61: ='Journey Quality'!T76 -> 0 | U61: ='Journey Quality'!U76 -> 135176.0313 | V61: ='Journey Quality'!V76 -> 34932.05522 | X61: 19 | Y61: 944380.976 | Z61: 2383095.543 | AA61: 944380.976 | AB61: 1438714.567 | AC61: 0 | AD61: 717910.8149 | AE61: 1453951.079 | AF61: 2171861.894 | AG61: 561250.385
B62: 20 | C62: ='Journey Quality'!C77 -> 293869.4657 | D62: ='Journey Quality'!D77 -> 1810632.108 | E62: ='Journey Quality'!E77 -> 293869.4657 | F62: ='Journey Quality'!F77 -> 1516762.642 | G62: ='Journey Quality'!G77 -> 0 | H62: ='Journey Quality'!H77 -> 593963.3012 | I62: ='Journey Quality'!I77 -> 1532825.712 | J62: ='Journey Quality'!J77 -> 2126789.013 | K62: ='Journey Quality'!K77 -> 513647.3794 | M62: ='Journey Quality'!M77 -> 20 | N62: ='Journey Quality'!N77 -> 668708.4649 | O62: ='Journey Quality'!O77 -> 668708.4649 | P62: ='Journey Quality'!P77 -> 668708.4649 | Q62: ='Journey Quality'!Q77 -> 0 | R62: ='Journey Quality'!R77 -> 0 | S62: ='Journey Quality'!S77 -> 137780.6921 | T62: ='Journey Quality'!T77 -> 0 | U62: ='Journey Quality'!U77 -> 137780.6921 | V62: ='Journey Quality'!V77 -> 33275.84024 | X62: 20 | Y62: 962577.9306 | Z62: 2479340.573 | AA62: 962577.9306 | AB62: 1516762.642 | AC62: 0 | AD62: 731743.9933 | AE62: 1532825.712 | AF62: 2264569.705 | AG62: 546923.2197
B64: Total | C64: ='Journey Quality'!C79 -> 0 | D64: ='Journey Quality'!D79 -> 0 | E64: ='Journey Quality'!E79 -> 0 | F64: ='Journey Quality'!F79 -> 0 | G64: ='Journey Quality'!G79 -> 0 | H64: ='Journey Quality'!H79 -> 0 | I64: ='Journey Quality'!I79 -> 0 | J64: ='Journey Quality'!J79 -> 0 | K64: ='Journey Quality'!K79 -> 10634127.55 | M64: ='Journey Quality'!M79 -> Total | N64: ='Journey Quality'!N79 -> 0 | O64: ='Journey Quality'!O79 -> 0 | P64: ='Journey Quality'!P79 -> 0 | Q64: ='Journey Quality'!Q79 -> 0 | R64: ='Journey Quality'!R79 -> 0 | S64: ='Journey Quality'!S79 -> 0 | T64: ='Journey Quality'!T79 -> 0 | U64: ='Journey Quality'!U79 -> 0 | V64: ='Journey Quality'!V79 -> 1062853.24 | X64: Total | AG64: =SUM(AG43:AG62) -> 11696980.79

Sheet Intersection Delay
B1: Intersection Delay Benefits
B3: This sheet calculates total reduction in intersection delay due to improvements at intersections on an existing bike/pedestrian facility.
B5: Formulas:
B7: Avg. Annual Trips = Avg. Daily Trips x Annual Days in Year, by purpose | H7: Value of Time Savings = Travel Time Reduction x Avg. Value of Time
B8: trips / yr. | H8: $ / year | J8: $/hour
B10: Time Saved = # of intersections crossed per trip x time savings per intersection x Avg. Annual Trips | H10: Value of Journey Quality for Induced trips applies rule of half
B11: trip-hrs / yr. | D11: trip / yr. x miles | F11: miles/hour
B15: A | C15: CYCLING BENEFITS | N15: B | O15: PEDESTRIAN BENEFITS | Z15: C | AA15: TOTAL
B18: Existing Facility | N18: Existing Facility | Z18: Existing Facility
C20: AVERAGE ANNUAL VOLUME | G20: TRAVEL TIME SAVED | I20: VALUE OF TIME SAVINGS | O20: AVERAGE ANNUAL VOLUME | S20: TRAVEL TIME SAVED | U20: VALUE OF TIME SAVINGS
C21: (trips/yr.) | G21: (hours/yr.) | I21: ($/year) | O21: (trips/yr.) | S21: (hours/yr.) | U21: ($/year)
B22: Year | C22: Total Trips, Existing Facility (Baseline) | D22: Total Trips, Improved Facility | E22: Existing Trips, Existing Facility | F22: Induced Trips, Existing Facility | G22: Existing Trips | H22: Induced Trips | I22: Existing Trips | J22: Induced Trips | K22: Constant Dollars | L22: Present Value | N22: Year | O22: Total Trips, Existing Facility (Baseline) | P22: Total Trips, Improved Facility | Q22: Existing Trips, Existing Facility | R22: Induced Trips, Existing Facility | S22: Existing Trips | T22: Induced Trips | U22: Existing Trips | V22: Induced Trips | W22: Constant Dollars | X22: Present Value | Z22: Year | AA22: Constant Dollars | AB22: Present Value
B23: 1 | C23: =IF(OR(ProjType=1, ProjType=3),TrComCyc1NBEX+TrODCyc1NBEX+TrRecCyc1NBEX*RecBen,0) -> 188316.3942 | D23: =IF(OR(ProjType=1, ProjType=3),TrComCyc1BEX+TrODCyc1BEX+TrRecCyc1BEX*RecBen,0) -> 222165.6107 | E23: =C23 -> 188316.3942 | F23: =D23-C23 -> 33849.2165 | G23: =E23*'Intersection Delay'!$E$94 -> 0 | H23: =F23*'Intersection Delay'!$E$94 -> 0 | I23: =G23*ValTimeAT -> 0 | J23: =H23*ValTimeAT/2 -> 0 | K23: =I23*(1+TTUprater)^($B23+Construct-1) -> 0 | L23: =$K23/(1+DiscRate)^($B23+Construct-1) -> 0 | N23: 1 | O23: =IF(OR(ProjType=1, ProjType=3),TrComPed1NBEX+TrODPed1NBEX+TrRecPed1NBEX*RecBen,0) -> 428519.3991 | P23: =IF(OR(ProjType=1, ProjType=3),TrComPed1BEX+TrODPed1BEX+TrRecPed1BEX*RecBen,0) -> 428519.3991 | Q23: =O23 -> 428519.3991 | R23: =P23-O23 -> 0 | S23: =Q23*'Intersection Delay'!$Q$94 -> 0 | T23: =R23*'Intersection Delay'!$Q$94 -> 0 | U23: =S23*ValTimeAT -> 0 | V23: =T23*ValTimeAT/2 -> 0 | W23: =U23*(1+TTUprater)^($B23+Construct-1) -> 0 | X23: =$W23/(1+DiscRate)^($B23+Construct-1) -> 0 | Z23: 1 | AA23: =W23+K23 -> 0 | AB23: =X23+L23 -> 0
B24: 20 | C24: =IF(OR(ProjType=1, ProjType=3),TrComCyc20NBEX+TrODCyc20NBEX+TrRecCyc20NBEX*RecBen,0) -> 293869.4657 | D24: =IF(OR(ProjType=1, ProjType=3),TrComCyc20BEX+TrODCyc20BEX+TrRecCyc20BEX*RecBen,0) -> 1810632.108 | E24: =C24 -> 293869.4657 | F24: =D24-C24 -> 1516762.642 | G24: =E24*'Intersection Delay'!$E$94 -> 0 | H24: =F24*'Intersection Delay'!$E$94 -> 0 | I24: =G24*ValTimeAT -> 0 | J24: =H24*ValTimeAT/2 -> 0 | K24: =I24*(1+TTUprater)^($B23+Construct-1) -> 0 | L24: =$K24/(1+DiscRate)^($B24+Construct-1) -> 0 | N24: 20 | O24: =IF(OR(ProjType=1, ProjType=3),TrComPed20NBEX+TrODPed20NBEX+TrRecPed20NBEX*RecBen,0) -> 668708.4649 | P24: =IF(OR(ProjType=1, ProjType=3),TrComPed20BEX+TrODPed20BEX+TrRecPed20BEX*RecBen,0) -> 668708.4649 | Q24: =O24 -> 668708.4649 | R24: =P24-O24 -> 0 | S24: =Q24*'Intersection Delay'!$Q$94 -> 0 | T24: =R24*'Intersection Delay'!$Q$94 -> 0 | U24: =S24*ValTimeAT -> 0 | V24: =T24*ValTimeAT/2 -> 0 | W24: =U24*(1+TTUprater)^($B23+Construct-1) -> 0 | X24: =$W24/(1+DiscRate)^($B24+Construct-1) -> 0 | Z24: 20 | AA24: =W24+K24 -> 0 | AB24: =X24+L24 -> 0
B26: 1 | C26: =TREND(C$23:C$24,$B$23:$B$24,$B26) -> 188316.3942 | D26: =TREND(D$23:D$24,$B$23:$B$24,$B26) -> 222165.6107 | E26: =C26 -> 188316.3942 | F26: =D26-C26 -> 33849.2165 | G26: =E26*'Intersection Delay'!$E$94 -> 0 | H26: =F26*'Intersection Delay'!$E$94 -> 0 | I26: =G26*ValTimeAT -> 0 | J26: =H26*ValTimeAT/2 -> 0 | K26: =I26*(1+TTUprater)^($B23+Construct-1) -> 0 | L26: =$K26/(1+DiscRate)^($B26+Construct-1) -> 0 | N26: 1 | O26: =TREND(O$23:O$24,$B$23:$B$24,$B26) -> 428519.3991 | P26: =TREND(P$23:P$24,$B$23:$B$24,$B26) -> 428519.3991 | Q26: =TREND(Q$23:Q$24,$B$23:$B$24,$B26) -> 428519.3991 | R26: =P26-O26 -> 0 | S26: =Q26*'Intersection Delay'!$Q$94 -> 0 | T26: =R26*'Intersection Delay'!$Q$94 -> 0 | U26: =S26*ValTimeAT -> 0 | V26: =T26*ValTimeAT/2 -> 0 | W26: =U26*(1+TTUprater)^($B23+Construct-1) -> 0 | X26: =$W26/(1+DiscRate)^($B26+Construct-1) -> 0 | Z26: 1 | AA26: =W26+K26 -> 0 | AB26: =X26+L26 -> 0
B27: 2 | C27: =TREND(C$23:C$24,$B$23:$B$24,$B27) -> 193871.819 | D27: 305769.1105 | E27: 193871.819 | F27: 111897.2915 | G27: =E27*'Intersection Delay'!$E$94 -> 0 | H27: =F27*'Intersection Delay'!$E$94 -> 0 | I27: 0 | J27: 0 | K27: 0 | L27: 0 | N27: 2 | O27: =TREND(O$23:O$24,$B$23:$B$24,$B27) -> 441160.9288 | P27: 441160.9288 | Q27: 441160.9288 | R27: 0 | S27: =Q27*'Intersection Delay'!$Q$94 -> 0 | T27: =R27*'Intersection Delay'!$Q$94 -> 0 | U27: 0 | V27: 0 | W27: 0 | X27: 0 | Z27: 2 | AA27: 0 | AB27: 0
B28: 3 | C28: 199427.2438 | D28: 389372.6104 | E28: 199427.2438 | F28: 189945.3666 | G28: =E28*'Intersection Delay'!$E$94 -> 0 | H28: =F28*'Intersection Delay'!$E$94 -> 0 | I28: 0 | J28: 0 | K28: 0 | L28: 0 | N28: 3 | O28: 453802.4586 | P28: 453802.4586 | Q28: 453802.4586 | R28: 0 | S28: =Q28*'Intersection Delay'!$Q$94 -> 0 | T28: =R28*'Intersection Delay'!$Q$94 -> 0 | U28: 0 | V28: 0 | W28: 0 | X28: 0 | Z28: 3 | AA28: 0 | AB28: 0
B29: 4 | C29: 204982.6686 | D29: 472976.1102 | E29: 204982.6686 | F29: 267993.4416 | G29: =E29*'Intersection Delay'!$E$94 -> 0 | H29: =F29*'Intersection Delay'!$E$94 -> 0 | I29: 0 | J29: 0 | K29: 0 | L29: 0 | N29: 4 | O29: 466443.9884 | P29: 466443.9884 | Q29: 466443.9884 | R29: 0 | S29: =Q29*'Intersection Delay'!$Q$94 -> 0 | T29: =R29*'Intersection Delay'!$Q$94 -> 0 | U29: 0 | V29: 0 | W29: 0 | X29: 0 | Z29: 4 | AA29: 0 | AB29: 0
B30: 5 | C30: 210538.0934 | D30: 556579.6101 | E30: 210538.0934 | F30: 346041.5167 | G30: =E30*'Intersection Delay'!$E$94 -> 0 | H30: =F30*'Intersection Delay'!$E$94 -> 0 | I30: 0 | J30: 0 | K30: 0 | L30: 0 | N30: 5 | O30: 479085.5182 | P30: 479085.5182 | Q30: 479085.5182 | R30: 0 | S30: =Q30*'Intersection Delay'!$Q$94 -> 0 | T30: =R30*'Intersection Delay'!$Q$94 -> 0 | U30: 0 | V30: 0 | W30: 0 | X30: 0 | Z30: 5 | AA30: 0 | AB30: 0
B31: 6 | C31: 216093.5183 | D31: 640183.1099 | E31: 216093.5183 | F31: 424089.5917 | G31: =E31*'Intersection Delay'!$E$94 -> 0 | H31: =F31*'Intersection Delay'!$E$94 -> 0 | I31: 0 | J31: 0 | K31: 0 | L31: 0 | N31: 6 | O31: 491727.048 | P31: 491727.048 | Q31: 491727.048 | R31: 0 | S31: =Q31*'Intersection Delay'!$Q$94 -> 0 | T31: =R31*'Intersection Delay'!$Q$94 -> 0 | U31: 0 | V31: 0 | W31: 0 | X31: 0 | Z31: 6 | AA31: 0 | AB31: 0
B32: 7 | C32: 221648.9431 | D32: 723786.6098 | E32: 221648.9431 | F32: 502137.6667 | G32: =E32*'Intersection Delay'!$E$94 -> 0 | H32: =F32*'Intersection Delay'!$E$94 -> 0 | I32: 0 | J32: 0 | K32: 0 | L32: 0 | N32: 7 | O32: 504368.5778 | P32: 504368.5778 | Q32: 504368.5778 | R32: 0 | S32: =Q32*'Intersection Delay'!$Q$94 -> 0 | T32: =R32*'Intersection Delay'!$Q$94 -> 0 | U32: 0 | V32: 0 | W32: 0 | X32: 0 | Z32: 7 | AA32: 0 | AB32: 0
B33: 8 | C33: 227204.3679 | D33: 807390.1097 | E33: 227204.3679 | F33: 580185.7418 | G33: =E33*'Intersection Delay'!$E$94 -> 0 | H33: =F33*'Intersection Delay'!$E$94 -> 0 | I33: 0 | J33: 0 | K33: 0 | L33: 0 | N33: 8 | O33: 517010.1075 | P33: 517010.1075 | Q33: 517010.1075 | R33: 0 | S33: =Q33*'Intersection Delay'!$Q$94 -> 0 | T33: =R33*'Intersection Delay'!$Q$94 -> 0 | U33: 0 | V33: 0 | W33: 0 | X33: 0 | Z33: 8 | AA33: 0 | AB33: 0
B34: 9 | C34: 232759.7927 | D34: 890993.6095 | E34: 232759.7927 | F34: 658233.8168 | G34: =E34*'Intersection Delay'!$E$94 -> 0 | H34: =F34*'Intersection Delay'!$E$94 -> 0 | I34: 0 | J34: 0 | K34: 0 | L34: 0 | N34: 9 | O34: 529651.6373 | P34: 529651.6373 | Q34: 529651.6373 | R34: 0 | S34: =Q34*'Intersection Delay'!$Q$94 -> 0 | T34: =R34*'Intersection Delay'!$Q$94 -> 0 | U34: 0 | V34: 0 | W34: 0 | X34: 0 | Z34: 9 | AA34: 0 | AB34: 0
B35: 10 | C35: 238315.2175 | D35: 974597.1094 | E35: 238315.2175 | F35: 736281.8918 | G35: =E35*'Intersection Delay'!$E$94 -> 0 | H35: =F35*'Intersection Delay'!$E$94 -> 0 | I35: 0 | J35: 0 | K35: 0 | L35: 0 | N35: 10 | O35: 542293.1671 | P35: 542293.1671 | Q35: 542293.1671 | R35: 0 | S35: =Q35*'Intersection Delay'!$Q$94 -> 0 | T35: =R35*'Intersection Delay'!$Q$94 -> 0 | U35: 0 | V35: 0 | W35: 0 | X35: 0 | Z35: 10 | AA35: 0 | AB35: 0
B36: 11 | C36: 243870.6424 | D36: 1058200.609 | E36: 243870.6424 | F36: 814329.9669 | G36: =E36*'Intersection Delay'!$E$94 -> 0 | H36: =F36*'Intersection Delay'!$E$94 -> 0 | I36: 0 | J36: 0 | K36: 0 | L36: 0 | N36: 11 | O36: 554934.6969 | P36: 554934.6969 | Q36: 554934.6969 | R36: 0 | S36: =Q36*'Intersection Delay'!$Q$94 -> 0 | T36: =R36*'Intersection Delay'!$Q$94 -> 0 | U36: 0 | V36: 0 | W36: 0 | X36: 0 | Z36: 11 | AA36: 0 | AB36: 0
B37: 12 | C37: 249426.0672 | D37: 1141804.109 | E37: 249426.0672 | F37: 892378.0419 | G37: =E37*'Intersection Delay'!$E$94 -> 0 | H37: =F37*'Intersection Delay'!$E$94 -> 0 | I37: 0 | J37: 0 | K37: 0 | L37: 0 | N37: 12 | O37: 567576.2267 | P37: 567576.2267 | Q37: 567576.2267 | R37: 0 | S37: =Q37*'Intersection Delay'!$Q$94 -> 0 | T37: =R37*'Intersection Delay'!$Q$94 -> 0 | U37: 0 | V37: 0 | W37: 0 | X37: 0 | Z37: 12 | AA37: 0 | AB37: 0
B38: 13 | C38: 254981.492 | D38: 1225407.609 | E38: 254981.492 | F38: 970426.117 | G38: =E38*'Intersection Delay'!$E$94 -> 0 | H38: =F38*'Intersection Delay'!$E$94 -> 0 | I38: 0 | J38: 0 | K38: 0 | L38: 0 | N38: 13 | O38: 580217.7564 | P38: 580217.7564 | Q38: 580217.7564 | R38: 0 | S38: =Q38*'Intersection Delay'!$Q$94 -> 0 | T38: =R38*'Intersection Delay'!$Q$94 -> 0 | U38: 0 | V38: 0 | W38: 0 | X38: 0 | Z38: 13 | AA38: 0 | AB38: 0
B39: 14 | C39: 260536.9168 | D39: 1309011.109 | E39: 260536.9168 | F39: 1048474.192 | G39: =E39*'Intersection Delay'!$E$94 -> 0 | H39: =F39*'Intersection Delay'!$E$94 -> 0 | I39: 0 | J39: 0 | K39: 0 | L39: 0 | N39: 14 | O39: 592859.2862 | P39: 592859.2862 | Q39: 592859.2862 | R39: 0 | S39: =Q39*'Intersection Delay'!$Q$94 -> 0 | T39: =R39*'Intersection Delay'!$Q$94 -> 0 | U39: 0 | V39: 0 | W39: 0 | X39: 0 | Z39: 14 | AA39: 0 | AB39: 0
B40: 15 | C40: 266092.3416 | D40: 1392614.609 | E40: 266092.3416 | F40: 1126522.267 | G40: =E40*'Intersection Delay'!$E$94 -> 0 | H40: =F40*'Intersection Delay'!$E$94 -> 0 | I40: 0 | J40: 0 | K40: 0 | L40: 0 | N40: 15 | O40: 605500.816 | P40: 605500.816 | Q40: 605500.816 | R40: 0 | S40: =Q40*'Intersection Delay'!$Q$94 -> 0 | T40: =R40*'Intersection Delay'!$Q$94 -> 0 | U40: 0 | V40: 0 | W40: 0 | X40: 0 | Z40: 15 | AA40: 0 | AB40: 0
B41: 16 | C41: 271647.7665 | D41: 1476218.109 | E41: 271647.7665 | F41: 1204570.342 | G41: =E41*'Intersection Delay'!$E$94 -> 0 | H41: =F41*'Intersection Delay'!$E$94 -> 0 | I41: 0 | J41: 0 | K41: 0 | L41: 0 | N41: 16 | O41: 618142.3458 | P41: 618142.3458 | Q41: 618142.3458 | R41: 0 | S41: =Q41*'Intersection Delay'!$Q$94 -> 0 | T41: =R41*'Intersection Delay'!$Q$94 -> 0 | U41: 0 | V41: 0 | W41: 0 | X41: 0 | Z41: 16 | AA41: 0 | AB41: 0
B42: 17 | C42: 277203.1913 | D42: 1559821.608 | E42: 277203.1913 | F42: 1282618.417 | G42: =E42*'Intersection Delay'!$E$94 -> 0 | H42: =F42*'Intersection Delay'!$E$94 -> 0 | I42: 0 | J42: 0 | K42: 0 | L42: 0 | N42: 17 | O42: 630783.8756 | P42: 630783.8756 | Q42: 630783.8756 | R42: 0 | S42: =Q42*'Intersection Delay'!$Q$94 -> 0 | T42: =R42*'Intersection Delay'!$Q$94 -> 0 | U42: 0 | V42: 0 | W42: 0 | X42: 0 | Z42: 17 | AA42: 0 | AB42: 0
B43: 18 | C43: 282758.6161 | D43: 1643425.108 | E43: 282758.6161 | F43: 1360666.492 | G43: =E43*'Intersection Delay'!$E$94 -> 0 | H43: =F43*'Intersection Delay'!$E$94 -> 0 | I43: 0 | J43: 0 | K43: 0 | L43: 0 | N43: 18 | O43: 643425.4053 | P43: 643425.4053 | Q43: 643425.4053 | R43: 0 | S43: =Q43*'Intersection Delay'!$Q$94 -> 0 | T43: =R43*'Intersection Delay'!$Q$94 -> 0 | U43: 0 | V43: 0 | W43: 0 | X43: 0 | Z43: 18 | AA43: 0 | AB43: 0
B44: 19 | C44: 288314.0409 | D44: 1727028.608 | E44: 288314.0409 | F44: 1438714.567 | G44: =E44*'Intersection Delay'!$E$94 -> 0 | H44: =F44*'Intersection Delay'!$E$94 -> 0 | I44: 0 | J44: 0 | K44: 0 | L44: 0 | N44: 19 | O44: 656066.9351 | P44: 656066.9351 | Q44: 656066.9351 | R44: 0 | S44: =Q44*'Intersection Delay'!$Q$94 -> 0 | T44: =R44*'Intersection Delay'!$Q$94 -> 0 | U44: 0 | V44: 0 | W44: 0 | X44: 0 | Z44: 19 | AA44: 0 | AB44: 0
B45: 20 | C45: 293869.4657 | D45: 1810632.108 | E45: 293869.4657 | F45: 1516762.642 | G45: =E45*'Intersection Delay'!$E$94 -> 0 | H45: =F45*'Intersection Delay'!$E$94 -> 0 | I45: 0 | J45: 0 | K45: 0 | L45: 0 | N45: 20 | O45: 668708.4649 | P45: 668708.4649 | Q45: 668708.4649 | R45: 0 | S45: =Q45*'Intersection Delay'!$Q$94 -> 0 | T45: =R45*'Intersection Delay'!$Q$94 -> 0 | U45: 0 | V45: 0 | W45: 0 | X45: 0 | Z45: 20 | AA45: 0 | AB45: 0
B47: Total | L47: =SUM(L26:L45) -> 0 | N47: Total | X47: =SUM(X26:X45) -> 0 | Z47: Total | AB47: =SUM(AB26:AB45) -> 0
B52: D | C52: CYCLING BENEFITS | N52: E | O52: PEDESTRIAN BENEFITS - SRTS | Z52: F | AA52: TOTAL
B55: Existing SRTS Facility | N55: Existing SRTS Facility | Z55: Existing Facility
C57: AVERAGE ANNUAL VOLUME | G57: TRAVEL TIME SAVED | I57: VALUE OF TIME SAVINGS | O57: AVERAGE ANNUAL VOLUME | S57: TRAVEL TIME SAVED | U57: VALUE OF TIME SAVINGS
C58: (trips/yr.) | G58: (hours/yr.) | I58: ($/year) | O58: (trips/yr.) | S58: (hours/yr.) | U58: ($/year)
B59: Year | C59: Total Trips, Existing Facility (Baseline) | D59: Total Trips, Improved Facility | E59: Existing Trips, Existing Facility | F59: Induced Trips, Existing Facility | G59: Existing Trips | H59: Induced Trips | I59: Existing Trips | J59: Induced Trips | K59: Constant Dollars | L59: Present Value | N59: Year | O59: Total Trips, Existing Facility (Baseline) | P59: Total Trips, Improved Facility | Q59: Existing Trips, Existing Facility | R59: Induced Trips, Existing Facility | S59: Existing Trips | T59: Induced Trips | U59: Existing Trips | V59: Induced Trips | W59: Constant Dollars | X59: Present Value | Z59: Year | AA59: Constant Dollars | AB59: Present Value
B60: 1 | C60: =IF(AND(OR(ProjType=1, ProjType=3),SRTSProj=1),TrSRTSCyc1NBEx,0) -> 0 | D60: =IF(AND(OR(ProjType=1, ProjType=3),SRTSProj=1),TrSRTSCyc1BEx,0) -> 0 | E60: =C60 -> 0 | F60: =D60-C60 -> 0 | G60: =E60*'Intersection Delay'!$E$94 -> 0 | H60: =F60*'Intersection Delay'!$E$94 -> 0 | I60: =G60*ValTimeAT -> 0 | J60: =H60*ValTimeAT/2 -> 0 | K60: =I60*(1+TTUprater)^($B60+Construct-1) -> 0 | L60: =$K60/(1+DiscRate)^($B60+Construct-1) -> 0 | N60: 1 | O60: =IF(AND(OR(ProjType=1, ProjType=3),SRTSProj=1),TrSRTSPed1NBEx,0) -> 0 | P60: =IF(AND(OR(ProjType=1, ProjType=3),SRTSProj=1),TrSRTSPed1BEx,0) -> 0 | Q60: =O60 -> 0 | R60: =P60-O60 -> 0 | S60: =Q60*'Intersection Delay'!$Q$94 -> 0 | T60: =R60*'Intersection Delay'!$Q$94 -> 0 | U60: =S60*ValTimeAT -> 0 | V60: =T60*ValTimeAT/2 -> 0 | W60: =U60*(1+TTUprater)^($B60+Construct-1) -> 0 | X60: =$W60/(1+DiscRate)^($B60+Construct-1) -> 0 | Z60: 1 | AA60: =W60+K60 -> 0 | AB60: =X60+L60 -> 0
B61: 20 | C61: =IF(AND(OR(ProjType=1, ProjType=3),SRTSProj=1),TrSRTSCyc20NBEx,0) -> 0 | D61: =IF(AND(OR(ProjType=1, ProjType=3),SRTSProj=1),TrSRTSCyc20BEx,0) -> 0 | E61: =C61 -> 0 | F61: =D61-C61 -> 0 | G61: =E61*'Intersection Delay'!$E$94 -> 0 | H61: =F61*'Intersection Delay'!$E$94 -> 0 | I61: =G61*ValTimeAT -> 0 | J61: =H61*ValTimeAT/2 -> 0 | K61: =I61*(1+TTUprater)^($B60+Construct-1) -> 0 | L61: =$K61/(1+DiscRate)^($B61+Construct-1) -> 0 | N61: 20 | O61: =IF(AND(OR(ProjType=1, ProjType=3),SRTSProj=1),TrSRTSPed20NBEx,0) -> 0 | P61: =IF(AND(OR(ProjType=1, ProjType=3),SRTSProj=1),TrSRTSPed20BEx,0) -> 0 | Q61: =O61 -> 0 | R61: =P61-O61 -> 0 | S61: =Q61*'Intersection Delay'!$Q$94 -> 0 | T61: =R61*'Intersection Delay'!$Q$94 -> 0 | U61: =S61*ValTimeAT -> 0 | V61: =T61*ValTimeAT/2 -> 0 | W61: =U61*(1+TTUprater)^($B60+Construct-1) -> 0 | X61: =$W61/(1+DiscRate)^($B61+Construct-1) -> 0 | Z61: 20 | AA61: =W61+K61 -> 0 | AB61: =X61+L61 -> 0
B63: 1 | C63: =TREND(C$60:C$61,$B$60:$B$61,$B63) -> 0 | D63: =TREND(D$60:D$61,$B$60:$B$61,$B63) -> 0 | E63: =C63 -> 0 | F63: =D63-C63 -> 0 | G63: =E63*'Intersection Delay'!$E$94 -> 0 | H63: =F63*'Intersection Delay'!$E$94 -> 0 | I63: =G63*ValTimeAT -> 0 | J63: =H63*ValTimeAT/2 -> 0 | K63: =I63*(1+TTUprater)^($B60+Construct-1) -> 0 | L63: =$K63/(1+DiscRate)^($B63+Construct-1) -> 0 | N63: 1 | O63: =TREND(O$23:O$24,$B$23:$B$24,$B63) -> 428519.3991 | P63: =TREND(P$23:P$24,$B$23:$B$24,$B63) -> 428519.3991 | Q63: =TREND(Q$23:Q$24,$B$23:$B$24,$B63) -> 428519.3991 | R63: =P63-O63 -> 0 | S63: =Q63*'Intersection Delay'!$Q$94 -> 0 | T63: =R63*'Intersection Delay'!$Q$94 -> 0 | U63: =S63*ValTimeAT -> 0 | V63: =T63*ValTimeAT/2 -> 0 | W63: =U63*(1+TTUprater)^($B60+Construct-1) -> 0 | X63: =$W63/(1+DiscRate)^($B63+Construct-1) -> 0 | Z63: 1 | AA63: =W63+K63 -> 0 | AB63: =X63+L63 -> 0
B64: 2 | C64: =TREND(C$60:C$61,$B$60:$B$61,$B64) -> 0 | D64: 0 | E64: 0 | F64: 0 | G64: =E64*'Intersection Delay'!$E$94 -> 0 | H64: =F64*'Intersection Delay'!$E$94 -> 0 | I64: 0 | J64: 0 | K64: 0 | L64: 0 | N64: 2 | O64: =TREND(O$23:O$24,$B$23:$B$24,$B64) -> 441160.9288 | P64: 441160.9288 | Q64: 441160.9288 | R64: 0 | S64: =Q64*'Intersection Delay'!$Q$94 -> 0 | T64: =R64*'Intersection Delay'!$Q$94 -> 0 | U64: 0 | V64: 0 | W64: 0 | X64: 0 | Z64: 2 | AA64: 0 | AB64: 0
B65: 3 | C65: 0 | D65: 0 | E65: 0 | F65: 0 | G65: =E65*'Intersection Delay'!$E$94 -> 0 | H65: =F65*'Intersection Delay'!$E$94 -> 0 | I65: 0 | J65: 0 | K65: 0 | L65: 0 | N65: 3 | O65: 453802.4586 | P65: 453802.4586 | Q65: 453802.4586 | R65: 0 | S65: =Q65*'Intersection Delay'!$Q$94 -> 0 | T65: =R65*'Intersection Delay'!$Q$94 -> 0 | U65: 0 | V65: 0 | W65: 0 | X65: 0 | Z65: 3 | AA65: 0 | AB65: 0
B66: 4 | C66: 0 | D66: 0 | E66: 0 | F66: 0 | G66: =E66*'Intersection Delay'!$E$94 -> 0 | H66: =F66*'Intersection Delay'!$E$94 -> 0 | I66: 0 | J66: 0 | K66: 0 | L66: 0 | N66: 4 | O66: 466443.9884 | P66: 466443.9884 | Q66: 466443.9884 | R66: 0 | S66: =Q66*'Intersection Delay'!$Q$94 -> 0 | T66: =R66*'Intersection Delay'!$Q$94 -> 0 | U66: 0 | V66: 0 | W66: 0 | X66: 0 | Z66: 4 | AA66: 0 | AB66: 0
B67: 5 | C67: 0 | D67: 0 | E67: 0 | F67: 0 | G67: =E67*'Intersection Delay'!$E$94 -> 0 | H67: =F67*'Intersection Delay'!$E$94 -> 0 | I67: 0 | J67: 0 | K67: 0 | L67: 0 | N67: 5 | O67: 479085.5182 | P67: 479085.5182 | Q67: 479085.5182 | R67: 0 | S67: =Q67*'Intersection Delay'!$Q$94 -> 0 | T67: =R67*'Intersection Delay'!$Q$94 -> 0 | U67: 0 | V67: 0 | W67: 0 | X67: 0 | Z67: 5 | AA67: 0 | AB67: 0
B68: 6 | C68: 0 | D68: 0 | E68: 0 | F68: 0 | G68: =E68*'Intersection Delay'!$E$94 -> 0 | H68: =F68*'Intersection Delay'!$E$94 -> 0 | I68: 0 | J68: 0 | K68: 0 | L68: 0 | N68: 6 | O68: 491727.048 | P68: 491727.048 | Q68: 491727.048 | R68: 0 | S68: =Q68*'Intersection Delay'!$Q$94 -> 0 | T68: =R68*'Intersection Delay'!$Q$94 -> 0 | U68: 0 | V68: 0 | W68: 0 | X68: 0 | Z68: 6 | AA68: 0 | AB68: 0
B69: 7 | C69: 0 | D69: 0 | E69: 0 | F69: 0 | G69: =E69*'Intersection Delay'!$E$94 -> 0 | H69: =F69*'Intersection Delay'!$E$94 -> 0 | I69: 0 | J69: 0 | K69: 0 | L69: 0 | N69: 7 | O69: 504368.5778 | P69: 504368.5778 | Q69: 504368.5778 | R69: 0 | S69: =Q69*'Intersection Delay'!$Q$94 -> 0 | T69: =R69*'Intersection Delay'!$Q$94 -> 0 | U69: 0 | V69: 0 | W69: 0 | X69: 0 | Z69: 7 | AA69: 0 | AB69: 0
B70: 8 | C70: 0 | D70: 0 | E70: 0 | F70: 0 | G70: =E70*'Intersection Delay'!$E$94 -> 0 | H70: =F70*'Intersection Delay'!$E$94 -> 0 | I70: 0 | J70: 0 | K70: 0 | L70: 0 | N70: 8 | O70: 517010.1075 | P70: 517010.1075 | Q70: 517010.1075 | R70: 0 | S70: =Q70*'Intersection Delay'!$Q$94 -> 0 | T70: =R70*'Intersection Delay'!$Q$94 -> 0 | U70: 0 | V70: 0 | W70: 0 | X70: 0 | Z70: 8 | AA70: 0 | AB70: 0
B71: 9 | C71: 0 | D71: 0 | E71: 0 | F71: 0 | G71: =E71*'Intersection Delay'!$E$94 -> 0 | H71: =F71*'Intersection Delay'!$E$94 -> 0 | I71: 0 | J71: 0 | K71: 0 | L71: 0 | N71: 9 | O71: 529651.6373 | P71: 529651.6373 | Q71: 529651.6373 | R71: 0 | S71: =Q71*'Intersection Delay'!$Q$94 -> 0 | T71: =R71*'Intersection Delay'!$Q$94 -> 0 | U71: 0 | V71: 0 | W71: 0 | X71: 0 | Z71: 9 | AA71: 0 | AB71: 0
B72: 10 | C72: 0 | D72: 0 | E72: 0 | F72: 0 | G72: =E72*'Intersection Delay'!$E$94 -> 0 | H72: =F72*'Intersection Delay'!$E$94 -> 0 | I72: 0 | J72: 0 | K72: 0 | L72: 0 | N72: 10 | O72: 542293.1671 | P72: 542293.1671 | Q72: 542293.1671 | R72: 0 | S72: =Q72*'Intersection Delay'!$Q$94 -> 0 | T72: =R72*'Intersection Delay'!$Q$94 -> 0 | U72: 0 | V72: 0 | W72: 0 | X72: 0 | Z72: 10 | AA72: 0 | AB72: 0
B73: 11 | C73: 0 | D73: 0 | E73: 0 | F73: 0 | G73: =E73*'Intersection Delay'!$E$94 -> 0 | H73: =F73*'Intersection Delay'!$E$94 -> 0 | I73: 0 | J73: 0 | K73: 0 | L73: 0 | N73: 11 | O73: 554934.6969 | P73: 554934.6969 | Q73: 554934.6969 | R73: 0 | S73: =Q73*'Intersection Delay'!$Q$94 -> 0 | T73: =R73*'Intersection Delay'!$Q$94 -> 0 | U73: 0 | V73: 0 | W73: 0 | X73: 0 | Z73: 11 | AA73: 0 | AB73: 0
B74: 12 | C74: 0 | D74: 0 | E74: 0 | F74: 0 | G74: =E74*'Intersection Delay'!$E$94 -> 0 | H74: =F74*'Intersection Delay'!$E$94 -> 0 | I74: 0 | J74: 0 | K74: 0 | L74: 0 | N74: 12 | O74: 567576.2267 | P74: 567576.2267 | Q74: 567576.2267 | R74: 0 | S74: =Q74*'Intersection Delay'!$Q$94 -> 0 | T74: =R74*'Intersection Delay'!$Q$94 -> 0 | U74: 0 | V74: 0 | W74: 0 | X74: 0 | Z74: 12 | AA74: 0 | AB74: 0
B75: 13 | C75: 0 | D75: 0 | E75: 0 | F75: 0 | G75: =E75*'Intersection Delay'!$E$94 -> 0 | H75: =F75*'Intersection Delay'!$E$94 -> 0 | I75: 0 | J75: 0 | K75: 0 | L75: 0 | N75: 13 | O75: 580217.7564 | P75: 580217.7564 | Q75: 580217.7564 | R75: 0 | S75: =Q75*'Intersection Delay'!$Q$94 -> 0 | T75: =R75*'Intersection Delay'!$Q$94 -> 0 | U75: 0 | V75: 0 | W75: 0 | X75: 0 | Z75: 13 | AA75: 0 | AB75: 0
B76: 14 | C76: 0 | D76: 0 | E76: 0 | F76: 0 | G76: =E76*'Intersection Delay'!$E$94 -> 0 | H76: =F76*'Intersection Delay'!$E$94 -> 0 | I76: 0 | J76: 0 | K76: 0 | L76: 0 | N76: 14 | O76: 592859.2862 | P76: 592859.2862 | Q76: 592859.2862 | R76: 0 | S76: =Q76*'Intersection Delay'!$Q$94 -> 0 | T76: =R76*'Intersection Delay'!$Q$94 -> 0 | U76: 0 | V76: 0 | W76: 0 | X76: 0 | Z76: 14 | AA76: 0 | AB76: 0
B77: 15 | C77: 0 | D77: 0 | E77: 0 | F77: 0 | G77: =E77*'Intersection Delay'!$E$94 -> 0 | H77: =F77*'Intersection Delay'!$E$94 -> 0 | I77: 0 | J77: 0 | K77: 0 | L77: 0 | N77: 15 | O77: 605500.816 | P77: 605500.816 | Q77: 605500.816 | R77: 0 | S77: =Q77*'Intersection Delay'!$Q$94 -> 0 | T77: =R77*'Intersection Delay'!$Q$94 -> 0 | U77: 0 | V77: 0 | W77: 0 | X77: 0 | Z77: 15 | AA77: 0 | AB77: 0
B78: 16 | C78: 0 | D78: 0 | E78: 0 | F78: 0 | G78: =E78*'Intersection Delay'!$E$94 -> 0 | H78: =F78*'Intersection Delay'!$E$94 -> 0 | I78: 0 | J78: 0 | K78: 0 | L78: 0 | N78: 16 | O78: 618142.3458 | P78: 618142.3458 | Q78: 618142.3458 | R78: 0 | S78: =Q78*'Intersection Delay'!$Q$94 -> 0 | T78: =R78*'Intersection Delay'!$Q$94 -> 0 | U78: 0 | V78: 0 | W78: 0 | X78: 0 | Z78: 16 | AA78: 0 | AB78: 0
B79: 17 | C79: 0 | D79: 0 | E79: 0 | F79: 0 | G79: =E79*'Intersection Delay'!$E$94 -> 0 | H79: =F79*'Intersection Delay'!$E$94 -> 0 | I79: 0 | J79: 0 | K79: 0 | L79: 0 | N79: 17 | O79: 630783.8756 | P79: 630783.8756 | Q79: 630783.8756 | R79: 0 | S79: =Q79*'Intersection Delay'!$Q$94 -> 0 | T79: =R79*'Intersection Delay'!$Q$94 -> 0 | U79: 0 | V79: 0 | W79: 0 | X79: 0 | Z79: 17 | AA79: 0 | AB79: 0
B80: 18 | C80: 0 | D80: 0 | E80: 0 | F80: 0 | G80: =E80*'Intersection Delay'!$E$94 -> 0 | H80: =F80*'Intersection Delay'!$E$94 -> 0 | I80: 0 | J80: 0 | K80: 0 | L80: 0 | N80: 18 | O80: 643425.4053 | P80: 643425.4053 | Q80: 643425.4053 | R80: 0 | S80: =Q80*'Intersection Delay'!$Q$94 -> 0 | T80: =R80*'Intersection Delay'!$Q$94 -> 0 | U80: 0 | V80: 0 | W80: 0 | X80: 0 | Z80: 18 | AA80: 0 | AB80: 0
B81: 19 | C81: 0 | D81: 0 | E81: 0 | F81: 0 | G81: =E81*'Intersection Delay'!$E$94 -> 0 | H81: =F81*'Intersection Delay'!$E$94 -> 0 | I81: 0 | J81: 0 | K81: 0 | L81: 0 | N81: 19 | O81: 656066.9351 | P81: 656066.9351 | Q81: 656066.9351 | R81: 0 | S81: =Q81*'Intersection Delay'!$Q$94 -> 0 | T81: =R81*'Intersection Delay'!$Q$94 -> 0 | U81: 0 | V81: 0 | W81: 0 | X81: 0 | Z81: 19 | AA81: 0 | AB81: 0
B82: 20 | C82: 0 | D82: 0 | E82: 0 | F82: 0 | G82: =E82*'Intersection Delay'!$E$94 -> 0 | H82: =F82*'Intersection Delay'!$E$94 -> 0 | I82: 0 | J82: 0 | K82: 0 | L82: 0 | N82: 20 | O82: 668708.4649 | P82: 668708.4649 | Q82: 668708.4649 | R82: 0 | S82: =Q82*'Intersection Delay'!$Q$94 -> 0 | T82: =R82*'Intersection Delay'!$Q$94 -> 0 | U82: 0 | V82: 0 | W82: 0 | X82: 0 | Z82: 20 | AA82: 0 | AB82: 0
B84: Total | L84: =SUM(L63:L82) -> 0 | N84: Total | X84: =SUM(X63:X82) -> 0 | Z84: Total | AB84: =SUM(AB63:AB82) -> 0
C88: Computation of Travel Time Parameters - Cycling | O88: Computation of Travel Time Parameters - Pedestrian
D90: Average Number of Intersections Crossed per Trip (#) | E90: =IFERROR(NumInt/ProjLenEX*TAvMiCycNB,0) -> 5.989939638 | P90: Average Number of Intersections Crossed per Trip | Q90: =IFERROR(NumInt/ProjLenEX*TAvMiPedNB,0) -> 1.778672032
D92: Total Time Savings per Trip (min) | E92: =E90*'1a) Project Info'!H88 -> 0 | P92: Total Time Savings per Trip (min) | Q92: =Q90*'1a) Project Info'!H88 -> 0
D94: Total Time Savings per Trip (hr) | E94: =E92/60 -> 0 | P94: Total Time Savings per Trip (hr) | Q94: =Q92/60 -> 0

Sheet Intersection Safety
B1: Intersection Safety Benefits
B3: This sheet calculates safety benefits associated with intersection improvements along a bike/pedestrian facility.
B5: Formulas:
B7: Baseline Ave. Ann. Accidents by Type = Sum of total Accidents by Type / Years of Accident Data | J7: Value of Accident Reduction by Type = Reduced # of accidents by Type x Value of Accident by Type
B8: Accidents / yr. | J8: $ / year | L8: $/accident
B10: Reduction in Acc. by Type = Crash Modification Factor(s) x Baseline Ave. Ann. Acc. by Type (see calculations, below) | J10: Value of Accident Reduction all types = Sum of Value of Accidents by Type
B11: vehicle-hrs / yr. | D11: vehicles / yr. x miles | F11: miles/hour | J11: $ / year | L11: $/accident
B15: A | C15: CYCLING BENEFITS | S15: B | T15: PEDESTRIAN BENEFITS | AJ15: C | AK15: TOTAL | AN15: D | AO15: SRTS Benefits Share
B18: Existing Facility | S18: Existing Facility | AJ18: Existing Facility | AN18: Existing Facility
C20: EXISTING ACCIDENT RATE AT AFFECTED INTERSECTIONS | G20: NEW ACCIDENT RATE AT AFFECTED INTERSECTIONS | K20: ACCIDENT REDUCTION AT AFFECTED INTERSECTIONS | O20: SAFETY VALUE | T20: EXISTING ACCIDENT RATE AT AFFECTED INTERSECTIONS | X20: NEW ACCIDENT RATE AT AFFECTED INTERSECTIONS | AB20: ACCIDENT REDUCTION AT AFFECTED INTERSECTIONS | AF20: SAFETY VALUE | AO20: Share of Cycling Benefits | AP20: Share of Ped Benefits | AQ20: Sum of Benefits
C21: (events/yr.) | G21: (events/yr.) | K21: (events/yr.) | O21: ($) | T21: (events/yr.) | X21: (events/yr.) | AB21: (events/yr.) | AF21: ($) | AO21: ='2) Model Inputs'!$H$166 -> 0 | AP21: ='2) Model Inputs'!$S$166 -> 0
B22: Year | C22: Fatalities | D22: Injuries | E22: Property Damage Only | F22: Total | G22: Fatalities | H22: Injuries | I22: Property Damage Only | J22: Total | K22: Fatalities | L22: Injuries | M22: Property Damage Only | N22: Total | O22: Total | P22: Constant Dollars | Q22: Present Value | S22: Year | T22: Fatalities | U22: Injuries | V22: Property Damage Only | W22: Total | X22: Fatalities | Y22: Injuries | Z22: Property Damage Only | AA22: Total | AB22: Fatalities | AC22: Injuries | AD22: Property Damage Only | AE22: Total | AF22: Total | AG22: Constant Dollars | AH22: Present Value | AK22: Dollars | AL22: Value | AN22: Year | AO22: SRTS Cycling Benefits - Present Value | AP22: SRTS Ped Benefits - Present Value
B23: 1 | C23: =IF(OR(ProjType=1, ProjType=3),FatCycYr,0) -> 0.2 | D23: =IF(OR(ProjType=1, ProjType=3),InjCycYr,0) -> 19.8 | E23: =IF(OR(ProjType=1, ProjType=3),PdoCycYr,0) -> 20 | F23: =SUM(C23:E23) -> 40 | G23: =C23*(1-$K$79) -> 0.043875 | H23: 4.343625 | I23: 4.3875 | J23: =SUM(G23:I23) -> 8.775 | K23: =C23-G23 -> 0.156125 | L23: 15.456375 | M23: 15.6125 | N23: 31.225 | O23: =L79 -> 4865947.875 | P23: =O23 -> 4865947.875 | Q23: =$P23/(1+DiscRate)^($B23+Construct-1) -> 4250107.324 | S23: 1 | T23: =IF(OR(ProjType=1, ProjType=3),FatPedYr,0) -> 1 | U23: =IF(OR(ProjType=1, ProjType=3),InjPedYr,0) -> 31.4 | V23: =IF(OR(ProjType=1, ProjType=3),PdoPedYr,0) -> 30 | W23: =SUM(T23:V23) -> 62.4 | X23: =T23*(1-$K$79) -> 0.219375 | Y23: 6.888375 | Z23: 6.58125 | AA23: =SUM(X23:Z23) -> 13.689 | AB23: =T23-X23 -> 0.780625 | AC23: 24.511625 | AD23: 23.41875 | AE23: 48.711 | AF23: =AC79 -> 14632191.12 | AG23: =AF23 -> 14632191.12 | AH23: =$AG23/(1+DiscRate)^($B23+Construct-1) -> 12780322.41 | AJ23: 1 | AK23: =AG23+P23 -> 19498139 | AL23: =AH23+Q23 -> 17030429.73 | AN23: 1 | AO23: =$AO$21*Q23 -> 0 | AP23: =$AP$21*AH23 -> 0 | AQ23: =SUM(AO23:AP23) -> 0
B24: 20 | C24: =C45 -> 0.1500784636 | D24: =D45 -> 14.8577679 | E24: =E45 -> 15.00784636 | F24: =SUM(C24:E24) -> 30.01569272 | G24: 0.03292346296 | H24: 3.259422833 | I24: 3.292346296 | J24: =SUM(G24:I24) -> 6.584692591 | K24: 0.1171550007 | L24: 11.59834507 | M24: 11.71550007 | N24: 23.43100013 | O24: =O45 -> 3651369.906 | P24: =O24 -> 3651369.906 | Q24: =$P24/(1+DiscRate)^($B24+Construct-1) -> 881853.6168 | S24: 20 | T24: =T45 -> 1.658969602 | U24: =U45 -> 52.0916455 | V24: =V45 -> 49.76908806 | W24: =SUM(T24:V24) -> 103.5197032 | X24: 0.3639364564 | Y24: 11.42760473 | Z24: 10.91809369 | AA24: =SUM(X24:Z24) -> 22.70963488 | AB24: 1.295033146 | AC24: 40.66404077 | AD24: 38.85099437 | AE24: 80.81006829 | AF24: =AF45 -> 24274360.29 | AG24: =AF24 -> 24274360.29 | AH24: =$AG24/(1+DiscRate)^($B24+Construct-1) -> 5862575.682 | AJ24: 20 | AK24: =AG24+P24 -> 27925730.19 | AL24: =AH24+Q24 -> 6744429.299 | AN24: 20 | AO24: =$AO$21*Q24 -> 0 | AP24: =$AP$21*AH24 -> 0 | AQ24: =SUM(AO24:AP24) -> 0
B26: 1 | C26: =C23 -> 0.2 | D26: =D23 -> 19.8 | E26: =E23 -> 20 | F26: =SUM(C26:E26) -> 40 | G26: =C26*(1-$K$79) -> 0.043875 | H26: =D26*(1-$K$79) -> 4.343625 | I26: =E26*(1-$K$79) -> 4.3875 | J26: =SUM(G26:I26) -> 8.775 | K26: =C26-G26 -> 0.156125 | L26: =D26-H26 -> 15.456375 | M26: =E26-I26 -> 15.6125 | N26: =F26-J26 -> 31.225 | O26: =O23 -> 4865947.875 | P26: =O26 -> 4865947.875 | Q26: =$P26/(1+DiscRate)^($B26+Construct-1) -> 4250107.324 | S26: 1 | T26: =T23 -> 1 | U26: =U23 -> 31.4 | V26: =V23 -> 30 | W26: =SUM(T26:V26) -> 62.4 | X26: =T26*(1-$K$79) -> 0.219375 | Y26: =U26*(1-$K$79) -> 6.888375 | Z26: =V26*(1-$K$79) -> 6.58125 | AA26: =SUM(X26:Z26) -> 13.689 | AB26: =T26-X26 -> 0.780625 | AC26: =U26-Y26 -> 24.511625 | AD26: =V26-Z26 -> 23.41875 | AE26: =W26-AA26 -> 48.711 | AF26: =AF23 -> 14632191.12 | AG26: =AF26 -> 14632191.12 | AH26: =$AG26/(1+DiscRate)^($B26+Construct-1) -> 12780322.41 | AJ26: 1 | AK26: =AG26+P26 -> 19498139 | AL26: =AH26+Q26 -> 17030429.73 | AN26: 1 | AO26: =$AO$21*Q26 -> 0 | AP26: =$AP$21*AH26 -> 0 | AQ26: =SUM(AO26:AP26) -> 0
B27: 2 | C27: =C26*(1+AccCycGrowth) -> 0.197 | D27: =D26*(1+AccCycGrowth) -> 19.503 | E27: =E26*(1+AccCycGrowth) -> 19.7 | F27: 39.4 | G27: 0.043216875 | H27: 4.278470625 | I27: 4.3216875 | J27: 8.643375 | K27: 0.153783125 | L27: 15.22452937 | M27: 15.3783125 | N27: 30.756625 | O27: =O26*(1+AccCycGrowth) -> 4792958.657 | P27: =O27 -> 4792958.657 | Q27: 3912481.976 | S27: 2 | T27: =T26*(1+AccPedGrowth) -> 1.027 | U27: =U26*(1+AccPedGrowth) -> 32.2478 | V27: =V26*(1+AccPedGrowth) -> 30.81 | W27: 64.0848 | X27: 0.225298125 | Y27: 7.074361125 | Z27: 6.75894375 | AA27: 14.058603 | AB27: 0.801701875 | AC27: 25.17343887 | AD27: 24.05105625 | AE27: 50.026197 | AF27: =AF26*(1+AccPedGrowth) -> 15027260.29 | AG27: =AF27 -> 15027260.29 | AH27: 12266720.67 | AJ27: 2 | AK27: 19820218.94 | AL27: 16179202.64 | AN27: 2 | AO27: 0 | AP27: 0 | AQ27: =SUM(AO27:AP27) -> 0
B28: 3 | C28: 0.194045 | D28: 19.210455 | E28: 19.4045 | F28: 38.809 | G28: 0.04256862187 | H28: 4.214293566 | I28: 4.256862187 | J28: 8.513724375 | K28: 0.1514763781 | L28: 14.99616143 | M28: 15.14763781 | N28: 30.29527562 | O28: 4721064.277 | P28: =O28 -> 4721064.277 | Q28: 3601677.333 | S28: 3 | T28: 1.054729 | U28: 33.1184906 | V28: 31.64187 | W28: 65.8150896 | X28: 0.2313811744 | Y28: 7.265368875 | Z28: 6.941435231 | AA28: 14.43818528 | AB28: 0.8233478256 | AC28: 25.85312172 | AD28: 24.70043477 | AE28: 51.37690432 | AF28: 15432996.31 | AG28: 15432996.31 | AH28: 11773758.99 | AJ28: 3 | AK28: 20154060.59 | AL28: 15375436.33 | AN28: 3 | AO28: 0 | AP28: 0 | AQ28: 0
B29: 4 | C29: 0.191134325 | D29: 18.92229817 | E29: 19.1134325 | F29: 38.226865 | G29: 0.04193009255 | H29: 4.151079162 | I29: 4.193009255 | J29: 8.386018509 | K29: 0.1492042325 | L29: 14.77121901 | M29: 14.92042325 | N29: 29.84084649 | O29: 4650248.313 | P29: =O29 -> 4650248.313 | Q29: 3315562.778 | S29: 4 | T29: 1.083206683 | U29: 34.01268985 | V29: 32.49620049 | W29: 67.59209702 | X29: 0.2376284661 | Y29: 7.461533835 | Z29: 7.128853982 | AA29: 14.82801628 | AB29: 0.8455782169 | AC29: 26.55115601 | AD29: 25.36734651 | AE29: 52.76408074 | AF29: 15849687.21 | AG29: 15849687.21 | AH29: 11300607.93 | AJ29: 4 | AK29: 20499935.53 | AL29: 14616170.71 | AN29: 4 | AO29: 0 | AP29: 0 | AQ29: 0
B30: 5 | C30: 0.1882673101 | D30: 18.6384637 | E30: 18.82673101 | F30: 37.65346202 | G30: 0.04130114116 | H30: 4.088812975 | I30: 4.130114116 | J30: 8.260228232 | K30: 0.146966169 | L30: 14.54965073 | M30: 14.6966169 | N30: 29.39323379 | O30: 4580494.588 | P30: 4580494.588 | Q30: 3052176.95 | S30: 5 | T30: 1.112453263 | U30: 34.93103247 | V30: 33.3735979 | W30: 69.41708364 | X30: 0.2440444347 | Y30: 7.662995249 | Z30: 7.32133304 | AA30: 15.22837272 | AB30: 0.8684088288 | AC30: 27.26803722 | AD30: 26.05226486 | AE30: 54.18871092 | AF30: 16277628.77 | AG30: 16277628.77 | AH30: 10846471.35 | AJ30: 5 | AK30: 20858123.36 | AL30: 13898648.3 | AN30: 5 | AO30: 0 | AP30: 0 | AQ30: 0
B31: 6 | C31: 0.1854433005 | D31: 18.35888675 | E31: 18.54433005 | F31: 37.08866009 | G31: 0.04068162404 | H31: 4.02748078 | I31: 4.068162404 | J31: 8.136324808 | K31: 0.1447616764 | L31: 14.33140597 | M31: 14.47616764 | N31: 28.95233529 | O31: 4511787.169 | P31: 4511787.169 | Q31: 2809714.295 | S31: 6 | T31: 1.142489502 | U31: 35.87417035 | V31: 34.27468505 | W31: 71.2913449 | X31: 0.2506336344 | Y31: 7.86989612 | Z31: 7.519009032 | AA31: 15.63953879 | AB31: 0.8918558672 | AC31: 28.00427423 | AD31: 26.75567601 | AE31: 55.65180611 | AF31: 16717124.75 | AG31: 16717124.75 | AH31: 10410585.12 | AJ31: 6 | AK31: 21228911.91 | AL31: 13220299.42 | AN31: 6 | AO31: 0 | AP31: 0 | AQ31: 0
B32: 7 | C32: 0.182661651 | D32: 18.08350345 | E32: 18.2661651 | F32: 36.53233019 | G32: 0.04007139968 | H32: 3.967068568 | I32: 4.007139968 | J32: 8.014279936 | K32: 0.1425902513 | L32: 14.11643488 | M32: 14.25902513 | N32: 28.51805026 | O32: 4444110.362 | P32: 4444110.362 | Q32: 2586512.692 | S32: 7 | T32: 1.173336718 | U32: 36.84277295 | V32: 35.20010154 | W32: 73.21621121 | X32: 0.2574007425 | Y32: 8.082383316 | Z32: 7.722022276 | AA32: 16.06180633 | AB32: 0.9159359756 | AC32: 28.76038963 | AD32: 27.47807927 | AE32: 57.15440488 | AF32: 17168487.11 | AG32: 17168487.11 | AH32: 9992215.811 | AJ32: 7 | AK32: 21612597.47 | AL32: 12578728.5 | AN32: 7 | AO32: 0 | AP32: 0 | AQ32: 0
B33: 8 | C33: 0.1799217262 | D33: 17.81225089 | E33: 17.99217262 | F33: 35.98434524 | G33: 0.03947032869 | H33: 3.90756254 | I33: 3.947032869 | J33: 7.894065737 | K33: 0.1404513975 | L33: 13.90468835 | M33: 14.04513975 | N33: 28.0902795 | O33: 4377448.706 | P33: 4377448.706 | Q33: 2381042.058 | S33: 8 | T33: 1.205016809 | U33: 37.83752782 | V33: 36.15050428 | W33: 75.19304891 | X33: 0.2643505626 | Y33: 8.300607665 | Z33: 7.930516877 | AA33: 16.49547511 | AB33: 0.9406662469 | AC33: 29.53692015 | AD33: 28.21998741 | AE33: 58.69757381 | AF33: 17632036.27 | AG33: 17632036.27 | AH33: 9590659.475 | AJ33: 8 | AK33: 22009484.97 | AL33: 11971701.53 | AN33: 8 | AO33: 0 | AP33: 0 | AQ33: 0
B34: 9 | C34: 0.1772229003 | D34: 17.54506713 | E34: 17.72229003 | F34: 35.44458006 | G34: 0.03887827376 | H34: 3.848949102 | I34: 3.887827376 | J34: 7.775654751 | K34: 0.1383446266 | L34: 13.69611803 | M34: 13.83446266 | N34: 27.66892531 | O34: 4311786.976 | P34: 4311786.976 | Q34: 2191893.857 | S34: 9 | T34: 1.237552263 | U34: 38.85914107 | V34: 37.1265679 | W34: 77.22326123 | X34: 0.2714880278 | Y34: 8.524724072 | Z34: 8.144640833 | AA34: 16.94085293 | AB34: 0.9660642356 | AC34: 30.334417 | AD34: 28.98192707 | AE34: 60.2824083 | AF34: 18108101.24 | AG34: 18108101.24 | AH34: 9205240.449 | AJ34: 9 | AK34: 22419888.22 | AL34: 11397134.31 | AN34: 9 | AO34: 0 | AP34: 0 | AQ34: 0
B35: 10 | C35: 0.1745645568 | D35: 17.28189112 | E35: 17.45645568 | F35: 34.91291136 | G35: 0.03829509965 | H35: 3.791214865 | I35: 3.829509965 | J35: 7.65901993 | K35: 0.1362694572 | L35: 13.49067626 | M35: 13.62694572 | N35: 27.25389143 | O35: 4247110.171 | P35: 4247110.171 | Q35: 2017771.448 | S35: 10 | T35: 1.270966174 | U35: 39.90833788 | V35: 38.12898523 | W35: 79.30828929 | X35: 0.2788182045 | Y35: 8.754891622 | Z35: 8.364546136 | AA35: 17.39825596 | AB35: 0.9921479699 | AC35: 31.15344626 | AD35: 29.7644391 | AE35: 61.91003332 | AF35: 18597019.98 | AG35: 18597019.98 | AH35: 8835310.226 | AJ35: 10 | AK35: 22844130.15 | AL35: 10853081.67 | AN35: 10 | AO35: 0 | AP35: 0 | AQ35: 0
B36: 11 | C36: 0.1719460885 | D36: 17.02266276 | E36: 17.19460885 | F36: 34.38921769 | G36: 0.03772067315 | H36: 3.734346642 | I36: 3.772067315 | J36: 7.544134631 | K36: 0.1342254153 | L36: 13.28831611 | M36: 13.42254153 | N36: 26.84508306 | O36: 4183403.519 | P36: 4183403.519 | Q36: 1857481.193 | S36: 11 | T36: 1.305282261 | U36: 40.985863 | V36: 39.15846783 | W36: 81.4496131 | X36: 0.286346296 | Y36: 8.991273696 | Z36: 8.590388881 | AA36: 17.86800887 | AB36: 1.018935965 | AC36: 31.9945893 | AD36: 30.56807895 | AE36: 63.58160422 | AF36: 19099139.52 | AG36: 19099139.52 | AH36: 8480246.357 | AJ36: 11 | AK36: 23282543.04 | AL36: 10337727.55 | AN36: 11 | AO36: 0 | AP36: 0 | AQ36: 0
B37: 12 | C37: 0.1693668971 | D37: 16.76732282 | E37: 16.93668971 | F37: 33.87337943 | G37: 0.03715486306 | H37: 3.678331443 | I37: 3.715486306 | J37: 7.430972611 | K37: 0.1322120341 | L37: 13.08899137 | M37: 13.22120341 | N37: 26.44240681 | O37: 4120652.466 | P37: 4120652.466 | Q37: 1709924.275 | S37: 12 | T37: 1.340524882 | U37: 42.0924813 | V37: 40.21574647 | W37: 83.64875265 | X37: 0.294077646 | Y37: 9.234038086 | Z37: 8.822329381 | AA37: 18.35044511 | AB37: 1.046447236 | AC37: 32.85844322 | AD37: 31.39341709 | AE37: 65.29830754 | AF37: 19614816.28 | AG37: 19614816.28 | AH37: 8139451.41 | AJ37: 12 | AK37: 23735468.75 | AL37: 9849375.685 | AN37: 12 | AO37: 0 | AP37: 0 | AQ37: 0
B38: 13 | C38: 0.1668263937 | D38: 16.51581297 | E38: 16.68263937 | F38: 33.36527873 | G38: 0.03659754011 | H38: 3.623156471 | I38: 3.659754011 | J38: 7.319508022 | K38: 0.1302288536 | L38: 12.8926565 | M38: 13.02288536 | N38: 26.04577071 | O38: 4058842.679 | P38: 4058842.679 | Q38: 1574089.169 | S38: 13 | T38: 1.376719054 | U38: 43.2289783 | V38: 41.30157162 | W38: 85.90726897 | X38: 0.3020177425 | Y38: 9.483357114 | Z38: 9.060532274 | AA38: 18.84590713 | AB38: 1.074701312 | AC38: 33.74562118 | AD38: 32.24103935 | AE38: 67.06136184 | AF38: 20144416.32 | AG38: 20144416.32 | AH38: 7812351.961 | AJ38: 13 | AK38: 24203259 | AL38: 9386441.13 | AN38: 13 | AO38: 0 | AP38: 0 | AQ38: 0
B39: 14 | C39: 0.1643239978 | D39: 16.26807578 | E39: 16.43239978 | F39: 32.86479955 | G39: 0.03604857701 | H39: 3.568809124 | I39: 3.604857701 | J39: 7.209715402 | K39: 0.1282754208 | L39: 12.69926665 | M39: 12.82754208 | N39: 25.65508415 | O39: 3997960.039 | P39: 3997960.039 | Q39: 1449044.703 | S39: 14 | T39: 1.413890468 | U39: 44.39616071 | V39: 42.41671405 | W39: 88.22676523 | X39: 0.3101722215 | Y39: 9.739407756 | Z39: 9.305166646 | AA39: 19.35474662 | AB39: 1.103718247 | AC39: 34.65675295 | AD39: 33.11154741 | AE39: 68.87201861 | AF39: 20688315.56 | AG39: 20688315.56 | AH39: 7498397.63 | AJ39: 14 | AK39: 24686275.6 | AL39: 8947442.332 | AN39: 14 | AO39: 0 | AP39: 0 | AQ39: 0
B40: 15 | C40: 0.1618591378 | D40: 16.02405464 | E40: 16.18591378 | F40: 32.37182756 | G40: 0.03550784835 | H40: 3.515276987 | I40: 3.550784835 | J40: 7.101569671 | K40: 0.1263512894 | L40: 12.50877765 | M40: 12.63512894 | N40: 25.27025789 | O40: 3937990.638 | P40: 3937990.638 | Q40: 1333933.675 | S40: 15 | T40: 1.452065511 | U40: 45.59485705 | V40: 43.56196533 | W40: 90.6088879 | X40: 0.3185468715 | Y40: 10.00237177 | Z40: 9.556406145 | AA40: 19.87732478 | AB40: 1.13351864 | AC40: 35.59248528 | AD40: 34.00555919 | AE40: 70.73156311 | AF40: 21246900.09 | AG40: 21246900.09 | AH40: 7197060.155 | AJ40: 15 | AK40: 25184890.72 | AL40: 8530993.83 | AN40: 15 | AO40: 0 | AP40: 0 | AQ40: 0
B41: 16 | C41: 0.1594312507 | D41: 15.78369382 | E41: 15.94312507 | F41: 31.88625015 | G41: 0.03497523063 | H41: 3.462547832 | I41: 3.497523063 | J41: 6.995046126 | K41: 0.1244560201 | L41: 12.32114599 | M41: 12.44560201 | N41: 24.89120402 | O41: 3878920.778 | P41: 3878920.778 | Q41: 1227966.981 | S41: 16 | T41: 1.49127128 | U41: 46.82591819 | V41: 44.7381384 | W41: 93.05532787 | X41: 0.327147637 | Y41: 10.2724358 | Z41: 9.814429111 | AA41: 20.41401255 | AB41: 1.164123643 | AC41: 36.55348239 | AD41: 34.92370929 | AE41: 72.64131532 | AF41: 21820566.39 | AG41: 21820566.39 | AH41: 6907832.504 | AJ41: 16 | AK41: 25699487.17 | AL41: 8135799.485 | AN41: 16 | AO41: 0 | AP41: 0 | AQ41: 0
B42: 17 | C42: 0.157039782 | D42: 15.54693841 | E42: 15.7039782 | F42: 31.40795639 | G42: 0.03445060217 | H42: 3.410609615 | I42: 3.445060217 | J42: 6.890120434 | K42: 0.1225891798 | L42: 12.1363288 | M42: 12.25891798 | N42: 24.51783596 | O42: 3820736.967 | P42: 3820736.967 | Q42: 1130418.202 | S42: 17 | T42: 1.531535604 | U42: 48.09021798 | V42: 45.94606813 | W42: 95.56782172 | X42: 0.3359806232 | Y42: 10.54979157 | Z42: 10.0794187 | AA42: 20.96519089 | AB42: 1.195554981 | AC42: 37.54042641 | AD42: 35.86664944 | AE42: 74.60263083 | AF42: 22409721.68 | AG42: 22409721.68 | AH42: 6630228.02 | AJ42: 17 | AK42: 26230458.65 | AL42: 7760646.222 | AN42: 17 | AO42: 0 | AP42: 0 | AQ42: 0
B43: 18 | C43: 0.1546841852 | D43: 15.31373434 | E43: 15.46841852 | F43: 30.93683705 | G43: 0.03393384314 | H43: 3.359450471 | I43: 3.393384314 | J43: 6.786768627 | K43: 0.1207503421 | L43: 11.95428387 | M43: 12.07503421 | N43: 24.15006842 | O43: 3763425.912 | P43: 3763425.912 | Q43: 1040618.625 | S43: 18 | T43: 1.572887066 | U43: 49.38865387 | V43: 47.18661197 | W43: 98.14815291 | X43: 0.3450521001 | Y43: 10.83463594 | Z43: 10.351563 | AA43: 21.53125104 | AB43: 1.227834966 | AC43: 38.55401792 | AD43: 36.83504897 | AE43: 76.61690186 | AF43: 23014784.17 | AG43: 23014784.17 | AH43: 6363779.604 | AJ43: 18 | AK43: 26778210.08 | AL43: 7404398.23 | AN43: 18 | AO43: 0 | AP43: 0 | AQ43: 0
B44: 19 | C44: 0.1523639225 | D44: 15.08402832 | E44: 15.23639225 | F44: 30.47278449 | G44: 0.03342483549 | H44: 3.309058713 | I44: 3.342483549 | J44: 6.684967098 | K44: 0.118939087 | L44: 11.77496961 | M44: 11.8939087 | N44: 23.78781739 | O44: 3706974.524 | P44: 3706974.524 | Q44: 957952.6599 | S44: 19 | T44: 1.615355017 | U44: 50.72214752 | V44: 48.4606505 | W44: 100.798153 | X44: 0.3543685068 | Y44: 11.12717111 | Z44: 10.6310552 | AA44: 22.11259482 | AB44: 1.26098651 | AC44: 39.59497641 | AD44: 37.82959529 | AE44: 78.68555821 | AF44: 23636183.34 | AG44: 23636183.34 | AH44: 6108038.928 | AJ44: 19 | AK44: 27343157.86 | AL44: 7065991.588 | AN44: 19 | AO44: 0 | AP44: 0 | AQ44: 0
B45: 20 | C45: 0.1500784636 | D45: 14.8577679 | E45: 15.00784636 | F45: 30.01569272 | G45: 0.03292346296 | H45: 3.259422833 | I45: 3.292346296 | J45: 6.584692591 | K45: 0.1171550007 | L45: 11.59834507 | M45: 11.71550007 | N45: 23.43100013 | O45: 3651369.906 | P45: 3651369.906 | Q45: 881853.6168 | S45: 20 | T45: 1.658969602 | U45: 52.0916455 | V45: 49.76908806 | W45: 103.5197032 | X45: 0.3639364564 | Y45: 11.42760473 | Z45: 10.91809369 | AA45: 22.70963488 | AB45: 1.295033146 | AC45: 40.66404077 | AD45: 38.85099437 | AE45: 80.81006829 | AF45: 24274360.29 | AG45: 24274360.29 | AH45: 5862575.682 | AJ45: 20 | AK45: 27925730.19 | AL45: 6744429.299 | AN45: 20 | AO45: 0 | AP45: 0 | AQ45: 0
B47: Total | Q47: =SUM(Q26:Q45) -> 43282223.81 | S47: Total | AH47: =SUM(AH26:AH45) -> 178001854.7 | AJ47: Total | AL47: =SUM(AL26:AL45) -> 221284078.5 | AN47: Total | AO47: =SUM(AO26:AO45) -> 0 | AP47: =SUM(AP26:AP45) -> 0 | AQ47: 0
C50: Intersection Safety Improvements - Cycling | T50: Intersection Safety Improvements - Pedestrian
H52: Fatalities | I52: Injuries | J52: Property Damage Only | L52: Total | Y52: Fatalities | Z52: Injuries | AA52: Property Damage Only | AC52: Total
G53: Baseline Frequency | H53: =FatCycYr -> 0.2 | I53: =InjCycYr -> 19.8 | J53: =PdoCycYr -> 20 | L53: =SUM(H53:J53) -> 40 | X53: Baseline Frequency | Y53: =FatPedYr -> 1 | Z53: =InjPedYr -> 31.4 | AA53: =PdoPedYr -> 30 | AC53: =SUM(Y53:AA53) -> 62.4
G54: Cost per Collision (Vc) | H54: =HwyFatCost -> 13000000 | I54: =HwyInjCost -> 173000 | J54: =HwyPDOCost -> 10400 | L54: =SUMPRODUCT(H53:J53,H54:J54) -> 6233400 | X54: Cost per Collision (Vc) | Y54: =HwyFatCost -> 13000000 | Z54: =HwyInjCost -> 173000 | AA54: =HwyPDOCost -> 10400 | AC54: =SUMPRODUCT(Y53:AA53,Y54:AA54) -> 18744200
G57: Measures | H57: Applicable | I57: Collision Reduction Factors (CRFs) | J57: Potential Cost Reduction | K57: Estimated Impact (%) - Pc | L57: Singular Measure Impact ($) | X57: Measures | Y57: Applicable | Z57: Collision Reduction Factors (CRFs) | AA57: Potential Cost Reduction | AB57: Estimated Impact (%) - Pc | AC57: Estimated Impact ($)
G58: SIGNALIZED INTERSECTION COUNTERMEASURES | X58: SIGNALIZED INTERSECTION COUNTERMEASURES
G59: Install pedestrian countdown signal heads | H59: ='1a) Project Info'!H116 -> 0 | I59: 0.25 | J59: =($L$54*I59) -> 1558350 | K59: =I59*$H59 -> 0 | L59: 0 | X59: Install pedestrian countdown signal heads | Y59: ='1a) Project Info'!H116 -> 0 | Z59: 0.25 | AA59: =($AC$54*Z59) -> 4686050 | AB59: =Z59*$Y59 -> 0 | AC59: =AA59*$Y59 -> 0
G60: Install pedestrian crossing | H60: ='1a) Project Info'!H117 -> 0 | I60: 0.25 | J60: =($L$54*I60) -> 1558350 | K60: 0 | L60: 0 | X60: Install pedestrian crossing | Y60: ='1a) Project Info'!H117 -> 0 | Z60: 0.25 | AA60: =($AC$54*Z60) -> 4686050 | AB60: =Z60*$Y60 -> 0 | AC60: =AA60*$Y60 -> 0
G61: Install advance stop bar before crosswalk (bicycle box) | H61: ='1a) Project Info'!H118 -> 0 | I61: 0.15 | J61: =($L$54*I61) -> 935010 | K61: 0 | L61: 0 | X61: Install advance stop bar before crosswalk (bicycle box) | Y61: ='1a) Project Info'!H118 -> 0 | Z61: 0.15 | AA61: =($AC$54*Z61) -> 2811630 | AB61: =Z61*$Y61 -> 0 | AC61: 0
G62: Install pedestrian overpass/ underpass | H62: ='1a) Project Info'!H119 -> 0 | I62: 0.75 | J62: =($L$54*I62) -> 4675050 | K62: 0 | L62: 0 | X62: Install pedestrian overpass/ underpass | Y62: ='1a) Project Info'!H119 -> 0 | Z62: 0.75 | AA62: =($AC$54*Z62) -> 14058150 | AB62: =Z62*$Y62 -> 0 | AC62: 0
G64: UNSIGNALIZED INTERESECTION COUNTERMEASURES | X64: UNSIGNALIZED INTERESECTION COUNTERMEASURES
G65: Install raised medians/ refuge islands | H65: ='1a) Project Info'!H121 -> 0 | I65: 0.45 | J65: =($L$54*I65) -> 2805030 | K65: =I65*$H65 -> 0 | L65: 0 | X65: Install raised medians/ refuge islands | Y65: ='1a) Project Info'!H121 -> 0 | Z65: 0.45 | AA65: =($AC$54*Z65) -> 8434890 | AB65: =Z65*$Y65 -> 0 | AC65: =AA65*$Y65 -> 0
G66: Install pedestrian crossings (new signs and markings only | H66: ='1a) Project Info'!H122 -> 1 | I66: 0.25 | J66: =($L$54*I66) -> 1558350 | K66: 0.25 | L66: 1558350 | X66: Install pedestrian crossings (new signs and markings only | Y66: ='1a) Project Info'!H122 -> 1 | Z66: 0.25 | AA66: =($AC$54*Z66) -> 4686050 | AB66: =Z66*$Y66 -> 0.25 | AC66: =AA66*$Y66 -> 4686050
G67: Install pedestrian crossing (with enhanced safety measures/ curb extensions | H67: ='1a) Project Info'!H123 -> 1 | I67: 0.35 | J67: =($L$54*I67) -> 2181690 | K67: 0.35 | L67: 2181690 | X67: Install pedestrian crossing (with enhanced safety measures/ curb extensions | Y67: ='1a) Project Info'!H123 -> 1 | Z67: 0.35 | AA67: =($AC$54*Z67) -> 6560470 | AB67: =Z67*$Y67 -> 0.35 | AC67: 6560470
G68: Install pedestrian signal | H68: ='1a) Project Info'!H124 -> 1 | I68: 0.55 | J68: =($L$54*I68) -> 3428370 | K68: 0.55 | L68: 3428370 | X68: Install pedestrian signal | Y68: ='1a) Project Info'!H124 -> 1 | Z68: 0.55 | AA68: =($AC$54*Z68) -> 10309310 | AB68: =Z68*$Y68 -> 0.55 | AC68: 10309310
G70: ROADWAY COUNTERMEASURES - CAPTURED BY JOURNEY QUALITY | X70: ROADWAY COUNTERMEASURES
G71: Install sidewalk/pathway (to avoid walking along roadways | X71: Install sidewalk/pathway (to avoid walking along roadways | Y71: ='1a) Project Info'!H126 -> 1 | Z71: 0.8 | AA71: =($AC$54*Z71) -> 14995360 | AB71: =Z71*$Y71 -> 0.8 | AC71: =AA71*$Y71 -> 14995360
G72: Install pedestrian crossing (with enhanced safety measures | X72: Install pedestrian crossing (with enhanced safety measures | Y72: ='1a) Project Info'!H127 -> 1 | Z72: 0.3 | AA72: =($AC$54*Z72) -> 5623260 | AB72: =Z72*$Y72 -> 0.3 | AC72: 5623260
G73: Install Pedestrian crossing | X73: Install Pedestrian crossing | Y73: ='1a) Project Info'!H128 -> 1 | Z73: 0.35 | AA73: =($AC$54*Z73) -> 6560470 | AB73: =Z73*$Y73 -> 0.35 | AC73: 6560470
G75: OTHER REDUCTION FACTOR | H75: ='1a) Project Info'!H129 -> 0 | I75: 0.1 | J75: =($L$54*I75) -> 623340 | K75: =I75*$H75 -> 0 | L75: =J75*$H75 -> 0 | X75: OTHER REDUCTION FACTOR | Y75: ='1a) Project Info'!H129 -> 0 | Z75: 0.1 | AA75: =($AC$54*Z75) -> 1874420 | AB75: =Z75*$H75 -> 0 | AC75: 0
G77: TOTAL | X77: TOTAL
J78: TOTAL MEASURES | K78: =IF(OR(ProjType=1, ProjType=3),SUM(H59:H75),0) -> 3 | AA78: TOTAL MEASURES | AB78: =IF(OR(ProjType=1, ProjType=3),SUM(Y59:Y75),0) -> 6
J79: TOTAL COMBINED ANNUAL IMPACT | K79: =1-(1-LARGE(K59:K75,1))*(1-LARGE(K59:K75,2))*(1-LARGE(K59:K75,3)) -> 0.780625 | L79: =$K$79*(H54*H53+I53*I54+J53*J54) -> 4865947.875 | AA79: TOTAL ANNUAL IMPACT | AB79: =1-(1-LARGE(AB59:AB75,1))*(1-LARGE(AB59:AB75,2))*(1-LARGE(AB59:AB75,3)) -> 0.9415 | AC79: =$K$79*(Y54*Y53+Z53*Z54+AA53*AA54) -> 14632191.12

Sheet Intersection Safety Combined Be
F2: CYCLING BENEFITS | Z2: PEDESTRIAN BENEFITS | AR2: Total Benefits
B3: Existing Facility | S3: Existing Facility | AJ3: Existing Facility
C5: EXISTING ACCIDENT RATE AT AFFECTED INTERSECTIONS | G5: NEW ACCIDENT RATE AT AFFECTED INTERSECTIONS | K5: ACCIDENT REDUCTION AT AFFECTED INTERSECTIONS | O5: SAFETY VALUE | T5: EXISTING ACCIDENT RATE AT AFFECTED INTERSECTIONS | X5: NEW ACCIDENT RATE AT AFFECTED INTERSECTIONS | AB5: ACCIDENT REDUCTION AT AFFECTED INTERSECTIONS | AF5: SAFETY VALUE | AK5: EXISTING ACCIDENT RATE AT AFFECTED INTERSECTIONS | AO5: NEW ACCIDENT RATE AT AFFECTED INTERSECTIONS | AS5: ACCIDENT REDUCTION AT AFFECTED INTERSECTIONS | AW5: SAFETY VALUE
C6: (events/yr.) | G6: (events/yr.) | K6: (events/yr.) | O6: ($) | T6: (events/yr.) | X6: (events/yr.) | AB6: (events/yr.) | AF6: ($) | AK6: (events/yr.) | AO6: (events/yr.) | AS6: (events/yr.) | AW6: ($)
B7: Year | C7: Fatalities | D7: Injuries | E7: Property Damage Only | F7: Total | G7: Fatalities | H7: Injuries | I7: Property Damage Only | J7: Total | K7: Fatalities | L7: Injuries | M7: Property Damage Only | N7: Total | O7: Total | P7: Constant Dollars | Q7: Present Value | S7: Year | T7: Fatalities | U7: Injuries | V7: Property Damage Only | W7: Total | X7: Fatalities | Y7: Injuries | Z7: Property Damage Only | AA7: Total | AB7: Fatalities | AC7: Injuries | AD7: Property Damage Only | AE7: Total | AF7: Total | AG7: Constant Dollars | AH7: Present Value | AJ7: Year | AK7: Fatalities | AL7: Injuries | AM7: Property Damage Only | AN7: Total | AO7: Fatalities | AP7: Injuries | AQ7: Property Damage Only | AR7: Total | AS7: Fatalities | AT7: Injuries | AU7: Property Damage Only | AV7: Total | AW7: Total | AX7: Constant Dollars | AY7: Present Value
B8: 1 | C8: ='Intersection Safety'!C23 -> 0.2 | D8: ='Intersection Safety'!D23 -> 19.8 | E8: ='Intersection Safety'!E23 -> 20 | F8: ='Intersection Safety'!F23 -> 40 | G8: ='Intersection Safety'!G23 -> 0.043875 | H8: ='Intersection Safety'!H23 -> 4.343625 | I8: ='Intersection Safety'!I23 -> 4.3875 | J8: ='Intersection Safety'!J23 -> 8.775 | K8: ='Intersection Safety'!K23 -> 0.156125 | L8: ='Intersection Safety'!L23 -> 15.456375 | M8: ='Intersection Safety'!M23 -> 15.6125 | N8: ='Intersection Safety'!N23 -> 31.225 | O8: ='Intersection Safety'!O23 -> 4865947.875 | P8: ='Intersection Safety'!P23 -> 4865947.875 | Q8: ='Intersection Safety'!Q23 -> 4250107.324 | S8: ='Intersection Safety'!S23 -> 1 | T8: ='Intersection Safety'!T23 -> 1 | U8: ='Intersection Safety'!U23 -> 31.4 | V8: ='Intersection Safety'!V23 -> 30 | W8: ='Intersection Safety'!W23 -> 62.4 | X8: ='Intersection Safety'!X23 -> 0.219375 | Y8: ='Intersection Safety'!Y23 -> 6.888375 | Z8: ='Intersection Safety'!Z23 -> 6.58125 | AA8: ='Intersection Safety'!AA23 -> 13.689 | AB8: ='Intersection Safety'!AB23 -> 0.780625 | AC8: ='Intersection Safety'!AC23 -> 24.511625 | AD8: ='Intersection Safety'!AD23 -> 23.41875 | AE8: ='Intersection Safety'!AE23 -> 48.711 | AF8: ='Intersection Safety'!AF23 -> 14632191.12 | AG8: ='Intersection Safety'!AG23 -> 14632191.12 | AH8: ='Intersection Safety'!AH23 -> 12780322.41 | AJ8: 1 | AK8: =T8+C8 -> 1.2 | AL8: 51.2 | AM8: 50 | AN8: 102.4 | AO8: 0.26325 | AP8: 11.232 | AQ8: 10.96875 | AR8: 22.464 | AS8: 0.93675 | AT8: 39.968 | AU8: 39.03125 | AV8: 79.936 | AW8: 19498139 | AX8: 19498139 | AY8: 17030429.73
B9: 20 | C9: ='Intersection Safety'!C24 -> 0.1500784636 | D9: ='Intersection Safety'!D24 -> 14.8577679 | E9: ='Intersection Safety'!E24 -> 15.00784636 | F9: ='Intersection Safety'!F24 -> 30.01569272 | G9: ='Intersection Safety'!G24 -> 0.03292346296 | H9: ='Intersection Safety'!H24 -> 3.259422833 | I9: ='Intersection Safety'!I24 -> 3.292346296 | J9: ='Intersection Safety'!J24 -> 6.584692591 | K9: ='Intersection Safety'!K24 -> 0.1171550007 | L9: ='Intersection Safety'!L24 -> 11.59834507 | M9: ='Intersection Safety'!M24 -> 11.71550007 | N9: ='Intersection Safety'!N24 -> 23.43100013 | O9: ='Intersection Safety'!O24 -> 3651369.906 | P9: ='Intersection Safety'!P24 -> 3651369.906 | Q9: ='Intersection Safety'!Q24 -> 881853.6168 | S9: ='Intersection Safety'!S24 -> 20 | T9: ='Intersection Safety'!T24 -> 1.658969602 | U9: ='Intersection Safety'!U24 -> 52.0916455 | V9: ='Intersection Safety'!V24 -> 49.76908806 | W9: ='Intersection Safety'!W24 -> 103.5197032 | X9: ='Intersection Safety'!X24 -> 0.3639364564 | Y9: ='Intersection Safety'!Y24 -> 11.42760473 | Z9: ='Intersection Safety'!Z24 -> 10.91809369 | AA9: ='Intersection Safety'!AA24 -> 22.70963488 | AB9: ='Intersection Safety'!AB24 -> 1.295033146 | AC9: ='Intersection Safety'!AC24 -> 40.66404077 | AD9: ='Intersection Safety'!AD24 -> 38.85099437 | AE9: ='Intersection Safety'!AE24 -> 80.81006829 | AF9: ='Intersection Safety'!AF24 -> 24274360.29 | AG9: ='Intersection Safety'!AG24 -> 24274360.29 | AH9: ='Intersection Safety'!AH24 -> 5862575.682 | AJ9: 20 | AK9: 1.809048066 | AL9: 66.9494134 | AM9: 64.77693442 | AN9: 133.5353959 | AO9: 0.3968599194 | AP9: 14.68702757 | AQ9: 14.21043999 | AR9: 29.29432747 | AS9: 1.412188146 | AT9: 52.26238584 | AU9: 50.56649443 | AV9: 104.2410684 | AW9: 27925730.19 | AX9: 27925730.19 | AY9: 6744429.299
B11: 1 | C11: ='Intersection Safety'!C26 -> 0.2 | D11: ='Intersection Safety'!D26 -> 19.8 | E11: ='Intersection Safety'!E26 -> 20 | F11: ='Intersection Safety'!F26 -> 40 | G11: ='Intersection Safety'!G26 -> 0.043875 | H11: ='Intersection Safety'!H26 -> 4.343625 | I11: ='Intersection Safety'!I26 -> 4.3875 | J11: ='Intersection Safety'!J26 -> 8.775 | K11: ='Intersection Safety'!K26 -> 0.156125 | L11: ='Intersection Safety'!L26 -> 15.456375 | M11: ='Intersection Safety'!M26 -> 15.6125 | N11: ='Intersection Safety'!N26 -> 31.225 | O11: ='Intersection Safety'!O26 -> 4865947.875 | P11: ='Intersection Safety'!P26 -> 4865947.875 | Q11: ='Intersection Safety'!Q26 -> 4250107.324 | S11: ='Intersection Safety'!S26 -> 1 | T11: ='Intersection Safety'!T26 -> 1 | U11: ='Intersection Safety'!U26 -> 31.4 | V11: ='Intersection Safety'!V26 -> 30 | W11: ='Intersection Safety'!W26 -> 62.4 | X11: ='Intersection Safety'!X26 -> 0.219375 | Y11: ='Intersection Safety'!Y26 -> 6.888375 | Z11: ='Intersection Safety'!Z26 -> 6.58125 | AA11: ='Intersection Safety'!AA26 -> 13.689 | AB11: ='Intersection Safety'!AB26 -> 0.780625 | AC11: ='Intersection Safety'!AC26 -> 24.511625 | AD11: ='Intersection Safety'!AD26 -> 23.41875 | AE11: ='Intersection Safety'!AE26 -> 48.711 | AF11: ='Intersection Safety'!AF26 -> 14632191.12 | AG11: ='Intersection Safety'!AG26 -> 14632191.12 | AH11: ='Intersection Safety'!AH26 -> 12780322.41 | AJ11: 1 | AK11: =T11+C11 -> 1.2 | AL11: =U11+D11 -> 51.2 | AM11: =V11+E11 -> 50 | AN11: =W11+F11 -> 102.4 | AO11: =X11+G11 -> 0.26325 | AP11: =Y11+H11 -> 11.232 | AQ11: =Z11+I11 -> 10.96875 | AR11: =AA11+J11 -> 22.464 | AS11: =AB11+K11 -> 0.93675 | AT11: =AC11+L11 -> 39.968 | AU11: =AD11+M11 -> 39.03125 | AV11: =AE11+N11 -> 79.936 | AW11: =AF11+O11 -> 19498139 | AX11: =AG11+P11 -> 19498139 | AY11: =AH11+Q11 -> 17030429.73
B12: 2 | C12: ='Intersection Safety'!C27 -> 0.197 | D12: ='Intersection Safety'!D27 -> 19.503 | E12: ='Intersection Safety'!E27 -> 19.7 | F12: ='Intersection Safety'!F27 -> 39.4 | G12: ='Intersection Safety'!G27 -> 0.043216875 | H12: ='Intersection Safety'!H27 -> 4.278470625 | I12: ='Intersection Safety'!I27 -> 4.3216875 | J12: ='Intersection Safety'!J27 -> 8.643375 | K12: ='Intersection Safety'!K27 -> 0.153783125 | L12: ='Intersection Safety'!L27 -> 15.22452937 | M12: ='Intersection Safety'!M27 -> 15.3783125 | N12: ='Intersection Safety'!N27 -> 30.756625 | O12: ='Intersection Safety'!O27 -> 4792958.657 | P12: ='Intersection Safety'!P27 -> 4792958.657 | Q12: ='Intersection Safety'!Q27 -> 3912481.976 | S12: ='Intersection Safety'!S27 -> 2 | T12: ='Intersection Safety'!T27 -> 1.027 | U12: ='Intersection Safety'!U27 -> 32.2478 | V12: ='Intersection Safety'!V27 -> 30.81 | W12: ='Intersection Safety'!W27 -> 64.0848 | X12: ='Intersection Safety'!X27 -> 0.225298125 | Y12: ='Intersection Safety'!Y27 -> 7.074361125 | Z12: ='Intersection Safety'!Z27 -> 6.75894375 | AA12: ='Intersection Safety'!AA27 -> 14.058603 | AB12: ='Intersection Safety'!AB27 -> 0.801701875 | AC12: ='Intersection Safety'!AC27 -> 25.17343887 | AD12: ='Intersection Safety'!AD27 -> 24.05105625 | AE12: ='Intersection Safety'!AE27 -> 50.026197 | AF12: ='Intersection Safety'!AF27 -> 15027260.29 | AG12: ='Intersection Safety'!AG27 -> 15027260.29 | AH12: ='Intersection Safety'!AH27 -> 12266720.67 | AJ12: 2 | AK12: 1.224 | AL12: 51.7508 | AM12: 50.51 | AN12: 103.4848 | AO12: 0.268515 | AP12: 11.35283175 | AQ12: 11.08063125 | AR12: 22.701978 | AS12: 0.955485 | AT12: 40.39796825 | AU12: 39.42936875 | AV12: 80.782822 | AW12: 19820218.94 | AX12: 19820218.94 | AY12: 16179202.64
B13: 3 | C13: ='Intersection Safety'!C28 -> 0.194045 | D13: ='Intersection Safety'!D28 -> 19.210455 | E13: ='Intersection Safety'!E28 -> 19.4045 | F13: ='Intersection Safety'!F28 -> 38.809 | G13: ='Intersection Safety'!G28 -> 0.04256862187 | H13: ='Intersection Safety'!H28 -> 4.214293566 | I13: ='Intersection Safety'!I28 -> 4.256862187 | J13: ='Intersection Safety'!J28 -> 8.513724375 | K13: ='Intersection Safety'!K28 -> 0.1514763781 | L13: ='Intersection Safety'!L28 -> 14.99616143 | M13: ='Intersection Safety'!M28 -> 15.14763781 | N13: ='Intersection Safety'!N28 -> 30.29527562 | O13: ='Intersection Safety'!O28 -> 4721064.277 | P13: ='Intersection Safety'!P28 -> 4721064.277 | Q13: ='Intersection Safety'!Q28 -> 3601677.333 | S13: ='Intersection Safety'!S28 -> 3 | T13: ='Intersection Safety'!T28 -> 1.054729 | U13: ='Intersection Safety'!U28 -> 33.1184906 | V13: ='Intersection Safety'!V28 -> 31.64187 | W13: ='Intersection Safety'!W28 -> 65.8150896 | X13: ='Intersection Safety'!X28 -> 0.2313811744 | Y13: ='Intersection Safety'!Y28 -> 7.265368875 | Z13: ='Intersection Safety'!Z28 -> 6.941435231 | AA13: ='Intersection Safety'!AA28 -> 14.43818528 | AB13: ='Intersection Safety'!AB28 -> 0.8233478256 | AC13: ='Intersection Safety'!AC28 -> 25.85312172 | AD13: ='Intersection Safety'!AD28 -> 24.70043477 | AE13: ='Intersection Safety'!AE28 -> 51.37690432 | AF13: ='Intersection Safety'!AF28 -> 15432996.31 | AG13: ='Intersection Safety'!AG28 -> 15432996.31 | AH13: ='Intersection Safety'!AH28 -> 11773758.99 | AJ13: 3 | AK13: 1.248774 | AL13: 52.3289456 | AM13: 51.04637 | AN13: 104.6240896 | AO13: 0.2739497962 | AP13: 11.47966244 | AQ13: 11.19829742 | AR13: 22.95190966 | AS13: 0.9748242037 | AT13: 40.84928316 | AU13: 39.84807258 | AV13: 81.67217994 | AW13: 20154060.59 | AX13: 20154060.59 | AY13: 15375436.33
B14: 4 | C14: ='Intersection Safety'!C29 -> 0.191134325 | D14: ='Intersection Safety'!D29 -> 18.92229817 | E14: ='Intersection Safety'!E29 -> 19.1134325 | F14: ='Intersection Safety'!F29 -> 38.226865 | G14: ='Intersection Safety'!G29 -> 0.04193009255 | H14: ='Intersection Safety'!H29 -> 4.151079162 | I14: ='Intersection Safety'!I29 -> 4.193009255 | J14: ='Intersection Safety'!J29 -> 8.386018509 | K14: ='Intersection Safety'!K29 -> 0.1492042325 | L14: ='Intersection Safety'!L29 -> 14.77121901 | M14: ='Intersection Safety'!M29 -> 14.92042325 | N14: ='Intersection Safety'!N29 -> 29.84084649 | O14: ='Intersection Safety'!O29 -> 4650248.313 | P14: ='Intersection Safety'!P29 -> 4650248.313 | Q14: ='Intersection Safety'!Q29 -> 3315562.778 | S14: ='Intersection Safety'!S29 -> 4 | T14: ='Intersection Safety'!T29 -> 1.083206683 | U14: ='Intersection Safety'!U29 -> 34.01268985 | V14: ='Intersection Safety'!V29 -> 32.49620049 | W14: ='Intersection Safety'!W29 -> 67.59209702 | X14: ='Intersection Safety'!X29 -> 0.2376284661 | Y14: ='Intersection Safety'!Y29 -> 7.461533835 | Z14: ='Intersection Safety'!Z29 -> 7.128853982 | AA14: ='Intersection Safety'!AA29 -> 14.82801628 | AB14: ='Intersection Safety'!AB29 -> 0.8455782169 | AC14: ='Intersection Safety'!AC29 -> 26.55115601 | AD14: ='Intersection Safety'!AD29 -> 25.36734651 | AE14: ='Intersection Safety'!AE29 -> 52.76408074 | AF14: ='Intersection Safety'!AF29 -> 15849687.21 | AG14: ='Intersection Safety'!AG29 -> 15849687.21 | AH14: ='Intersection Safety'!AH29 -> 11300607.93 | AJ14: 4 | AK14: 1.274341008 | AL14: 52.93498802 | AM14: 51.60963299 | AN14: 105.818962 | AO14: 0.2795585586 | AP14: 11.612613 | AQ14: 11.32186324 | AR14: 23.21403479 | AS14: 0.9947824494 | AT14: 41.32237502 | AU14: 40.28776975 | AV14: 82.60492723 | AW14: 20499935.53 | AX14: 20499935.53 | AY14: 14616170.71
B15: 5 | C15: ='Intersection Safety'!C30 -> 0.1882673101 | D15: ='Intersection Safety'!D30 -> 18.6384637 | E15: ='Intersection Safety'!E30 -> 18.82673101 | F15: ='Intersection Safety'!F30 -> 37.65346202 | G15: ='Intersection Safety'!G30 -> 0.04130114116 | H15: ='Intersection Safety'!H30 -> 4.088812975 | I15: ='Intersection Safety'!I30 -> 4.130114116 | J15: ='Intersection Safety'!J30 -> 8.260228232 | K15: ='Intersection Safety'!K30 -> 0.146966169 | L15: ='Intersection Safety'!L30 -> 14.54965073 | M15: ='Intersection Safety'!M30 -> 14.6966169 | N15: ='Intersection Safety'!N30 -> 29.39323379 | O15: ='Intersection Safety'!O30 -> 4580494.588 | P15: ='Intersection Safety'!P30 -> 4580494.588 | Q15: ='Intersection Safety'!Q30 -> 3052176.95 | S15: ='Intersection Safety'!S30 -> 5 | T15: ='Intersection Safety'!T30 -> 1.112453263 | U15: ='Intersection Safety'!U30 -> 34.93103247 | V15: ='Intersection Safety'!V30 -> 33.3735979 | W15: ='Intersection Safety'!W30 -> 69.41708364 | X15: ='Intersection Safety'!X30 -> 0.2440444347 | Y15: ='Intersection Safety'!Y30 -> 7.662995249 | Z15: ='Intersection Safety'!Z30 -> 7.32133304 | AA15: ='Intersection Safety'!AA30 -> 15.22837272 | AB15: ='Intersection Safety'!AB30 -> 0.8684088288 | AC15: ='Intersection Safety'!AC30 -> 27.26803722 | AD15: ='Intersection Safety'!AD30 -> 26.05226486 | AE15: ='Intersection Safety'!AE30 -> 54.18871092 | AF15: ='Intersection Safety'!AF30 -> 16277628.77 | AG15: ='Intersection Safety'!AG30 -> 16277628.77 | AH15: ='Intersection Safety'!AH30 -> 10846471.35 | AJ15: 5 | AK15: 1.300720574 | AL15: 53.56949617 | AM15: 52.20032892 | AN15: 107.0705457 | AO15: 0.2853455758 | AP15: 11.75180822 | AQ15: 11.45144716 | AR15: 23.48860095 | AS15: 1.015374998 | AT15: 41.81768795 | AU15: 40.74888176 | AV15: 83.58194471 | AW15: 20858123.36 | AX15: 20858123.36 | AY15: 13898648.3
B16: 6 | C16: ='Intersection Safety'!C31 -> 0.1854433005 | D16: ='Intersection Safety'!D31 -> 18.35888675 | E16: ='Intersection Safety'!E31 -> 18.54433005 | F16: ='Intersection Safety'!F31 -> 37.08866009 | G16: ='Intersection Safety'!G31 -> 0.04068162404 | H16: ='Intersection Safety'!H31 -> 4.02748078 | I16: ='Intersection Safety'!I31 -> 4.068162404 | J16: ='Intersection Safety'!J31 -> 8.136324808 | K16: ='Intersection Safety'!K31 -> 0.1447616764 | L16: ='Intersection Safety'!L31 -> 14.33140597 | M16: ='Intersection Safety'!M31 -> 14.47616764 | N16: ='Intersection Safety'!N31 -> 28.95233529 | O16: ='Intersection Safety'!O31 -> 4511787.169 | P16: ='Intersection Safety'!P31 -> 4511787.169 | Q16: ='Intersection Safety'!Q31 -> 2809714.295 | S16: ='Intersection Safety'!S31 -> 6 | T16: ='Intersection Safety'!T31 -> 1.142489502 | U16: ='Intersection Safety'!U31 -> 35.87417035 | V16: ='Intersection Safety'!V31 -> 34.27468505 | W16: ='Intersection Safety'!W31 -> 71.2913449 | X16: ='Intersection Safety'!X31 -> 0.2506336344 | Y16: ='Intersection Safety'!Y31 -> 7.86989612 | Z16: ='Intersection Safety'!Z31 -> 7.519009032 | AA16: ='Intersection Safety'!AA31 -> 15.63953879 | AB16: ='Intersection Safety'!AB31 -> 0.8918558672 | AC16: ='Intersection Safety'!AC31 -> 28.00427423 | AD16: ='Intersection Safety'!AD31 -> 26.75567601 | AE16: ='Intersection Safety'!AE31 -> 55.65180611 | AF16: ='Intersection Safety'!AF31 -> 16717124.75 | AG16: ='Intersection Safety'!AG31 -> 16717124.75 | AH16: ='Intersection Safety'!AH31 -> 10410585.12 | AJ16: 6 | AK16: 1.327932802 | AL16: 54.2330571 | AM16: 52.81901509 | AN16: 108.380005 | AO16: 0.2913152584 | AP16: 11.8973769 | AQ16: 11.58717144 | AR16: 23.7758636 | AS16: 1.036617544 | AT16: 42.3356802 | AU16: 41.23184366 | AV16: 84.6041414 | AW16: 21228911.91 | AX16: 21228911.91 | AY16: 13220299.42
B17: 7 | C17: ='Intersection Safety'!C32 -> 0.182661651 | D17: ='Intersection Safety'!D32 -> 18.08350345 | E17: ='Intersection Safety'!E32 -> 18.2661651 | F17: ='Intersection Safety'!F32 -> 36.53233019 | G17: ='Intersection Safety'!G32 -> 0.04007139968 | H17: ='Intersection Safety'!H32 -> 3.967068568 | I17: ='Intersection Safety'!I32 -> 4.007139968 | J17: ='Intersection Safety'!J32 -> 8.014279936 | K17: ='Intersection Safety'!K32 -> 0.1425902513 | L17: ='Intersection Safety'!L32 -> 14.11643488 | M17: ='Intersection Safety'!M32 -> 14.25902513 | N17: ='Intersection Safety'!N32 -> 28.51805026 | O17: ='Intersection Safety'!O32 -> 4444110.362 | P17: ='Intersection Safety'!P32 -> 4444110.362 | Q17: ='Intersection Safety'!Q32 -> 2586512.692 | S17: ='Intersection Safety'!S32 -> 7 | T17: ='Intersection Safety'!T32 -> 1.173336718 | U17: ='Intersection Safety'!U32 -> 36.84277295 | V17: ='Intersection Safety'!V32 -> 35.20010154 | W17: ='Intersection Safety'!W32 -> 73.21621121 | X17: ='Intersection Safety'!X32 -> 0.2574007425 | Y17: ='Intersection Safety'!Y32 -> 8.082383316 | Z17: ='Intersection Safety'!Z32 -> 7.722022276 | AA17: ='Intersection Safety'!AA32 -> 16.06180633 | AB17: ='Intersection Safety'!AB32 -> 0.9159359756 | AC17: ='Intersection Safety'!AC32 -> 28.76038963 | AD17: ='Intersection Safety'!AD32 -> 27.47807927 | AE17: ='Intersection Safety'!AE32 -> 57.15440488 | AF17: ='Intersection Safety'!AF32 -> 17168487.11 | AG17: ='Intersection Safety'!AG32 -> 17168487.11 | AH17: ='Intersection Safety'!AH32 -> 9992215.811 | AJ17: 7 | AK17: 1.355998369 | AL17: 54.92627639 | AM17: 53.46626664 | AN17: 109.7485414 | AO17: 0.2974721422 | AP17: 12.04945188 | AQ17: 11.72916224 | AR17: 24.07608627 | AS17: 1.058526227 | AT17: 42.87682451 | AU17: 41.7371044 | AV17: 85.67245513 | AW17: 21612597.47 | AX17: 21612597.47 | AY17: 12578728.5
B18: 8 | C18: ='Intersection Safety'!C33 -> 0.1799217262 | D18: ='Intersection Safety'!D33 -> 17.81225089 | E18: ='Intersection Safety'!E33 -> 17.99217262 | F18: ='Intersection Safety'!F33 -> 35.98434524 | G18: ='Intersection Safety'!G33 -> 0.03947032869 | H18: ='Intersection Safety'!H33 -> 3.90756254 | I18: ='Intersection Safety'!I33 -> 3.947032869 | J18: ='Intersection Safety'!J33 -> 7.894065737 | K18: ='Intersection Safety'!K33 -> 0.1404513975 | L18: ='Intersection Safety'!L33 -> 13.90468835 | M18: ='Intersection Safety'!M33 -> 14.04513975 | N18: ='Intersection Safety'!N33 -> 28.0902795 | O18: ='Intersection Safety'!O33 -> 4377448.706 | P18: ='Intersection Safety'!P33 -> 4377448.706 | Q18: ='Intersection Safety'!Q33 -> 2381042.058 | S18: ='Intersection Safety'!S33 -> 8 | T18: ='Intersection Safety'!T33 -> 1.205016809 | U18: ='Intersection Safety'!U33 -> 37.83752782 | V18: ='Intersection Safety'!V33 -> 36.15050428 | W18: ='Intersection Safety'!W33 -> 75.19304891 | X18: ='Intersection Safety'!X33 -> 0.2643505626 | Y18: ='Intersection Safety'!Y33 -> 8.300607665 | Z18: ='Intersection Safety'!Z33 -> 7.930516877 | AA18: ='Intersection Safety'!AA33 -> 16.49547511 | AB18: ='Intersection Safety'!AB33 -> 0.9406662469 | AC18: ='Intersection Safety'!AC33 -> 29.53692015 | AD18: ='Intersection Safety'!AD33 -> 28.21998741 | AE18: ='Intersection Safety'!AE33 -> 58.69757381 | AF18: ='Intersection Safety'!AF33 -> 17632036.27 | AG18: ='Intersection Safety'!AG33 -> 17632036.27 | AH18: ='Intersection Safety'!AH33 -> 9590659.475 | AJ18: 8 | AK18: 1.384938536 | AL18: 55.64977871 | AM18: 54.1426769 | AN18: 111.1773942 | AO18: 0.3038208913 | AP18: 12.2081702 | AQ18: 11.87754975 | AR18: 24.38954084 | AS18: 1.081117644 | AT18: 43.44160851 | AU18: 42.26512716 | AV18: 86.78785331 | AW18: 22009484.97 | AX18: 22009484.97 | AY18: 11971701.53
B19: 9 | C19: ='Intersection Safety'!C34 -> 0.1772229003 | D19: ='Intersection Safety'!D34 -> 17.54506713 | E19: ='Intersection Safety'!E34 -> 17.72229003 | F19: ='Intersection Safety'!F34 -> 35.44458006 | G19: ='Intersection Safety'!G34 -> 0.03887827376 | H19: ='Intersection Safety'!H34 -> 3.848949102 | I19: ='Intersection Safety'!I34 -> 3.887827376 | J19: ='Intersection Safety'!J34 -> 7.775654751 | K19: ='Intersection Safety'!K34 -> 0.1383446266 | L19: ='Intersection Safety'!L34 -> 13.69611803 | M19: ='Intersection Safety'!M34 -> 13.83446266 | N19: ='Intersection Safety'!N34 -> 27.66892531 | O19: ='Intersection Safety'!O34 -> 4311786.976 | P19: ='Intersection Safety'!P34 -> 4311786.976 | Q19: ='Intersection Safety'!Q34 -> 2191893.857 | S19: ='Intersection Safety'!S34 -> 9 | T19: ='Intersection Safety'!T34 -> 1.237552263 | U19: ='Intersection Safety'!U34 -> 38.85914107 | V19: ='Intersection Safety'!V34 -> 37.1265679 | W19: ='Intersection Safety'!W34 -> 77.22326123 | X19: ='Intersection Safety'!X34 -> 0.2714880278 | Y19: ='Intersection Safety'!Y34 -> 8.524724072 | Z19: ='Intersection Safety'!Z34 -> 8.144640833 | AA19: ='Intersection Safety'!AA34 -> 16.94085293 | AB19: ='Intersection Safety'!AB34 -> 0.9660642356 | AC19: ='Intersection Safety'!AC34 -> 30.334417 | AD19: ='Intersection Safety'!AD34 -> 28.98192707 | AE19: ='Intersection Safety'!AE34 -> 60.2824083 | AF19: ='Intersection Safety'!AF34 -> 18108101.24 | AG19: ='Intersection Safety'!AG34 -> 18108101.24 | AH19: ='Intersection Safety'!AH34 -> 9205240.449 | AJ19: 9 | AK19: 1.414775164 | AL19: 56.4042082 | AM19: 54.84885793 | AN19: 112.6678413 | AO19: 0.3103663015 | AP19: 12.37367317 | AQ19: 12.03246821 | AR19: 24.71650768 | AS19: 1.104408862 | AT19: 44.03053503 | AU19: 42.81638972 | AV19: 87.95133361 | AW19: 22419888.22 | AX19: 22419888.22 | AY19: 11397134.31
B20: 10 | C20: ='Intersection Safety'!C35 -> 0.1745645568 | D20: ='Intersection Safety'!D35 -> 17.28189112 | E20: ='Intersection Safety'!E35 -> 17.45645568 | F20: ='Intersection Safety'!F35 -> 34.91291136 | G20: ='Intersection Safety'!G35 -> 0.03829509965 | H20: ='Intersection Safety'!H35 -> 3.791214865 | I20: ='Intersection Safety'!I35 -> 3.829509965 | J20: ='Intersection Safety'!J35 -> 7.65901993 | K20: ='Intersection Safety'!K35 -> 0.1362694572 | L20: ='Intersection Safety'!L35 -> 13.49067626 | M20: ='Intersection Safety'!M35 -> 13.62694572 | N20: ='Intersection Safety'!N35 -> 27.25389143 | O20: ='Intersection Safety'!O35 -> 4247110.171 | P20: ='Intersection Safety'!P35 -> 4247110.171 | Q20: ='Intersection Safety'!Q35 -> 2017771.448 | S20: ='Intersection Safety'!S35 -> 10 | T20: ='Intersection Safety'!T35 -> 1.270966174 | U20: ='Intersection Safety'!U35 -> 39.90833788 | V20: ='Intersection Safety'!V35 -> 38.12898523 | W20: ='Intersection Safety'!W35 -> 79.30828929 | X20: ='Intersection Safety'!X35 -> 0.2788182045 | Y20: ='Intersection Safety'!Y35 -> 8.754891622 | Z20: ='Intersection Safety'!Z35 -> 8.364546136 | AA20: ='Intersection Safety'!AA35 -> 17.39825596 | AB20: ='Intersection Safety'!AB35 -> 0.9921479699 | AC20: ='Intersection Safety'!AC35 -> 31.15344626 | AD20: ='Intersection Safety'!AD35 -> 29.7644391 | AE20: ='Intersection Safety'!AE35 -> 61.91003332 | AF20: ='Intersection Safety'!AF35 -> 18597019.98 | AG20: ='Intersection Safety'!AG35 -> 18597019.98 | AH20: ='Intersection Safety'!AH35 -> 8835310.226 | AJ20: 10 | AK20: 1.445530731 | AL20: 57.190229 | AM20: 55.58544091 | AN20: 114.2212006 | AO20: 0.3171133042 | AP20: 12.54610649 | AQ20: 12.1940561 | AR20: 25.05727589 | AS20: 1.128417427 | AT20: 44.64412251 | AU20: 43.39138481 | AV20: 89.16392475 | AW20: 22844130.15 | AX20: 22844130.15 | AY20: 10853081.67
B21: 11 | C21: ='Intersection Safety'!C36 -> 0.1719460885 | D21: ='Intersection Safety'!D36 -> 17.02266276 | E21: ='Intersection Safety'!E36 -> 17.19460885 | F21: ='Intersection Safety'!F36 -> 34.38921769 | G21: ='Intersection Safety'!G36 -> 0.03772067315 | H21: ='Intersection Safety'!H36 -> 3.734346642 | I21: ='Intersection Safety'!I36 -> 3.772067315 | J21: ='Intersection Safety'!J36 -> 7.544134631 | K21: ='Intersection Safety'!K36 -> 0.1342254153 | L21: ='Intersection Safety'!L36 -> 13.28831611 | M21: ='Intersection Safety'!M36 -> 13.42254153 | N21: ='Intersection Safety'!N36 -> 26.84508306 | O21: ='Intersection Safety'!O36 -> 4183403.519 | P21: ='Intersection Safety'!P36 -> 4183403.519 | Q21: ='Intersection Safety'!Q36 -> 1857481.193 | S21: ='Intersection Safety'!S36 -> 11 | T21: ='Intersection Safety'!T36 -> 1.305282261 | U21: ='Intersection Safety'!U36 -> 40.985863 | V21: ='Intersection Safety'!V36 -> 39.15846783 | W21: ='Intersection Safety'!W36 -> 81.4496131 | X21: ='Intersection Safety'!X36 -> 0.286346296 | Y21: ='Intersection Safety'!Y36 -> 8.991273696 | Z21: ='Intersection Safety'!Z36 -> 8.590388881 | AA21: ='Intersection Safety'!AA36 -> 17.86800887 | AB21: ='Intersection Safety'!AB36 -> 1.018935965 | AC21: ='Intersection Safety'!AC36 -> 31.9945893 | AD21: ='Intersection Safety'!AD36 -> 30.56807895 | AE21: ='Intersection Safety'!AE36 -> 63.58160422 | AF21: ='Intersection Safety'!AF36 -> 19099139.52 | AG21: ='Intersection Safety'!AG36 -> 19099139.52 | AH21: ='Intersection Safety'!AH36 -> 8480246.357 | AJ21: 11 | AK21: 1.47722835 | AL21: 58.00852576 | AM21: 56.35307668 | AN21: 115.8388308 | AO21: 0.3240669692 | AP21: 12.72562034 | AQ21: 12.3624562 | AR21: 25.4121435 | AS21: 1.15316138 | AT21: 45.28290542 | AU21: 43.99062048 | AV21: 90.42668728 | AW21: 23282543.04 | AX21: 23282543.04 | AY21: 10337727.55
B22: 12 | C22: ='Intersection Safety'!C37 -> 0.1693668971 | D22: ='Intersection Safety'!D37 -> 16.76732282 | E22: ='Intersection Safety'!E37 -> 16.93668971 | F22: ='Intersection Safety'!F37 -> 33.87337943 | G22: ='Intersection Safety'!G37 -> 0.03715486306 | H22: ='Intersection Safety'!H37 -> 3.678331443 | I22: ='Intersection Safety'!I37 -> 3.715486306 | J22: ='Intersection Safety'!J37 -> 7.430972611 | K22: ='Intersection Safety'!K37 -> 0.1322120341 | L22: ='Intersection Safety'!L37 -> 13.08899137 | M22: ='Intersection Safety'!M37 -> 13.22120341 | N22: ='Intersection Safety'!N37 -> 26.44240681 | O22: ='Intersection Safety'!O37 -> 4120652.466 | P22: ='Intersection Safety'!P37 -> 4120652.466 | Q22: ='Intersection Safety'!Q37 -> 1709924.275 | S22: ='Intersection Safety'!S37 -> 12 | T22: ='Intersection Safety'!T37 -> 1.340524882 | U22: ='Intersection Safety'!U37 -> 42.0924813 | V22: ='Intersection Safety'!V37 -> 40.21574647 | W22: ='Intersection Safety'!W37 -> 83.64875265 | X22: ='Intersection Safety'!X37 -> 0.294077646 | Y22: ='Intersection Safety'!Y37 -> 9.234038086 | Z22: ='Intersection Safety'!Z37 -> 8.822329381 | AA22: ='Intersection Safety'!AA37 -> 18.35044511 | AB22: ='Intersection Safety'!AB37 -> 1.046447236 | AC22: ='Intersection Safety'!AC37 -> 32.85844322 | AD22: ='Intersection Safety'!AD37 -> 31.39341709 | AE22: ='Intersection Safety'!AE37 -> 65.29830754 | AF22: ='Intersection Safety'!AF37 -> 19614816.28 | AG22: ='Intersection Safety'!AG37 -> 19614816.28 | AH22: ='Intersection Safety'!AH37 -> 8139451.41 | AJ22: 12 | AK22: 1.509891779 | AL22: 58.85980412 | AM22: 57.15243618 | AN22: 117.5221321 | AO22: 0.3312325091 | AP22: 12.91236953 | AQ22: 12.53781569 | AR22: 25.78141772 | AS22: 1.17865927 | AT22: 45.94743459 | AU22: 44.61462049 | AV22: 91.74071435 | AW22: 23735468.75 | AX22: 23735468.75 | AY22: 9849375.685
B23: 13 | C23: ='Intersection Safety'!C38 -> 0.1668263937 | D23: ='Intersection Safety'!D38 -> 16.51581297 | E23: ='Intersection Safety'!E38 -> 16.68263937 | F23: ='Intersection Safety'!F38 -> 33.36527873 | G23: ='Intersection Safety'!G38 -> 0.03659754011 | H23: ='Intersection Safety'!H38 -> 3.623156471 | I23: ='Intersection Safety'!I38 -> 3.659754011 | J23: ='Intersection Safety'!J38 -> 7.319508022 | K23: ='Intersection Safety'!K38 -> 0.1302288536 | L23: ='Intersection Safety'!L38 -> 12.8926565 | M23: ='Intersection Safety'!M38 -> 13.02288536 | N23: ='Intersection Safety'!N38 -> 26.04577071 | O23: ='Intersection Safety'!O38 -> 4058842.679 | P23: ='Intersection Safety'!P38 -> 4058842.679 | Q23: ='Intersection Safety'!Q38 -> 1574089.169 | S23: ='Intersection Safety'!S38 -> 13 | T23: ='Intersection Safety'!T38 -> 1.376719054 | U23: ='Intersection Safety'!U38 -> 43.2289783 | V23: ='Intersection Safety'!V38 -> 41.30157162 | W23: ='Intersection Safety'!W38 -> 85.90726897 | X23: ='Intersection Safety'!X38 -> 0.3020177425 | Y23: ='Intersection Safety'!Y38 -> 9.483357114 | Z23: ='Intersection Safety'!Z38 -> 9.060532274 | AA23: ='Intersection Safety'!AA38 -> 18.84590713 | AB23: ='Intersection Safety'!AB38 -> 1.074701312 | AC23: ='Intersection Safety'!AC38 -> 33.74562118 | AD23: ='Intersection Safety'!AD38 -> 32.24103935 | AE23: ='Intersection Safety'!AE38 -> 67.06136184 | AF23: ='Intersection Safety'!AF38 -> 20144416.32 | AG23: ='Intersection Safety'!AG38 -> 20144416.32 | AH23: ='Intersection Safety'!AH38 -> 7812351.961 | AJ23: 13 | AK23: 1.543545448 | AL23: 59.74479127 | AM23: 57.98421099 | AN23: 119.2725477 | AO23: 0.3386152826 | AP23: 13.10651358 | AQ23: 12.72028629 | AR23: 26.16541515 | AS23: 1.204930165 | AT23: 46.63827768 | AU23: 45.2639247 | AV23: 93.10713255 | AW23: 24203259 | AX23: 24203259 | AY23: 9386441.13
B24: 14 | C24: ='Intersection Safety'!C39 -> 0.1643239978 | D24: ='Intersection Safety'!D39 -> 16.26807578 | E24: ='Intersection Safety'!E39 -> 16.43239978 | F24: ='Intersection Safety'!F39 -> 32.86479955 | G24: ='Intersection Safety'!G39 -> 0.03604857701 | H24: ='Intersection Safety'!H39 -> 3.568809124 | I24: ='Intersection Safety'!I39 -> 3.604857701 | J24: ='Intersection Safety'!J39 -> 7.209715402 | K24: ='Intersection Safety'!K39 -> 0.1282754208 | L24: ='Intersection Safety'!L39 -> 12.69926665 | M24: ='Intersection Safety'!M39 -> 12.82754208 | N24: ='Intersection Safety'!N39 -> 25.65508415 | O24: ='Intersection Safety'!O39 -> 3997960.039 | P24: ='Intersection Safety'!P39 -> 3997960.039 | Q24: ='Intersection Safety'!Q39 -> 1449044.703 | S24: ='Intersection Safety'!S39 -> 14 | T24: ='Intersection Safety'!T39 -> 1.413890468 | U24: ='Intersection Safety'!U39 -> 44.39616071 | V24: ='Intersection Safety'!V39 -> 42.41671405 | W24: ='Intersection Safety'!W39 -> 88.22676523 | X24: ='Intersection Safety'!X39 -> 0.3101722215 | Y24: ='Intersection Safety'!Y39 -> 9.739407756 | Z24: ='Intersection Safety'!Z39 -> 9.305166646 | AA24: ='Intersection Safety'!AA39 -> 19.35474662 | AB24: ='Intersection Safety'!AB39 -> 1.103718247 | AC24: ='Intersection Safety'!AC39 -> 34.65675295 | AD24: ='Intersection Safety'!AD39 -> 33.11154741 | AE24: ='Intersection Safety'!AE39 -> 68.87201861 | AF24: ='Intersection Safety'!AF39 -> 20688315.56 | AG24: ='Intersection Safety'!AG39 -> 20688315.56 | AH24: ='Intersection Safety'!AH39 -> 7498397.63 | AJ24: 14 | AK24: 1.578214466 | AL24: 60.66423649 | AM24: 58.84911383 | AN24: 121.0915648 | AO24: 0.3462207985 | AP24: 13.30821688 | AQ24: 12.91002435 | AR24: 26.56446203 | AS24: 1.231993668 | AT24: 47.35601961 | AU24: 45.93908948 | AV24: 94.52710276 | AW24: 24686275.6 | AX24: 24686275.6 | AY24: 8947442.332
B25: 15 | C25: ='Intersection Safety'!C40 -> 0.1618591378 | D25: ='Intersection Safety'!D40 -> 16.02405464 | E25: ='Intersection Safety'!E40 -> 16.18591378 | F25: ='Intersection Safety'!F40 -> 32.37182756 | G25: ='Intersection Safety'!G40 -> 0.03550784835 | H25: ='Intersection Safety'!H40 -> 3.515276987 | I25: ='Intersection Safety'!I40 -> 3.550784835 | J25: ='Intersection Safety'!J40 -> 7.101569671 | K25: ='Intersection Safety'!K40 -> 0.1263512894 | L25: ='Intersection Safety'!L40 -> 12.50877765 | M25: ='Intersection Safety'!M40 -> 12.63512894 | N25: ='Intersection Safety'!N40 -> 25.27025789 | O25: ='Intersection Safety'!O40 -> 3937990.638 | P25: ='Intersection Safety'!P40 -> 3937990.638 | Q25: ='Intersection Safety'!Q40 -> 1333933.675 | S25: ='Intersection Safety'!S40 -> 15 | T25: ='Intersection Safety'!T40 -> 1.452065511 | U25: ='Intersection Safety'!U40 -> 45.59485705 | V25: ='Intersection Safety'!V40 -> 43.56196533 | W25: ='Intersection Safety'!W40 -> 90.6088879 | X25: ='Intersection Safety'!X40 -> 0.3185468715 | Y25: ='Intersection Safety'!Y40 -> 10.00237177 | Z25: ='Intersection Safety'!Z40 -> 9.556406145 | AA25: ='Intersection Safety'!AA40 -> 19.87732478 | AB25: ='Intersection Safety'!AB40 -> 1.13351864 | AC25: ='Intersection Safety'!AC40 -> 35.59248528 | AD25: ='Intersection Safety'!AD40 -> 34.00555919 | AE25: ='Intersection Safety'!AE40 -> 70.73156311 | AF25: ='Intersection Safety'!AF40 -> 21246900.09 | AG25: ='Intersection Safety'!AG40 -> 21246900.09 | AH25: ='Intersection Safety'!AH40 -> 7197060.155 | AJ25: 15 | AK25: 1.613924649 | AL25: 61.61891169 | AM25: 59.74787911 | AN25: 122.9807155 | AO25: 0.3540547199 | AP25: 13.51764875 | AQ25: 13.10719098 | AR25: 26.97889445 | AS25: 1.259869929 | AT25: 48.10126294 | AU25: 46.64068813 | AV25: 96.001821 | AW25: 25184890.72 | AX25: 25184890.72 | AY25: 8530993.83
B26: 16 | C26: ='Intersection Safety'!C41 -> 0.1594312507 | D26: ='Intersection Safety'!D41 -> 15.78369382 | E26: ='Intersection Safety'!E41 -> 15.94312507 | F26: ='Intersection Safety'!F41 -> 31.88625015 | G26: ='Intersection Safety'!G41 -> 0.03497523063 | H26: ='Intersection Safety'!H41 -> 3.462547832 | I26: ='Intersection Safety'!I41 -> 3.497523063 | J26: ='Intersection Safety'!J41 -> 6.995046126 | K26: ='Intersection Safety'!K41 -> 0.1244560201 | L26: ='Intersection Safety'!L41 -> 12.32114599 | M26: ='Intersection Safety'!M41 -> 12.44560201 | N26: ='Intersection Safety'!N41 -> 24.89120402 | O26: ='Intersection Safety'!O41 -> 3878920.778 | P26: ='Intersection Safety'!P41 -> 3878920.778 | Q26: ='Intersection Safety'!Q41 -> 1227966.981 | S26: ='Intersection Safety'!S41 -> 16 | T26: ='Intersection Safety'!T41 -> 1.49127128 | U26: ='Intersection Safety'!U41 -> 46.82591819 | V26: ='Intersection Safety'!V41 -> 44.7381384 | W26: ='Intersection Safety'!W41 -> 93.05532787 | X26: ='Intersection Safety'!X41 -> 0.327147637 | Y26: ='Intersection Safety'!Y41 -> 10.2724358 | Z26: ='Intersection Safety'!Z41 -> 9.814429111 | AA26: ='Intersection Safety'!AA41 -> 20.41401255 | AB26: ='Intersection Safety'!AB41 -> 1.164123643 | AC26: ='Intersection Safety'!AC41 -> 36.55348239 | AD26: ='Intersection Safety'!AD41 -> 34.92370929 | AE26: ='Intersection Safety'!AE41 -> 72.64131532 | AF26: ='Intersection Safety'!AF41 -> 21820566.39 | AG26: ='Intersection Safety'!AG41 -> 21820566.39 | AH26: ='Intersection Safety'!AH41 -> 6907832.504 | AJ26: 16 | AK26: 1.650702531 | AL26: 62.60961201 | AM26: 60.68126347 | AN26: 124.941578 | AO26: 0.3621228677 | AP26: 13.73498364 | AQ26: 13.31195217 | AR26: 27.40905868 | AS26: 1.288579663 | AT26: 48.87462838 | AU26: 47.3693113 | AV26: 97.53251934 | AW26: 25699487.17 | AX26: 25699487.17 | AY26: 8135799.485
B27: 17 | C27: ='Intersection Safety'!C42 -> 0.157039782 | D27: ='Intersection Safety'!D42 -> 15.54693841 | E27: ='Intersection Safety'!E42 -> 15.7039782 | F27: ='Intersection Safety'!F42 -> 31.40795639 | G27: ='Intersection Safety'!G42 -> 0.03445060217 | H27: ='Intersection Safety'!H42 -> 3.410609615 | I27: ='Intersection Safety'!I42 -> 3.445060217 | J27: ='Intersection Safety'!J42 -> 6.890120434 | K27: ='Intersection Safety'!K42 -> 0.1225891798 | L27: ='Intersection Safety'!L42 -> 12.1363288 | M27: ='Intersection Safety'!M42 -> 12.25891798 | N27: ='Intersection Safety'!N42 -> 24.51783596 | O27: ='Intersection Safety'!O42 -> 3820736.967 | P27: ='Intersection Safety'!P42 -> 3820736.967 | Q27: ='Intersection Safety'!Q42 -> 1130418.202 | S27: ='Intersection Safety'!S42 -> 17 | T27: ='Intersection Safety'!T42 -> 1.531535604 | U27: ='Intersection Safety'!U42 -> 48.09021798 | V27: ='Intersection Safety'!V42 -> 45.94606813 | W27: ='Intersection Safety'!W42 -> 95.56782172 | X27: ='Intersection Safety'!X42 -> 0.3359806232 | Y27: ='Intersection Safety'!Y42 -> 10.54979157 | Z27: ='Intersection Safety'!Z42 -> 10.0794187 | AA27: ='Intersection Safety'!AA42 -> 20.96519089 | AB27: ='Intersection Safety'!AB42 -> 1.195554981 | AC27: ='Intersection Safety'!AC42 -> 37.54042641 | AD27: ='Intersection Safety'!AD42 -> 35.86664944 | AE27: ='Intersection Safety'!AE42 -> 74.60263083 | AF27: ='Intersection Safety'!AF42 -> 22409721.68 | AG27: ='Intersection Safety'!AG42 -> 22409721.68 | AH27: ='Intersection Safety'!AH42 -> 6630228.02 | AJ27: 17 | AK27: 1.688575386 | AL27: 63.6371564 | AM27: 61.65004633 | AN27: 126.9757781 | AO27: 0.3704312254 | AP27: 13.96040118 | AQ27: 13.52447891 | AR27: 27.85531132 | AS27: 1.318144161 | AT27: 49.67675521 | AU27: 48.12556742 | AV27: 99.12046679 | AW27: 26230458.65 | AX27: 26230458.65 | AY27: 7760646.222
B28: 18 | C28: ='Intersection Safety'!C43 -> 0.1546841852 | D28: ='Intersection Safety'!D43 -> 15.31373434 | E28: ='Intersection Safety'!E43 -> 15.46841852 | F28: ='Intersection Safety'!F43 -> 30.93683705 | G28: ='Intersection Safety'!G43 -> 0.03393384314 | H28: ='Intersection Safety'!H43 -> 3.359450471 | I28: ='Intersection Safety'!I43 -> 3.393384314 | J28: ='Intersection Safety'!J43 -> 6.786768627 | K28: ='Intersection Safety'!K43 -> 0.1207503421 | L28: ='Intersection Safety'!L43 -> 11.95428387 | M28: ='Intersection Safety'!M43 -> 12.07503421 | N28: ='Intersection Safety'!N43 -> 24.15006842 | O28: ='Intersection Safety'!O43 -> 3763425.912 | P28: ='Intersection Safety'!P43 -> 3763425.912 | Q28: ='Intersection Safety'!Q43 -> 1040618.625 | S28: ='Intersection Safety'!S43 -> 18 | T28: ='Intersection Safety'!T43 -> 1.572887066 | U28: ='Intersection Safety'!U43 -> 49.38865387 | V28: ='Intersection Safety'!V43 -> 47.18661197 | W28: ='Intersection Safety'!W43 -> 98.14815291 | X28: ='Intersection Safety'!X43 -> 0.3450521001 | Y28: ='Intersection Safety'!Y43 -> 10.83463594 | Z28: ='Intersection Safety'!Z43 -> 10.351563 | AA28: ='Intersection Safety'!AA43 -> 21.53125104 | AB28: ='Intersection Safety'!AB43 -> 1.227834966 | AC28: ='Intersection Safety'!AC43 -> 38.55401792 | AD28: ='Intersection Safety'!AD43 -> 36.83504897 | AE28: ='Intersection Safety'!AE43 -> 76.61690186 | AF28: ='Intersection Safety'!AF43 -> 23014784.17 | AG28: ='Intersection Safety'!AG43 -> 23014784.17 | AH28: ='Intersection Safety'!AH43 -> 6363779.604 | AJ28: 18 | AK28: 1.727571251 | AL28: 64.70238821 | AM28: 62.6550305 | AN28: 129.08499 | AO28: 0.3789859432 | AP28: 14.19408641 | AQ28: 13.74494732 | AR28: 28.31801967 | AS28: 1.348585308 | AT28: 50.50830179 | AU28: 48.91008318 | AV28: 100.7669703 | AW28: 26778210.08 | AX28: 26778210.08 | AY28: 7404398.23
B29: 19 | C29: ='Intersection Safety'!C44 -> 0.1523639225 | D29: ='Intersection Safety'!D44 -> 15.08402832 | E29: ='Intersection Safety'!E44 -> 15.23639225 | F29: ='Intersection Safety'!F44 -> 30.47278449 | G29: ='Intersection Safety'!G44 -> 0.03342483549 | H29: ='Intersection Safety'!H44 -> 3.309058713 | I29: ='Intersection Safety'!I44 -> 3.342483549 | J29: ='Intersection Safety'!J44 -> 6.684967098 | K29: ='Intersection Safety'!K44 -> 0.118939087 | L29: ='Intersection Safety'!L44 -> 11.77496961 | M29: ='Intersection Safety'!M44 -> 11.8939087 | N29: ='Intersection Safety'!N44 -> 23.78781739 | O29: ='Intersection Safety'!O44 -> 3706974.524 | P29: ='Intersection Safety'!P44 -> 3706974.524 | Q29: ='Intersection Safety'!Q44 -> 957952.6599 | S29: ='Intersection Safety'!S44 -> 19 | T29: ='Intersection Safety'!T44 -> 1.615355017 | U29: ='Intersection Safety'!U44 -> 50.72214752 | V29: ='Intersection Safety'!V44 -> 48.4606505 | W29: ='Intersection Safety'!W44 -> 100.798153 | X29: ='Intersection Safety'!X44 -> 0.3543685068 | Y29: ='Intersection Safety'!Y44 -> 11.12717111 | Z29: ='Intersection Safety'!Z44 -> 10.6310552 | AA29: ='Intersection Safety'!AA44 -> 22.11259482 | AB29: ='Intersection Safety'!AB44 -> 1.26098651 | AC29: ='Intersection Safety'!AC44 -> 39.59497641 | AD29: ='Intersection Safety'!AD44 -> 37.82959529 | AE29: ='Intersection Safety'!AE44 -> 78.68555821 | AF29: ='Intersection Safety'!AF44 -> 23636183.34 | AG29: ='Intersection Safety'!AG44 -> 23636183.34 | AH29: ='Intersection Safety'!AH44 -> 6108038.928 | AJ29: 19 | AK29: 1.767718939 | AL29: 65.80617584 | AM29: 63.69704274 | AN29: 131.2709375 | AO29: 0.3877933423 | AP29: 14.43622983 | AQ29: 13.97353875 | AR29: 28.79756192 | AS29: 1.379925597 | AT29: 51.36994602 | AU29: 49.72350399 | AV29: 102.4733756 | AW29: 27343157.86 | AX29: 27343157.86 | AY29: 7065991.588
B30: 20 | C30: ='Intersection Safety'!C45 -> 0.1500784636 | D30: ='Intersection Safety'!D45 -> 14.8577679 | E30: ='Intersection Safety'!E45 -> 15.00784636 | F30: ='Intersection Safety'!F45 -> 30.01569272 | G30: ='Intersection Safety'!G45 -> 0.03292346296 | H30: ='Intersection Safety'!H45 -> 3.259422833 | I30: ='Intersection Safety'!I45 -> 3.292346296 | J30: ='Intersection Safety'!J45 -> 6.584692591 | K30: ='Intersection Safety'!K45 -> 0.1171550007 | L30: ='Intersection Safety'!L45 -> 11.59834507 | M30: ='Intersection Safety'!M45 -> 11.71550007 | N30: ='Intersection Safety'!N45 -> 23.43100013 | O30: ='Intersection Safety'!O45 -> 3651369.906 | P30: ='Intersection Safety'!P45 -> 3651369.906 | Q30: ='Intersection Safety'!Q45 -> 881853.6168 | S30: ='Intersection Safety'!S45 -> 20 | T30: ='Intersection Safety'!T45 -> 1.658969602 | U30: ='Intersection Safety'!U45 -> 52.0916455 | V30: ='Intersection Safety'!V45 -> 49.76908806 | W30: ='Intersection Safety'!W45 -> 103.5197032 | X30: ='Intersection Safety'!X45 -> 0.3639364564 | Y30: ='Intersection Safety'!Y45 -> 11.42760473 | Z30: ='Intersection Safety'!Z45 -> 10.91809369 | AA30: ='Intersection Safety'!AA45 -> 22.70963488 | AB30: ='Intersection Safety'!AB45 -> 1.295033146 | AC30: ='Intersection Safety'!AC45 -> 40.66404077 | AD30: ='Intersection Safety'!AD45 -> 38.85099437 | AE30: ='Intersection Safety'!AE45 -> 80.81006829 | AF30: ='Intersection Safety'!AF45 -> 24274360.29 | AG30: ='Intersection Safety'!AG45 -> 24274360.29 | AH30: ='Intersection Safety'!AH45 -> 5862575.682 | AJ30: 20 | AK30: 1.809048066 | AL30: 66.9494134 | AM30: 64.77693442 | AN30: 133.5353959 | AO30: 0.3968599194 | AP30: 14.68702757 | AQ30: 14.21043999 | AR30: 29.29432747 | AS30: 1.412188146 | AT30: 52.26238584 | AU30: 50.56649443 | AV30: 104.2410684 | AW30: 27925730.19 | AX30: 27925730.19 | AY30: 6744429.299
B32: Total | C32: ='Intersection Safety'!C47 -> 0 | D32: ='Intersection Safety'!D47 -> 0 | E32: ='Intersection Safety'!E47 -> 0 | F32: ='Intersection Safety'!F47 -> 0 | G32: ='Intersection Safety'!G47 -> 0 | H32: ='Intersection Safety'!H47 -> 0 | I32: ='Intersection Safety'!I47 -> 0 | J32: ='Intersection Safety'!J47 -> 0 | K32: ='Intersection Safety'!K47 -> 0 | L32: ='Intersection Safety'!L47 -> 0 | M32: ='Intersection Safety'!M47 -> 0 | N32: ='Intersection Safety'!N47 -> 0 | O32: ='Intersection Safety'!O47 -> 0 | P32: ='Intersection Safety'!P47 -> 0 | Q32: ='Intersection Safety'!Q47 -> 43282223.81 | S32: ='Intersection Safety'!S47 -> Total | T32: ='Intersection Safety'!T47 -> 0 | U32: ='Intersection Safety'!U47 -> 0 | V32: ='Intersection Safety'!V47 -> 0 | W32: ='Intersection Safety'!W47 -> 0 | X32: ='Intersection Safety'!X47 -> 0 | Y32: ='Intersection Safety'!Y47 -> 0 | Z32: ='Intersection Safety'!Z47 -> 0 | AA32: ='Intersection Safety'!AA47 -> 0 | AB32: ='Intersection Safety'!AB47 -> 0 | AC32: ='Intersection Safety'!AC47 -> 0 | AD32: ='Intersection Safety'!AD47 -> 0 | AE32: ='Intersection Safety'!AE47 -> 0 | AF32: ='Intersection Safety'!AF47 -> 0 | AG32: ='Intersection Safety'!AG47 -> 0 | AH32: ='Intersection Safety'!AH47 -> 178001854.7 | AJ32: Total | AY32: =AH32+Q32 -> 221284078.5

Sheet Auto Accident Costs
B1: Accident Reduction Benefits
B3: This sheet calculates benefits of avoided accidents on highways due to a mode shift in trips to active transportation modes.
B5: Formulas:
B7: Vehicle-Miles Traveled = Affected Length x Avg Volume / Vehicle Occupancy | G7: Transit Acc Cost = Veh-Miles x Acc Cost/Mile
B8: veh-miles/yr. | D8: miles | E8: vehicles/yr.
B10: Hwy Acc Cost = (VMT x Rate x Cost/Mile) by Acc Type | G10: Transit Acc Cost/Mile from PARAMETERS
B15: A | C15: REDUCED ACCIDENT BENEFITS - HIGHWAY USERS
B18: Total
C20: AVERAGE ANNUAL VOLUME | E20: REDUCED VMT | F20: ACCIDENT BENEFITS
C21: (trip-miles/yr.) | E21: (veh-miles/yr.) | F21: ($/yr.)
B22: Year | C22: Induced Trips, Cycling | D22: Induced Trips, Pedestrians | E22: Induced Trips, Cyclists, Pedestrians | F22: Induced Trips | G22: Constant Dollars | H22: Present Value
B23: 1 | C23: =IF(OR(ProjType=1,ProjType=3),((TrComCyc1BEX-TrComCyc1NBEX)+(TrODCyc1BEX-TrODCyc1NBEX))*TAvMiCycNB,0)+IF(ProjType>1,((TrComCyc1BNew-TrComCyc1NBNew)+(TrODCyc1BNew-TrODCyc1NBNew))*TAvMiCycNB,0) -> 83560.85283 | D23: =IF(OR(ProjType=1,ProjType=3),((TrComPed1BEX-TrComPed1NBEX)+(TrODPed1BEX-TrODPed1NBEX))*TAvMiPedNB,0)+IF(ProjType>1,((TrComPed1BNew-TrComPed1NBNew)+(TrODPed1BNew-TrODPed1NBNew))*TAvMiPedNB,0) -> 0 | E23: =(D23*DivCycAutoNB+C23*DivPedAutoNB)/VehOcc -> 27669.15656 | F23: =(E23*NonFwyAccRate*AvgAccCost/1000000) -> 3476.131478 | G23: =SUM(F23:F23) -> 3476.131478 | H23: =$G23/(1+DiscRate)^($B23+Construct-1) -> 3036.187857
B24: 20 | C24: =IF(OR(ProjType=1,ProjType=3),((TrComCyc20BEX-TrComCyc20NBEX)+(TrODCyc20BEX-TrODCyc20NBEX))*TAvMiCycNB,0)+IF(ProjType>1,((TrComCyc20BNew-TrComCyc20NBNew)+(TrODCyc20BNew-TrODCyc20NBNew))*TAvMiCycNB,0) -> 3744310.594 | D24: =IF(OR(ProjType=1,ProjType=3),((TrComPed20BEX-TrComPed20NBEX)+(TrODPed20BEX-TrODPed20NBEX))*TAvMiPedNB,0)+IF(ProjType>1,((TrComPed20BNew-TrComPed20NBNew)+(TrODPed20BNew-TrODPed20NBNew))*TAvMiPedNB,0) -> 0 | E24: =(D24*DivCycAutoNB+C24*DivPedAutoNB)/VehOcc -> 1239837.945 | F24: =(E24*NonFwyAccRate*AvgAccCost/1000000) -> 155763.3207 | G24: =SUM($F24:$F24) -> 155763.3207 | H24: =$G24/(1+DiscRate)^($B24+Construct-1) -> 37618.88038
B26: 1 | C26: =TREND(C$23:C$24,$B$23:$B$24,$B26) -> 83560.85283 | D26: =TREND(D$23:D$24,$B$23:$B$24,$B26) -> 0 | E26: =(D26*DivCycAutoNB+C26*DivPedAutoNB)/VehOcc -> 27669.15656 | F26: =(E26*NonFwyAccRate*AvgAccCost/1000000) -> 3476.131478 | G26: =TREND(G$23:G$24,$B$23:$B$24,$B26) -> 3476.131478 | H26: =$G26/(1+DiscRate)^($B26+Construct-1) -> 3036.187857
B27: 2 | C27: =TREND(C$23:C$24,$B$23:$B$24,$B27) -> 276231.8918 | D27: 0 | E27: =(D27*DivCycAutoNB+C27*DivPedAutoNB)/VehOcc -> 91467.51385 | F27: 11491.2467 | G27: 11491.2467 | H27: 9380.280284
B28: 3 | C28: 468902.9308 | D28: 0 | E28: 155265.8711 | F28: 19506.36192 | G28: 19506.36192 | H28: 14881.31012
B29: 4 | C29: 661573.9698 | D29: 0 | E29: =(D29*DivCycAutoNB+C29*DivPedAutoNB)/VehOcc -> 219064.2284 | F29: 27521.47715 | G29: 27521.47715 | H29: 19622.43284
B30: 5 | C30: 854245.0088 | D30: 0 | E30: 282862.5857 | F30: 35536.59237 | G30: 35536.59237 | H30: 23679.53199
B31: 6 | C31: 1046916.048 | D31: 0 | E31: 346660.943 | F31: 43551.70759 | G31: 43551.70759 | H31: 27121.81466
B32: 7 | C32: 1239587.087 | D32: 0 | E32: 410459.3003 | F32: 51566.82281 | G32: 51566.82281 | H32: 30012.36037
B33: 8 | C33: 1432258.126 | D33: 0 | E33: 474257.6576 | F33: 59581.93804 | G33: 59581.93804 | H33: 32408.62655
B34: 9 | C34: 1624929.165 | D34: 0 | E34: 538056.0149 | F34: 67597.05326 | G34: 67597.05326 | H34: 34362.91417
B35: 10 | C35: 1817600.204 | D35: 0 | E35: 601854.3721 | F35: 75612.16848 | G35: 75612.16848 | H35: 35922.79656
B36: 11 | C36: 2010271.243 | D36: 0 | E36: 665652.7294 | F36: 83627.2837 | G36: 83627.2837 | H36: 37131.51408
B37: 12 | C37: 2202942.282 | D37: 0 | E37: 729451.0867 | F37: 91642.39893 | G37: 91642.39893 | H37: 38028.33747
B38: 13 | C38: 2395613.321 | D38: 0 | E38: 793249.444 | F38: 99657.51415 | G38: 99657.51415 | H38: 38648.90218
B39: 14 | C39: 2588284.36 | D39: 0 | E39: 857047.8013 | F39: 107672.6294 | G39: 107672.6294 | H39: 39025.51594
B40: 15 | C40: 2780955.399 | D40: 0 | E40: 920846.1586 | F40: 115687.7446 | G40: 115687.7446 | H40: 39187.44163
B41: 16 | C41: 2973626.438 | D41: 0 | E41: 984644.5159 | F41: 123702.8598 | G41: 123702.8598 | H41: 39161.15744
B42: 17 | C42: 3166297.477 | D42: 0 | E42: 1048442.873 | F42: 131717.975 | G42: 131717.975 | H42: 38970.59594
B43: 18 | C43: 3358968.516 | D43: 0 | E43: 1112241.23 | F43: 139733.0903 | G43: 139733.0903 | H43: 38637.36385
B44: 19 | C44: 3551639.555 | D44: 0 | E44: 1176039.588 | F44: 147748.2055 | G44: 147748.2055 | H44: 38180.94393
B45: 20 | C45: 3744310.594 | D45: 0 | E45: 1239837.945 | F45: 155763.3207 | G45: 155763.3207 | H45: 37618.88038
B47: Total | H47: =SUM(H26:H45) -> 615018.9083

Sheet Health - Absenteeism
B1: Health Benefits - Reduced Absenteeism
B3: This sheet calculates the benefits to employers of improved health of employees who use active transportation modes. Benefits are based on the value of reduced work absences.
B5: Formulas:
H6: Value of Short-Term Health = Reduced Days of Work Absences x Avg. Value of Time per Day
B7: Avg. Ann. Commuters = Avg. Daily Trips / Roundtrip Factor x Commuting Purpose (%) x Annual Days | H7: $ / year | J7: # of days / year | L7: $ / day
B8: # / year | C8: #/day' | D8: % | E8: # | H8: Avg. Value of Time per Day, based on state average wage rate and 8 hour day
B10: Reduced Days of Work Absences = Avg. Ann. Commuters x Short-term sick leave coverage x Reduction in sick days | H10: Only applicable for induced riders
B11: # / yr. | C11: # / year | D11: (%) | E11: (%)
B15: A | C15: CYCLING BENEFITS | K15: B | L15: PEDESTRIAN BENEFITS | T15: C | U15: TOTAL
B18: Total | K18: Total | T18: Total
C20: COMMUTER TRIPS | F20: REDUCTION IN ABSENTEEISM | G20: VALUE OF REDUCED ABSENTEEISM | L20: NEW COMMUTERS | O20: REDUCTION IN ABSENTEEISM | P20: VALUE OF REDUCED ABSENTEEISM
C21: (trips/yr.) | F21: (days) | G21: ($/day) | L21: (trips/yr.) | O21: (days) | P21: ($/day)
B22: Year | C22: Total Commuters, Existing + New Facility (Baseline) | D22: Total Commuters, Improved + New Facility | E22: Induced Commuters, Existing Facility | F22: Induced Commuters | G22: Induced Commuters | H22: Constant Dollars | I22: Present Value | K22: Year | L22: Total Commuters, Existing Facility (Baseline) | M22: Total Commuters, Improved Facility | N22: Induced Commuters, Existing Facility | O22: Induced Commuters | P22: Induced Commuters | Q22: Constant Dollars | R22: Present Value | T22: Year | U22: Constant Dollars | V22: Present Value
B23: 1 | C23: =IF(OR(ProjType=1,ProjType=3),UserComCyc1NBEX,0)+IF(ProjType>1,UserComCyc1NBNew,0) -> 86.06634146 | D23: =IF(OR(ProjType=1,ProjType=3),UserComCyc1BEX,0)+IF(ProjType>1,UserComCyc1BNew,0) -> 101.5364668 | E23: =D23-C23 -> 15.47012536 | F23: =E23*AnnSickDays*PerSickDaysLeave*PerSickDaysRed -> 2.144159375 | G23: =WageStatewide*8 -> 259.5393486 | H23: =G23*F23*(1+TTUprater)^($B23+Construct-1) -> 556.4937274 | I23: =$H23/(1+DiscRate)^($B23+Construct-1) -> 486.0631735 | K23: 1 | L23: =IF(OR(ProjType=1,ProjType=3),UserComPed1NBEX,0)+IF(ProjType>1,UserComPed1NBNew,0) -> 58.14222766 | M23: =IF(OR(ProjType=1,ProjType=3),UserComPed1BEX,0)+IF(ProjType>1,UserComPed1BNew,0) -> 58.14222766 | N23: =M23-L23 -> 0 | O23: =N23*AnnSickDays*PerSickDaysLeave*PerSickDaysRed -> 0 | P23: =WageStatewide*8 -> 259.5393486 | Q23: =P23*O23 -> 0 | R23: =$Q23/(1+DiscRate)^($K23+Construct-1) -> 0 | T23: 1 | U23: =Q23+H23 -> 556.4937274 | V23: =R23+I23 -> 486.0631735
B24: 20 | C24: =IF(OR(ProjType=1,ProjType=3),UserComCyc20NBEX,0)+IF(ProjType>1,UserComCyc20NBNew,0) -> 134.3073177 | D24: =IF(OR(ProjType=1,ProjType=3),UserComCyc20BEX,0)+IF(ProjType>1,UserComCyc20BNew,0) -> 827.5141522 | E24: =D24-C24 -> 693.2068345 | F24: =E24*AnnSickDays*PerSickDaysLeave*PerSickDaysRed -> 96.07846726 | G24: =WageStatewide*8 -> 259.5393486 | H24: =G24*F24*(1+TTUprater)^($B24+Construct-1) -> 24936.1428 | I24: =$H24/(1+DiscRate)^($B24+Construct-1) -> 6022.40482 | K24: 20 | L24: =IF(OR(ProjType=1,ProjType=3),UserComPed20NBEX,0)+IF(ProjType>1,UserComPed20NBNew,0) -> 90.73148121 | M24: =IF(OR(ProjType=1,ProjType=3),UserComPed20BEX,0)+IF(ProjType>1,UserComPed20BNew,0) -> 90.73148121 | N24: =M24-L24 -> 0 | O24: =N24*AnnSickDays*PerSickDaysLeave*PerSickDaysRed -> 0 | P24: =WageStatewide*8 -> 259.5393486 | Q24: =P24*O24 -> 0 | R24: =$Q24/(1+DiscRate)^($K24+Construct-1) -> 0 | T24: 20 | U24: =Q24+H24 -> 24936.1428 | V24: =R24+I24 -> 6022.40482
B26: 1 | C26: =TREND(C$23:C$24,$B$23:$B$24,$B26) -> 86.06634146 | D26: =TREND(D$23:D$24,$B$23:$B$24,$B26) -> 101.5364668 | E26: =TREND(E$23:E$24,$B$23:$B$24,$B26) -> 15.47012536 | F26: =E26*AnnSickDays*PerSickDaysLeave*PerSickDaysRed -> 2.144159375 | G26: =WageStatewide*8 -> 259.5393486 | H26: =G26*F26*(1+TTUprater)^($B26+Construct-1) -> 556.4937274 | I26: =$H26/(1+DiscRate)^($B26+Construct-1) -> 486.0631735 | K26: 1 | L26: =TREND(L$23:L$24,$B$23:$B$24,$B26) -> 58.14222766 | M26: =TREND(M$23:M$24,$B$23:$B$24,$B26) -> 58.14222766 | N26: =TREND(N$23:N$24,$B$23:$B$24,$B26) -> 0 | O26: =N26*AnnSickDays*PerSickDaysLeave*PerSickDaysRed -> 0 | P26: =WageStatewide*8 -> 259.5393486 | Q26: =P26*O26 -> 0 | R26: =$Q26/(1+DiscRate)^($K26+Construct-1) -> 0 | T26: 1 | U26: =Q26+H26 -> 556.4937274 | V26: =R26+I26 -> 486.0631735
B27: 2 | C27: =TREND(C$23:C$24,$B$23:$B$24,$B27) -> 88.60534021 | D27: 139.7458187 | E27: 51.14047847 | F27: 7.088070316 | G27: 259.5393486 | H27: 1839.633152 | I27: 1501.688637 | K27: 2 | L27: =TREND(L$23:L$24,$B$23:$B$24,$B27) -> 59.85745153 | M27: 59.85745153 | N27: 0 | O27: 0 | P27: 259.5393486 | Q27: 0 | R27: 0 | T27: 2 | U27: 1839.633152 | V27: 1501.688637
B28: 3 | C28: 91.14433896 | D28: 177.9551705 | E28: 86.81083158 | F28: 12.03198126 | G28: 259.5393486 | H28: 3122.772578 | I28: 2382.348248 | K28: 3 | L28: 61.5726754 | M28: 61.5726754 | N28: 0 | O28: 0 | P28: 259.5393486 | Q28: 0 | R28: 0 | T28: 3 | U28: 3122.772578 | V28: 2382.348248
B29: 4 | C29: 93.68333771 | D29: 216.1645224 | E29: 122.4811847 | F29: 16.9758922 | G29: 259.5393486 | H29: 4405.912003 | I29: 3141.354366 | K29: 4 | L29: 63.28789928 | M29: 63.28789928 | N29: 0 | O29: 0 | P29: 259.5393486 | Q29: 0 | R29: 0 | T29: 4 | U29: 4405.912003 | V29: 3141.354366
B30: 5 | C30: 96.22233646 | D30: 254.3738743 | E30: 158.1515378 | F30: 21.91980314 | G30: 259.5393486 | H30: 5689.051428 | I30: 3790.85518 | K30: 5 | L30: 65.00312315 | M30: 65.00312315 | N30: 0 | O30: 0 | P30: 259.5393486 | Q30: 0 | R30: 0 | T30: 5 | U30: 5689.051428 | V30: 3790.85518
B31: 6 | C31: 98.76133521 | D31: 292.5832261 | E31: 193.8218909 | F31: 26.86371408 | G31: 259.5393486 | H31: 6972.190853 | I31: 4341.930054 | K31: 6 | L31: 66.71834702 | M31: 66.71834702 | N31: 0 | O31: 0 | P31: 259.5393486 | Q31: 0 | R31: 0 | T31: 6 | U31: 6972.190853 | V31: 4341.930054
B32: 7 | C32: 101.300334 | D32: 330.792578 | E32: 229.492244 | F32: 31.80762502 | G32: 259.5393486 | H32: 8255.330278 | I32: 4804.677383 | K32: 7 | L32: 68.43357089 | M32: 68.43357089 | N32: 0 | O32: 0 | P32: 259.5393486 | Q32: 0 | R32: 0 | T32: 7 | U32: 8255.330278 | V32: 4804.677383
B33: 8 | C33: 103.8393327 | D33: 369.0019298 | E33: 265.1625971 | F33: 36.75153596 | G33: 259.5393486 | H33: 9538.469703 | I33: 5188.295524 | K33: 8 | L33: 70.14879476 | M33: 70.14879476 | N33: 0 | O33: 0 | P33: 259.5393486 | Q33: 0 | R33: 0 | T33: 8 | U33: 9538.469703 | V33: 5188.295524
B34: 9 | C34: 106.3783315 | D34: 407.2112817 | E34: 300.8329502 | F34: 41.6954469 | G34: 259.5393486 | H34: 10821.60913 | I34: 5501.15734 | K34: 9 | L34: 71.86401863 | M34: 71.86401863 | N34: 0 | O34: 0 | P34: 259.5393486 | Q34: 0 | R34: 0 | T34: 9 | U34: 10821.60913 | V34: 5501.15734
B35: 10 | C35: 108.9173302 | D35: 445.4206336 | E35: 336.5033034 | F35: 46.63935785 | G35: 259.5393486 | H35: 12104.74855 | I35: 5750.87884 | K35: 10 | L35: 73.5792425 | M35: 73.5792425 | N35: 0 | O35: 0 | P35: 259.5393486 | Q35: 0 | R35: 0 | T35: 10 | U35: 12104.74855 | V35: 5750.87884
B36: 11 | C36: 111.456329 | D36: 483.6299854 | E36: 372.1736565 | F36: 51.58326879 | G36: 259.5393486 | H36: 13387.88798 | I36: 5944.382371 | K36: 11 | L36: 75.29446637 | M36: 75.29446637 | N36: 0 | O36: 0 | P36: 259.5393486 | Q36: 0 | R36: 0 | T36: 11 | U36: 13387.88798 | V36: 5944.382371
B37: 12 | C37: 113.9953277 | D37: 521.8393373 | E37: 407.8440096 | F37: 56.52717973 | G37: 259.5393486 | H37: 14671.0274 | I37: 6087.954786 | K37: 12 | L37: 77.00969024 | M37: 77.00969024 | N37: 0 | O37: 0 | P37: 259.5393486 | Q37: 0 | R37: 0 | T37: 12 | U37: 14671.0274 | V37: 6087.954786
B38: 13 | C38: 116.5343265 | D38: 560.0486891 | E38: 443.5143627 | F38: 61.47109067 | G38: 259.5393486 | H38: 15954.16683 | I38: 6187.300962 | K38: 13 | L38: 78.72491412 | M38: 78.72491412 | N38: 0 | O38: 0 | P38: 259.5393486 | Q38: 0 | R38: 0 | T38: 13 | U38: 15954.16683 | V38: 6187.300962
B39: 14 | C39: 119.0733252 | D39: 598.258041 | E39: 479.1847158 | F39: 66.41500161 | G39: 259.5393486 | H39: 17237.30625 | I39: 6247.593041 | K39: 14 | L39: 80.44013799 | M39: 80.44013799 | N39: 0 | O39: 0 | P39: 259.5393486 | Q39: 0 | R39: 0 | T39: 14 | U39: 17237.30625 | V39: 6247.593041
B40: 15 | C40: 121.612324 | D40: 636.4673929 | E40: 514.8550689 | F40: 71.35891255 | G40: 259.5393486 | H40: 18520.44568 | I40: 6273.515718 | K40: 15 | L40: 82.15536186 | M40: 82.15536186 | N40: 0 | O40: 0 | P40: 259.5393486 | Q40: 0 | R40: 0 | T40: 15 | U40: 18520.44568 | V40: 6273.515718
B41: 16 | C41: 124.1513227 | D41: 674.6767447 | E41: 550.525422 | F41: 76.30282349 | G41: 259.5393486 | H41: 19803.5851 | I41: 6269.307883 | K41: 16 | L41: 83.87058573 | M41: 83.87058573 | N41: 0 | O41: 0 | P41: 259.5393486 | Q41: 0 | R41: 0 | T41: 16 | U41: 19803.5851 | V41: 6269.307883
B42: 17 | C42: 126.6903215 | D42: 712.8860966 | E42: 586.1957751 | F42: 81.24673443 | G42: 259.5393486 | H42: 21086.72453 | I42: 6238.800902 | K42: 17 | L42: 85.5858096 | M42: 85.5858096 | N42: 0 | O42: 0 | P42: 259.5393486 | Q42: 0 | R42: 0 | T42: 17 | U42: 21086.72453 | V42: 6238.800902
B43: 18 | C43: 129.2293202 | D43: 751.0954485 | E43: 621.8661282 | F43: 86.19064537 | G43: 259.5393486 | H43: 22369.86395 | I43: 6185.453792 | K43: 18 | L43: 87.30103347 | M43: 87.30103347 | N43: 0 | O43: 0 | P43: 259.5393486 | Q43: 0 | R43: 0 | T43: 18 | U43: 22369.86395 | V43: 6185.453792
B44: 19 | C44: 131.768319 | D44: 789.3048003 | E44: 657.5364814 | F44: 91.13455632 | G44: 259.5393486 | H44: 23653.00338 | I44: 6112.385547 | K44: 19 | L44: 89.01625734 | M44: 89.01625734 | N44: 0 | O44: 0 | P44: 259.5393486 | Q44: 0 | R44: 0 | T44: 19 | U44: 23653.00338 | V44: 6112.385547
B45: 20 | C45: 134.3073177 | D45: 827.5141522 | E45: 693.2068345 | F45: 96.07846726 | G45: 259.5393486 | H45: 24936.1428 | I45: 6022.40482 | K45: 20 | L45: 90.73148121 | M45: 90.73148121 | N45: 0 | O45: 0 | P45: 259.5393486 | Q45: 0 | R45: 0 | T45: 20 | U45: 24936.1428 | V45: 6022.40482
B47: Total | I47: =SUM(I26:I45) -> 98458.34857 | K47: Total | R47: =SUM(R26:R45) -> 0 | T47: Total | V47: =SUM(V26:V45) -> 98458.34857

Sheet Health - Reduced Mortality
B1: Health Benefits - Reduced Mortality
B3: This sheet calculates the benefits to cyclists and pedestrians for improved long-term health based on reduced risk of mortality.
B5: Formulas:
H6: Number of Expected Deaths in Age Group (Baseline) = Number of Users in Risk-Reducing Age Group * Death Rate (Group)
B7: Number of Induced Users = Users With Project (Improved or New Facility) - Baseline Users (Existing and / or no Facility) | H7: # / yr.
B8: # / yr. | H8: Reduced Mortality Risk = Expected Deaths in Age Group * Mortality Risk Reduction (%), as function of annual trip miles
H9: # / yr.
B10: Number of Users in Risk-Reducing Age Group = Number of Induced Users * % of Users (by Mode) in Risk-reducing Age Group | H10: Value of Reduced Mortality = Reduced Number of Annual Deaths * Value of Life
B11: # / yr. | H11: $/yr.
B15: A | C15: CYCLING BENEFITS | M15: B | N15: PEDESTRIAN BENEFITS | X15: C | Y15: TOTAL
B18: Existing | M18: Existing | X18: Existing
C20: AVERAGE ANNUAL USERS | F20: REDUCED MORTALITY RISK | I20: VALUE OF REDUCED MORTALITY | N20: AVERAGE ANNUAL USERS | Q20: REDUCED MORTALITY RISK | T20: VALUE OF REDUCED MORTALITY
C21: (Users/yr.) | F21: (# of persons) | I21: ($) | N21: (trips/yr.) | Q21: (# of persons) | T21: ($)
B22: Year | C22: Total Users, Existing Facility (Baseline) | D22: Total Users, Improved Facility | E22: Induced Users, Improved Facility | F22: Users in Risk-Reducing Age Group (Ages 20-64) | G22: Expected # of Deaths Among Users | H22: Reduced Mortality Risk (Induced User Trips) | I22: Induced Users | J22: Constant Dollars | K22: Present Value | M22: Year | N22: Total Users, Existing Facility (Baseline) | O22: Total Users, Improved Facility | P22: Induced Users, Improved Facility | Q22: Users in Age-Risk Group | R22: Expected # of Deaths Among Users | S22: Reduced Mortality Risk (Induced User Trips) | T22: Induced Users | U22: Constant Dollars | V22: Present Value | X22: Year | Y22: Constant Dollars | Z22: Present Value
B23: 1 | C23: =IF(OR(ProjType=1, ProjType=3),UserComCyc1NBEX+UserODCyc1NBEX+UserRecCyc1NBEX*RecBen,0) -> 231.3611329 | D23: =IF(OR(ProjType=1, ProjType=3),UserComCyc1BEX+UserODCyc1BEX+UserRecCyc1BEX*RecBen,0) -> 272.9474914 | E23: =D23-C23 -> 41.58635849 | F23: =E23*PerCycAge -> 22.83091081 | G23: =F23*MortRateCyc/100000 -> 0.05753389525 | H23: =G23*PerCycRiskRedUsers -> 0.01322137543 | I23: =H23*HwyFatCost -> 171877.8806 | J23: =I23 -> 171877.8806 | K23: =$J23/(1+DiscRate)^($B23+Construct-1) -> 150124.7974 | M23: 1 | N23: =IF(OR(ProjType=1, ProjType=3),UserComPed1NBEX+UserODPed1NBEX+UserRecPed1NBEX*RecBen,0) -> 574.4340281 | O23: =IF(OR(ProjType=1, ProjType=3),UserComPed1BEX+UserODPed1BEX+UserRecPed1BEX*RecBen,0) -> 574.4340281 | P23: =O23-N23 -> 0 | Q23: =P23*PerPedAge -> 0 | R23: =Q23*MortRatePed/100000 -> 0 | S23: =R23*PerPedRiskRedUsers -> 0 | T23: =IF(OR(ProjType=1, ProjType=3),S23*HwyFatCost,0) -> 0 | U23: =T23 -> 0 | V23: =$U23/(1+DiscRate)^($M23+Construct-1) -> 0 | X23: 1 | Y23: =U23+J23 -> 171877.8806 | Z23: =V23+K23 -> 150124.7974
B24: 20 | C24: =IF(OR(ProjType=1, ProjType=3),UserComCyc20NBEX+UserODCyc20NBEX+UserRecCyc20NBEX*RecBen,0) -> 361.0411766 | D24: =IF(OR(ProjType=1, ProjType=3),UserComCyc20BEX+UserODCyc20BEX+UserRecCyc20BEX*RecBen,0) -> 2224.500409 | E24: =D24-C24 -> 1863.459232 | F24: =E24*PerCycAge -> 1023.039119 | G24: =F24*MortRateCyc/100000 -> 2.578058579 | H24: =G24*PerCycRiskRedUsers -> 0.5924417285 | I24: =H24*HwyFatCost -> 7701742.471 | J24: =I24 -> 7701742.471 | K24: =$J24/(1+DiscRate)^($B24+Construct-1) -> 1860071.597 | M24: 20 | N24: =IF(OR(ProjType=1, ProjType=3),UserComPed20NBEX+UserODPed20NBEX+UserRecPed20NBEX*RecBen,0) -> 896.409586 | O24: =IF(OR(ProjType=1, ProjType=3),UserComPed20BEX+UserODPed20BEX+UserRecPed20BEX*RecBen,0) -> 896.409586 | P24: =O24-N24 -> 0 | Q24: =P24*PerPedAge -> 0 | R24: =Q24*MortRatePed/100000 -> 0 | S24: =R24*PerPedRiskRedUsers -> 0 | T24: =IF(OR(ProjType=1, ProjType=3),S24*HwyFatCost,0) -> 0 | U24: =T24 -> 0 | V24: =$U24/(1+DiscRate)^($M24+Construct-1) -> 0 | X24: 20 | Y24: =U24+J24 -> 7701742.471 | Z24: =V24+K24 -> 1860071.597
B26: 1 | C26: =TREND(C$23:C$24,$B$23:$B$24,$B26) -> 231.3611329 | D26: =TREND(D$23:D$24,$B$23:$B$24,$B26) -> 272.9474914 | E26: =TREND(E$23:E$24,$B$23:$B$24,$B26) -> 41.58635849 | F26: =E26*PerCycAge -> 22.83091081 | G26: =F26*MortRateCyc/100000 -> 0.05753389525 | H26: =G26*PerCycRiskRedUsers -> 0.01322137543 | I26: =H26*HwyFatCost -> 171877.8806 | J26: =I26 -> 171877.8806 | K26: =$J26/(1+DiscRate)^($B26+Construct-1) -> 150124.7974 | M26: 1 | N26: =TREND(N$23:N$24,$M$23:$M$24,$M26) -> 574.4340281 | O26: 574.4340281 | P26: =O26-N26 -> 0 | Q26: =P26*PerPedAge -> 0 | R26: =Q26*MortRatePed/100000 -> 0 | S26: =R26*PerPedRiskRedUsers -> 0 | T26: =IF(OR(ProjType=1, ProjType=3),S26*HwyFatCost,0) -> 0 | U26: =T26 -> 0 | V26: =U26/(1+DiscRate)^($B26+Construct-1) -> 0 | X26: 1 | Y26: =U26+J26 -> 171877.8806 | Z26: 150124.7974
B27: 2 | C27: =TREND(C$23:C$24,$B$23:$B$24,$B27) -> 238.1863984 | D27: 375.6608029 | E27: 137.4744045 | F27: 75.47344807 | G27: 0.1901930891 | H27: 0.04370665717 | I27: 568186.5432 | J27: 568186.5432 | K27: 463809.4689 | M27: 2 | N27: 591.3801101 | O27: 591.3801101 | P27: =O27-N27 -> 0 | Q27: 0 | R27: 0 | S27: 0 | T27: 0 | U27: 0 | V27: 0 | X27: 2 | Y27: 568186.5432 | Z27: 463809.4689
B28: 3 | C28: 245.0116639 | D28: 478.3741143 | E28: 233.3624505 | F28: 128.1159853 | G28: 0.322852283 | H28: 0.07419193891 | I28: 964495.2059 | J28: 964495.2059 | K28: 735808.7746 | M28: 3 | N28: 608.3261921 | O28: 608.3261921 | P28: 0 | Q28: 0 | R28: 0 | S28: 0 | T28: 0 | U28: 0 | V28: 0 | X28: 3 | Y28: 964495.2059 | Z28: 735808.7746
B29: 4 | C29: 251.8369293 | D29: 581.0874258 | E29: 329.2504965 | F29: 180.7585226 | G29: 0.4555114769 | H29: 0.1046772207 | I29: 1360803.868 | J29: 1360803.868 | K29: 970234.3512 | M29: 4 | N29: 625.2722741 | O29: 625.2722741 | P29: 0 | Q29: 0 | R29: 0 | S29: 0 | T29: 0 | U29: 0 | V29: 0 | X29: 4 | Y29: 1360803.868 | Z29: 970234.3512
B30: 5 | C30: 258.6621948 | D30: 683.8007373 | E30: 425.1385425 | F30: 233.4010598 | G30: 0.5881706708 | H30: 0.1351625024 | I30: 1757112.531 | J30: 1757112.531 | K30: 1170838.271 | M30: 5 | N30: 642.2183561 | O30: 642.2183561 | P30: 0 | Q30: 0 | R30: 0 | S30: 0 | T30: 0 | U30: 0 | V30: 0 | X30: 5 | Y30: 1757112.531 | Z30: 1170838.271
B31: 6 | C31: 265.4874602 | D31: 786.5140487 | E31: 521.0265885 | F31: 286.0435971 | G31: 0.7208298646 | H31: 0.1656477841 | I31: 2153421.194 | J31: 2153421.194 | K31: 1341042.493 | M31: 6 | N31: 659.1644381 | O31: 659.1644381 | P31: 0 | Q31: 0 | R31: 0 | S31: 0 | T31: 0 | U31: 0 | V31: 0 | X31: 6 | Y31: 2153421.194 | Z31: 1341042.493
B32: 7 | C32: 272.3127257 | D32: 889.2273602 | E32: 616.9146345 | F32: 338.6861343 | G32: 0.8534890585 | H32: 0.1961330659 | I32: 2549729.856 | J32: 2549729.856 | K32: 1483965.991 | M32: 7 | N32: 676.1105201 | O32: 676.1105201 | P32: 0 | Q32: 0 | R32: 0 | S32: 0 | T32: 0 | U32: 0 | V32: 0 | X32: 7 | Y32: 2549729.856 | Z32: 1483965.991
B33: 8 | C33: 279.1379911 | D33: 991.9406716 | E33: 712.8026805 | F33: 391.3286716 | G33: 0.9861482524 | H33: 0.2266183476 | I33: 2946038.519 | J33: 2946038.519 | K33: 1602449.757 | M33: 8 | N33: 693.0566021 | O33: 693.0566021 | P33: 0 | Q33: 0 | R33: 0 | S33: 0 | T33: 0 | U33: 0 | V33: 0 | X33: 8 | Y33: 2946038.519 | Z33: 1602449.757
B34: 9 | C34: 285.9632566 | D34: 1094.653983 | E34: 808.6907265 | F34: 443.9712088 | G34: 1.118807446 | H34: 0.2571036294 | I34: 3342347.182 | J34: 3342347.182 | K34: 1699079.824 | M34: 9 | N34: =TREND(N$23:N$24,$M$23:$M$24,$M34) -> 710.0026841 | O34: =TREND(O$23:O$24,$M$23:$M$24,$M34) -> 710.0026841 | P34: 0 | Q34: 0 | R34: 0 | S34: 0 | T34: 0 | U34: 0 | V34: 0 | X34: 9 | Y34: 3342347.182 | Z34: 1699079.824
B35: 10 | C35: 292.7885221 | D35: 1197.367295 | E35: 904.5787725 | F35: 496.6137461 | G35: 1.25146664 | H35: 0.2875889111 | I35: 3738655.844 | J35: 3738655.844 | K35: 1776208.46 | M35: 10 | N35: =TREND(N$23:N$24,$B$23:$B$24,$B35) -> 726.9487661 | O35: 726.9487661 | P35: 0 | Q35: 0 | R35: 0 | S35: 0 | T35: 0 | U35: 0 | V35: 0 | X35: 10 | Y35: 3738655.844 | Z35: 1776208.46
B36: 11 | C36: 299.6137875 | D36: 1300.080606 | E36: 1000.466818 | F36: 549.2562833 | G36: 1.384125834 | H36: 0.3180741928 | I36: 4134964.507 | J36: 4134964.507 | K36: 1835973.692 | M36: 11 | N36: 743.8948481 | O36: 743.8948481 | P36: 0 | Q36: 0 | R36: 0 | S36: 0 | T36: 0 | U36: 0 | V36: 0 | X36: 11 | Y36: 4134964.507 | Z36: 1835973.692
B37: 12 | C37: 306.439053 | D37: 1402.793917 | E37: 1096.354864 | F37: 601.8988206 | G37: 1.516785028 | H37: 0.3485594746 | I37: 4531273.17 | J37: 4531273.17 | K37: 1880317.269 | M37: 12 | N37: 760.8409301 | O37: 760.8409301 | P37: 0 | Q37: 0 | R37: 0 | S37: 0 | T37: 0 | U37: 0 | V37: 0 | X37: 12 | Y37: 4531273.17 | Z37: 1880317.269
B38: 13 | C38: 313.2643184 | D38: 1505.507229 | E38: 1192.24291 | F38: 654.5413578 | G38: 1.649444222 | H38: 0.3790447563 | I38: 4927581.832 | J38: 4927581.832 | K38: 1911001.191 | M38: 13 | N38: 777.7870121 | O38: 777.7870121 | P38: 0 | Q38: 0 | R38: 0 | S38: 0 | T38: 0 | U38: 0 | V38: 0 | X38: 13 | Y38: 4927581.832 | Z38: 1911001.191
B39: 14 | C39: 320.0895839 | D39: 1608.22054 | E39: 1288.130956 | F39: 707.1838951 | G39: 1.782103416 | H39: 0.4095300381 | I39: 5323890.495 | J39: 5323890.495 | K39: 1929622.919 | M39: 14 | N39: 794.7330941 | O39: 794.7330941 | P39: 0 | Q39: 0 | R39: 0 | S39: 0 | T39: 0 | U39: 0 | V39: 0 | X39: 14 | Y39: 5323890.495 | Z39: 1929622.919
B40: 15 | C40: 326.9148494 | D40: 1710.933852 | E40: 1384.019002 | F40: 759.8264323 | G40: 1.91476261 | H40: 0.4400153198 | I40: 5720199.158 | J40: 5720199.158 | K40: 1937629.361 | M40: 15 | N40: 811.6791761 | O40: 811.6791761 | P40: 0 | Q40: 0 | R40: 0 | S40: 0 | T40: 0 | U40: 0 | V40: 0 | X40: 15 | Y40: 5720199.158 | Z40: 1937629.361
B41: 16 | C41: 333.7401148 | D41: 1813.647163 | E41: 1479.907048 | F41: 812.4689696 | G41: 2.047421803 | H41: 0.4705006016 | I41: 6116507.82 | J41: 6116507.82 | K41: 1936329.735 | M41: 16 | N41: 828.625258 | O41: 828.625258 | P41: 0 | Q41: 0 | R41: 0 | S41: 0 | T41: 0 | U41: 0 | V41: 0 | X41: 16 | Y41: 6116507.82 | Z41: 1936329.735
B42: 17 | C42: 340.5653803 | D42: 1916.360475 | E42: 1575.795094 | F42: 865.1115068 | G42: 2.180080997 | H42: 0.5009858833 | I42: 6512816.483 | J42: 6512816.483 | K42: 1926907.391 | M42: 17 | N42: 845.57134 | O42: 845.57134 | P42: 0 | Q42: 0 | R42: 0 | S42: 0 | T42: 0 | U42: 0 | V42: 0 | X42: 17 | Y42: 6512816.483 | Z42: 1926907.391
B43: 18 | C43: 347.3906457 | D43: 2019.073786 | E43: 1671.68314 | F43: 917.7540441 | G43: 2.312740191 | H43: 0.531471165 | I43: 6909125.145 | J43: 6909125.145 | K43: 1910430.677 | M43: 18 | N43: 862.517422 | O43: 862.517422 | P43: 0 | Q43: 0 | R43: 0 | S43: 0 | T43: 0 | U43: 0 | V43: 0 | X43: 18 | Y43: 6909125.145 | Z43: 1910430.677
B44: 19 | C44: 354.2159112 | D44: 2121.787098 | E44: 1767.571186 | F44: 970.3965814 | G44: 2.445399385 | H44: 0.5619564468 | I44: 7305433.808 | J44: 7305433.808 | K44: 1887862.92 | M44: 19 | N44: 879.463504 | O44: 879.463504 | P44: 0 | Q44: 0 | R44: 0 | S44: 0 | T44: 0 | U44: 0 | V44: 0 | X44: 19 | Y44: 7305433.808 | Z44: 1887862.92
B45: 20 | C45: 361.0411766 | D45: 2224.500409 | E45: 1863.459232 | F45: 1023.039119 | G45: 2.578058579 | H45: 0.5924417285 | I45: 7701742.471 | J45: 7701742.471 | K45: 1860071.597 | M45: 20 | N45: 896.409586 | O45: 896.409586 | P45: 0 | Q45: 0 | R45: 0 | S45: 0 | T45: 0 | U45: 0 | V45: 0 | X45: 20 | Y45: 7701742.471 | Z45: 1860071.597
B47: Total | K47: =SUM(K26:K45) -> 30409708.94 | M47: Total | V47: =SUM(V26:V45) -> 0 | X47: Total | Z47: =SUM(Z26:Z45) -> 30409708.94
B52: D | C52: CYCLING BENEFITS | M52: E | N52: PEDESTRIAN BENEFITS | X52: F | Y52: TOTAL
B55: New | M55: New | X55: New
C57: AVERAGE ANNUAL USERS | F57: REDUCED MORTALITY RISK | I57: VALUE OF REDUCED MORTALITY | N57: AVERAGE ANNUAL USERS | Q57: REDUCED MORTALITY RISK | T57: VALUE OF REDUCED MORTALITY
C58: (trips/yr.) | F58: (# of persons) | I58: ($) | N58: (trips/yr.) | Q58: (# of persons) | T58: ($)
B59: Year | C59: Total Users, Existing Facility (Baseline) | D59: Total Users, Improved Facility | E59: Induced Users, Improved Facility | F59: Users in Age-Risk Group | G59: Expected # of Deaths Among Users | H59: Reduced Mortality Risk (Induced User Trips) | I59: Induced Users | J59: Constant Dollars | K59: Present Value | M59: Year | N59: Total Users, Existing Facility (Baseline) | O59: Total Users, Improved Facility | P59: Induced Users, Improved Facility | Q59: Users in Age-Risk Group | R59: Expected # of Deaths Among Users | S59: Reduced Mortality Risk (Induced User Trips) | T59: Induced Users | U59: Constant Dollars | V59: Present Value | X59: Year | Y59: Constant Dollars | Z59: Present Value
B60: 1 | C60: =IF(ProjType>1,UserComCyc1NBNew+UserODCyc1NBNew+UserRecCyc1NBNew*RecBen,0) -> 231.3611329 | D60: =IF(ProjType>1,UserComCyc1BNew+UserODCyc1BNew+UserRecCyc1BNew*RecBen,0) -> 272.9474914 | E60: =D60-C60 -> 41.58635849 | F60: =E60*PerCycAge -> 22.83091081 | G60: =F60*MortRateCyc/100000 -> 0.05753389525 | H60: =G60*PerCycRiskRedUsers -> 0.01322137543 | I60: =H60*HwyFatCost -> 171877.8806 | J60: =I60 -> 171877.8806 | K60: =$J60/(1+DiscRate)^($B60+Construct-1) -> 150124.7974 | M60: 1 | N60: =IF(ProjType>1,UserComPed1NBNew+UserODPed1NBNew+UserRecPed1NBNew*RecBen,0) -> 574.4340281 | O60: =IF(ProjType>1,UserComPed1BNew+UserODPed1BNew+UserRecPed1BNew*RecBen,0) -> 574.4340281 | P60: =O60-N60 -> 0 | Q60: =P60*PerPedAge -> 0 | R60: =Q60*MortRatePed/100000 -> 0 | S60: =R60*PerPedRiskRedUsers -> 0 | T60: =IF(ProjType>1,S60*HwyFatCost,0) -> 0 | U60: =T60 -> 0 | V60: =$U60/(1+DiscRate)^($M60+Construct-1) -> 0 | X60: 1 | Y60: =U60+J60 -> 171877.8806 | Z60: =V60+K60 -> 150124.7974
B61: 20 | C61: =IF(ProjType>1,UserComCyc20NBNew+UserODCyc20NBNew+UserRecCyc20NBNew*RecBen,0) -> 361.0411766 | D61: =IF(ProjType>1,UserComCyc20BNew+UserODCyc20BNew+UserRecCyc20BNew*RecBen,0) -> 2224.500409 | E61: =D61-C61 -> 1863.459232 | F61: =E61*PerCycAge -> 1023.039119 | G61: =F61*MortRateCyc/100000 -> 2.578058579 | H61: =G61*PerCycRiskRedUsers -> 0.5924417285 | I61: =H61*HwyFatCost -> 7701742.471 | J61: =I61 -> 7701742.471 | K61: =$J61/(1+DiscRate)^($B61+Construct-1) -> 1860071.597 | M61: 20 | N61: =IF(ProjType>1,UserComPed20NBNew+UserODPed20NBNew+UserRecPed20NBNew*RecBen,0) -> 896.409586 | O61: =IF(ProjType>1,UserComPed20BNew+UserODPed20BNew+UserRecPed20BNew*RecBen,0) -> 896.409586 | P61: =O61-N61 -> 0 | Q61: =P61*PerPedAge -> 0 | R61: =Q61*MortRatePed/100000 -> 0 | S61: =R61*PerPedRiskRedUsers -> 0 | T61: =IF(ProjType>1,S61*HwyFatCost,0) -> 0 | U61: =T61 -> 0 | V61: =$U61/(1+DiscRate)^($M61+Construct-1) -> 0 | X61: 20 | Y61: =U61+J61 -> 7701742.471 | Z61: =V61+K61 -> 1860071.597
B63: 1 | C63: =TREND(C$60:C$61,$B$60:$B$61,$B63) -> 231.3611329 | D63: =TREND(D$60:D$61,$B$60:$B$61,$B63) -> 272.9474914 | E63: =D63-C63 -> 41.58635849 | F63: =E63*PerCycAge -> 22.83091081 | G63: =F63*MortRateCyc/100000 -> 0.05753389525 | H63: =G63*PerCycRiskRedUsers -> 0.01322137543 | I63: =H63*HwyFatCost -> 171877.8806 | J63: =I63 -> 171877.8806 | K63: =$J63/(1+DiscRate)^($B63+Construct-1) -> 150124.7974 | M63: 1 | N63: =TREND(N$60:N$61,$M$60:$M$61,$M63) -> 574.4340281 | O63: =TREND(O$60:O$61,$M$60:$M$61,$M63) -> 574.4340281 | P63: =O63-N63 -> 0 | Q63: =P63*PerPedAge -> 0 | R63: =Q63*MortRatePed/100000 -> 0 | S63: =R63*PerPedRiskRedUsers -> 0 | T63: =IF(ProjType>1,S63*HwyFatCost,0) -> 0 | U63: =T63 -> 0 | V63: =U63/(1+DiscRate)^($B63+Construct-1) -> 0 | X63: 1 | Y63: =U63+J63 -> 171877.8806 | Z63: 150124.7974
B64: 2 | C64: =TREND(C$60:C$61,$B$60:$B$61,$B64) -> 238.1863984 | D64: 375.6608029 | E64: =D64-C64 -> 137.4744045 | F64: 75.47344807 | G64: 0.1901930891 | H64: 0.04370665717 | I64: 568186.5432 | J64: 568186.5432 | K64: 463809.4689 | M64: 2 | N64: =TREND(N$60:N$61,$M$60:$M$61,$M64) -> 591.3801101 | O64: 591.3801101 | P64: =O64-N64 -> 0 | Q64: 0 | R64: 0 | S64: 0 | T64: 0 | U64: 0 | V64: 0 | X64: 2 | Y64: 568186.5432 | Z64: 463809.4689
B65: 3 | C65: 245.0116639 | D65: 478.3741143 | E65: 233.3624505 | F65: 128.1159853 | G65: 0.322852283 | H65: 0.07419193891 | I65: 964495.2059 | J65: 964495.2059 | K65: 735808.7746 | M65: 3 | N65: 608.3261921 | O65: 608.3261921 | P65: 0 | Q65: 0 | R65: 0 | S65: 0 | T65: 0 | U65: 0 | V65: 0 | X65: 3 | Y65: 964495.2059 | Z65: 735808.7746
B66: 4 | C66: 251.8369293 | D66: 581.0874258 | E66: 329.2504965 | F66: 180.7585226 | G66: 0.4555114769 | H66: 0.1046772207 | I66: 1360803.868 | J66: 1360803.868 | K66: 970234.3512 | M66: 4 | N66: 625.2722741 | O66: 625.2722741 | P66: 0 | Q66: 0 | R66: 0 | S66: 0 | T66: 0 | U66: 0 | V66: 0 | X66: 4 | Y66: 1360803.868 | Z66: 970234.3512
B67: 5 | C67: 258.6621948 | D67: 683.8007373 | E67: 425.1385425 | F67: 233.4010598 | G67: 0.5881706708 | H67: 0.1351625024 | I67: 1757112.531 | J67: 1757112.531 | K67: 1170838.271 | M67: 5 | N67: 642.2183561 | O67: 642.2183561 | P67: 0 | Q67: 0 | R67: 0 | S67: 0 | T67: 0 | U67: 0 | V67: 0 | X67: 5 | Y67: 1757112.531 | Z67: 1170838.271
B68: 6 | C68: 265.4874602 | D68: 786.5140487 | E68: 521.0265885 | F68: 286.0435971 | G68: 0.7208298646 | H68: 0.1656477841 | I68: 2153421.194 | J68: 2153421.194 | K68: 1341042.493 | M68: 6 | N68: 659.1644381 | O68: 659.1644381 | P68: 0 | Q68: 0 | R68: 0 | S68: 0 | T68: 0 | U68: 0 | V68: 0 | X68: 6 | Y68: 2153421.194 | Z68: 1341042.493
B69: 7 | C69: 272.3127257 | D69: 889.2273602 | E69: 616.9146345 | F69: 338.6861343 | G69: 0.8534890585 | H69: 0.1961330659 | I69: 2549729.856 | J69: 2549729.856 | K69: 1483965.991 | M69: 7 | N69: 676.1105201 | O69: 676.1105201 | P69: 0 | Q69: 0 | R69: 0 | S69: 0 | T69: 0 | U69: 0 | V69: 0 | X69: 7 | Y69: 2549729.856 | Z69: 1483965.991
B70: 8 | C70: 279.1379911 | D70: 991.9406716 | E70: 712.8026805 | F70: 391.3286716 | G70: 0.9861482524 | H70: 0.2266183476 | I70: 2946038.519 | J70: 2946038.519 | K70: 1602449.757 | M70: 8 | N70: 693.0566021 | O70: 693.0566021 | P70: 0 | Q70: 0 | R70: 0 | S70: 0 | T70: 0 | U70: 0 | V70: 0 | X70: 8 | Y70: 2946038.519 | Z70: 1602449.757
B71: 9 | C71: 285.9632566 | D71: 1094.653983 | E71: 808.6907265 | F71: 443.9712088 | G71: 1.118807446 | H71: 0.2571036294 | I71: 3342347.182 | J71: 3342347.182 | K71: 1699079.824 | M71: 9 | N71: 710.0026841 | O71: 710.0026841 | P71: 0 | Q71: 0 | R71: 0 | S71: 0 | T71: 0 | U71: 0 | V71: 0 | X71: 9 | Y71: 3342347.182 | Z71: 1699079.824
B72: 10 | C72: 292.7885221 | D72: 1197.367295 | E72: 904.5787725 | F72: 496.6137461 | G72: 1.25146664 | H72: 0.2875889111 | I72: 3738655.844 | J72: 3738655.844 | K72: 1776208.46 | M72: 10 | N72: 726.9487661 | O72: 726.9487661 | P72: 0 | Q72: 0 | R72: 0 | S72: 0 | T72: 0 | U72: 0 | V72: 0 | X72: 10 | Y72: 3738655.844 | Z72: 1776208.46
B73: 11 | C73: 299.6137875 | D73: 1300.080606 | E73: 1000.466818 | F73: 549.2562833 | G73: 1.384125834 | H73: 0.3180741928 | I73: 4134964.507 | J73: 4134964.507 | K73: 1835973.692 | M73: 11 | N73: 743.8948481 | O73: 743.8948481 | P73: 0 | Q73: 0 | R73: 0 | S73: 0 | T73: 0 | U73: 0 | V73: 0 | X73: 11 | Y73: 4134964.507 | Z73: 1835973.692
B74: 12 | C74: 306.439053 | D74: 1402.793917 | E74: 1096.354864 | F74: 601.8988206 | G74: 1.516785028 | H74: 0.3485594746 | I74: 4531273.17 | J74: 4531273.17 | K74: 1880317.269 | M74: 12 | N74: 760.8409301 | O74: 760.8409301 | P74: 0 | Q74: 0 | R74: 0 | S74: 0 | T74: 0 | U74: 0 | V74: 0 | X74: 12 | Y74: 4531273.17 | Z74: 1880317.269
B75: 13 | C75: 313.2643184 | D75: 1505.507229 | E75: 1192.24291 | F75: 654.5413578 | G75: 1.649444222 | H75: 0.3790447563 | I75: 4927581.832 | J75: 4927581.832 | K75: 1911001.191 | M75: 13 | N75: 777.7870121 | O75: 777.7870121 | P75: 0 | Q75: 0 | R75: 0 | S75: 0 | T75: 0 | U75: 0 | V75: 0 | X75: 13 | Y75: 4927581.832 | Z75: 1911001.191
B76: 14 | C76: 320.0895839 | D76: 1608.22054 | E76: 1288.130956 | F76: 707.1838951 | G76: 1.782103416 | H76: 0.4095300381 | I76: 5323890.495 | J76: 5323890.495 | K76: 1929622.919 | M76: 14 | N76: 794.7330941 | O76: 794.7330941 | P76: 0 | Q76: 0 | R76: 0 | S76: 0 | T76: 0 | U76: 0 | V76: 0 | X76: 14 | Y76: 5323890.495 | Z76: 1929622.919
B77: 15 | C77: 326.9148494 | D77: 1710.933852 | E77: 1384.019002 | F77: 759.8264323 | G77: 1.91476261 | H77: 0.4400153198 | I77: 5720199.158 | J77: 5720199.158 | K77: 1937629.361 | M77: 15 | N77: 811.6791761 | O77: 811.6791761 | P77: 0 | Q77: 0 | R77: 0 | S77: 0 | T77: 0 | U77: 0 | V77: 0 | X77: 15 | Y77: 5720199.158 | Z77: 1937629.361
B78: 16 | C78: 333.7401148 | D78: 1813.647163 | E78: 1479.907048 | F78: 812.4689696 | G78: 2.047421803 | H78: 0.4705006016 | I78: 6116507.82 | J78: 6116507.82 | K78: 1936329.735 | M78: 16 | N78: 828.625258 | O78: 828.625258 | P78: 0 | Q78: 0 | R78: 0 | S78: 0 | T78: 0 | U78: 0 | V78: 0 | X78: 16 | Y78: 6116507.82 | Z78: 1936329.735
B79: 17 | C79: 340.5653803 | D79: 1916.360475 | E79: 1575.795094 | F79: 865.1115068 | G79: 2.180080997 | H79: 0.5009858833 | I79: 6512816.483 | J79: 6512816.483 | K79: 1926907.391 | M79: 17 | N79: 845.57134 | O79: 845.57134 | P79: 0 | Q79: 0 | R79: 0 | S79: 0 | T79: 0 | U79: 0 | V79: 0 | X79: 17 | Y79: 6512816.483 | Z79: 1926907.391
B80: 18 | C80: 347.3906457 | D80: 2019.073786 | E80: 1671.68314 | F80: 917.7540441 | G80: 2.312740191 | H80: 0.531471165 | I80: 6909125.145 | J80: 6909125.145 | K80: 1910430.677 | M80: 18 | N80: 862.517422 | O80: 862.517422 | P80: 0 | Q80: 0 | R80: 0 | S80: 0 | T80: 0 | U80: 0 | V80: 0 | X80: 18 | Y80: 6909125.145 | Z80: 1910430.677
B81: 19 | C81: 354.2159112 | D81: 2121.787098 | E81: 1767.571186 | F81: 970.3965814 | G81: 2.445399385 | H81: 0.5619564468 | I81: 7305433.808 | J81: 7305433.808 | K81: 1887862.92 | M81: 19 | N81: 879.463504 | O81: 879.463504 | P81: 0 | Q81: 0 | R81: 0 | S81: 0 | T81: 0 | U81: 0 | V81: 0 | X81: 19 | Y81: 7305433.808 | Z81: 1887862.92
B82: 20 | C82: 361.0411766 | D82: 2224.500409 | E82: 1863.459232 | F82: 1023.039119 | G82: 2.578058579 | H82: 0.5924417285 | I82: 7701742.471 | J82: 7701742.471 | K82: 1860071.597 | M82: 20 | N82: 896.409586 | O82: 896.409586 | P82: 0 | Q82: 0 | R82: 0 | S82: 0 | T82: 0 | U82: 0 | V82: 0 | X82: 20 | Y82: 7701742.471 | Z82: 1860071.597
B84: Total | K84: =SUM(K63:K82) -> 30409708.94 | M84: Total | V84: =SUM(V63:V82) -> 0 | X84: Total | Z84: =SUM(Z63:Z82) -> 30409708.94
F88: Computation of Risk Redution Parameter - Cycling | Q88: Computation of Risk Redution Parameter - Walking
G90: Total Average Annual Miles - Existing | H90: =TAvMiCycNB*CycleDays*RTCycNB -> 1863.9455 | R90: Total Average Annual Miles - Existing | S90: =TAvMiPedB*WalkDays*RTPedNB -> 521.22
G92: Percentage reduction in mortality per 365 annual cycling miles (2) from research | H92: =PerCycRiskRed -> 0.045 | R92: Percentage reduction in mortality per 365 annual cycling miles (2) from research | S92: =PerPedRiskRed -> 0.09
G94: Actual annual percentage reduction in mortality | H94: =MIN(IFERROR(H90,0)*H92/365,30%) -> 0.2298015 | I94: Note: Max risk reduction = 45%, or about 5 miles per trip for 365 days. WHO HEAT Model (2016) | R94: Actual annual percentage reduction in mortality | S94: =MIN(IFERROR(S90,0)*S92/365,30%) -> 0.12852 | T94: Note: Max risk reduction = 30%, or about 1.7 miles per day for 365 days. WHO HEAT Model (2016)

Sheet Emissions
B1: Emission Reduction Benefits
B3: This sheet calculates emissions benefits associated with reductions in automobile use due to increased cycling and walking.
B5: Formulas:
B7: Vehicle-Miles Traveled = Affected Length x Avg. Annual Volume | H7: Veh Em Cost = (Veh-Miles x Rate x Cost/Mile) by Em Type
B8: veh-miles/yr. | D8: miles | E8: vehicles/yr.
B10: Hwy Emissions Cost = (VMT x Rate x Cost/Mile) by Emissions Type
B15: A | C15: REDUCED EMISSIONS BENEFITS
B18: Total
C20: AVERAGE ANNUAL VOLUME | E20: REDUCED VMT | F20: AVERAGE SPEED | G20: RUNNING EMISSIONS | K20: TONS EMISSIONS SAVED | R20: DOLLARS EMISSIONS SAVED
C21: (trip-miles/yr.) | E21: (veh-miles/yr.) | F21: (mph) | G21: ($/yr.) | K21: (tons/yr) | R21: (PV $/yr)
B22: Year | C22: Induced Trips, Cycling | D22: Induced Trips, Pedestrians | E22: Induced Trips | F22: Induced Trips | G22: Induced Trips | H22: Constant Dollars | I22: Present Value | K22: CO | L22: CO2 | M22: NOX | N22: PM10 | O22: SOX | P22: VOC | Q22: PM2.5 | R22: CO | S22: CO2 | T22: NOX | U22: PM10 | V22: SOX | W22: VOC
B23: 1 | C23: =IF(OR(ProjType=1,ProjType=3),((TrComCyc1BEX-TrComCyc1NBEX)+(TrODCyc1BEX-TrODCyc1NBEX))*TAvMiCycNB,0)+IF(ProjType>1,((TrComCyc1BNew-TrComCyc1NBNew)+(TrODCyc1BNew-TrODCyc1NBNew))*TAvMiCycNB,0) -> 83560.85283 | D23: =IF(OR(ProjType=1,ProjType=3),((TrComPed1BEX-TrComPed1NBEX)+(TrODPed1BEX-TrODPed1NBEX))*TAvMiPedNB,0)+IF(ProjType>1,((TrComPed1BNew-TrComPed1NBNew)+(TrODPed1BNew-TrODPed1NBNew))*TAvMiPedNB,0) -> 0 | E23: =(D23*DivCycAutoNB+C23*DivPedAutoNB)/VehOcc -> 27669.15656 | F23: =VehSpeed -> 25 | G23: =IFERROR(E23*0.00000110231131*(VLOOKUP(F23,EmAuto1,2)*VLOOKUP(ProjLoc,EmCost,2)+VLOOKUP(F23,EmAuto1,3)*VLOOKUP(ProjLoc,EmCost,3)*(1+CO2Uprater)^($B23+Construct-1)+VLOOKUP(F23,EmAuto1,4)*VLOOKUP(ProjLoc,EmCost,4)+VLOOKUP(F23,EmAuto1,5)*VLOOKUP(ProjLoc,EmCost,5)+VLOOKUP(F23,EmAuto1,6)*VLOOKUP(ProjLoc,EmCost,6)+VLOOKUP(F23,EmAuto1,7)*VLOOKUP(ProjLoc,EmCost,7)),0) -> 572.5038536 | H23: =G23 -> 572.5038536 | I23: =$H23/(1+DiscRate)^($B23+Construct-1) -> 500.0470378 | K23: =0.00000110231131*(E23*VLOOKUP(F23,EmAuto1,2)) -> 0.03480052763 | L23: =0.00000110231131*(E23*VLOOKUP(F23,EmAuto1,3)) -> 10.12558409 | M23: =0.00000110231131*(E23*VLOOKUP(F23,EmAuto1,4)) -> 0.002189901739 | N23: =0.00000110231131*(E23*VLOOKUP(F23,EmAuto1,5)) -> 6.100004844e-05 | O23: =0.00000110231131*(E23*VLOOKUP(F23,EmAuto1,6)) -> 0.0001006500799 | P23: =0.00000110231131*(E23*VLOOKUP(F23,EmAuto1,7)) -> 0.0007381005861 | Q23: =0.00000110231131*(E23*VLOOKUP(F23,EmAuto1,8)) -> 5.49000436e-05 | R23: =IFERROR(K23*VLOOKUP(ProjLoc,EmCost,2)/(1+DiscRate)^($B23+Construct-1),0) -> 2.735651574 | S23: =IFERROR(L23*VLOOKUP(ProjLoc,EmCost,3)*(1+CO2Uprater)^($B23+Construct-1)/(1+DiscRate)^($B23+Construct-1),0) -> 441.6661447 | T23: =IFERROR(M23*VLOOKUP(ProjLoc,EmCost,4)/(1+DiscRate)^($B23+Construct-1),0) -> 38.8287233 | U23: =IFERROR(N23*VLOOKUP(ProjLoc,EmCost,5)/(1+DiscRate)^($B23+Construct-1),0) -> 8.721904035 | V23: =IFERROR(O23*VLOOKUP(ProjLoc,EmCost,6)/(1+DiscRate)^($B23+Construct-1),0) -> 7.182384077 | W23: =IFERROR(P23*VLOOKUP(ProjLoc,EmCost,7)/(1+DiscRate)^($B23+Construct-1),0) -> 0.9122301767
B24: 20 | C24: =IF(OR(ProjType=1,ProjType=3),((TrComCyc20BEX-TrComCyc20NBEX)+(TrODCyc20BEX-TrODCyc20NBEX))*TAvMiCycNB,0)+IF(ProjType>1,((TrComCyc20BNew-TrComCyc20NBNew)+(TrODCyc20BNew-TrODCyc20NBNew))*TAvMiCycNB,0) -> 3744310.594 | D24: =IF(OR(ProjType=1,ProjType=3),((TrComPed20BEX-TrComPed20NBEX)+(TrODPed20BEX-TrODPed20NBEX))*TAvMiPedNB,0)+IF(ProjType>1,((TrComPed20BNew-TrComPed20NBNew)+(TrODPed20BNew-TrODPed20NBNew))*TAvMiPedNB,0) -> 0 | E24: =(D24*DivCycAutoNB+C24*DivPedAutoNB)/VehOcc -> 1239837.945 | F24: =VehSpeed -> 25 | G24: =IFERROR(E24*0.00000110231131*(VLOOKUP(F24,EmAuto20,2)*VLOOKUP(ProjLoc,EmCost,2)+VLOOKUP(F24,EmAuto20,3)*VLOOKUP(ProjLoc,EmCost,3)*(1+CO2Uprater)^($B24+Construct-1)+VLOOKUP(F24,EmAuto20,4)*VLOOKUP(ProjLoc,EmCost,4)+VLOOKUP(F24,EmAuto20,5)*VLOOKUP(ProjLoc,EmCost,5)+VLOOKUP(F24,EmAuto20,6)*VLOOKUP(ProjLoc,EmCost,6)+VLOOKUP(F24,EmAuto20,7)*VLOOKUP(ProjLoc,EmCost,7)),0) -> 25841.64424 | H24: =G24 -> 25841.64424 | I24: =$H24/(1+DiscRate)^($B24+Construct-1) -> 6241.095267 | K24: =0.00000110231131*(E24*VLOOKUP(F24,EmAuto20,2)) -> 0.8373693634 | L24: =0.00000110231131*(E24*VLOOKUP(F24,EmAuto20,3)) -> 339.6371231 | M24: =0.00000110231131*(E24*VLOOKUP(F24,EmAuto20,4)) -> 0.02979378509 | N24: =0.00000110231131*(E24*VLOOKUP(F24,EmAuto20,5)) -> 0.0009566811725 | O24: =0.00000110231131*(E24*VLOOKUP(F24,EmAuto20,6)) -> 0.003416718473 | P24: =0.00000110231131*(E24*VLOOKUP(F24,EmAuto20,7)) -> 0.01161684281 | Q24: =0.00000110231131*(E24*VLOOKUP(F24,EmAuto20,8)) -> 0.0008200124336 | R24: =IFERROR(K24*VLOOKUP(ProjLoc,EmCost,2)/(1+DiscRate)^($B24+Construct-1),0) -> 18.20120937 | S24: =IFERROR(L24*VLOOKUP(ProjLoc,EmCost,3)*(1+CO2Uprater)^($B24+Construct-1)/(1+DiscRate)^($B24+Construct-1),0) -> 5967.613209 | T24: =IFERROR(M24*VLOOKUP(ProjLoc,EmCost,4)/(1+DiscRate)^($B24+Construct-1),0) -> 146.0704567 | U24: =IFERROR(N24*VLOOKUP(ProjLoc,EmCost,5)/(1+DiscRate)^($B24+Construct-1),0) -> 37.82305247 | V24: =IFERROR(O24*VLOOKUP(ProjLoc,EmCost,6)/(1+DiscRate)^($B24+Construct-1),0) -> 67.41738778 | W24: =IFERROR(P24*VLOOKUP(ProjLoc,EmCost,7)/(1+DiscRate)^($B24+Construct-1),0) -> 3.969951685
B26: 1 | C26: =TREND(C$23:C$24,$B$23:$B$24,$B26) -> 83560.85283 | D26: =TREND(D$23:D$24,$B$23:$B$24,$B26) -> 0 | E26: =(D26*DivCycAutoNB+C26*DivPedAutoNB)/VehOcc -> 27669.15656 | F26: =VehSpeed -> 25 | G26: =IFERROR(E26*0.00000110231131*(VLOOKUP(F26,EmAuto1,2)*VLOOKUP(ProjLoc,EmCost,2)+VLOOKUP(F26,EmAuto1,3)*VLOOKUP(ProjLoc,EmCost,3)*(1+CO2Uprater)^($B26+Construct-1)+VLOOKUP(F26,EmAuto1,4)*VLOOKUP(ProjLoc,EmCost,4)+VLOOKUP(F26,EmAuto1,5)*VLOOKUP(ProjLoc,EmCost,5)+VLOOKUP(F26,EmAuto1,6)*VLOOKUP(ProjLoc,EmCost,6)+VLOOKUP(F26,EmAuto1,7)*VLOOKUP(ProjLoc,EmCost,7)),0) -> 572.5038536 | H26: =G26 -> 572.5038536 | I26: =$H26/(1+DiscRate)^($B26+Construct-1) -> 500.0470378 | K26: =0.00000110231131*(E26*VLOOKUP(F26,EmAuto1,2)) -> 0.03480052763 | L26: =0.00000110231131*(E26*VLOOKUP(F26,EmAuto1,3)) -> 10.12558409 | M26: =0.00000110231131*(E26*VLOOKUP(F26,EmAuto1,4)) -> 0.002189901739 | N26: =0.00000110231131*(E26*VLOOKUP(F26,EmAuto1,5)) -> 6.100004844e-05 | O26: =0.00000110231131*(E26*VLOOKUP(F26,EmAuto1,6)) -> 0.0001006500799 | P26: =0.00000110231131*(E26*VLOOKUP(F26,EmAuto1,7)) -> 0.0007381005861 | Q26: =0.00000110231131*(E26*VLOOKUP(F26,EmAuto1,8)) -> 5.49000436e-05 | R26: =IFERROR(K26*VLOOKUP(ProjLoc,EmCost,2)/(1+DiscRate)^($B26+Construct-1),0) -> 2.735651574 | S26: =IFERROR(L26*VLOOKUP(ProjLoc,EmCost,3)*(1+CO2Uprater)^($B26+Construct-1)/(1+DiscRate)^($B26+Construct-1),0) -> 441.6661447 | T26: =IFERROR(M26*VLOOKUP(ProjLoc,EmCost,4)/(1+DiscRate)^($B26+Construct-1),0) -> 38.8287233 | U26: =IFERROR(N26*VLOOKUP(ProjLoc,EmCost,5)/(1+DiscRate)^($B26+Construct-1),0) -> 8.721904035 | V26: =IFERROR(O26*VLOOKUP(ProjLoc,EmCost,6)/(1+DiscRate)^($B26+Construct-1),0) -> 7.182384077 | W26: =IFERROR(P26*VLOOKUP(ProjLoc,EmCost,7)/(1+DiscRate)^($B26+Construct-1),0) -> 0.9122301767
B27: 2 | C27: =TREND(C$23:C$24,$B$23:$B$24,$B27) -> 276231.8918 | D27: 0 | E27: 91467.51385 | F27: 25 | G27: 1925.990762 | H27: 1925.990762 | I27: 1572.18217 | K27: 0.1150420952 | L27: 33.47272263 | M27: 0.007239283466 | N27: 0.00020165135 | O27: 0.0003327247275 | P27: 0.002439981335 | Q27: 0.000181486215 | R27: 8.451775625 | S27: 1391.814826 | T27: 119.961058 | U27: 26.94625903 | V27: 22.18992333 | W27: 2.818328491
B28: 3 | C28: 468902.9308 | D28: 0 | E28: 155265.8711 | F28: 25 | G28: 3327.250183 | H28: 3327.250183 | I28: 2538.343234 | K28: 0.1952836627 | L28: 56.81986117 | M28: 0.01228866519 | N28: 0.0003423026516 | O28: 0.0005647993752 | P28: 0.004141862085 | Q28: 0.0003080723865 | R28: 13.40828742 | S28: 2252.200144 | T28: 190.3117659 | U28: 42.74879054 | V28: 35.20311978 | W28: 4.471126556
B29: 4 | C29: 661573.9698 | D29: 0 | E29: 219064.2284 | F29: 25 | G29: 4777.713269 | H29: 4777.713269 | I29: 3406.443531 | K29: 0.2755252303 | L29: 80.1669997 | M29: 0.01733804692 | N29: 0.0004829539532 | O29: 0.0007968740228 | P29: 0.005843742834 | Q29: 0.0004346585579 | R29: 17.68011132 | S29: 3029.136457 | T29: 250.944293 | U29: 56.36837516 | V29: 46.41868548 | W29: 5.895608646
B30: 5 | C30: 854245.0088 | D30: 0 | E30: 282862.5857 | F30: 25 | G30: 6278.84931 | H30: 6278.84931 | I30: 4183.862412 | K30: 0.3557667979 | L30: 103.5141382 | M30: 0.02238742865 | N30: 0.0006236052548 | O30: 0.00102894867 | P30: 0.007545623583 | Q30: 0.0005612447293 | R30: 21.33561953 | S30: 3728.544003 | T30: 302.8290865 | U30: 68.02299966 | V30: 56.01612993 | W30: 7.114574152
B31: 6 | C31: 1046916.048 | D31: 0 | E31: 346660.943 | F31: 25 | G31: 7832.166685 | H31: 7832.166685 | I31: 4877.479782 | K31: 0.4360083654 | L31: 126.8612768 | M31: 0.02743681037 | N31: 0.0007642565564 | O31: 0.001261023318 | P31: 0.009247504332 | Q31: 0.0006878309008 | R31: 24.43716873 | S31: 4355.971944 | T31: 346.8512116 | U31: 77.91147184 | V31: 64.15916897 | W31: 8.148816525
B32: 7 | C32: 1239587.087 | D32: 0 | E32: 410459.3003 | F32: 25 | G32: 9439.213841 | H32: 9439.213841 | I32: 5493.708396 | K32: 0.516249933 | L32: 150.2084153 | M32: 0.0324861921 | N32: 0.000904907858 | O32: 0.001493097966 | P32: 0.01094938508 | Q32: 0.0008144170722 | R32: 27.04159451 | S32: 4916.620124 | T32: 383.8173694 | U32: 86.21499701 | V32: 70.99702304 | W32: 9.017288157
B33: 8 | C33: 1432258.126 | D33: 0 | E33: 474257.6576 | F33: 25 | G33: =IFERROR(E33*0.00000110231131*(VLOOKUP(F33,EmAuto20,2)*VLOOKUP(ProjLoc,EmCost,2)+VLOOKUP(F33,EmAuto20,3)*VLOOKUP(ProjLoc,EmCost,3)*(1+CO2Uprater)^($B33+Construct-1)+VLOOKUP(F33,EmAuto20,4)*VLOOKUP(ProjLoc,EmCost,4)+VLOOKUP(F33,EmAuto20,5)*VLOOKUP(ProjLoc,EmCost,5)+VLOOKUP(F33,EmAuto20,6)*VLOOKUP(ProjLoc,EmCost,6)+VLOOKUP(F33,EmAuto20,7)*VLOOKUP(ProjLoc,EmCost,7)),0) -> 7885.741609 | H33: 7885.741609 | I33: 4289.320947 | K33: =0.00000110231131*(E33*VLOOKUP(F33,EmAuto20,2)) -> 0.3203070485 | L33: =0.00000110231131*(E33*VLOOKUP(F33,EmAuto20,3)) -> 129.9165807 | M33: =0.00000110231131*(E33*VLOOKUP(F33,EmAuto20,4)) -> 0.01139659484 | N33: =0.00000110231131*(E33*VLOOKUP(F33,EmAuto20,5)) -> 0.0003659457059 | O33: =0.00000110231131*(E33*VLOOKUP(F33,EmAuto20,6)) -> 0.001306948949 | P33: =0.00000110231131*(E33*VLOOKUP(F33,EmAuto20,7)) -> 0.004443626428 | Q33: =0.00000110231131*(E33*VLOOKUP(F33,EmAuto20,8)) -> 0.0003136677479 | R33: 15.68032305 | S33: 4053.716436 | T33: 125.8395474 | U33: 32.58452058 | V33: 58.08000985 | W33: 3.420109271
B34: 9 | C34: 1624929.165 | D34: 0 | E34: 538056.0149 | F34: 25 | G34: 9115.654493 | H34: 9115.654493 | I34: 4633.936509 | K34: 0.3633955748 | L34: 147.3932926 | M34: 0.01292969403 | N34: 0.0004151736614 | O34: 0.001482763076 | P34: 0.00504139446 | Q34: 0.0003558631384 | R34: 16.62586949 | S34: 4384.124702 | T34: 133.4278564 | U34: 34.54941488 | V34: 61.58231948 | W34: 3.626346867
B35: 10 | C35: 1817600.204 | D35: 0 | E35: 601854.3721 | F35: 25 | G35: 10389.45212 | H35: 10389.45212 | I35: 4935.953861 | K35: 0.406484101 | L35: 164.8700044 | M35: 0.01446279321 | N35: 0.000464401617 | O35: 0.001658577203 | P35: 0.005639162492 | Q35: 0.0003980585288 | R35: 17.38059014 | S35: 4674.802008 | T35: 139.4847281 | U35: 36.11776335 | V35: 64.37780927 | W35: 3.790962551
